Workbook

Sheet DL1153_2025 (hidden)
AO1: 1 | BB1: 1
B2: REPORTE DE INDICADORES DE CONVENIOS DE GESTION DL 1153 - 2025 | NOVIEMBRE 2025
B4: DIRIS/DIRESA | C4: NACIONAL
B6: Area Responsable | C6: Indicador | D6: Valor 2025 | E6: NOVIEMBRE | F6: Mes mínimo | G6: Mes máximo | H6: Comportamiento mensual | AP6: 2 | AQ6: 3 | AR6: 4 | AS6: 5 | AT6: 6 | AU6: 7 | AV6: 8 | AW6: 9 | AX6: 10 | AY6: 11 | AZ6: 12 | BA6: 13
A7: DL_1153_2024_CG01 | B7: DGIESP /UFANS | C7: Ficha 01: Porcentaje de niñas y niños de 12 a 18 meses, con diagnóstico de anemia entre los 6 y 11 meses, que se han recuperado. | D7: =IFERROR(VLOOKUP($C$4,DL_1153_2025_CG01!BU62:BV91,2,0),"-") -> 40.9% | E7: =+IFERROR(VLOOKUP($E$6,DL_1153_2025_CG01!$CS$47:$DW$59,MATCH(DL1153_2025!$C$4,DL_1153_2025_CG01!$CS$47:$DW$47,0),FALSE),"-") -> 41.3% | F7: =+IFERROR(VLOOKUP($C$4,DL_1153_2025_CG01!$CN$62:$CP$91,2,0),"-") -> 30.8% | G7: =+IFERROR(VLOOKUP($C$4,DL_1153_2025_CG01!$CN$62:$CP$91,3,0),"-") -> 48.6% | AP7: =+IFERROR(VLOOKUP($C$4,DL_1153_2025_CG01!$BZ$61:$CL$91,DL1153_2025!AP$6,0),"-") -> 30.8% | AQ7: =+IFERROR(VLOOKUP($C$4,DL_1153_2025_CG01!$BZ$61:$CL$91,DL1153_2025!AQ$6,0),"-") -> 34.7% | AR7: =+IFERROR(VLOOKUP($C$4,DL_1153_2025_CG01!$BZ$61:$CL$91,DL1153_2025!AR$6,0),"-") -> 36.1% | AS7: =+IFERROR(VLOOKUP($C$4,DL_1153_2025_CG01!$BZ$61:$CL$91,DL1153_2025!AS$6,0),"-") -> 37.3% | AT7: =+IFERROR(VLOOKUP($C$4,DL_1153_2025_CG01!$BZ$61:$CL$91,DL1153_2025!AT$6,0),"-") -> 41.6% | AU7: =+IFERROR(VLOOKUP($C$4,DL_1153_2025_CG01!$BZ$61:$CL$91,DL1153_2025!AU$6,0),"-") -> 43.0% | AV7: =+IFERROR(VLOOKUP($C$4,DL_1153_2025_CG01!$BZ$61:$CL$91,DL1153_2025!AV$6,0),"-") -> 45.4% | AW7: =+IFERROR(VLOOKUP($C$4,DL_1153_2025_CG01!$BZ$61:$CL$91,DL1153_2025!AW$6,0),"-") -> 48.6% | AX7: =+IFERROR(VLOOKUP($C$4,DL_1153_2025_CG01!$BZ$61:$CL$91,DL1153_2025!AX$6,0),"-") -> 46.3% | AY7: =+IFERROR(VLOOKUP($C$4,DL_1153_2025_CG01!$BZ$61:$CL$91,DL1153_2025!AY$6,0),"-") -> 43.4% | AZ7: =+IFERROR(VLOOKUP($C$4,DL_1153_2025_CG01!$BZ$61:$CL$91,DL1153_2025!AZ$6,0),"-") -> 41.3% | BA7: =+IFERROR(VLOOKUP($C$4,DL_1153_2025_CG01!$BZ$61:$CL$91,DL1153_2025!BA$6,0),"-") -> -
A8: DL_1153_2024_CG02 | B8: DGIESP / UFANS | C8: Ficha 02: Porcentaje de niñas/niños menores de 12 meses, que reciben un paquete integrado de servicios: CRED, vacunas, dosaje de hemoglobina para descarte de anemia y suplementación con hierro. | D8: =IFERROR(VLOOKUP($C$4,DL_1153_2025_CG02!BV62:BW91,2,0),"-") -> 53.4% | E8: =+IFERROR(VLOOKUP($E$6,DL_1153_2025_CG02!$CR$28:$DV$40,MATCH(DL1153_2025!$C$4,DL_1153_2025_CG02!$CR$28:$DV$28,0),FALSE),"-") -> 53.4% | F8: =+IFERROR(VLOOKUP($C$4,DL_1153_2025_CG02!$CN$62:$CP$91,2,0),"-") -> 35.2% | G8: =+IFERROR(VLOOKUP($C$4,DL_1153_2025_CG02!$CN$62:$CP$91,3,0),"-") -> 53.5% | AP8: =+VLOOKUP($C$4,DL_1153_2025_CG02!$BZ$61:$CL$91,DL1153_2025!AP$6,0) -> 35.2% | AQ8: =+VLOOKUP($C$4,DL_1153_2025_CG02!$BZ$61:$CL$91,DL1153_2025!AQ$6,0) -> 36.8% | AR8: =+IFERROR(VLOOKUP($C$4,DL_1153_2025_CG02!$BZ$61:$CL$91,DL1153_2025!AR$6,0),"-") -> 39.9% | AS8: =+VLOOKUP($C$4,DL_1153_2025_CG02!$BZ$61:$CL$91,DL1153_2025!AS$6,0) -> 43.6% | AT8: =+VLOOKUP($C$4,DL_1153_2025_CG02!$BZ$61:$CL$91,DL1153_2025!AT$6,0) -> 46.3% | AU8: =+VLOOKUP($C$4,DL_1153_2025_CG02!$BZ$61:$CL$91,DL1153_2025!AU$6,0) -> 49.4% | AV8: =+VLOOKUP($C$4,DL_1153_2025_CG02!$BZ$61:$CL$91,DL1153_2025!AV$6,0) -> 51.1% | AW8: =+VLOOKUP($C$4,DL_1153_2025_CG02!$BZ$61:$CL$91,DL1153_2025!AW$6,0) -> 53.2% | AX8: =+VLOOKUP($C$4,DL_1153_2025_CG02!$BZ$61:$CL$91,DL1153_2025!AX$6,0) -> 53.5% | AY8: =+VLOOKUP($C$4,DL_1153_2025_CG02!$BZ$61:$CL$91,DL1153_2025!AY$6,0) -> 53.2% | AZ8: =+VLOOKUP($C$4,DL_1153_2025_CG02!$BZ$61:$CL$91,DL1153_2025!AZ$6,0) -> 53.4% | BA8: =+VLOOKUP($C$4,DL_1153_2025_CG02!$BZ$61:$CL$91,DL1153_2025!BA$6,0) -> -
A9: DL_1153_2024_CG03 | B9: DGIESP / DVICI | C9: Ficha 03: Porcentaje de niños y niñas de 6 a 35 meses con diagnóstico de anemia del Total de los casos esperados de anemia | D9: =IFERROR(VLOOKUP($C$4,DL_1153_2025_CG03!BL62:BM91,2,0),"-") -> 23.7% | E9: =+IFERROR(VLOOKUP($E$6,DL_1153_2025_CG03!$CH$35:$ED$47,MATCH(DL1153_2025!$C$4,DL_1153_2025_CG03!$CH$35:$DL$35,0),FALSE),"-") -> 21.6% | F9: =+IFERROR(VLOOKUP($C$4,DL_1153_2025_CG03!$CD$62:$CF$91,2,0),"-") -> 21.1% | G9: =+IFERROR(VLOOKUP($C$4,DL_1153_2025_CG03!$CD$62:$CF$91,3,0),"-") -> 26.4% | AP9: =+IFERROR(VLOOKUP($C$4,DL_1153_2025_CG03!$BP$50:$CB$80,DL1153_2025!AP$6,0),"-") -> 26.4% | AQ9: =+IFERROR(VLOOKUP($C$4,DL_1153_2025_CG03!$BP$50:$CB$80,DL1153_2025!AQ$6,0),"-") -> 25.9% | AR9: =+IFERROR(VLOOKUP($C$4,DL_1153_2025_CG03!$BP$50:$CB$80,DL1153_2025!AR$6,0),"-") -> 25.5% | AS9: =+IFERROR(VLOOKUP($C$4,DL_1153_2025_CG03!$BP$50:$CB$80,DL1153_2025!AS$6,0),"-") -> 25.4% | AT9: =+IFERROR(VLOOKUP($C$4,DL_1153_2025_CG03!$BP$50:$CB$80,DL1153_2025!AT$6,0),"-") -> 24.4% | AU9: =+IFERROR(VLOOKUP($C$4,DL_1153_2025_CG03!$BP$50:$CB$80,DL1153_2025!AU$6,0),"-") -> 22.7% | AV9: =+IFERROR(VLOOKUP($C$4,DL_1153_2025_CG03!$BP$50:$CB$80,DL1153_2025!AV$6,0),"-") -> 22.7% | AW9: =+IFERROR(VLOOKUP($C$4,DL_1153_2025_CG03!$BP$50:$CB$80,DL1153_2025!AW$6,0),"-") -> 22.3% | AX9: =+IFERROR(VLOOKUP($C$4,DL_1153_2025_CG03!$BP$50:$CB$80,DL1153_2025!AX$6,0),"-") -> 21.4% | AY9: =+IFERROR(VLOOKUP($C$4,DL_1153_2025_CG03!$BP$50:$CB$80,DL1153_2025!AY$6,0),"-") -> 21.1% | AZ9: =+IFERROR(VLOOKUP($C$4,DL_1153_2025_CG03!$BP$50:$CB$80,DL1153_2025!AZ$6,0),"-") -> 21.6% | BA9: =+IFERROR(VLOOKUP($C$4,DL_1153_2025_CG03!$BP$50:$CB$80,DL1153_2025!BA$6,0),"-") -> -
A10: DL_1153_2024_CG04 | B10: DGIESP / DVICI | C10: Ficha 04:Porcentaje de recién nacidos que reciben vacunas BCG, HvB, controles CRED y tamizaje neonatal metabólico. | D10: =IFERROR(VLOOKUP($C$4,DL_1153_2025_CG04!BO51:BP81,2,0),"-") -> 53.0% | E10: =+IFERROR(VLOOKUP($E$6,DL_1153_2025_CG04!$CL$36:$DP$48,MATCH(DL1153_2025!$C$4,DL_1153_2025_CG04!$CL$36:$DP$36,0),FALSE),"-") -> 51.0% | F10: =+IFERROR(VLOOKUP($C$4,DL_1153_2025_CG04!$CG$52:$CI$81,2,0),"-") -> 42.3% | G10: =+IFERROR(VLOOKUP($C$4,DL_1153_2025_CG04!$CG$52:$CI$81,3,0),"-") -> 56.7% | AP10: =+IFERROR(VLOOKUP($C$4,DL_1153_2025_CG04!$BS$51:$CE$81,DL1153_2025!AP$6,0),"-") -> 42.3% | AQ10: =+IFERROR(VLOOKUP($C$4,DL_1153_2025_CG04!$BS$51:$CE$81,DL1153_2025!AQ$6,0),"-") -> 54.3% | AR10: =+IFERROR(VLOOKUP($C$4,DL_1153_2025_CG04!$BS$51:$CE$81,DL1153_2025!AR$6,0),"-") -> 56.7% | AS10: =+IFERROR(VLOOKUP($C$4,DL_1153_2025_CG04!$BS$51:$CE$81,DL1153_2025!AS$6,0),"-") -> 54.6% | AT10: =+IFERROR(VLOOKUP($C$4,DL_1153_2025_CG04!$BS$51:$CE$81,DL1153_2025!AT$6,0),"-") -> 52.9% | AU10: =+IFERROR(VLOOKUP($C$4,DL_1153_2025_CG04!$BS$51:$CE$81,DL1153_2025!AU$6,0),"-") -> 55.6% | AV10: =+IFERROR(VLOOKUP($C$4,DL_1153_2025_CG04!$BS$51:$CE$81,DL1153_2025!AV$6,0),"-") -> 55.2% | AW10: =+IFERROR(VLOOKUP($C$4,DL_1153_2025_CG04!$BS$51:$CE$81,DL1153_2025!AW$6,0),"-") -> 54.0% | AX10: =+IFERROR(VLOOKUP($C$4,DL_1153_2025_CG04!$BS$51:$CE$81,DL1153_2025!AX$6,0),"-") -> 54.3% | AY10: =+IFERROR(VLOOKUP($C$4,DL_1153_2025_CG04!$BS$51:$CE$81,DL1153_2025!AY$6,0),"-") -> 51.5% | AZ10: =+IFERROR(VLOOKUP($C$4,DL_1153_2025_CG04!$BS$51:$CE$81,DL1153_2025!AZ$6,0),"-") -> 51.0% | BA10: =+IFERROR(VLOOKUP($C$4,DL_1153_2025_CG04!$BS$51:$CE$81,DL1153_2025!BA$6,0),"-") -> -
A11: DL_1153_2024_CG05 | B11: DGIESP / DMUNI | C11: Ficha 05:Porcentaje de niñas y niños menores de 2 años en condición crecimiento inadecuado que luego de un periodo de seguimiento mejora sus condiciones nutricionales. | D11: =IFERROR(VLOOKUP($C$4,DL_1153_2025_CG05!BT47:BU77,2,0),"-") -> 25.3% | E11: =+IFERROR(VLOOKUP($E$6,DL_1153_2025_CG05!$CQ$36:$DU$48,MATCH(DL1153_2025!$C$4,DL_1153_2025_CG05!$CQ$36:$DU$36,0),FALSE),"-") -> 28.2% | F11: =+IFERROR(VLOOKUP($C$4,DL_1153_2025_CG05!$CL$48:$CN$77,2,0),"-") -> 8.4% | G11: =+IFERROR(VLOOKUP($C$4,DL_1153_2025_CG05!$CL$48:$CN$77,3,0),"-") -> 32.2% | AP11: =+VLOOKUP(DL1153_2025!$C$4,DL_1153_2025_CG05!$BX$47:$CJ$77,DL1153_2025!AP$6,0) -> 8.4% | AQ11: =+VLOOKUP(DL1153_2025!$C$4,DL_1153_2025_CG05!$BX$47:$CJ$77,DL1153_2025!AQ$6,0) -> 19.7% | AR11: =+VLOOKUP(DL1153_2025!$C$4,DL_1153_2025_CG05!$BX$47:$CJ$77,DL1153_2025!AR$6,0) -> 26.9% | AS11: =+VLOOKUP(DL1153_2025!$C$4,DL_1153_2025_CG05!$BX$47:$CJ$77,DL1153_2025!AS$6,0) -> 26.3% | AT11: =+VLOOKUP(DL1153_2025!$C$4,DL_1153_2025_CG05!$BX$47:$CJ$77,DL1153_2025!AT$6,0) -> 24.4% | AU11: =+VLOOKUP(DL1153_2025!$C$4,DL_1153_2025_CG05!$BX$47:$CJ$77,DL1153_2025!AU$6,0) -> 26.9% | AV11: =+VLOOKUP(DL1153_2025!$C$4,DL_1153_2025_CG05!$BX$47:$CJ$77,DL1153_2025!AV$6,0) -> 32.2% | AW11: =+VLOOKUP(DL1153_2025!$C$4,DL_1153_2025_CG05!$BX$47:$CJ$77,DL1153_2025!AW$6,0) -> 32.1% | AX11: =+VLOOKUP(DL1153_2025!$C$4,DL_1153_2025_CG05!$BX$47:$CJ$77,DL1153_2025!AX$6,0) -> 31.1% | AY11: =+VLOOKUP(DL1153_2025!$C$4,DL_1153_2025_CG05!$BX$47:$CJ$77,DL1153_2025!AY$6,0) -> 32.2% | AZ11: =+VLOOKUP(DL1153_2025!$C$4,DL_1153_2025_CG05!$BX$47:$CJ$77,DL1153_2025!AZ$6,0) -> 28.2% | BA11: =+VLOOKUP(DL1153_2025!$C$4,DL_1153_2025_CG05!$BX$47:$CJ$77,DL1153_2025!BA$6,0) -> -
A12: DL_1153_2024_CG06 | B12: DGIESP /DPROM | C12: Ficha 06:Porcentaje de niñas y niños de 1 año vacunados con dos dosis de vacuna sarampión, parotiditis y rubeola (SPR). | D12: =IFERROR(VLOOKUP($C$4,DL_1153_2025_CG06!BQ50:BR80,2,0),"-") -> 64.0% | E12: =+IFERROR(VLOOKUP($E$6,DL_1153_2025_CG06!$CN$36:$DR$48,MATCH(DL1153_2025!$C$4,DL_1153_2025_CG06!$CN$36:$DR$36,0),FALSE),"-") -> 64.0% | F12: =+IFERROR(VLOOKUP($C$4,DL_1153_2025_CG06!$CI$51:$CK$80,2,0),"-") -> 5.9% | G12: =+IFERROR(VLOOKUP($C$4,DL_1153_2025_CG06!$CI$51:$CK$80,3,0),"-") -> 64.0% | AP12: =+IFERROR(VLOOKUP($C$4,DL_1153_2025_CG06!$BU$50:$CG$80,DL1153_2025!AP$6,0),"-") -> 5.9% | AQ12: =+IFERROR(VLOOKUP($C$4,DL_1153_2025_CG06!$BU$50:$CG$80,DL1153_2025!AQ$6,0),"-") -> 11.3% | AR12: =+IFERROR(VLOOKUP($C$4,DL_1153_2025_CG06!$BU$50:$CG$80,DL1153_2025!AR$6,0),"-") -> 17.7% | AS12: =+IFERROR(VLOOKUP($C$4,DL_1153_2025_CG06!$BU$50:$CG$80,DL1153_2025!AS$6,0),"-") -> 23.9% | AT12: =+IFERROR(VLOOKUP($C$4,DL_1153_2025_CG06!$BU$50:$CG$80,DL1153_2025!AT$6,0),"-") -> 30.0% | AU12: =+IFERROR(VLOOKUP($C$4,DL_1153_2025_CG06!$BU$50:$CG$80,DL1153_2025!AU$6,0),"-") -> 35.4% | AV12: =+IFERROR(VLOOKUP($C$4,DL_1153_2025_CG06!$BU$50:$CG$80,DL1153_2025!AV$6,0),"-") -> 41.0% | AW12: =+IFERROR(VLOOKUP($C$4,DL_1153_2025_CG06!$BU$50:$CG$80,DL1153_2025!AW$6,0),"-") -> 46.9% | AX12: =+IFERROR(VLOOKUP($C$4,DL_1153_2025_CG06!$BU$50:$CG$80,DL1153_2025!AX$6,0),"-") -> 52.3% | AY12: =+IFERROR(VLOOKUP($C$4,DL_1153_2025_CG06!$BU$50:$CG$80,DL1153_2025!AY$6,0),"-") -> 58.4% | AZ12: =+IFERROR(VLOOKUP($C$4,DL_1153_2025_CG06!$BU$50:$CG$80,DL1153_2025!AZ$6,0),"-") -> 64.0% | BA12: =+IFERROR(VLOOKUP($C$4,DL_1153_2025_CG06!$BU$50:$CG$80,DL1153_2025!BA$6,0),"-") -> -
A13: DL_1153_2024_CG07 | B13: DGIESP / DMUNI | C13: Ficha 07:Porcentaje de recién nacidos de parto institucional, vacunados con BCG y Anti hepatitis B dentro de las 24 horas después del nacimiento. | D13: =IFERROR(VLOOKUP($C$4,DL_1153_2025_CG07!BM52:BN82,2,0),"-") -> 93.0% | E13: =+IFERROR(VLOOKUP($E$6,DL_1153_2025_CG07!$CJ$36:$DN$48,MATCH(DL1153_2025!$C$4,DL_1153_2025_CG07!$CJ$36:$DN$36,0),FALSE),"-") -> 92.2% | F13: =+IFERROR(VLOOKUP($C$4,DL_1153_2025_CG07!$CE$53:$CG$82,2,0),"-") -> 89.3% | G13: =+IFERROR(VLOOKUP($C$4,DL_1153_2025_CG07!$CE$53:$CG$82,3,0),"-") -> 94.4% | AP13: =+IFERROR(VLOOKUP($C$4,DL_1153_2025_CG07!$BQ$52:$CC$82,DL1153_2025!AP$6,0),"-") -> 94.0% | AQ13: =+IFERROR(VLOOKUP($C$4,DL_1153_2025_CG07!$BQ$52:$CC$82,DL1153_2025!AQ$6,0),"-") -> 94.4% | AR13: =+IFERROR(VLOOKUP($C$4,DL_1153_2025_CG07!$BQ$52:$CC$82,DL1153_2025!AR$6,0),"-") -> 93.8% | AS13: =+IFERROR(VLOOKUP($C$4,DL_1153_2025_CG07!$BQ$52:$CC$82,DL1153_2025!AS$6,0),"-") -> 92.1% | AT13: =+IFERROR(VLOOKUP($C$4,DL_1153_2025_CG07!$BQ$52:$CC$82,DL1153_2025!AT$6,0),"-") -> 93.6% | AU13: =+IFERROR(VLOOKUP($C$4,DL_1153_2025_CG07!$BQ$52:$CC$82,DL1153_2025!AU$6,0),"-") -> 93.7% | AV13: =+IFERROR(VLOOKUP($C$4,DL_1153_2025_CG07!$BQ$52:$CC$82,DL1153_2025!AV$6,0),"-") -> 93.8% | AW13: =+IFERROR(VLOOKUP($C$4,DL_1153_2025_CG07!$BQ$52:$CC$82,DL1153_2025!AW$6,0),"-") -> 93.4% | AX13: =+IFERROR(VLOOKUP($C$4,DL_1153_2025_CG07!$BQ$52:$CC$82,DL1153_2025!AX$6,0),"-") -> 89.3% | AY13: =+IFERROR(VLOOKUP($C$4,DL_1153_2025_CG07!$BQ$52:$CC$82,DL1153_2025!AY$6,0),"-") -> 93.3% | AZ13: =+IFERROR(VLOOKUP($C$4,DL_1153_2025_CG07!$BQ$52:$CC$82,DL1153_2025!AZ$6,0),"-") -> 92.2% | BA13: =+IFERROR(VLOOKUP($C$4,DL_1153_2025_CG07!$BQ$52:$CC$82,DL1153_2025!BA$6,0),"-") -> -
A14: DL_1153_2024_CG08 | B14: DGIESP / DPCT | C14: Ficha 08:Tasa de éxito de tratamiento para TB Sensible | D14: =IFERROR(VLOOKUP($C$4,DL_1153_2025_CG08!BR45:BS75,2,0),"-") -> 72.0% | E14: =+IFERROR(VLOOKUP($E$6,DL_1153_2025_CG08!$CO$29:$DS$41,MATCH(DL1153_2025!$C$4,DL_1153_2025_CG08!$CO$29:$DS$29,0),FALSE),"-") -> 72.0% | F14: =+IFERROR(VLOOKUP($C$4,DL_1153_2025_CG08!$CJ$46:$CL$75,2,0),"-") -> 7.3% | G14: =+IFERROR(VLOOKUP($C$4,DL_1153_2025_CG08!$CJ$46:$CL$75,3,0),"-") -> 72.0% | AP14: =+IFERROR(VLOOKUP($C$4,DL_1153_2025_CG08!$BV$45:$CH$75,DL1153_2025!AP$6,0),"-") -> 7.3% | AQ14: =+IFERROR(VLOOKUP($C$4,DL_1153_2025_CG08!$BV$45:$CH$75,DL1153_2025!AQ$6,0),"-") -> 14.2% | AR14: =+IFERROR(VLOOKUP($C$4,DL_1153_2025_CG08!$BV$45:$CH$75,DL1153_2025!AR$6,0),"-") -> 21.8% | AS14: =+IFERROR(VLOOKUP($C$4,DL_1153_2025_CG08!$BV$45:$CH$75,DL1153_2025!AS$6,0),"-") -> 27.5% | AT14: =+IFERROR(VLOOKUP($C$4,DL_1153_2025_CG08!$BV$45:$CH$75,DL1153_2025!AT$6,0),"-") -> 32.9% | AU14: =+IFERROR(VLOOKUP($C$4,DL_1153_2025_CG08!$BV$45:$CH$75,DL1153_2025!AU$6,0),"-") -> 36.9% | AV14: =+IFERROR(VLOOKUP($C$4,DL_1153_2025_CG08!$BV$45:$CH$75,DL1153_2025!AV$6,0),"-") -> 44.5% | AW14: =+IFERROR(VLOOKUP($C$4,DL_1153_2025_CG08!$BV$45:$CH$75,DL1153_2025!AW$6,0),"-") -> 52.0% | AX14: =+IFERROR(VLOOKUP($C$4,DL_1153_2025_CG08!$BV$45:$CH$75,DL1153_2025!AX$6,0),"-") -> 59.3% | AY14: =+IFERROR(VLOOKUP($C$4,DL_1153_2025_CG08!$BV$45:$CH$75,DL1153_2025!AY$6,0),"-") -> 66.3% | AZ14: =+IFERROR(VLOOKUP($C$4,DL_1153_2025_CG08!$BV$45:$CH$75,DL1153_2025!AZ$6,0),"-") -> 72.0% | BA14: =+IFERROR(VLOOKUP($C$4,DL_1153_2025_CG08!$BV$45:$CH$75,DL1153_2025!BA$6,0),"-") -> -
A15: DL_1153_2024_CG09 | B15: DGIESP / DPCT | C15: Ficha 09:Porcentaje de contactos menores de 5 años de edad que culminan Terapia Preventiva para TB. | D15: =IFERROR(VLOOKUP($C$4,DL_1153_2025_CG09!BQ45:BR75,2,0),"-") -> 65.8% | E15: =+IFERROR(VLOOKUP($E$6,DL_1153_2025_CG09!$CN$29:$DR$41,MATCH(DL1153_2025!$C$4,DL_1153_2025_CG09!$CN$29:$DR$29,0),FALSE),"-") -> 65.8% | F15: =+IFERROR(VLOOKUP($C$4,DL_1153_2025_CG09!$CI$46:$CK$75,2,0),"-") -> 6.9% | G15: =+IFERROR(VLOOKUP($C$4,DL_1153_2025_CG09!$CI$46:$CK$75,3,0),"-") -> 65.8% | AP15: =+VLOOKUP($C$4,DL_1153_2025_CG09!$BU$45:$CG$75,DL1153_2025!AP$6,0) -> 6.9% | AQ15: =+VLOOKUP($C$4,DL_1153_2025_CG09!$BU$45:$CG$75,DL1153_2025!AQ$6,0) -> 12.7% | AR15: =+VLOOKUP($C$4,DL_1153_2025_CG09!$BU$45:$CG$75,DL1153_2025!AR$6,0) -> 18.5% | AS15: =+VLOOKUP($C$4,DL_1153_2025_CG09!$BU$45:$CG$75,DL1153_2025!AS$6,0) -> 25.5% | AT15: =+VLOOKUP($C$4,DL_1153_2025_CG09!$BU$45:$CG$75,DL1153_2025!AT$6,0) -> 33.7% | AU15: =+VLOOKUP($C$4,DL_1153_2025_CG09!$BU$45:$CG$75,DL1153_2025!AU$6,0) -> 42.0% | AV15: =+VLOOKUP($C$4,DL_1153_2025_CG09!$BU$45:$CG$75,DL1153_2025!AV$6,0) -> 48.1% | AW15: =+VLOOKUP($C$4,DL_1153_2025_CG09!$BU$45:$CG$75,DL1153_2025!AW$6,0) -> 52.2% | AX15: =+VLOOKUP($C$4,DL_1153_2025_CG09!$BU$45:$CG$75,DL1153_2025!AX$6,0) -> 54.8% | AY15: =+VLOOKUP($C$4,DL_1153_2025_CG09!$BU$45:$CG$75,DL1153_2025!AY$6,0) -> 61.0% | AZ15: =+VLOOKUP($C$4,DL_1153_2025_CG09!$BU$45:$CG$75,DL1153_2025!AZ$6,0) -> 65.8% | BA15: =+VLOOKUP($C$4,DL_1153_2025_CG09!$BU$45:$CG$75,DL1153_2025!BA$6,0) -> -
A16: DL_1153_2024_CG10 | B16: DGIESP / DPVIH | C16: Ficha 10:Cobertura de la Terapia Preventiva para Tuberculosis en personas viviendo con VIH que inician Tratamiento Antirretroviral. | D16: En proceso de validación
A17: DL_1153_2024_CG11 | B17: DGIESP / DPCAN | C17: Ficha 11: Mujeres de 30 a 49 años con tamizaje para la detección de lesiones premalignas e incipientes de cáncer de cuello uterino. | D17: =IFERROR(VLOOKUP($C$4,DL_1153_2024_CG11!BQ41:BR71,2,0),"-") -> 14.7% | E17: =+IFERROR(VLOOKUP($E$6,DL_1153_2024_CG11!$CN$36:$DR$48,MATCH(DL1153_2025!$C$4,DL_1153_2024_CG11!$CN$36:$DR$36,0),FALSE),"-") -> 14.7% | F17: =+IFERROR(VLOOKUP($C$4,DL_1153_2024_CG11!$CJ$53:$CL$82,2,0),"-") -> 0.5% | G17: =+IFERROR(VLOOKUP($C$4,DL_1153_2024_CG11!$CJ$53:$CL$82,3,0),"-") -> 14.7% | AP17: =+VLOOKUP($C$4,DL_1153_2024_CG11!$BU$41:$CG$71,DL1153_2025!AP$6,0) -> 0.5% | AQ17: =+VLOOKUP($C$4,DL_1153_2024_CG11!$BU$41:$CG$71,DL1153_2025!AQ$6,0) -> 1.8% | AR17: =+VLOOKUP($C$4,DL_1153_2024_CG11!$BU$41:$CG$71,DL1153_2025!AR$6,0) -> 3.1% | AS17: =+VLOOKUP($C$4,DL_1153_2024_CG11!$BU$41:$CG$71,DL1153_2025!AS$6,0) -> 4.5% | AT17: =+VLOOKUP($C$4,DL_1153_2024_CG11!$BU$41:$CG$71,DL1153_2025!AT$6,0) -> 5.9% | AU17: =+VLOOKUP($C$4,DL_1153_2024_CG11!$BU$41:$CG$71,DL1153_2025!AU$6,0) -> 7.3% | AV17: =+VLOOKUP($C$4,DL_1153_2024_CG11!$BU$41:$CG$71,DL1153_2025!AV$6,0) -> 8.5% | AW17: =+VLOOKUP($C$4,DL_1153_2024_CG11!$BU$41:$CG$71,DL1153_2025!AW$6,0) -> 9.8% | AX17: =+VLOOKUP($C$4,DL_1153_2024_CG11!$BU$41:$CG$71,DL1153_2025!AX$6,0) -> 11.3% | AY17: =+VLOOKUP($C$4,DL_1153_2024_CG11!$BU$41:$CG$71,DL1153_2025!AY$6,0) -> 13.1% | AZ17: =+VLOOKUP($C$4,DL_1153_2024_CG11!$BU$41:$CG$71,DL1153_2025!AZ$6,0) -> 14.7% | BA17: =+VLOOKUP($C$4,DL_1153_2024_CG11!$BU$41:$CG$71,DL1153_2025!BA$6,0) -> -
A18: DL_1153_2024_CG12 | B18: DGIESP / DPCAN | C18: Ficha 12:Porcentaje de niñas y niños (6 meses a 6 años) que reciben procedimientos estomatológicos preventivos. | D18: =AY18 -> 42.9% | E18: =D18 -> 42.9% | F18: =MIN(AP18:BA18) -> 0.0% | G18: =MAX(AP18:BA18) -> 182.9% | AP18: 0.0% | AQ18: 0.0% | AR18: 0.0% | AS18: 0.0% | AT18: 0.0% | AU18: 0.0% | AV18: 0.0% | AW18: 26.6% | AX18: 34.8% | AY18: 42.9% | AZ18: =GETPIVOTDATA("Ind ",DL_1153_2024_CG12!$P$8,"Mes",11) -> 182.9% | BA18: =+VLOOKUP(DL1153_2025!$C$4,DL_1153_2024_CG12!$BM$46:$BY$76,DL1153_2025!BA$6,0) -> -
A19: DL_1153_2024_CG13 | B19: DGIESP / DPCAN | C19: Ficha 13:Porcentaje de personas que acceden a algún método anticonceptivo moderno de planificación familiar. | D19: =IFERROR(VLOOKUP($C$4,DL_1153_2024_CG13!BQ47:BR77,2,0),"-") -> 24.7% | E19: =+IFERROR(VLOOKUP($E$6,DL_1153_2024_CG13!$CN$36:$DR$48,MATCH(DL1153_2025!$C$4,DL_1153_2024_CG13!$CN$36:$DR$36,0),FALSE),"-") -> 24.7% | F19: =+IFERROR(VLOOKUP($C$4,DL_1153_2024_CG13!$CI$53:$CK$82,2,0),"-") -> 14.1% | G19: =+IFERROR(VLOOKUP($C$4,DL_1153_2024_CG13!$CI$53:$CK$82,3,0),"-") -> 24.7% | AP19: =+VLOOKUP($C$4,DL_1153_2024_CG13!$BU$46:$CG$76,DL1153_2025!AP$6,0) -> 14.1% | AQ19: =+VLOOKUP($C$4,DL_1153_2024_CG13!$BU$46:$CG$76,DL1153_2025!AQ$6,0) -> 15.4% | AR19: =+VLOOKUP($C$4,DL_1153_2024_CG13!$BU$46:$CG$76,DL1153_2025!AR$6,0) -> 17.0% | AS19: =+VLOOKUP($C$4,DL_1153_2024_CG13!$BU$46:$CG$76,DL1153_2025!AS$6,0) -> 18.3% | AT19: =+VLOOKUP($C$4,DL_1153_2024_CG13!$BU$46:$CG$76,DL1153_2025!AT$6,0) -> 19.1% | AU19: =+VLOOKUP($C$4,DL_1153_2024_CG13!$BU$46:$CG$76,DL1153_2025!AU$6,0) -> 19.9% | AV19: =+VLOOKUP($C$4,DL_1153_2024_CG13!$BU$46:$CG$76,DL1153_2025!AV$6,0) -> 20.9% | AW19: =+VLOOKUP($C$4,DL_1153_2024_CG13!$BU$46:$CG$76,DL1153_2025!AW$6,0) -> 21.6% | AX19: =+VLOOKUP($C$4,DL_1153_2024_CG13!$BU$46:$CG$76,DL1153_2025!AX$6,0) -> 22.4% | AY19: =+VLOOKUP($C$4,DL_1153_2024_CG13!$BU$46:$CG$76,DL1153_2025!AY$6,0) -> 23.6% | AZ19: =+VLOOKUP($C$4,DL_1153_2024_CG13!$BU$46:$CG$76,DL1153_2025!AZ$6,0) -> 24.7% | BA19: =+VLOOKUP($C$4,DL_1153_2024_CG13!$BU$46:$CG$76,DL1153_2025!BA$6,0) -> -
A20: DL_1153_2024_CG14 | B20: DGIESP / DPCAN | C20: Ficha 14:Porcentaje de gestante atendidas con 2 o más Atenciones Prenatales (APN) en el hospital, referidas por factores de riesgo. | D20: =IFERROR(VLOOKUP($C$4,DL_1153_2024_CG14!BQ52:BR81,2,0),"-") -> 58.4% | E20: =+IFERROR(VLOOKUP($E$6,DL_1153_2024_CG14!$CN$36:$DR$48,MATCH(DL1153_2025!$C$4,DL_1153_2024_CG14!$CN$36:$DR$36,0),FALSE),"-") -> 21.6% | F20: =+IFERROR(VLOOKUP($C$4,DL_1153_2024_CG14!$CI$53:$CK$82,2,0),"-") -> 21.6% | G20: =+IFERROR(VLOOKUP($C$4,DL_1153_2024_CG14!$CI$53:$CK$82,3,0),"-") -> 65.7% | AP20: =+IFERROR(VLOOKUP($C$4,DL_1153_2024_CG14!$BU$51:$CG$81,DL1153_2025!AP$6,0),"-") -> 65.3% | AQ20: =+IFERROR(VLOOKUP($C$4,DL_1153_2024_CG14!$BU$51:$CG$81,DL1153_2025!AQ$6,0),"-") -> 65.0% | AR20: =+IFERROR(VLOOKUP($C$4,DL_1153_2024_CG14!$BU$51:$CG$81,DL1153_2025!AR$6,0),"-") -> 61.8% | AS20: =+IFERROR(VLOOKUP($C$4,DL_1153_2024_CG14!$BU$51:$CG$81,DL1153_2025!AS$6,0),"-") -> 63.7% | AT20: =+IFERROR(VLOOKUP($C$4,DL_1153_2024_CG14!$BU$51:$CG$81,DL1153_2025!AT$6,0),"-") -> 65.7% | AU20: =+IFERROR(VLOOKUP($C$4,DL_1153_2024_CG14!$BU$51:$CG$81,DL1153_2025!AU$6,0),"-") -> 64.6% | AV20: =+IFERROR(VLOOKUP($C$4,DL_1153_2024_CG14!$BU$51:$CG$81,DL1153_2025!AV$6,0),"-") -> 61.6% | AW20: =+IFERROR(VLOOKUP($C$4,DL_1153_2024_CG14!$BU$51:$CG$81,DL1153_2025!AW$6,0),"-") -> 62.7% | AX20: =+IFERROR(VLOOKUP($C$4,DL_1153_2024_CG14!$BU$51:$CG$81,DL1153_2025!AX$6,0),"-") -> 60.2% | AY20: =+IFERROR(VLOOKUP($C$4,DL_1153_2024_CG14!$BU$51:$CG$81,DL1153_2025!AY$6,0),"-") -> 51.1% | AZ20: =+IFERROR(VLOOKUP($C$4,DL_1153_2024_CG14!$BU$51:$CG$81,DL1153_2025!AZ$6,0),"-") -> 21.6% | BA20: =+IFERROR(VLOOKUP($C$4,DL_1153_2024_CG14!$BU$51:$CG$81,DL1153_2025!BA$6,0),"-") -> -
A21: DL_1153_2024_CG15 | B21: DGIESP / DSABU | C21: Ficha 15:Porcentaje de gestantes con paquete preventivo completo. . | D21: =IFERROR(VLOOKUP($C$4,DL_1153_2024_CG15!BQ52:BR82,2,0),"-") -> 35.0% | E21: =+IFERROR(VLOOKUP($E$6,DL_1153_2024_CG15!$CN$36:$DR$48,MATCH(DL1153_2025!$C$4,DL_1153_2024_CG15!$CN$36:$DR$36,0),FALSE),"-") -> 38.2% | F21: =+IFERROR(VLOOKUP($C$4,DL_1153_2024_CG15!$CI$53:$CK$82,2,0),"-") -> 31.9% | G21: =+IFERROR(VLOOKUP($C$4,DL_1153_2024_CG15!$CI$53:$CK$82,3,0),"-") -> 38.9% | AP21: =+IFERROR(VLOOKUP($C$4,DL_1153_2024_CG15!$BU$46:$CG$76,DL1153_2025!AP6:AP6,0),"-") -> 32.7% | AQ21: =+IFERROR(VLOOKUP($C$4,DL_1153_2024_CG15!$BU$46:$CG$76,DL1153_2025!AQ6:AQ6,0),"-") -> 31.9% | AR21: =+IFERROR(VLOOKUP($C$4,DL_1153_2024_CG15!$BU$46:$CG$76,DL1153_2025!AR6:AR6,0),"-") -> 32.7% | AS21: =+IFERROR(VLOOKUP($C$4,DL_1153_2024_CG15!$BU$46:$CG$76,DL1153_2025!AS6:AS6,0),"-") -> 33.2% | AT21: =+IFERROR(VLOOKUP($C$4,DL_1153_2024_CG15!$BU$46:$CG$76,DL1153_2025!AT6:AT6,0),"-") -> 33.4% | AU21: =+IFERROR(VLOOKUP($C$4,DL_1153_2024_CG15!$BU$46:$CG$76,DL1153_2025!AU6:AU6,0),"-") -> 33.4% | AV21: =+IFERROR(VLOOKUP($C$4,DL_1153_2024_CG15!$BU$46:$CG$76,DL1153_2025!AV6:AV6,0),"-") -> 34.6% | AW21: =+IFERROR(VLOOKUP($C$4,DL_1153_2024_CG15!$BU$46:$CG$76,DL1153_2025!AW6:AW6,0),"-") -> 37.6% | AX21: =+IFERROR(VLOOKUP($C$4,DL_1153_2024_CG15!$BU$46:$CG$76,DL1153_2025!AX6:AX6,0),"-") -> 38.4% | AY21: =+IFERROR(VLOOKUP($C$4,DL_1153_2024_CG15!$BU$46:$CG$76,DL1153_2025!AY6:AY6,0),"-") -> 38.9% | AZ21: =+IFERROR(VLOOKUP($C$4,DL_1153_2024_CG15!$BU$46:$CG$76,DL1153_2025!AZ6:AZ6,0),"-") -> 38.2% | BA21: =+IFERROR(VLOOKUP($C$4,DL_1153_2024_CG15!$BU$46:$CG$76,DL1153_2025!BA6:BA6,0),"-") -> -
A22: DL_1153_2024_CG16 | B22: DGIESP / DSARE | C22: Ficha 16:Porcentaje de adolescentes que reciben prestaciones priorizadas para el cuidado integral de la salud. | D22: =IFERROR(VLOOKUP($C$4,DL_1153_2024_CG16!BW45:BX75,2,0),"-") -> 34.6% | E22: =+IFERROR(VLOOKUP($E$6,DL_1153_2024_CG16!$CT$36:$DY$48,MATCH(DL1153_2025!$C$4,DL_1153_2024_CG16!$CT$36:$DY$36,0),FALSE),"-") -> 34.6% | F22: =+IFERROR(VLOOKUP($C$4,DL_1153_2024_CG16!$CO$53:$CQ$82,2,0),"-") -> 3.9% | G22: =+IFERROR(VLOOKUP($C$4,DL_1153_2024_CG16!$CO$53:$CQ$82,3,0),"-") -> 34.6% | AP22: =+IFERROR(VLOOKUP($C$4,DL_1153_2024_CG16!$CA$45:$CM$75,DL1153_2025!AP$6,0),"-") -> 3.9% | AQ22: =+IFERROR(VLOOKUP($C$4,DL_1153_2024_CG16!$CA$45:$CM$75,DL1153_2025!AQ$6,0),"-") -> 4.9% | AR22: =+IFERROR(VLOOKUP($C$4,DL_1153_2024_CG16!$CA$45:$CM$75,DL1153_2025!AR$6,0),"-") -> 7.9% | AS22: =+IFERROR(VLOOKUP($C$4,DL_1153_2024_CG16!$CA$45:$CM$75,DL1153_2025!AS$6,0),"-") -> 10.4% | AT22: =+IFERROR(VLOOKUP($C$4,DL_1153_2024_CG16!$CA$45:$CM$75,DL1153_2025!AT$6,0),"-") -> 13.2% | AU22: =+IFERROR(VLOOKUP($C$4,DL_1153_2024_CG16!$CA$45:$CM$75,DL1153_2025!AU$6,0),"-") -> 17.8% | AV22: =+IFERROR(VLOOKUP($C$4,DL_1153_2024_CG16!$CA$45:$CM$75,DL1153_2025!AV$6,0),"-") -> 21.7% | AW22: =+IFERROR(VLOOKUP($C$4,DL_1153_2024_CG16!$CA$45:$CM$75,DL1153_2025!AW$6,0),"-") -> 25.3% | AX22: =+IFERROR(VLOOKUP($C$4,DL_1153_2024_CG16!$CA$45:$CM$75,DL1153_2025!AX$6,0),"-") -> 28.6% | AY22: =+IFERROR(VLOOKUP($C$4,DL_1153_2024_CG16!$CA$45:$CM$75,DL1153_2025!AY$6,0),"-") -> 31.5% | AZ22: =+IFERROR(VLOOKUP($C$4,DL_1153_2024_CG16!$CA$45:$CM$75,DL1153_2025!AZ$6,0),"-") -> 34.6% | BA22: =+IFERROR(VLOOKUP($C$4,DL_1153_2024_CG16!$CA$45:$CM$75,DL1153_2025!BA$6,0),"-") -> -
A23: DL_1153_2024_CG17 | B23: DGIESP / DSARE | C23: Ficha 17:Porcentaje de niños y niñas menores de 5 años con deficiencias o factores de riesgo de discapacidad, con dos o más atenciones en la UPSS Medicina de Rehabilitación. | D23: =IFERROR(VLOOKUP($C$4,DL_1153_2024_CG17!BQ47:BR76,2,0),"-") -> 76.3% | E23: =+IFERROR(VLOOKUP($E$6,DL_1153_2024_CG17!$CN$36:$DR$48,MATCH(DL1153_2025!$C$4,DL_1153_2024_CG17!$CN$36:$DR$36,0),FALSE),"-") -> 76.3% | F23: =+IFERROR(VLOOKUP($C$4,DL_1153_2024_CG17!$CI$53:$CK$82,2,0),"-") -> 30.5% | G23: =+IFERROR(VLOOKUP($C$4,DL_1153_2024_CG17!$CI$53:$CK$82,3,0),"-") -> 76.3% | AP23: =+IFERROR(VLOOKUP($C$4,DL_1153_2024_CG17!$BU$76:$CG$76,DL1153_2025!AP$6,0),"-") -> 30.5% | AQ23: =+IFERROR(VLOOKUP($C$4,DL_1153_2024_CG17!$BU$76:$CG$76,DL1153_2025!AQ$6,0),"-") -> 41.2% | AR23: =+IFERROR(VLOOKUP($C$4,DL_1153_2024_CG17!$BU$76:$CG$76,DL1153_2025!AR$6,0),"-") -> 49.1% | AS23: =+IFERROR(VLOOKUP($C$4,DL_1153_2024_CG17!$BU$76:$CG$76,DL1153_2025!AS$6,0),"-") -> 54.2% | AT23: =+IFERROR(VLOOKUP($C$4,DL_1153_2024_CG17!$BU$76:$CG$76,DL1153_2025!AT$6,0),"-") -> 58.6% | AU23: =+IFERROR(VLOOKUP($C$4,DL_1153_2024_CG17!$BU$76:$CG$76,DL1153_2025!AU$6,0),"-") -> 62.6% | AV23: =+IFERROR(VLOOKUP($C$4,DL_1153_2024_CG17!$BU$76:$CG$76,DL1153_2025!AV$6,0),"-") -> 65.3% | AW23: =+IFERROR(VLOOKUP($C$4,DL_1153_2024_CG17!$BU$76:$CG$76,DL1153_2025!AW$6,0),"-") -> 67.8% | AX23: =+IFERROR(VLOOKUP($C$4,DL_1153_2024_CG17!$BU$76:$CG$76,DL1153_2025!AX$6,0),"-") -> 70.8% | AY23: =+IFERROR(VLOOKUP($C$4,DL_1153_2024_CG17!$BU$76:$CG$76,DL1153_2025!AY$6,0),"-") -> 73.4% | AZ23: =+IFERROR(VLOOKUP($C$4,DL_1153_2024_CG17!$BU$76:$CG$76,DL1153_2025!AZ$6,0),"-") -> 76.3% | BA23: =+IFERROR(VLOOKUP($C$4,DL_1153_2024_CG17!$BU$76:$CG$76,DL1153_2025!BA$6,0),"-") -> -
A24: DL_1153_2024_CG18 | B24: DGIESP / DSARE | C24: Ficha 18:Rendimiento cama en Unidades de Hospitalización de Salud Mental y Adicciones (UHSMA) en hospitales. | D24: =IFERROR(VLOOKUP($C$4,DL_1153_2024_CG18!BM44:BN74,2,0),"-") -> 16.0 | E24: =+IFERROR(VLOOKUP($E$6,DL_1153_2024_CG18!$CJ$36:$DN$48,MATCH(DL1153_2025!$C$4,DL_1153_2024_CG18!$CJ$36:$DN$36,0),FALSE),"-") -> 16.0 | F24: =+IFERROR(VLOOKUP($C$4,DL_1153_2024_CG18!$CE$53:$CG$82,2,0),"-") -> 1.2 | G24: =+IFERROR(VLOOKUP($C$4,DL_1153_2024_CG18!$CE$53:$CG$82,3,0),"-") -> 16.0 | AP24: =+IFERROR(VLOOKUP($C$4,DL_1153_2024_CG18!$BQ$44:$CC$74,DL1153_2025!AP$6,0),"-") -> 1.2 | AQ24: =+IFERROR(VLOOKUP($C$4,DL_1153_2024_CG18!$BQ$44:$CC$74,DL1153_2025!AQ$6,0),"-") -> 2.6 | AR24: =+IFERROR(VLOOKUP($C$4,DL_1153_2024_CG18!$BQ$44:$CC$74,DL1153_2025!AR$6,0),"-") -> 4.1 | AS24: =+IFERROR(VLOOKUP($C$4,DL_1153_2024_CG18!$BQ$44:$CC$74,DL1153_2025!AS$6,0),"-") -> 5.5 | AT24: =+IFERROR(VLOOKUP($C$4,DL_1153_2024_CG18!$BQ$44:$CC$74,DL1153_2025!AT$6,0),"-") -> 6.9 | AU24: =+IFERROR(VLOOKUP($C$4,DL_1153_2024_CG18!$BQ$44:$CC$74,DL1153_2025!AU$6,0),"-") -> 8.3 | AV24: =+IFERROR(VLOOKUP($C$4,DL_1153_2024_CG18!$BQ$44:$CC$74,DL1153_2025!AV$6,0),"-") -> 9.7 | AW24: =+IFERROR(VLOOKUP($C$4,DL_1153_2024_CG18!$BQ$44:$CC$74,DL1153_2025!AW$6,0),"-") -> 11.1 | AX24: =+IFERROR(VLOOKUP($C$4,DL_1153_2024_CG18!$BQ$44:$CC$74,DL1153_2025!AX$6,0),"-") -> 12.7 | AY24: =+IFERROR(VLOOKUP($C$4,DL_1153_2024_CG18!$BQ$44:$CC$74,DL1153_2025!AY$6,0),"-") -> 14.4 | AZ24: =+IFERROR(VLOOKUP($C$4,DL_1153_2024_CG18!$BQ$44:$CC$74,DL1153_2025!AZ$6,0),"-") -> 16.0 | BA24: =+IFERROR(VLOOKUP($C$4,DL_1153_2024_CG18!$BQ$44:$CC$74,DL1153_2025!BA$6,0),"-") -> -
A25: DL_1153_2024_CG19 | B25: DGIESP / DVICI | C25: Ficha 19:Porcentaje de personas con diagnóstico de Depresión que recibieron paquete mínimo de intervenciones terapéuticas en Centro de Salud Mental Comunitaria. | D25: =IFERROR(VLOOKUP($C$4,DL_1153_2024_CG19!BK48:BL79,2,0),"-") -> 35.3% | E25: =+IFERROR(VLOOKUP($E$6,DL_1153_2024_CG19!$CH$35:$DL$47,MATCH(DL1153_2025!$C$4,DL_1153_2024_CG19!$CH$35:$DL$35,0),FALSE),"-") -> 44.3% | F25: =+IFERROR(VLOOKUP($C$4,DL_1153_2024_CG19!$CC$53:$CE$82,2,0),"-") -> 29.5% | G25: =+IFERROR(VLOOKUP($C$4,DL_1153_2024_CG19!$CC$53:$CE$82,3,0),"-") -> 45.4% | AP25: =+IFERROR(VLOOKUP($C$4,DL_1153_2024_CG19!$BO$47:$CA$77,DL1153_2025!AP$6,0),"-") -> 30.4% | AQ25: =+IFERROR(VLOOKUP($C$4,DL_1153_2024_CG19!$BO$47:$CA$77,DL1153_2025!AQ$6,0),"-") -> 29.5% | AR25: =+IFERROR(VLOOKUP($C$4,DL_1153_2024_CG19!$BO$47:$CA$77,DL1153_2025!AR$6,0),"-") -> 31.9% | AS25: =+IFERROR(VLOOKUP($C$4,DL_1153_2024_CG19!$BO$47:$CA$77,DL1153_2025!AS$6,0),"-") -> 32.1% | AT25: =+IFERROR(VLOOKUP($C$4,DL_1153_2024_CG19!$BO$47:$CA$77,DL1153_2025!AT$6,0),"-") -> 31.8% | AU25: =+IFERROR(VLOOKUP($C$4,DL_1153_2024_CG19!$BO$47:$CA$77,DL1153_2025!AU$6,0),"-") -> 31.8% | AV25: =+IFERROR(VLOOKUP($C$4,DL_1153_2024_CG19!$BO$47:$CA$77,DL1153_2025!AV$6,0),"-") -> 34.8% | AW25: =+IFERROR(VLOOKUP($C$4,DL_1153_2024_CG19!$BO$47:$CA$77,DL1153_2025!AW$6,0),"-") -> 35.8% | AX25: =+IFERROR(VLOOKUP($C$4,DL_1153_2024_CG19!$BO$47:$CA$77,DL1153_2025!AX$6,0),"-") -> 44.8% | AY25: =+IFERROR(VLOOKUP($C$4,DL_1153_2024_CG19!$BO$47:$CA$77,DL1153_2025!AY$6,0),"-") -> 45.4% | AZ25: =+IFERROR(VLOOKUP($C$4,DL_1153_2024_CG19!$BO$47:$CA$77,DL1153_2025!AZ$6,0),"-") -> 44.3% | BA25: =+IFERROR(VLOOKUP($C$4,DL_1153_2024_CG19!$BO$47:$CA$77,DL1153_2025!BA$6,0),"-") -> -
A26: DL_1153_2024_CG20 | B26: DGIESP /DISCAP | C26: Ficha 20: Porcentaje de resolutividad. | D26: =IFERROR(VLOOKUP($C$4,DL_1153_2024_CG20!BQ45:BR74,2,0),"-") -> 1.7% | E26: =+IFERROR(VLOOKUP($E$6,DL_1153_2024_CG20!$CN$36:$DR$48,MATCH(DL1153_2025!$C$4,DL_1153_2024_CG20!$CN$36:$DR$36,0),FALSE),"-") -> 1.6% | F26: =+IFERROR(VLOOKUP($C$4,DL_1153_2024_CG20!$CI$53:$CK$82,2,0),"-") -> 1.6% | G26: =+IFERROR(VLOOKUP($C$4,DL_1153_2024_CG20!$CI$53:$CK$82,3,0),"-") -> 1.9% | AP26: =+IFERROR(VLOOKUP($C$4,DL_1153_2024_CG20!$BU$44:$CG$74,DL1153_2025!AP$6,0),"-") -> 1.7% | AQ26: =+IFERROR(VLOOKUP($C$4,DL_1153_2024_CG20!$BU$44:$CG$74,DL1153_2025!AQ$6,0),"-") -> 1.9% | AR26: =+IFERROR(VLOOKUP($C$4,DL_1153_2024_CG20!$BU$44:$CG$74,DL1153_2025!AR$6,0),"-") -> 1.7% | AS26: =+IFERROR(VLOOKUP($C$4,DL_1153_2024_CG20!$BU$44:$CG$74,DL1153_2025!AS$6,0),"-") -> 1.8% | AT26: =+IFERROR(VLOOKUP($C$4,DL_1153_2024_CG20!$BU$44:$CG$74,DL1153_2025!AT$6,0),"-") -> 1.6% | AU26: =+IFERROR(VLOOKUP($C$4,DL_1153_2024_CG20!$BU$44:$CG$74,DL1153_2025!AU$6,0),"-") -> 1.6% | AV26: =+IFERROR(VLOOKUP($C$4,DL_1153_2024_CG20!$BU$44:$CG$74,DL1153_2025!AV$6,0),"-") -> 1.6% | AW26: =+IFERROR(VLOOKUP($C$4,DL_1153_2024_CG20!$BU$44:$CG$74,DL1153_2025!AW$6,0),"-") -> 1.8% | AX26: =+IFERROR(VLOOKUP($C$4,DL_1153_2024_CG20!$BU$44:$CG$74,DL1153_2025!AX$6,0),"-") -> 1.7% | AY26: =+IFERROR(VLOOKUP($C$4,DL_1153_2024_CG20!$BU$44:$CG$74,DL1153_2025!AY$6,0),"-") -> 1.8% | AZ26: =+IFERROR(VLOOKUP($C$4,DL_1153_2024_CG20!$BU$44:$CG$74,DL1153_2025!AZ$6,0),"-") -> 1.6% | BA26: =+IFERROR(VLOOKUP($C$4,DL_1153_2024_CG20!$BU$44:$CG$74,DL1153_2025!BA$6,0),"-") -> -
A27: DL_1153_2024_CG21 | B27: DGIESP /DSAME | C27: Ficha 21:Porcentaje de cirugías suspendidas | D27: =IFERROR(VLOOKUP($C$4,DL_1153_2024_CG21!BQ44:BR74,2,0),"-") -> 3.1% | E27: =+IFERROR(VLOOKUP($E$6,DL_1153_2024_CG21!$CN$36:$DR$48,MATCH(DL1153_2025!$C$4,DL_1153_2024_CG21!$CN$36:$DR$36,0),FALSE),"-") -> 3.2% | F27: =+IFERROR(VLOOKUP($C$4,DL_1153_2024_CG21!$CI$53:$CK$82,2,0),"-") -> 2.8% | G27: =+IFERROR(VLOOKUP($C$4,DL_1153_2024_CG21!$CI$53:$CK$82,3,0),"-") -> 3.4% | AP27: =+IFERROR(VLOOKUP($C$4,DL_1153_2024_CG21!$BU$44:$CG$74,DL1153_2025!AP$6,0),"-") -> 3.2% | AQ27: =+IFERROR(VLOOKUP($C$4,DL_1153_2024_CG21!$BU$44:$CG$74,DL1153_2025!AQ$6,0),"-") -> 3.1% | AR27: =+IFERROR(VLOOKUP($C$4,DL_1153_2024_CG21!$BU$44:$CG$74,DL1153_2025!AR$6,0),"-") -> 3.3% | AS27: =+VLOOKUP($C$4,DL_1153_2024_CG21!$BU$44:$CG$74,DL1153_2025!AS$6,0) -> 3.0% | AT27: =+VLOOKUP($C$4,DL_1153_2024_CG21!$BU$44:$CG$74,DL1153_2025!AT$6,0) -> 2.8% | AU27: =+VLOOKUP($C$4,DL_1153_2024_CG21!$BU$44:$CG$74,DL1153_2025!AU$6,0) -> 3.1% | AV27: =+VLOOKUP($C$4,DL_1153_2024_CG21!$BU$44:$CG$74,DL1153_2025!AV$6,0) -> 3.4% | AW27: =+VLOOKUP($C$4,DL_1153_2024_CG21!$BU$44:$CG$74,DL1153_2025!AW$6,0) -> 3.0% | AX27: =+VLOOKUP($C$4,DL_1153_2024_CG21!$BU$44:$CG$74,DL1153_2025!AX$6,0) -> 2.8% | AY27: =+VLOOKUP($C$4,DL_1153_2024_CG21!$BU$44:$CG$74,DL1153_2025!AY$6,0) -> 3.0% | AZ27: =+VLOOKUP($C$4,DL_1153_2024_CG21!$BU$44:$CG$74,DL1153_2025!AZ$6,0) -> 3.2% | BA27: =+VLOOKUP($C$4,DL_1153_2024_CG21!$BU$44:$CG$74,DL1153_2025!BA$6,0) -> -
A28: DL_1153_2024_CG22 | B28: DGIESP /DSAME | C28: Ficha 22:Rendimiento de sala de operaciones | D28: =IFERROR(VLOOKUP($C$4,DL_1153_2024_CG22!BM45:BN75,2,0),"-") -> 75.8 | E28: =+IFERROR(VLOOKUP($E$6,DL_1153_2024_CG22!$CF$29:$DN$41,MATCH(DL1153_2025!$C$4,DL_1153_2024_CG22!$CF$29:$DN$29,0),FALSE),"-") -> 76.2 | F28: =+IFERROR(VLOOKUP($C$4,DL_1153_2024_CG22!$CE$46:$CG$75,2,0),"-") -> 72.6 | G28: =+IFERROR(VLOOKUP($C$4,DL_1153_2024_CG22!$CE$46:$CG$75,3,0),"-") -> 79.5 | AP28: =+IFERROR(VLOOKUP($C$4,DL_1153_2024_CG22!$BQ$45:$CC$75,DL1153_2025!AP$6,0),"-") -> 73.6 | AQ28: =+IFERROR(VLOOKUP($C$4,DL_1153_2024_CG22!$BQ$45:$CC$75,DL1153_2025!AQ$6,0),"-") -> 73.3 | AR28: =+IFERROR(VLOOKUP($C$4,DL_1153_2024_CG22!$BQ$45:$CC$75,DL1153_2025!AR$6,0),"-") -> 77.9 | AS28: =+VLOOKUP($C$4,DL_1153_2024_CG22!$BQ$45:$CC$75,DL1153_2025!AS$6,0) -> 74.7 | AT28: =+VLOOKUP($C$4,DL_1153_2024_CG22!$BQ$45:$CC$75,DL1153_2025!AT$6,0) -> 79.5 | AU28: =+VLOOKUP($C$4,DL_1153_2024_CG22!$BQ$45:$CC$75,DL1153_2025!AU$6,0) -> 74.8 | AV28: =+VLOOKUP($C$4,DL_1153_2024_CG22!$BQ$45:$CC$75,DL1153_2025!AV$6,0) -> 72.9 | AW28: =+VLOOKUP($C$4,DL_1153_2024_CG22!$BQ$45:$CC$75,DL1153_2025!AW$6,0) -> 72.6 | AX28: =+VLOOKUP($C$4,DL_1153_2024_CG22!$BQ$45:$CC$75,DL1153_2025!AX$6,0) -> 79.3 | AY28: =+VLOOKUP($C$4,DL_1153_2024_CG22!$BQ$45:$CC$75,DL1153_2025!AY$6,0) -> 78.7 | AZ28: =+VLOOKUP($C$4,DL_1153_2024_CG22!$BQ$45:$CC$75,DL1153_2025!AZ$6,0) -> 76.2 | BA28: =+VLOOKUP($C$4,DL_1153_2024_CG22!$BQ$45:$CC$75,DL1153_2025!BA$6,0) -> -
A29: DL_1153_2024_CG23 | B29: DGIESP /DSAME | C29: Ficha 23:Porcentaje de ocupación cama. (Hospitalización) | D29: =GETPIVOTDATA("Suma de Ind_Hosp",DL_1153_2024_CG23!$A$10) -> 49.3% | E29: =GETPIVOTDATA("Suma de Ind_Hosp",DL_1153_2024_CG23!$M$10,"mes",10) -> 56.7% | F29: =GETPIVOTDATA("Suma de Ind_Hosp",DL_1153_2024_CG23!$M$10,"mes",1) ->  | G29: =GETPIVOTDATA("Suma de Ind_Hosp",DL_1153_2024_CG23!$M$10,"mes",5) -> 59.6% | AP29: =+IFERROR(VLOOKUP($C$4,DL_1153_2024_CG23!$BR$45:$CD$75,DL1153_2025!AP$6,0),"-") -> 69.6% | AQ29: =+IFERROR(VLOOKUP($C$4,DL_1153_2024_CG23!$BR$45:$CD$75,DL1153_2025!AQ$6,0),"-") -> 72.0% | AR29: =+IFERROR(VLOOKUP($C$4,DL_1153_2024_CG23!$BR$45:$CD$75,DL1153_2025!AR$6,0),"-") -> 71.9% | AS29: =+IFERROR(VLOOKUP($C$4,DL_1153_2024_CG23!$BR$45:$CD$75,DL1153_2025!AS$6,0),"-") -> 72.2% | AT29: =+IFERROR(VLOOKUP($C$4,DL_1153_2024_CG23!$BR$45:$CD$75,DL1153_2025!AT$6,0),"-") -> 72.9% | AU29: =+IFERROR(VLOOKUP($C$4,DL_1153_2024_CG23!$BR$45:$CD$75,DL1153_2025!AU$6,0),"-") -> 72.4% | AV29: =+IFERROR(VLOOKUP($C$4,DL_1153_2024_CG23!$BR$45:$CD$75,DL1153_2025!AV$6,0),"-") -> 72.6% | AW29: =+IFERROR(VLOOKUP($C$4,DL_1153_2024_CG23!$BR$45:$CD$75,DL1153_2025!AW$6,0),"-") -> 72.6% | AX29: =+IFERROR(VLOOKUP($C$4,DL_1153_2024_CG23!$BR$45:$CD$75,DL1153_2025!AX$6,0),"-") -> 72.8% | AY29: =+IFERROR(VLOOKUP($C$4,DL_1153_2024_CG23!$BR$45:$CD$75,DL1153_2025!AY$6,0),"-") -> 72.9% | AZ29: =+IFERROR(VLOOKUP($C$4,DL_1153_2024_CG23!$BR$45:$CD$75,DL1153_2025!AZ$6,0),"-") -> 73.1% | BA29: =+IFERROR(VLOOKUP($C$4,DL_1153_2024_CG23!$BR$45:$CD$75,DL1153_2025!BA$6,0),"-") -> -
C30: Ficha 23:Porcentaje de ocupación cama. (UCI) | D30: =GETPIVOTDATA("Suma de Ind_UCI",DL_1153_2024_CG23!$A$10) ->  | E30: =GETPIVOTDATA("Suma de Ind_UCI",DL_1153_2024_CG23!$M$10,"mes",10) -> 66.7% | F30: =GETPIVOTDATA("Suma de Ind_UCI",DL_1153_2024_CG23!$M$10,"mes",3) ->  | G30: =GETPIVOTDATA("Suma de Ind_UCI",DL_1153_2024_CG23!$M$10,"mes",5) -> 
A31: DL_1153_2024_CG25 | B31: DGOS/DIMON | C31: Ficha 24:Intervalo de sustitución cama | D31: =IFERROR(VLOOKUP($C$4,DL_1153_2024_CG24!BQ46:BR75,2,0),"-") -> 1.9 | E31: =AQ31 -> 1.8 | F31: =MIN(AP31:AQ31) -> 1.8 | G31: =MAX(AP31:AQ31) -> 2.1 | AP31: =+IFERROR(VLOOKUP($C$4,DL_1153_2024_CG24!$BU$45:$CG$75,DL1153_2025!AP$6,0),"-") -> 2.1 | AQ31: =+IFERROR(VLOOKUP($C$4,DL_1153_2024_CG24!$BU$45:$CG$75,DL1153_2025!AQ$6,0),"-") -> 1.8 | AR31: =+IFERROR(VLOOKUP($C$4,DL_1153_2024_CG24!$BU$45:$CG$75,DL1153_2025!AR$6,0),"-") -> 1.8 | AS31: =+IFERROR(VLOOKUP($C$4,DL_1153_2024_CG24!$BU$45:$CG$75,DL1153_2025!AS$6,0),"-") -> 1.9 | AT31: =+IFERROR(VLOOKUP($C$4,DL_1153_2024_CG24!$BU$45:$CG$75,DL1153_2025!AT$6,0),"-") -> 1.7 | AU31: =+IFERROR(VLOOKUP($C$4,DL_1153_2024_CG24!$BU$45:$CG$75,DL1153_2025!AU$6,0),"-") -> 1.8 | AV31: =+IFERROR(VLOOKUP($C$4,DL_1153_2024_CG24!$BU$45:$CG$75,DL1153_2025!AV$6,0),"-") -> 1.9 | AW31: =+IFERROR(VLOOKUP($C$4,DL_1153_2024_CG24!$BU$45:$CG$75,DL1153_2025!AW$6,0),"-") -> 1.9 | AX31: =+IFERROR(VLOOKUP($C$4,DL_1153_2024_CG24!$BU$45:$CG$75,DL1153_2025!AX$6,0),"-") -> 1.8 | AY31: =+IFERROR(VLOOKUP($C$4,DL_1153_2024_CG24!$BU$45:$CG$75,DL1153_2025!AY$6,0),"-") -> 1.8 | AZ31: =+IFERROR(VLOOKUP($C$4,DL_1153_2024_CG24!$BU$45:$CG$75,DL1153_2025!AZ$6,0),"-") -> 1.8 | BA31: =+IFERROR(VLOOKUP($C$4,DL_1153_2024_CG24!$BU$45:$CG$75,DL1153_2025!BA$6,0),"-") -> -
A32: DL_1153_2024_CG26 | B32: DGOS/DIMON | C32: Ficha 25:Promedio de Espera para la Atención en Consulta Externa de un paciente referido | D32: =IFERROR(VLOOKUP($C$4,DL_1153_2024_CG25!BI48:BJ78,2,0),"-") -> 23.5 | E32: =+IFERROR(VLOOKUP($E$6,DL_1153_2024_CG25!$CB$35:$DF$47,MATCH(DL1153_2025!$C$4,DL_1153_2024_CG25!$CB$35:$DF$35,0),FALSE),"-") -> 28.1 | F32: =+IFERROR(VLOOKUP($C$4,DL_1153_2024_CG25!$CA$49:$CC$78,2,0),"-") -> 4.8 | G32: =+IFERROR(VLOOKUP($C$4,DL_1153_2024_CG25!$CA$49:$CC$78,3,0),"-") -> 38.1 | AP32: =+IFERROR(VLOOKUP($C$4,DL_1153_2024_CG25!$BM$45:$BY$78,DL1153_2025!AP$6,0),"-") -> 4.8 | AQ32: =+IFERROR(VLOOKUP($C$4,DL_1153_2024_CG25!$BM$45:$BY$78,DL1153_2025!AQ$6,0),"-") -> 10.9 | AR32: =+IFERROR(VLOOKUP($C$4,DL_1153_2024_CG25!$BM$45:$BY$78,DL1153_2025!AR$6,0),"-") -> 13.7 | AS32: =+IFERROR(VLOOKUP($C$4,DL_1153_2024_CG25!$BM$45:$BY$78,DL1153_2025!AS$6,0),"-") -> 18.8 | AT32: =+IFERROR(VLOOKUP($C$4,DL_1153_2024_CG25!$BM$45:$BY$78,DL1153_2025!AT$6,0),"-") -> 24.7 | AU32: =+IFERROR(VLOOKUP($C$4,DL_1153_2024_CG25!$BM$45:$BY$78,DL1153_2025!AU$6,0),"-") -> 23.9 | AV32: =+IFERROR(VLOOKUP($C$4,DL_1153_2024_CG25!$BM$45:$BY$78,DL1153_2025!AV$6,0),"-") -> 24.2 | AW32: =+IFERROR(VLOOKUP($C$4,DL_1153_2024_CG25!$BM$45:$BY$78,DL1153_2025!AW$6,0),"-") -> 23.7 | AX32: =+IFERROR(VLOOKUP($C$4,DL_1153_2024_CG25!$BM$45:$BY$78,DL1153_2025!AX$6,0),"-") -> 29.7 | AY32: =+IFERROR(VLOOKUP($C$4,DL_1153_2024_CG25!$BM$45:$BY$78,DL1153_2025!AY$6,0),"-") -> 38.1 | AZ32: =+IFERROR(VLOOKUP($C$4,DL_1153_2024_CG25!$BM$45:$BY$78,DL1153_2025!AZ$6,0),"-") -> 28.1 | BA32: =+IFERROR(VLOOKUP($C$4,DL_1153_2024_CG25!$BM$45:$BY$78,DL1153_2025!BA$6,0),"-") -> -
A33: DL_1153_2024_CG27 | B33: DGOS/DIMON | C33: Ficha 26:Promedio de Espera para la Atención en Apoyo al Diagnóstico de un Paciente Referido | D33: =IFERROR(VLOOKUP($C$4,DL_1153_2024_CG26!BQ45:BR75,2,0),"-") -> 14.5 | E33: =+IFERROR(VLOOKUP($E$6,DL_1153_2024_CG26!$CI$29:$DM$41,MATCH(DL1153_2025!$C$4,DL_1153_2024_CG26!$CI$29:$DM$29,0),FALSE),"-") -> 14.3 | F33: =+IFERROR(VLOOKUP($C$4,DL_1153_2024_CG26!$CH$46:$CJ$75,2,0),"-") -> 3.7 | G33: =+IFERROR(VLOOKUP($C$4,DL_1153_2024_CG26!$CH$46:$CJ$75,3,0),"-") -> 22.3 | AP33: =+IFERROR(VLOOKUP($C$4,DL_1153_2024_CG26!$BT$45:$CG$75,DL1153_2025!AP$6,0),"-") -> 3.7 | AQ33: =+IFERROR(VLOOKUP($C$4,DL_1153_2024_CG26!$BT$45:$CG$75,DL1153_2025!AQ$6,0),"-") -> 6.2 | AR33: =+IFERROR(VLOOKUP($C$4,DL_1153_2024_CG26!$BT$45:$CG$75,DL1153_2025!AR$6,0),"-") -> 10.2 | AS33: =+IFERROR(VLOOKUP($C$4,DL_1153_2024_CG26!$BT$45:$CG$75,DL1153_2025!AS$6,0),"-") -> 9.9 | AT33: =+IFERROR(VLOOKUP($C$4,DL_1153_2024_CG26!$BT$45:$CG$75,DL1153_2025!AT$6,0),"-") -> 18.3 | AU33: =+IFERROR(VLOOKUP($C$4,DL_1153_2024_CG26!$BT$45:$CG$75,DL1153_2025!AU$6,0),"-") -> 16.7 | AV33: =+IFERROR(VLOOKUP($C$4,DL_1153_2024_CG26!$BT$45:$CG$75,DL1153_2025!AV$6,0),"-") -> 22.3 | AW33: =+IFERROR(VLOOKUP($C$4,DL_1153_2024_CG26!$BT$45:$CG$75,DL1153_2025!AW$6,0),"-") -> 19.7 | AX33: =+IFERROR(VLOOKUP($C$4,DL_1153_2024_CG26!$BT$45:$CG$75,DL1153_2025!AX$6,0),"-") -> 16.2 | AY33: =+IFERROR(VLOOKUP($C$4,DL_1153_2024_CG26!$BT$45:$CG$75,DL1153_2025!AY$6,0),"-") -> 13.1 | AZ33: =+IFERROR(VLOOKUP($C$4,DL_1153_2024_CG26!$BT$45:$CG$75,DL1153_2025!AZ$6,0),"-") -> 14.3 | BA33: =+IFERROR(VLOOKUP($C$4,DL_1153_2024_CG26!$BT$45:$CG$75,DL1153_2025!BA$6,0),"-") -> -
A34: DL_1153_2024_CG28 | B34: DGOS/DIMON | C34: Ficha 27:Productividad Hora Médico | D34: 2.5 | E34: 2.5 | F34: 2.5 | G34: 2.6 | AP34: =+IFERROR(VLOOKUP($C$4,DL_1153_2024_CG27!$BT$45:$CG$75,DL1153_2025!AP$6,0),"-") -> 3.47% | AQ34: =+IFERROR(VLOOKUP($C$4,DL_1153_2024_CG27!$BT$45:$CG$75,DL1153_2025!AQ$6,0),"-") -> 3.62% | AR34: =+IFERROR(VLOOKUP($C$4,DL_1153_2024_CG27!$BT$45:$CG$75,DL1153_2025!AR$6,0),"-") -> 3.32% | AS34: =+IFERROR(VLOOKUP($C$4,DL_1153_2024_CG27!$BT$45:$CG$75,DL1153_2025!AS$6,0),"-") -> 3.91% | AT34: =+IFERROR(VLOOKUP($C$4,DL_1153_2024_CG27!$BT$45:$CG$75,DL1153_2025!AT$6,0),"-") -> 3.70% | AU34: =+IFERROR(VLOOKUP($C$4,DL_1153_2024_CG27!$BT$45:$CG$75,DL1153_2025!AU$6,0),"-") -> 3.39% | AV34: =+IFERROR(VLOOKUP($C$4,DL_1153_2024_CG27!$BT$45:$CG$75,DL1153_2025!AV$6,0),"-") -> 3.67% | AW34: =+IFERROR(VLOOKUP($C$4,DL_1153_2024_CG27!$BT$45:$CG$75,DL1153_2025!AW$6,0),"-") -> 3.65% | AX34: =+IFERROR(VLOOKUP($C$4,DL_1153_2024_CG27!$BT$45:$CG$75,DL1153_2025!AX$6,0),"-") -> 3.46% | AY34: =+IFERROR(VLOOKUP($C$4,DL_1153_2024_CG27!$BT$45:$CG$75,DL1153_2025!AY$6,0),"-") -> 2.99% | AZ34: =+IFERROR(VLOOKUP($C$4,DL_1153_2024_CG27!$BT$45:$CG$75,DL1153_2025!AZ$6,0),"-") -> 3.17% | BA34: =+IFERROR(VLOOKUP($C$4,DL_1153_2024_CG27!$BT$45:$CG$75,DL1153_2025!BA$6,0),"-") -> 3.36%
A35: DL_1153_2024_CG29 | B35: DGOS | C35: Ficha 28:Utilización de consultorios externos | D35: =GETPIVOTDATA("Suma de Ind",DL_1153_2024_CG28!$J$10) -> 20.1 | E35: =AY35 -> 1.7 | F35: =+IFERROR(VLOOKUP($C$4,DL_1153_2024_CG28!$CH$46:$CJ$75,2,0),"-") -> 1.6 | G35: =+IFERROR(VLOOKUP($C$4,DL_1153_2024_CG28!$CH$46:$CJ$75,3,0),"-") -> 1.8 | AP35: =+IFERROR(VLOOKUP($C$4,DL_1153_2024_CG28!$BT$45:$CG$75,DL1153_2025!AP$6,0),"-") -> 1.6 | AQ35: =+IFERROR(VLOOKUP($C$4,DL_1153_2024_CG28!$BT$45:$CG$75,DL1153_2025!AQ$6,0),"-") -> 1.6 | AR35: =+IFERROR(VLOOKUP($C$4,DL_1153_2024_CG28!$BT$45:$CG$75,DL1153_2025!AR$6,0),"-") -> 1.8 | AS35: =+IFERROR(VLOOKUP($C$4,DL_1153_2024_CG28!$BT$45:$CG$75,DL1153_2025!AS$6,0),"-") -> 1.7 | AT35: =+IFERROR(VLOOKUP($C$4,DL_1153_2024_CG28!$BT$45:$CG$75,DL1153_2025!AT$6,0),"-") -> 1.7 | AU35: =+IFERROR(VLOOKUP($C$4,DL_1153_2024_CG28!$BT$45:$CG$75,DL1153_2025!AU$6,0),"-") -> 1.7 | AV35: =+IFERROR(VLOOKUP($C$4,DL_1153_2024_CG28!$BT$45:$CG$75,DL1153_2025!AV$6,0),"-") -> 1.7 | AW35: =+IFERROR(VLOOKUP($C$4,DL_1153_2024_CG28!$BT$45:$CG$75,DL1153_2025!AW$6,0),"-") -> 1.7 | AX35: =+IFERROR(VLOOKUP($C$4,DL_1153_2024_CG28!$BT$45:$CG$75,DL1153_2025!AX$6,0),"-") -> 1.7 | AY35: =+IFERROR(VLOOKUP($C$4,DL_1153_2024_CG28!$BT$45:$CG$75,DL1153_2025!AY$6,0),"-") -> 1.7 | AZ35: =+IFERROR(VLOOKUP($C$4,DL_1153_2024_CG28!$BT$45:$CG$75,DL1153_2025!AZ$6,0),"-") -> 1.7 | BA35: =+IFERROR(VLOOKUP($C$4,DL_1153_2024_CG28!$BT$45:$CG$75,DL1153_2025!BA$6,0),"-") -> -
A36: DL_1153_2024_CG30 | B36: DGOS | C36: Ficha 30:Promedio de Espera para la Atención en Consulta Externa de un paciente referido | D36: =IFERROR(VLOOKUP($C$4,DL_1153_2024_CG30!FX46:FY75,2,0),"-") -> 16.0 | E36: =$AT$36 -> 29.8 | F36: =AP36 -> 6.4 | G36: =$AT$36 -> 29.8 | AP36: =+IFERROR(VLOOKUP($C$4,DL_1153_2024_CG30!$GA$46:$GM$75,DL1153_2025!AP$6,0),"-") -> 6.4 | AQ36: =+IFERROR(VLOOKUP($C$4,DL_1153_2024_CG30!$GA$46:$GM$75,DL1153_2025!AQ$6,0),"-") -> 15.1 | AR36: =+IFERROR(VLOOKUP($C$4,DL_1153_2024_CG30!$GA$46:$GM$75,DL1153_2025!AR$6,0),"-") -> 21.9 | AS36: =+IFERROR(VLOOKUP($C$4,DL_1153_2024_CG30!$GA$46:$GM$75,DL1153_2025!AS$6,0),"-") -> 24.2 | AT36: =+IFERROR(VLOOKUP($C$4,DL_1153_2024_CG30!$GA$46:$GM$75,DL1153_2025!AT$6,0),"-") -> 29.8 | AU36: =+IFERROR(VLOOKUP($C$4,DL_1153_2024_CG30!$GA$46:$GM$75,DL1153_2025!AU$6,0),"-") -> 39.5 | AV36: =+IFERROR(VLOOKUP($C$4,DL_1153_2024_CG30!$GA$46:$GM$75,DL1153_2025!AV$6,0),"-") -> 37.8 | AW36: =+IFERROR(VLOOKUP($C$4,DL_1153_2024_CG30!$GA$46:$GM$75,DL1153_2025!AW$6,0),"-") -> 46.0 | AX36: =+IFERROR(VLOOKUP($C$4,DL_1153_2024_CG30!$GA$46:$GM$75,DL1153_2025!AX$6,0),"-") -> 50.1 | AY36: =+IFERROR(VLOOKUP($C$4,DL_1153_2024_CG30!$GA$46:$GM$75,DL1153_2025!AY$6,0),"-") -> 42.6 | AZ36: =+IFERROR(VLOOKUP($C$4,DL_1153_2024_CG30!$GA$46:$GM$75,DL1153_2025!AZ$6,0),"-") -> 47.4 | BA36: =+IFERROR(VLOOKUP($C$4,DL_1153_2024_CG30!$GA$46:$GM$75,DL1153_2025!BA$6,0),"-") -> 81.3
A37: DL_1153_2024_CG32 | B37: DIGEP | C37: Ficha 32:Porcentaje de personal registrado en el aplicativo del Registro Nacional de Personal de Salud sin inconsistencias de informacion. | AP37: =+IFERROR(VLOOKUP($C$4,DL_1153_2024_CG30!$BV$45:$CH$75,DL1153_2025!AP$6,0),"-") -> - | AQ37: =+VLOOKUP($C$4,DL_1153_2024_CG22!$BQ$45:$CC$75,DL1153_2025!AQ$6,0) -> 7325.8% | AR37: =+VLOOKUP($C$4,DL_1153_2024_CG22!$BQ$45:$CC$75,DL1153_2025!AR$6,0) -> 7791.5% | AS37: =+VLOOKUP($C$4,DL_1153_2024_CG22!$BQ$45:$CC$75,DL1153_2025!AS$6,0) -> 7466.2% | AT37: =+VLOOKUP($C$4,DL_1153_2024_CG22!$BQ$45:$CC$75,DL1153_2025!AT$6,0) -> 7951.0% | AU37: =+VLOOKUP($C$4,DL_1153_2024_CG22!$BQ$45:$CC$75,DL1153_2025!AU$6,0) -> 7483.3% | AV37: =+VLOOKUP($C$4,DL_1153_2024_CG22!$BQ$45:$CC$75,DL1153_2025!AV$6,0) -> 7286.9% | AW37: =+VLOOKUP($C$4,DL_1153_2024_CG22!$BQ$45:$CC$75,DL1153_2025!AW$6,0) -> 7258.2% | AX37: =+VLOOKUP($C$4,DL_1153_2024_CG22!$BQ$45:$CC$75,DL1153_2025!AX$6,0) -> 7932.7% | AY37: =+VLOOKUP($C$4,DL_1153_2024_CG22!$BQ$45:$CC$75,DL1153_2025!AY$6,0) -> 7866.3% | AZ37: =+VLOOKUP($C$4,DL_1153_2024_CG22!$BQ$45:$CC$75,DL1153_2025!AZ$6,0) -> 7619.1% | BA37: =+VLOOKUP($C$4,DL_1153_2024_CG22!$BQ$45:$CC$75,DL1153_2025!BA$6,0) -> -
B38: DIGEP | C38: Ficha 32: Porcentaje de personal registrado en el aplicativo del Registro Nacional de Personal de la Salud sin inconsistencias de información. | D38: =GETPIVOTDATA("Suma de Ind",#REF!) ->  | E38: =AW38 -> 95.5% | F38: =MIN($AP$38:$AW$38) -> 88.9% | G38: =MAX($AP$38:$AW$38) -> 95.5% | AP38: 88.9% | AQ38: 89.3% | AR38: 91.8% | AS38: 92.0% | AT38: 93.2% | AU38: 94.0% | AV38: 95.0% | AW38: 95.5% | AX38: 95.6% | AY38: 95.0% | AZ38: =GETPIVOTDATA("Suma de Ind",#REF!,"MES","Noviembre") ->  | BA38: =GETPIVOTDATA("Suma de Ind",#REF!,"MES","Diciembre") -> 
A39: DL_1153_2024_CG33 | B39: DIGTEL | C39: Ficha 32:Utilización de los servicios de telemedicina (teleinterconsultas, teleconsultas,telemonitoreo) | D39: =G39 -> 36.8 | E39: =D39 -> 36.8 | F39: =MIN(AP39:AQ39) -> 2.5 | G39: =MAX(AP39:AY39) -> 36.8 | AP39: 2.5 | AQ39: 10.7 | AR39: 16.8 | AS39: 19.9 | AT39: 21.5 | AU39: 25.9 | AV39: 29.9 | AW39: 32.8 | AX39: 36.6 | AY39: 36.8 | AZ39: =+VLOOKUP($C$4,DL_1153_2024_CG22!$BQ$45:$CC$75,DL1153_2025!AZ$6,0) -> 76.2 | BA39: =+VLOOKUP($C$4,DL_1153_2024_CG22!$BQ$45:$CC$75,DL1153_2025!BA$6,0) -> -
AZ40: =+VLOOKUP($C$4,DL_1153_2024_CG22!$BQ$45:$CC$75,DL1153_2025!AZ$6,0) -> 7619.1% | BA40: =+VLOOKUP($C$4,DL_1153_2024_CG22!$BQ$45:$CC$75,DL1153_2025!BA$6,0) -> -
B41: Periodo Evaluación:
B42: Noviembre - 2025
B44: Fuente de Datos: (Todo las atenciones hasta noviembre registradas al:)
B45: HIS MINSA 2025 (30/12/2025)
B46: PADRON NOMINAL (27/12/2025)
B47: CNV (27/12/2025)
B48: REFCON (27/12/2025)
B49: SEEM-EGRESOS (20/12/2025)
B50: SEEM- EMERGENCIA (20/12/2025)
B51: SETIPRESS - SUSALUD (02/01/2026)
B52: FICHA 500.2 (RENOXI) (20/12/2025)
B53: SIGTB (23/12/2025)
B54: SIASIS (31/12/2024)
B55: INFORHUS (02/11/2024)

Sheet DL_1153_2025_CG01
A1: =+DL1153_2025!C7 -> Ficha 01: Porcentaje de niñas y niños de 12 a 18 meses, con diagnóstico de anemia entre los 6 y 11 meses, que se han recuperado. | BS1: 1 | DY1: 1
A2: Periodo de Evaluación: | B2: =+DL1153_2025!B42 -> Noviembre - 2025
O3: seguro | P3: 1
O4: Diris | P4: CUSCO
A5: seguro | B5: 1 | O5: Red | P5: KIMBIRI PICHARI
A6: año | B6: 2025 | O6: Provincia | P6: LA CONVENCION
A7: mes | B7: 11 | O7: Distrito | P7: (Todas)
A8: DIRESA/ DIRIS | B8: RED | C8: Provincia | D8: Distrito | E8: UBIGEO | F8: Denominador: Suma de DNI únicos de niños que cumplen entre 350 a 573 días de edad en el período de evaluación, con SIS, sin datos de seguro y sin seguro (población MINSA y Gobierno Regional), registrados en el padrón nominal con DNI, según el ámbito de la jurisdicción determinado por la residencia registrada en el padrón nominal Y Niños que cumplen 209 días posteriores al diagnóstico de anemia en el periodo de evaluación. | G8: Numerador: Suma de DNIs que forman parte del denominador que, a partir del último diagnóstico definitivo de anemia entre los 170 y 364 días de edad (11 meses 29 días), iniciaron oportunamente tratamiento (hasta 7 días desde el diagnóstico). Registrados en HIS con un rango de 25 a 70 días entre cada entrega de hierro. Se considerarán como mínimo 3 entregas. Y Registran en HIS su recuperación con diagnóstico repetitivo anemia y dosaje de hemoglobina. | H8: Indicador: Porcentaje de niñas y niños de 12 a 18 meses, con diagnóstico de anemia entre los 6 y 11 meses, que se han recuperado. | I8: Tratamiento 1: Iniciaron oportunamente tratamiento (hasta 7 días desde el diagnóstico | J8: Tratamiento 2: Continuan Tratamiento con un rango de 25 a 70 días entre cada entrega de hierro. (Minimo 3 entregas) | K8: Dosaje: Registran en HIS su dosaje definitivo de hemoglobina , entre 180 y 209 días (6 meses) a partir del diagnóstico. | L8: Recuperacion: Registran en HIS su recuperacion, entre 180 y 209 días (6 meses) a partir del diagnóstico. | O8: AÑO | P8: MES | Q8: Denominador: Suma de DNI únicos de niños que cumplen entre 350 a 573 días de edad en el período de evaluación, con SIS, sin datos de seguro y sin seguro (población MINSA y Gobierno Regional), registrados en el padrón nominal con DNI, según el ámbito de la jurisdicción determinado por la residencia registrada en el padrón nominal Y Niños que cumplen 209 días posteriores al diagnóstico de anemia en el periodo de evaluación. | R8: Numerador: Suma de DNIs que forman parte del denominador que, a partir del último diagnóstico definitivo de anemia entre los 170 y 364 días de edad (11 meses 29 días), iniciaron oportunamente tratamiento (hasta 7 días desde el diagnóstico). Registrados en HIS con un rango de 25 a 70 días entre cada entrega de hierro. Se considerarán como mínimo 3 entregas. Y Registran en HIS su recuperación con diagnóstico repetitivo anemia y dosaje de hemoglobina. | S8: Indicador: Porcentaje de niñas y niños de 12 a 18 meses, con diagnóstico de anemia entre los 6 y 11 meses, que se han recuperado. | T8: Tratamiento 1: Iniciaron oportunamente tratamiento (hasta 7 días desde el diagnóstico | U8: Tratamiento 2: Continuan Tratamiento con un rango de 25 a 70 días entre cada entrega de hierro. (Minimo 3 entregas) | V8: Dosaje: Registran en HIS su dosaje definitivo de hemoglobina , entre 180 y 209 días (6 meses) a partir del diagnóstico. | W8: Recuperacion: Registran en HIS su recuperacion, entre 180 y 209 días (6 meses) a partir del diagnóstico.
A9: Diris | B9: Red | C9: Provincia | D9: Distrito | E9: ubigeo | F9: Denominador | G9: Numerador | H9: Suma de Ind | I9: Suma de num_t1 | J9: Suma de num_T3 | K9: Suma de num_dosaje | L9: Suma de num_recup | O9: año | P9: mes | Q9: Denominador | R9: Numerador | S9: Suma de Ind | T9: Suma de num_t1 | U9: Suma de num_T3 | V9: Suma de num_dosaje | W9: Suma de num_recup
A10: CUSCO | B10: KIMBIRI PICHARI | C10: LA CONVENCION | D10: KIMBIRI | E10: 80907 | F10: 1 | G10: 1 | H10: 100.0% | I10: 1 | J10: 1 | K10: 1 | L10: 1 | O10: 2025 | P10: 1 | Q10: 20 | R10: 5 | S10: 25.0% | T10: 19 | U10: 15 | V10: 14 | W10: 5
A11: CUSCO | B11: KIMBIRI PICHARI | C11: LA CONVENCION | D11: PICHARI | E11: 80910 | F11: 1 | G11: 0 | H11: 0.0% | I11: 1 | J11: 1 | K11: 0 | L11: 0 | O11: 2025 | P11: 2 | Q11: 12 | R11: 6 | S11: 50.0% | T11: 11 | U11: 10 | V11: 10 | W11: 7
A12: CUSCO | B12: KIMBIRI PICHARI | C12: LA CONVENCION | D12: UNION ASHANINKA | E12: 80918 | F12: 4 | G12: 4 | H12: 100.0% | I12: 4 | J12: 4 | K12: 4 | L12: 4 | O12: 2025 | P12: 3 | Q12: 15 | R12: 10 | S12: 66.7% | T12: 15 | U12: 14 | V12: 15 | W12: 10
A13: CUSCO | B13: KIMBIRI PICHARI | C13: LA CONVENCION | D13: VILLA VIRGEN | E13: 80912 | F13: 1 | G13: 1 | H13: 100.0% | I13: 1 | J13: 1 | K13: 1 | L13: 1 | O13: 2025 | P13: 4 | Q13: 15 | R13: 5 | S13: 33.3% | T13: 15 | U13: 12 | V13: 12 | W13: 6
A14: CUSCO | B14: KIMBIRI PICHARI | C14: LA CONVENCION | D14: MANITEA | E14: 80917 | F14: 2 | G14: 2 | H14: 100.0% | I14: 2 | J14: 2 | K14: 2 | L14: 2 | O14: 2025 | P14: 5 | Q14: 11 | R14: 4 | S14: 36.4% | T14: 11 | U14: 10 | V14: 9 | W14: 4
A15: Total general | F15: 9 | G15: 8 | H15: 88.9% | I15: 9 | J15: 9 | K15: 8 | L15: 8 | O15: 2025 | P15: 6 | Q15: 13 | R15: 4 | S15: 30.8% | T15: 12 | U15: 9 | V15: 8 | W15: 4
O16: 2025 | P16: 7 | Q16: 12 | R16: 3 | S16: 25.0% | T16: 9 | U16: 6 | V16: 9 | W16: 3
O17: 2025 | P17: 8 | Q17: 8 | R17: 6 | S17: 75.0% | T17: 8 | U17: 8 | V17: 8 | W17: 6
O18: 2025 | P18: 9 | Q18: 11 | R18: 5 | S18: 45.5% | T18: 11 | U18: 11 | V18: 9 | W18: 5
O19: 2025 | P19: 10 | Q19: 7 | R19: 5 | S19: 71.4% | T19: 6 | U19: 6 | V19: 6 | W19: 5
O20: 2025 | P20: 11 | Q20: 9 | R20: 8 | S20: 88.9% | T20: 9 | U20: 9 | V20: 8 | W20: 8
O21: Total general | Q21: 133 | R21: 61 | S21: 45.9% | T21: 126 | U21: 110 | V21: 108 | W21: 63
BU22: año | BV22: (Todas) | BZ22: año | CA22: (Todas) | CS22: año | CT22: (Todas)
BU23: seguro | BV23: 1 | BZ23: seguro | CA23: 1 | CS23: seguro | CT23: 1
BU25: Diris | BV25: Suma de IND | BZ25: Suma de IND | CA25: mes | CS25: Suma de IND | CT25: Diris
BU26: AMAZONAS | BV26: 30.6% | BZ26: Diris | CA26: 1 | CB26: 2 | CC26: 3 | CD26: 4 | CE26: 5 | CF26: 6 | CG26: 7 | CH26: 8 | CI26: 9 | CJ26: 10 | CK26: 11 | CS26: mes | CT26: AMAZONAS | CU26: ANCASH | CV26: APURIMAC | CW26: AREQUIPA | CX26: AYACUCHO | CY26: CAJAMARCA | CZ26: CALLAO | DA26: CUSCO | DB26: HUANCAVELICA | DC26: HUANUCO | DD26: ICA | DE26: JUNIN | DF26: LA LIBERTAD | DG26: LAMBAYEQUE | DH26: LIMA DIRIS CENTRO | DI26: LIMA DIRIS ESTE | DJ26: LIMA DIRIS NORTE | DK26: LIMA DIRIS SUR | DL26: LIMA PROVINCIAS | DM26: LORETO | DN26: MADRE DE DIOS | DO26: MOQUEGUA | DP26: PASCO | DQ26: PIURA | DR26: PUNO | DS26: SAN MARTIN | DT26: TACNA | DU26: TUMBES | DV26: UCAYALI | DW26: Total general
BU27: ANCASH | BV27: 34.7% | BZ27: AMAZONAS | CA27: 21.0% | CB27: 27.3% | CC27: 20.3% | CD27: 34.1% | CE27: 33.8% | CF27: 36.8% | CG27: 31.0% | CH27: 38.2% | CI27: 30.3% | CJ27: 45.1% | CK27: 24.1% | CS27: Enero | CT27: 21.0% | CU27: 27.2% | CV27: 37.5% | CW27: 16.2% | CX27: 75.5% | CY27: 41.7% | CZ27: 45.8% | DA27: 26.7% | DB27: 28.8% | DC27: 46.2% | DD27: 31.5% | DE27: 58.7% | DF27: 52.5% | DG27: 31.1% | DH27: 28.7% | DI27: 35.3% | DJ27: 18.5% | DK27: 41.6% | DL27: 64.8% | DM27: 15.3% | DN27: 35.1% | DO27: 22.2% | DP27: 25.9% | DQ27: 20.4% | DR27: 35.0% | DS27: 32.6% | DT27: 31.3% | DU27: 43.5% | DV27: 24.9% | DW27: 30.8%
BU28: APURIMAC | BV28: 57.4% | BZ28: ANCASH | CA28: 27.2% | CB28: 35.2% | CC28: 36.6% | CD28: 35.1% | CE28: 36.9% | CF28: 31.1% | CG28: 39.6% | CH28: 37.4% | CI28: 33.3% | CJ28: 38.8% | CK28: 32.1% | CS28: Febrero | CT28: 27.3% | CU28: 35.2% | CV28: 53.3% | CW28: 18.6% | CX28: 72.2% | CY28: 45.5% | CZ28: 41.3% | DA28: 28.5% | DB28: 24.1% | DC28: 51.0% | DD28: 34.3% | DE28: 51.2% | DF28: 56.5% | DG28: 36.0% | DH28: 32.2% | DI28: 38.5% | DJ28: 16.8% | DK28: 59.8% | DL28: 60.9% | DM28: 17.8% | DN28: 24.4% | DO28: 66.7% | DP28: 29.3% | DQ28: 22.2% | DR28: 39.1% | DS28: 34.4% | DT28: 100.0% | DU28: 62.5% | DV28: 23.6% | DW28: 34.7%
BU29: AREQUIPA | BV29: 27.6% | BZ29: APURIMAC | CA29: 37.5% | CB29: 53.3% | CC29: 42.5% | CD29: 63.4% | CE29: 63.4% | CF29: 53.4% | CG29: 58.8% | CH29: 59.6% | CI29: 61.4% | CJ29: 73.2% | CK29: 62.9% | CS29: Marzo | CT29: 20.3% | CU29: 36.6% | CV29: 42.5% | CW29: 24.7% | CX29: 60.8% | CY29: 49.7% | CZ29: 45.5% | DA29: 29.4% | DB29: 38.9% | DC29: 44.4% | DD29: 53.0% | DE29: 54.2% | DF29: 51.5% | DG29: 33.8% | DH29: 36.0% | DI29: 38.2% | DJ29: 15.4% | DK29: 54.2% | DL29: 45.2% | DM29: 17.8% | DN29: 45.9% | DO29: 40.0% | DP29: 37.9% | DQ29: 21.9% | DR29: 34.4% | DS29: 34.0% | DT29: 83.3% | DU29: 82.4% | DV29: 24.1% | DW29: 36.1%
BU30: AYACUCHO | BV30: 71.2% | BZ30: AREQUIPA | CA30: 16.2% | CB30: 18.6% | CC30: 24.7% | CD30: 19.8% | CE30: 31.9% | CF30: 30.0% | CG30: 29.6% | CH30: 34.8% | CI30: 33.6% | CJ30: 29.5% | CK30: 32.1% | CS30: Abril | CT30: 34.1% | CU30: 35.1% | CV30: 63.4% | CW30: 19.8% | CX30: 76.4% | CY30: 47.3% | CZ30: 52.0% | DA30: 22.2% | DB30: 30.3% | DC30: 58.2% | DD30: 37.5% | DE30: 57.5% | DF30: 59.2% | DG30: 36.3% | DH30: 32.4% | DI30: 49.3% | DJ30: 24.9% | DK30: 56.1% | DL30: 41.0% | DM30: 14.3% | DN30: 49.1% | DO30: 35.3% | DP30: 25.6% | DQ30: 26.8% | DR30: 25.9% | DS30: 29.8% | DT30: 100.0% | DU30: 82.4% | DV30: 27.6% | DW30: 37.3%
BU31: CAJAMARCA | BV31: 45.1% | BZ31: AYACUCHO | CA31: 75.5% | CB31: 72.2% | CC31: 60.8% | CD31: 76.4% | CE31: 76.7% | CF31: 80.8% | CG31: 70.5% | CH31: 73.8% | CI31: 73.2% | CJ31: 68.1% | CK31: 55.0% | CS31: Mayo | CT31: 33.8% | CU31: 36.9% | CV31: 63.4% | CW31: 31.9% | CX31: 76.7% | CY31: 38.3% | CZ31: 46.5% | DA31: 23.9% | DB31: 40.5% | DC31: 51.8% | DD31: 45.2% | DE31: 63.6% | DF31: 75.8% | DG31: 32.4% | DH31: 41.8% | DI31: 52.0% | DJ31: 26.2% | DK31: 56.8% | DL31: 56.0% | DM31: 23.0% | DN31: 31.0% | DO31: 40.0% | DP31: 44.4% | DQ31: 35.2% | DR31: 34.4% | DS31: 40.0% | DT31: 66.7% | DU31: 65.0% | DV31: 31.3% | DW31: 41.6%
BU32: CALLAO | BV32: 60.9% | BZ32: CAJAMARCA | CA32: 41.7% | CB32: 45.5% | CC32: 49.7% | CD32: 47.3% | CE32: 38.3% | CF32: 46.2% | CG32: 51.4% | CH32: 45.0% | CI32: 46.3% | CJ32: 44.2% | CK32: 40.8% | CS32: Junio | CT32: 36.8% | CU32: 31.1% | CV32: 53.4% | CW32: 30.0% | CX32: 80.8% | CY32: 46.2% | CZ32: 63.6% | DA32: 32.3% | DB32: 44.6% | DC32: 55.7% | DD32: 54.2% | DE32: 65.2% | DF32: 77.1% | DG32: 42.0% | DH32: 37.3% | DI32: 64.0% | DJ32: 24.6% | DK32: 66.4% | DL32: 61.9% | DM32: 15.7% | DN32: 47.2% | DO32: 21.4% | DP32: 40.6% | DQ32: 32.8% | DR32: 24.3% | DS32: 39.2% | DT32: 45.5% | DU32: 59.1% | DV32: 30.4% | DW32: 43.0%
BU33: CUSCO | BV33: 28.2% | BZ33: CALLAO | CA33: 45.8% | CB33: 41.3% | CC33: 45.5% | CD33: 52.0% | CE33: 46.5% | CF33: 63.6% | CG33: 64.1% | CH33: 76.1% | CI33: 69.4% | CJ33: 70.1% | CK33: 66.7% | CS33: Julio | CT33: 31.0% | CU33: 39.6% | CV33: 58.8% | CW33: 29.6% | CX33: 70.5% | CY33: 51.4% | CZ33: 64.1% | DA33: 24.1% | DB33: 47.1% | DC33: 58.5% | DD33: 57.8% | DE33: 61.6% | DF33: 69.3% | DG33: 54.1% | DH33: 37.5% | DI33: 66.5% | DJ33: 32.6% | DK33: 73.3% | DL33: 51.6% | DM33: 18.4% | DN33: 52.0% | DO33: 41.7% | DP33: 26.9% | DQ33: 33.7% | DR33: 35.5% | DS33: 40.3% | DT33: 38.5% | DU33: 54.5% | DV33: 41.1% | DW33: 45.4%
BU34: HUANCAVELICA | BV34: 36.8% | BZ34: CUSCO | CA34: 26.7% | CB34: 28.5% | CC34: 29.4% | CD34: 22.2% | CE34: 23.9% | CF34: 32.3% | CG34: 24.1% | CH34: 33.8% | CI34: 26.1% | CJ34: 33.8% | CK34: 28.9% | CS34: Agosto | CT34: 38.2% | CU34: 37.4% | CV34: 59.6% | CW34: 34.8% | CX34: 73.8% | CY34: 45.0% | CZ34: 76.1% | DA34: 33.8% | DB34: 38.9% | DC34: 52.3% | DD34: 64.1% | DE34: 64.5% | DF34: 71.2% | DG34: 48.3% | DH34: 42.6% | DI34: 69.3% | DJ34: 42.0% | DK34: 78.8% | DL34: 73.0% | DM34: 24.1% | DN34: 43.2% | DO34: 50.0% | DP34: 40.0% | DQ34: 30.9% | DR34: 41.5% | DS34: 40.0% | DT34: 73.3% | DU34: 58.3% | DV34: 36.4% | DW34: 48.6%
BU35: HUANUCO | BV35: 52.2% | BZ35: HUANCAVELICA | CA35: 28.8% | CB35: 24.1% | CC35: 38.9% | CD35: 30.3% | CE35: 40.5% | CF35: 44.6% | CG35: 47.1% | CH35: 38.9% | CI35: 37.0% | CJ35: 39.2% | CK35: 34.1% | CS35: Setiembre | CT35: 30.3% | CU35: 33.3% | CV35: 61.4% | CW35: 33.6% | CX35: 73.2% | CY35: 46.3% | CZ35: 69.4% | DA35: 26.1% | DB35: 37.0% | DC35: 52.2% | DD35: 63.0% | DE35: 52.0% | DF35: 68.5% | DG35: 48.3% | DH35: 45.4% | DI35: 77.6% | DJ35: 34.2% | DK35: 70.0% | DL35: 52.8% | DM35: 22.3% | DN35: 39.5% | DO35: 55.6% | DP35: 40.0% | DQ35: 37.8% | DR35: 21.4% | DS35: 39.5% | DT35: 62.2% | DU35: 58.8% | DV35: 36.3% | DW35: 46.3%
BU36: ICA | BV36: 51.5% | BZ36: HUANUCO | CA36: 46.2% | CB36: 51.0% | CC36: 44.4% | CD36: 58.2% | CE36: 51.8% | CF36: 55.7% | CG36: 58.5% | CH36: 52.3% | CI36: 52.2% | CJ36: 43.5% | CK36: 60.7% | CS36: Octubre | CT36: 45.1% | CU36: 38.8% | CV36: 73.2% | CW36: 29.5% | CX36: 68.1% | CY36: 44.2% | CZ36: 70.1% | DA36: 33.8% | DB36: 39.2% | DC36: 43.5% | DD36: 63.9% | DE36: 50.8% | DF36: 65.3% | DG36: 37.1% | DH36: 45.2% | DI36: 70.7% | DJ36: 27.6% | DK36: 64.5% | DL36: 48.2% | DM36: 19.1% | DN36: 50.0% | DO36: 10.0% | DP36: 25.8% | DQ36: 32.6% | DR36: 32.7% | DS36: 28.6% | DT36: 52.6% | DU36: 58.1% | DV36: 32.1% | DW36: 43.4%
BU37: JUNIN | BV37: 57.8% | BZ37: ICA | CA37: 31.5% | CB37: 34.3% | CC37: 53.0% | CD37: 37.5% | CE37: 45.2% | CF37: 54.2% | CG37: 57.8% | CH37: 64.1% | CI37: 63.0% | CJ37: 63.9% | CK37: 53.6% | CS37: Noviembre | CT37: 24.1% | CU37: 32.1% | CV37: 62.9% | CW37: 32.1% | CX37: 55.0% | CY37: 40.8% | CZ37: 66.7% | DA37: 28.9% | DB37: 34.1% | DC37: 60.7% | DD37: 53.6% | DE37: 53.5% | DF37: 67.9% | DG37: 43.1% | DH37: 24.8% | DI37: 69.7% | DJ37: 29.3% | DK37: 61.4% | DL37: 72.1% | DM37: 21.2% | DN37: 43.5% | DO37: 25.0% | DP37: 28.6% | DQ37: 27.0% | DR37: 35.1% | DS37: 46.3% | DT37: 60.0% | DU37: 66.7% | DV37: 31.0% | DW37: 41.3%
BU38: LA LIBERTAD | BV38: 65.0% | BZ38: JUNIN | CA38: 58.7% | CB38: 51.2% | CC38: 54.2% | CD38: 57.5% | CE38: 63.6% | CF38: 65.2% | CG38: 61.6% | CH38: 64.5% | CI38: 52.0% | CJ38: 50.8% | CK38: 53.5%
BU39: LAMBAYEQUE | BV39: 40.4% | BZ39: LA LIBERTAD | CA39: 52.5% | CB39: 56.5% | CC39: 51.5% | CD39: 59.2% | CE39: 75.8% | CF39: 77.1% | CG39: 69.3% | CH39: 71.2% | CI39: 68.5% | CJ39: 65.3% | CK39: 67.9%
BU40: LIMA DIRIS CENTRO | BV40: 37.6% | BZ40: LAMBAYEQUE | CA40: 31.1% | CB40: 36.0% | CC40: 33.8% | CD40: 36.3% | CE40: 32.4% | CF40: 42.0% | CG40: 54.1% | CH40: 48.3% | CI40: 48.3% | CJ40: 37.1% | CK40: 43.1%
BU41: LIMA DIRIS ESTE | BV41: 60.0% | BZ41: LIMA DIRIS CENTRO | CA41: 28.7% | CB41: 32.2% | CC41: 36.0% | CD41: 32.4% | CE41: 41.8% | CF41: 37.3% | CG41: 37.5% | CH41: 42.6% | CI41: 45.4% | CJ41: 45.2% | CK41: 24.8%
BU42: LIMA DIRIS NORTE | BV42: 28.6% | BZ42: LIMA DIRIS ESTE | CA42: 35.3% | CB42: 38.5% | CC42: 38.2% | CD42: 49.3% | CE42: 52.0% | CF42: 64.0% | CG42: 66.5% | CH42: 69.3% | CI42: 77.6% | CJ42: 70.7% | CK42: 69.7%
BU43: LIMA DIRIS SUR | BV43: 63.7% | BZ43: LIMA DIRIS NORTE | CA43: 18.5% | CB43: 16.8% | CC43: 15.4% | CD43: 24.9% | CE43: 26.2% | CF43: 24.6% | CG43: 32.6% | CH43: 42.0% | CI43: 34.2% | CJ43: 27.6% | CK43: 29.3%
BU44: LIMA PROVINCIAS | BV44: 57.9% | BZ44: LIMA DIRIS SUR | CA44: 41.6% | CB44: 59.8% | CC44: 54.2% | CD44: 56.1% | CE44: 56.8% | CF44: 66.4% | CG44: 73.3% | CH44: 78.8% | CI44: 70.0% | CJ44: 64.5% | CK44: 61.4%
BU45: LORETO | BV45: 18.5% | BZ45: LIMA PROVINCIAS | CA45: 64.8% | CB45: 60.9% | CC45: 45.2% | CD45: 41.0% | CE45: 56.0% | CF45: 61.9% | CG45: 51.6% | CH45: 73.0% | CI45: 52.8% | CJ45: 48.2% | CK45: 72.1%
BU46: MADRE DE DIOS | BV46: 41.1% | BZ46: LORETO | CA46: 15.3% | CB46: 17.8% | CC46: 17.8% | CD46: 14.3% | CE46: 23.0% | CF46: 15.7% | CG46: 18.4% | CH46: 24.1% | CI46: 22.3% | CJ46: 19.1% | CK46: 21.2%
BU47: MOQUEGUA | BV47: 38.5% | BZ47: MADRE DE DIOS | CA47: 35.1% | CB47: 24.4% | CC47: 45.9% | CD47: 49.1% | CE47: 31.0% | CF47: 47.2% | CG47: 52.0% | CH47: 43.2% | CI47: 39.5% | CJ47: 50.0% | CK47: 43.5% | CT47: AMAZONAS | CU47: ANCASH | CV47: APURIMAC | CW47: AREQUIPA | CX47: AYACUCHO | CY47: CAJAMARCA | CZ47: CALLAO | DA47: CUSCO | DB47: HUANCAVELICA | DC47: HUANUCO | DD47: ICA | DE47: JUNIN | DF47: LA LIBERTAD | DG47: LAMBAYEQUE | DH47: LIMA DIRIS CENTRO | DI47: LIMA DIRIS ESTE | DJ47: LIMA DIRIS NORTE | DK47: LIMA DIRIS SUR | DL47: LIMA PROVINCIAS | DM47: LORETO | DN47: MADRE DE DIOS | DO47: MOQUEGUA | DP47: PASCO | DQ47: PIURA | DR47: PUNO | DS47: SAN MARTIN | DT47: TACNA | DU47: TUMBES | DV47: UCAYALI | DW47: NACIONAL
BU48: PASCO | BV48: 33.2% | BZ48: MOQUEGUA | CA48: 22.2% | CB48: 66.7% | CC48: 40.0% | CD48: 35.3% | CE48: 40.0% | CF48: 21.4% | CG48: 41.7% | CH48: 50.0% | CI48: 55.6% | CJ48: 10.0% | CK48: 25.0% | CS48: Enero | CT48: =+GETPIVOTDATA("IND",$CS$25,"Diris",CT$47,"mes",$CS48) -> 21.0% | CU48: =+GETPIVOTDATA("IND",$CS$25,"Diris",CU$47,"mes",$CS48) -> 27.2% | CV48: 37.5% | CW48: 16.2% | CX48: 75.5% | CY48: 41.7% | CZ48: 45.8% | DA48: 26.7% | DB48: 28.8% | DC48: 46.2% | DD48: 31.5% | DE48: 58.7% | DF48: 52.5% | DG48: 31.1% | DH48: 28.7% | DI48: 35.3% | DJ48: 18.5% | DK48: 41.6% | DL48: 64.8% | DM48: 15.3% | DN48: 35.1% | DO48: 22.2% | DP48: 25.9% | DQ48: 20.4% | DR48: 35.0% | DS48: 32.6% | DT48: 31.3% | DU48: 43.5% | DV48: 24.9% | DW48: =+GETPIVOTDATA("IND",$CS$25,"mes",$CS48) -> 30.8%
BU49: PIURA | BV49: 29.0% | BZ49: PASCO | CA49: 25.9% | CB49: 29.3% | CC49: 37.9% | CD49: 25.6% | CE49: 44.4% | CF49: 40.6% | CG49: 26.9% | CH49: 40.0% | CI49: 40.0% | CJ49: 25.8% | CK49: 28.6% | CS49: Febrero | CT49: =+GETPIVOTDATA("IND",$CS$25,"Diris",CT$47,"mes",$CS49) -> 27.3% | CU49: 35.2% | CV49: 53.3% | CW49: 18.6% | CX49: 72.2% | CY49: 45.5% | CZ49: 41.3% | DA49: 28.5% | DB49: 24.1% | DC49: 51.0% | DD49: 34.3% | DE49: 51.2% | DF49: 56.5% | DG49: 36.0% | DH49: 32.2% | DI49: 38.5% | DJ49: 16.8% | DK49: 59.8% | DL49: 60.9% | DM49: 17.8% | DN49: 24.4% | DO49: 66.7% | DP49: 29.3% | DQ49: 22.2% | DR49: 39.1% | DS49: 34.4% | DT49: 100.0% | DU49: 62.5% | DV49: 23.6% | DW49: =+GETPIVOTDATA("IND",$CS$25,"mes",$CS49) -> 34.7%
BU50: PUNO | BV50: 32.2% | BZ50: PIURA | CA50: 20.4% | CB50: 22.2% | CC50: 21.9% | CD50: 26.8% | CE50: 35.2% | CF50: 32.8% | CG50: 33.7% | CH50: 30.9% | CI50: 37.8% | CJ50: 32.6% | CK50: 27.0% | CS50: Marzo | CT50: 20.3% | CU50: 36.6% | CV50: 42.5% | CW50: 24.7% | CX50: 60.8% | CY50: 49.7% | CZ50: 45.5% | DA50: 29.4% | DB50: 38.9% | DC50: 44.4% | DD50: 53.0% | DE50: 54.2% | DF50: 51.5% | DG50: 33.8% | DH50: 36.0% | DI50: 38.2% | DJ50: 15.4% | DK50: 54.2% | DL50: 45.2% | DM50: 17.8% | DN50: 45.9% | DO50: 40.0% | DP50: 37.9% | DQ50: 21.9% | DR50: 34.4% | DS50: 34.0% | DT50: 83.3% | DU50: 82.4% | DV50: 24.1% | DW50: 36.1%
BU51: SAN MARTIN | BV51: 36.0% | BZ51: PUNO | CA51: 35.0% | CB51: 39.1% | CC51: 34.4% | CD51: 25.9% | CE51: 34.4% | CF51: 24.3% | CG51: 35.5% | CH51: 41.5% | CI51: 21.4% | CJ51: 32.7% | CK51: 35.1% | CS51: Abril | CT51: 34.1% | CU51: 35.1% | CV51: 63.4% | CW51: 19.8% | CX51: 76.4% | CY51: 47.3% | CZ51: 52.0% | DA51: 22.2% | DB51: 30.3% | DC51: 58.2% | DD51: 37.5% | DE51: 57.5% | DF51: 59.2% | DG51: 36.3% | DH51: 32.4% | DI51: 49.3% | DJ51: 24.9% | DK51: 56.1% | DL51: 41.0% | DM51: 14.3% | DN51: 49.1% | DO51: 35.3% | DP51: 25.6% | DQ51: 26.8% | DR51: 25.9% | DS51: 29.8% | DT51: 100.0% | DU51: 82.4% | DV51: 27.6% | DW51: 37.3%
BU52: TACNA | BV52: 60.4% | BZ52: SAN MARTIN | CA52: 32.6% | CB52: 34.4% | CC52: 34.0% | CD52: 29.8% | CE52: 40.0% | CF52: 39.2% | CG52: 40.3% | CH52: 40.0% | CI52: 39.5% | CJ52: 28.6% | CK52: 46.3% | CS52: Mayo | CT52: 33.8% | CU52: 36.9% | CV52: 63.4% | CW52: 31.9% | CX52: 76.7% | CY52: 38.3% | CZ52: 46.5% | DA52: 23.9% | DB52: 40.5% | DC52: 51.8% | DD52: 45.2% | DE52: 63.6% | DF52: 75.8% | DG52: 32.4% | DH52: 41.8% | DI52: 52.0% | DJ52: 26.2% | DK52: 56.8% | DL52: 56.0% | DM52: 23.0% | DN52: 31.0% | DO52: 40.0% | DP52: 44.4% | DQ52: 35.2% | DR52: 34.4% | DS52: 40.0% | DT52: 66.7% | DU52: 65.0% | DV52: 31.3% | DW52: 41.6%
BU53: TUMBES | BV53: 61.2% | BZ53: TACNA | CA53: 31.3% | CB53: 100.0% | CC53: 83.3% | CD53: 100.0% | CE53: 66.7% | CF53: 45.5% | CG53: 38.5% | CH53: 73.3% | CI53: 62.2% | CJ53: 52.6% | CK53: 60.0% | CS53: Junio | CT53: 36.8% | CU53: 31.1% | CV53: 53.4% | CW53: 30.0% | CX53: 80.8% | CY53: 46.2% | CZ53: 63.6% | DA53: 32.3% | DB53: 44.6% | DC53: 55.7% | DD53: 54.2% | DE53: 65.2% | DF53: 77.1% | DG53: 42.0% | DH53: 37.3% | DI53: 64.0% | DJ53: 24.6% | DK53: 66.4% | DL53: 61.9% | DM53: 15.7% | DN53: 47.2% | DO53: 21.4% | DP53: 40.6% | DQ53: 32.8% | DR53: 24.3% | DS53: 39.2% | DT53: 45.5% | DU53: 59.1% | DV53: 30.4% | DW53: 43.0%
BU54: UCAYALI | BV54: 31.0% | BZ54: TUMBES | CA54: 43.5% | CB54: 62.5% | CC54: 82.4% | CD54: 82.4% | CE54: 65.0% | CF54: 59.1% | CG54: 54.5% | CH54: 58.3% | CI54: 58.8% | CJ54: 58.1% | CK54: 66.7% | CS54: Julio | CT54: 31.0% | CU54: 39.6% | CV54: 58.8% | CW54: 29.6% | CX54: 70.5% | CY54: 51.4% | CZ54: 64.1% | DA54: 24.1% | DB54: 47.1% | DC54: 58.5% | DD54: 57.8% | DE54: 61.6% | DF54: 69.3% | DG54: 54.1% | DH54: 37.5% | DI54: 66.5% | DJ54: 32.6% | DK54: 73.3% | DL54: 51.6% | DM54: 18.4% | DN54: 52.0% | DO54: 41.7% | DP54: 26.9% | DQ54: 33.7% | DR54: 35.5% | DS54: 40.3% | DT54: 38.5% | DU54: 54.5% | DV54: 41.1% | DW54: 45.4%
BU55: Total general | BV55: 40.9% | BZ55: UCAYALI | CA55: 24.9% | CB55: 23.6% | CC55: 24.1% | CD55: 27.6% | CE55: 31.3% | CF55: 30.4% | CG55: 41.1% | CH55: 36.4% | CI55: 36.3% | CJ55: 32.1% | CK55: 31.0% | CS55: Agosto | CT55: 38.2% | CU55: 37.4% | CV55: 59.6% | CW55: 34.8% | CX55: 73.8% | CY55: 45.0% | CZ55: 76.1% | DA55: 33.8% | DB55: 38.9% | DC55: 52.3% | DD55: 64.1% | DE55: 64.5% | DF55: 71.2% | DG55: 48.3% | DH55: 42.6% | DI55: 69.3% | DJ55: 42.0% | DK55: 78.8% | DL55: 73.0% | DM55: 24.1% | DN55: 43.2% | DO55: 50.0% | DP55: 40.0% | DQ55: 30.9% | DR55: 41.5% | DS55: 40.0% | DT55: 73.3% | DU55: 58.3% | DV55: 36.4% | DW55: 48.6%
BZ56: Total general | CA56: 30.8% | CB56: 34.7% | CC56: 36.1% | CD56: 37.3% | CE56: 41.6% | CF56: 43.0% | CG56: 45.4% | CH56: 48.6% | CI56: 46.3% | CJ56: 43.4% | CK56: 41.3% | CS56: Setiembre | CT56: 30.3% | CU56: 33.3% | CV56: 61.4% | CW56: 33.6% | CX56: 73.2% | CY56: 46.3% | CZ56: 69.4% | DA56: 26.1% | DB56: 37.0% | DC56: 52.2% | DD56: 63.0% | DE56: 52.0% | DF56: 68.5% | DG56: 48.3% | DH56: 45.4% | DI56: 77.6% | DJ56: 34.2% | DK56: 70.0% | DL56: 52.8% | DM56: 22.3% | DN56: 39.5% | DO56: 55.6% | DP56: 40.0% | DQ56: 37.8% | DR56: 21.4% | DS56: 39.5% | DT56: 62.2% | DU56: 58.8% | DV56: 36.3% | DW56: 46.3%
CS57: Octubre | CT57: 45.1% | CU57: 38.8% | CV57: 73.2% | CW57: 29.5% | CX57: 68.1% | CY57: 44.2% | CZ57: 70.1% | DA57: 33.8% | DB57: 39.2% | DC57: 43.5% | DD57: 63.9% | DE57: 50.8% | DF57: 65.3% | DG57: 37.1% | DH57: 45.2% | DI57: 70.7% | DJ57: 27.6% | DK57: 64.5% | DL57: 48.2% | DM57: =+GETPIVOTDATA("IND",$CS$25,"Diris",DM$47,"mes",$CS57) -> 19.1% | DN57: 50.0% | DO57: 10.0% | DP57: 25.8% | DQ57: 32.6% | DR57: 32.7% | DS57: 28.6% | DT57: 52.6% | DU57: 58.1% | DV57: 32.1% | DW57: 43.4%
CS58: Noviembre | CT58: 24.1% | CU58: 32.1% | CV58: 62.9% | CW58: 32.1% | CX58: 55.0% | CY58: 40.8% | CZ58: 66.7% | DA58: 28.9% | DB58: 34.1% | DC58: 60.7% | DD58: 53.6% | DE58: 53.5% | DF58: 67.9% | DG58: 43.1% | DH58: 24.8% | DI58: 69.7% | DJ58: 29.3% | DK58: 61.4% | DL58: 72.1% | DM58: 21.2% | DN58: 43.5% | DO58: 25.0% | DP58: 28.6% | DQ58: 27.0% | DR58: 35.1% | DS58: 46.3% | DT58: 60.0% | DU58: 66.7% | DV58: 31.0% | DW58: 41.3%
CS59: Diciembre
CA61: 1 | CB61: 2 | CC61: 3 | CD61: 4 | CE61: 5 | CF61: 6 | CG61: 7 | CH61: 8 | CI61: 9 | CJ61: 10 | CK61: 11 | CL61: 12
BU62: AMAZONAS | BV62: =+IFERROR(GETPIVOTDATA("IND",$BU$25,"Diris",$BU62),"-") -> 30.6% | BZ62: AMAZONAS | CA62: =+IFERROR(GETPIVOTDATA("IND",$BZ$25,"Diris",$BZ62,"mes",CA$61),"-") -> 21.0% | CB62: =+IFERROR(GETPIVOTDATA("IND",$BZ$25,"Diris",$BZ62,"mes",CB$61),"-") -> 27.3% | CC62: 20.3% | CD62: 34.1% | CE62: 33.8% | CF62: 36.8% | CG62: 31.0% | CH62: 38.2% | CI62: 30.3% | CJ62: 45.1% | CK62: 24.1% | CL62: - | CN62: AMAZONAS | CO62: =+IF(CA62="-","-",MIN(CA62:CL62)) -> 20.3% | CP62: =+IF(CA62="-","-",MAX(CA62:CL62)) -> 45.1%
BU63: ANCASH | BV63: =+IFERROR(GETPIVOTDATA("IND",$BU$25,"Diris",$BU63),"-") -> 34.7% | BZ63: ANCASH | CA63: =+IFERROR(GETPIVOTDATA("IND",$BZ$25,"Diris",$BZ63,"mes",CA$61),"-") -> 27.2% | CB63: 35.2% | CC63: 36.6% | CD63: 35.1% | CE63: 36.9% | CF63: 31.1% | CG63: 39.6% | CH63: 37.4% | CI63: 33.3% | CJ63: 38.8% | CK63: 32.1% | CL63: - | CN63: ANCASH | CO63: =+IF(CA63="-","-",MIN(CA63:CL63)) -> 27.2% | CP63: =+IF(CA63="-","-",MAX(CA63:CL63)) -> 39.6%
BU64: APURIMAC | BV64: 57.4% | BZ64: APURIMAC | CA64: 37.5% | CB64: 53.3% | CC64: 42.5% | CD64: 63.4% | CE64: 63.4% | CF64: 53.4% | CG64: 58.8% | CH64: 59.6% | CI64: 61.4% | CJ64: 73.2% | CK64: 62.9% | CL64: - | CN64: APURIMAC | CO64: 37.5% | CP64: 73.2%
BU65: AREQUIPA | BV65: 27.6% | BZ65: AREQUIPA | CA65: 16.2% | CB65: 18.6% | CC65: 24.7% | CD65: 19.8% | CE65: 31.9% | CF65: 30.0% | CG65: 29.6% | CH65: 34.8% | CI65: 33.6% | CJ65: 29.5% | CK65: 32.1% | CL65: - | CN65: AREQUIPA | CO65: 16.2% | CP65: 34.8%
BU66: AYACUCHO | BV66: 71.2% | BZ66: AYACUCHO | CA66: 75.5% | CB66: 72.2% | CC66: 60.8% | CD66: 76.4% | CE66: 76.7% | CF66: 80.8% | CG66: 70.5% | CH66: 73.8% | CI66: 73.2% | CJ66: 68.1% | CK66: 55.0% | CL66: - | CN66: AYACUCHO | CO66: 55.0% | CP66: 80.8%
BU67: CAJAMARCA | BV67: 45.1% | BZ67: CAJAMARCA | CA67: 41.7% | CB67: 45.5% | CC67: 49.7% | CD67: 47.3% | CE67: 38.3% | CF67: 46.2% | CG67: 51.4% | CH67: 45.0% | CI67: 46.3% | CJ67: 44.2% | CK67: 40.8% | CL67: - | CN67: CAJAMARCA | CO67: 38.3% | CP67: 51.4%
BU68: CALLAO | BV68: 60.9% | BZ68: CALLAO | CA68: 45.8% | CB68: 41.3% | CC68: 45.5% | CD68: 52.0% | CE68: 46.5% | CF68: 63.6% | CG68: 64.1% | CH68: 76.1% | CI68: 69.4% | CJ68: 70.1% | CK68: 66.7% | CL68: - | CN68: CALLAO | CO68: 41.3% | CP68: 76.1%
BU69: CUSCO | BV69: 28.2% | BZ69: CUSCO | CA69: 26.7% | CB69: 28.5% | CC69: 29.4% | CD69: 22.2% | CE69: 23.9% | CF69: 32.3% | CG69: 24.1% | CH69: 33.8% | CI69: 26.1% | CJ69: 33.8% | CK69: 28.9% | CL69: - | CN69: CUSCO | CO69: 22.2% | CP69: 33.8%
BU70: HUANCAVELICA | BV70: 36.8% | BZ70: HUANCAVELICA | CA70: 28.8% | CB70: 24.1% | CC70: 38.9% | CD70: 30.3% | CE70: 40.5% | CF70: 44.6% | CG70: 47.1% | CH70: 38.9% | CI70: 37.0% | CJ70: 39.2% | CK70: 34.1% | CL70: - | CN70: HUANCAVELICA | CO70: 24.1% | CP70: 47.1%
BU71: HUANUCO | BV71: 52.2% | BZ71: HUANUCO | CA71: 46.2% | CB71: 51.0% | CC71: 44.4% | CD71: 58.2% | CE71: 51.8% | CF71: 55.7% | CG71: 58.5% | CH71: 52.3% | CI71: 52.2% | CJ71: 43.5% | CK71: 60.7% | CL71: - | CN71: HUANUCO | CO71: 43.5% | CP71: 60.7%
BU72: ICA | BV72: 51.5% | BZ72: ICA | CA72: 31.5% | CB72: 34.3% | CC72: 53.0% | CD72: 37.5% | CE72: 45.2% | CF72: 54.2% | CG72: 57.8% | CH72: 64.1% | CI72: 63.0% | CJ72: 63.9% | CK72: 53.6% | CL72: - | CN72: ICA | CO72: 31.5% | CP72: 64.1%
BU73: JUNIN | BV73: 57.8% | BZ73: JUNIN | CA73: 58.7% | CB73: 51.2% | CC73: 54.2% | CD73: 57.5% | CE73: 63.6% | CF73: 65.2% | CG73: 61.6% | CH73: 64.5% | CI73: 52.0% | CJ73: 50.8% | CK73: 53.5% | CL73: - | CN73: JUNIN | CO73: 50.8% | CP73: 65.2%
BU74: LA LIBERTAD | BV74: 65.0% | BZ74: LA LIBERTAD | CA74: 52.5% | CB74: 56.5% | CC74: 51.5% | CD74: 59.2% | CE74: 75.8% | CF74: 77.1% | CG74: 69.3% | CH74: 71.2% | CI74: 68.5% | CJ74: 65.3% | CK74: 67.9% | CL74: - | CN74: LA LIBERTAD | CO74: 51.5% | CP74: 77.1%
BU75: LAMBAYEQUE | BV75: 40.4% | BZ75: LAMBAYEQUE | CA75: 31.1% | CB75: 36.0% | CC75: 33.8% | CD75: 36.3% | CE75: 32.4% | CF75: 42.0% | CG75: 54.1% | CH75: 48.3% | CI75: 48.3% | CJ75: 37.1% | CK75: 43.1% | CL75: - | CN75: LAMBAYEQUE | CO75: 31.1% | CP75: 54.1%
BU76: LIMA DIRIS CENTRO | BV76: 37.6% | BZ76: LIMA DIRIS CENTRO | CA76: 28.7% | CB76: 32.2% | CC76: 36.0% | CD76: 32.4% | CE76: 41.8% | CF76: 37.3% | CG76: 37.5% | CH76: 42.6% | CI76: 45.4% | CJ76: 45.2% | CK76: 24.8% | CL76: - | CN76: LIMA DIRIS CENTRO | CO76: 24.8% | CP76: 45.4%
BU77: LIMA DIRIS ESTE | BV77: 60.0% | BZ77: LIMA DIRIS ESTE | CA77: 35.3% | CB77: 38.5% | CC77: 38.2% | CD77: 49.3% | CE77: 52.0% | CF77: 64.0% | CG77: 66.5% | CH77: 69.3% | CI77: 77.6% | CJ77: 70.7% | CK77: 69.7% | CL77: - | CN77: LIMA DIRIS ESTE | CO77: 35.3% | CP77: 77.6%
BU78: LIMA DIRIS NORTE | BV78: 28.6% | BZ78: LIMA DIRIS NORTE | CA78: 18.5% | CB78: 16.8% | CC78: 15.4% | CD78: 24.9% | CE78: 26.2% | CF78: 24.6% | CG78: 32.6% | CH78: 42.0% | CI78: 34.2% | CJ78: 27.6% | CK78: 29.3% | CL78: - | CN78: LIMA DIRIS NORTE | CO78: 15.4% | CP78: 42.0%
BU79: LIMA DIRIS SUR | BV79: 63.7% | BZ79: LIMA DIRIS SUR | CA79: 41.6% | CB79: 59.8% | CC79: 54.2% | CD79: 56.1% | CE79: 56.8% | CF79: 66.4% | CG79: 73.3% | CH79: 78.8% | CI79: 70.0% | CJ79: 64.5% | CK79: 61.4% | CL79: - | CN79: LIMA DIRIS SUR | CO79: 41.6% | CP79: 78.8%
BU80: LIMA PROVINCIAS | BV80: 57.9% | BZ80: LIMA PROVINCIAS | CA80: 64.8% | CB80: 60.9% | CC80: 45.2% | CD80: 41.0% | CE80: 56.0% | CF80: 61.9% | CG80: 51.6% | CH80: 73.0% | CI80: 52.8% | CJ80: 48.2% | CK80: 72.1% | CL80: - | CN80: LIMA PROVINCIAS | CO80: 41.0% | CP80: 73.0%
BU81: LORETO | BV81: 18.5% | BZ81: LORETO | CA81: 15.3% | CB81: 17.8% | CC81: 17.8% | CD81: 14.3% | CE81: 23.0% | CF81: 15.7% | CG81: 18.4% | CH81: 24.1% | CI81: 22.3% | CJ81: 19.1% | CK81: 21.2% | CL81: - | CN81: LORETO | CO81: 14.3% | CP81: 24.1%
BU82: MADRE DE DIOS | BV82: 41.1% | BZ82: MADRE DE DIOS | CA82: 35.1% | CB82: 24.4% | CC82: 45.9% | CD82: 49.1% | CE82: 31.0% | CF82: 47.2% | CG82: 52.0% | CH82: 43.2% | CI82: 39.5% | CJ82: 50.0% | CK82: 43.5% | CL82: - | CN82: MADRE DE DIOS | CO82: 24.4% | CP82: 52.0%
BU83: MOQUEGUA | BV83: 38.5% | BZ83: MOQUEGUA | CA83: 22.2% | CB83: 66.7% | CC83: 40.0% | CD83: 35.3% | CE83: 40.0% | CF83: 21.4% | CG83: 41.7% | CH83: 50.0% | CI83: 55.6% | CJ83: 10.0% | CK83: 25.0% | CL83: - | CN83: MOQUEGUA | CO83: 10.0% | CP83: 66.7%
BU84: PASCO | BV84: 33.2% | BZ84: PASCO | CA84: 25.9% | CB84: 29.3% | CC84: 37.9% | CD84: 25.6% | CE84: 44.4% | CF84: 40.6% | CG84: 26.9% | CH84: 40.0% | CI84: 40.0% | CJ84: 25.8% | CK84: 28.6% | CL84: - | CN84: PASCO | CO84: 25.6% | CP84: 44.4%
BU85: PIURA | BV85: 29.0% | BZ85: PIURA | CA85: 20.4% | CB85: 22.2% | CC85: 21.9% | CD85: 26.8% | CE85: 35.2% | CF85: 32.8% | CG85: 33.7% | CH85: 30.9% | CI85: 37.8% | CJ85: 32.6% | CK85: 27.0% | CL85: - | CN85: PIURA | CO85: 20.4% | CP85: 37.8%
BU86: PUNO | BV86: 32.2% | BZ86: PUNO | CA86: 35.0% | CB86: 39.1% | CC86: 34.4% | CD86: 25.9% | CE86: 34.4% | CF86: 24.3% | CG86: 35.5% | CH86: 41.5% | CI86: 21.4% | CJ86: 32.7% | CK86: 35.1% | CL86: - | CN86: PUNO | CO86: 21.4% | CP86: 41.5%
BU87: SAN MARTIN | BV87: 36.0% | BZ87: SAN MARTIN | CA87: 32.6% | CB87: 34.4% | CC87: 34.0% | CD87: 29.8% | CE87: 40.0% | CF87: 39.2% | CG87: 40.3% | CH87: 40.0% | CI87: 39.5% | CJ87: 28.6% | CK87: 46.3% | CL87: - | CN87: SAN MARTIN | CO87: 28.6% | CP87: 46.3%
BU88: TACNA | BV88: 60.4% | BZ88: TACNA | CA88: 31.3% | CB88: 100.0% | CC88: 83.3% | CD88: 100.0% | CE88: 66.7% | CF88: 45.5% | CG88: 38.5% | CH88: 73.3% | CI88: 62.2% | CJ88: 52.6% | CK88: 60.0% | CL88: - | CN88: TACNA | CO88: 31.3% | CP88: 100.0%
BU89: TUMBES | BV89: 61.2% | BZ89: TUMBES | CA89: 43.5% | CB89: 62.5% | CC89: 82.4% | CD89: 82.4% | CE89: 65.0% | CF89: 59.1% | CG89: 54.5% | CH89: 58.3% | CI89: 58.8% | CJ89: 58.1% | CK89: 66.7% | CL89: - | CN89: TUMBES | CO89: 43.5% | CP89: 82.4%
BU90: UCAYALI | BV90: 31.0% | BZ90: UCAYALI | CA90: 24.9% | CB90: 23.6% | CC90: 24.1% | CD90: 27.6% | CE90: 31.3% | CF90: 30.4% | CG90: 41.1% | CH90: 36.4% | CI90: 36.3% | CJ90: 32.1% | CK90: 31.0% | CL90: - | CN90: UCAYALI | CO90: 23.6% | CP90: 41.1%
BU91: NACIONAL | BV91: =+IFERROR(GETPIVOTDATA("IND",$BU$25),"-") -> 40.9% | BZ91: NACIONAL | CA91: =+IFERROR(GETPIVOTDATA("IND",$BZ$25,"mes",CA$61),"-") -> 30.8% | CB91: =+IFERROR(GETPIVOTDATA("IND",$BZ$25,"mes",CB$61),"-") -> 34.7% | CC91: 36.1% | CD91: 37.3% | CE91: 41.6% | CF91: 43.0% | CG91: 45.4% | CH91: 48.6% | CI91: 46.3% | CJ91: 43.4% | CK91: 41.3% | CL91: - | CN91: NACIONAL | CO91: 30.8% | CP91: 48.6%

Sheet DL_1153_2025_CG02
A1: =+DL1153_2025!C8 -> Ficha 02: Porcentaje de niñas/niños menores de 12 meses, que reciben un paquete integrado de servicios: CRED, vacunas, dosaje de hemoglobina para descarte de anemia y suplementación con hierro. | BU1: 1 | DX1: 1
A2: Periodo de Evaluación: | B2: =+DL1153_2025!B42 -> Noviembre - 2025
O3: Distritos_FED | P3: (Todas)
O4: Disa | P4: CUSCO
A5: Distritos_FED | B5: (Todas) | O5: Prov | P5: LA CONVENCION
A6: mes | B6: 11 | O6: RED | P6: KIMBIRI PICHARI
A7: seguro | B7: MINSA | O7: seguro | P7: MINSA | BV7: seguro | BW7: MINSA
A8: DIRESA/ DIRIS | B8: Provincia | C8: Red | D8: Distrito | E8: UBIGEO | F8: Denominador: Niñas/niños menores de 364 días en el periodo de evaluación, con SIS, sin dato de seguro y sin seguro (población MINSA y Gobierno Regional), registrados en el padrón nominal con DNI o CNV, según el ámbito de la jurisdicción determinado por la residencia registrada en el padrón nominal. | G8: Numerador: Niñas/niños del denominador que recibieron paquete integrado de servicios (registrado en el HIS), de acuerdo al esquema vigente: CRED, vacunas, entrega de hierro (gotas, jarabe o micronutrientes) y dosaje de hemoglobina para descarte de anemi | H8: Indicador: Porcentaje de niñas/niños menores de 12 meses, que reciben un paquete integrado de servicios: CRED, vacunas, dosaje de hemoglobina para descarte de anemia y suplementación con hierro. | I8: Suple: Esquema de suplementacion completa | J8: Cred: Controles de CRED completo para su edad entre los 29 y 364 días | K8: Dosaje: dosaje de hemoglobina entre los 170 y 269 días | L8: Vacuna: Vacunas: 3 dosis de vacuna Anti polio, 3 dosis de vacuna Pentavalente, 2 dosis de vacuna contra Rotavirus, 2 dosis de vacuna contra Neumococo. | O8: AÑO | P8: MES | Q8: Denominador: Niñas/niños menores de 364 días en el periodo de evaluación, con SIS, sin dato de seguro y sin seguro (población MINSA y Gobierno Regional), registrados en el padrón nominal con DNI o CNV, según el ámbito de la jurisdicción determinado por la residencia registrada en el padrón nominal. | R8: Numerador: Niñas/niños del denominador que recibieron paquete integrado de servicios (registrado en el HIS), de acuerdo al esquema vigente: CRED, vacunas, entrega de hierro (gotas, jarabe o micronutrientes) y dosaje de hemoglobina para descarte de anemi | S8: Indicador: Porcentaje de niñas/niños menores de 12 meses, que reciben un paquete integrado de servicios: CRED, vacunas, dosaje de hemoglobina para descarte de anemia y suplementación con hierro. | T8: Suple: Esquema de suplementacion completa | U8: Cred: Controles de CRED completo para su edad entre los 29 y 364 días | V8: Dosaje: dosaje de hemoglobina entre los 170 y 269 días | W8: Vacuna: Vacunas: 3 dosis de vacuna Anti polio, 3 dosis de vacuna Pentavalente, 2 dosis de vacuna contra Rotavirus, 2 dosis de vacuna contra Neumococo. | BV8: mes | BW8: 11 | BZ8: seguro | CA8: MINSA | CR8: seguro | CS8: MINSA
A9: Disa | B9: Prov | C9: RED | D9: Dist | E9: ubigeo | F9: Denominador | G9: Numerador | H9: Indicador | I9: Suma de num_sup | J9: Suma de num_cred | K9: Suma de num_dosaje | L9: Suma de num_vac | O9: anio | P9: mes | Q9: Denominador | R9: Numerador | S9: Indicador | T9: Suma de num_sup | U9: Suma de num_cred | V9: Suma de num_dosaje | W9: Suma de num_vac
A10: CUSCO | B10: LA CONVENCION | C10: KIMBIRI PICHARI | D10: CIELO PUNCO | E10: 80916 | F10: 32 | G10: 25 | H10: 78.1% | I10: 28 | J10: 26 | K10: 31 | L10: 32 | O10: 2025 | P10: 1 | Q10: 1,082 | R10: 368 | S10: 34.0% | T10: 407 | U10: 694 | V10: 1028 | W10: 941 | BV10: Disa | BW10: Suma de IND | BZ10: Suma de IND | CA10: mes | CR10: Suma de IND | CS10: Disa
A11: CUSCO | B11: LA CONVENCION | C11: KIMBIRI PICHARI | D11: KIMBIRI | E11: 80907 | F11: 224 | G11: 125 | H11: 55.8% | I11: 188 | J11: 131 | K11: 207 | L11: 199 | O11: 2025 | P11: 2 | Q11: 1,079 | R11: 419 | S11: 38.8% | T11: 455 | U11: 712 | V11: 1031 | W11: 937 | BV11: AMAZONAS | BW11: 52.7% | BZ11: Disa | CA11: 1 | CB11: 2 | CC11: 3 | CD11: 4 | CE11: 5 | CF11: 6 | CG11: 7 | CH11: 8 | CI11: 9 | CJ11: 10 | CK11: 11 | CR11: mes | CS11: AMAZONAS | CT11: ANCASH | CU11: APURIMAC | CV11: AREQUIPA | CW11: AYACUCHO | CX11: CAJAMARCA | CY11: CALLAO | CZ11: CUSCO | DA11: HUANCAVELICA | DB11: HUANUCO | DC11: ICA | DD11: JUNIN | DE11: LA LIBERTAD | DF11: LAMBAYEQUE | DG11: LIMA DIRIS CENTRO | DH11: LIMA DIRIS ESTE | DI11: LIMA DIRIS NORTE | DJ11: LIMA DIRIS SUR | DK11: LIMA PROVINCIAS | DL11: LORETO | DM11: MADRE DE DIOS | DN11: MOQUEGUA | DO11: PASCO | DP11: PIURA | DQ11: PUNO | DR11: SAN MARTIN | DS11: TACNA | DT11: TUMBES | DU11: UCAYALI | DV11: Total general
A12: CUSCO | B12: LA CONVENCION | C12: KIMBIRI PICHARI | D12: MANITEA | E12: 80917 | F12: 57 | G12: 47 | H12: 82.5% | I12: 52 | J12: 50 | K12: 56 | L12: 55 | O12: 2025 | P12: 3 | Q12: 1,059 | R12: 477 | S12: 45.0% | T12: 526 | U12: 726 | V12: 1015 | W12: 939 | BV12: ANCASH | BW12: 64.3% | BZ12: AMAZONAS | CA12: 33.7% | CB12: 35.0% | CC12: 38.5% | CD12: 41.8% | CE12: 44.0% | CF12: 47.2% | CG12: 48.8% | CH12: 51.4% | CI12: 51.4% | CJ12: 51.9% | CK12: 52.7% | CR12: enero | CS12: 33.7% | CT12: 41.8% | CU12: 42.0% | CV12: 30.3% | CW12: 46.5% | CX12: 36.0% | CY12: 36.3% | CZ12: 37.0% | DA12: 52.2% | DB12: 54.7% | DC12: 30.7% | DD12: 51.9% | DE12: 32.0% | DF12: 41.8% | DG12: 24.9% | DH12: 24.0% | DI12: 25.0% | DJ12: 25.5% | DK12: 38.9% | DL12: 28.0% | DM12: 63.0% | DN12: 31.6% | DO12: 38.0% | DP12: 33.9% | DQ12: 32.1% | DR12: 36.3% | DS12: 34.0% | DT12: 32.7% | DU12: 31.5% | DV12: 35.2%
A13: CUSCO | B13: LA CONVENCION | C13: KIMBIRI PICHARI | D13: PICHARI | E13: 80910 | F13: 514 | G13: 352 | H13: 68.5% | I13: 423 | J13: 406 | K13: 489 | L13: 449 | O13: 2025 | P13: 4 | Q13: 1,079 | R13: 544 | S13: 50.4% | T13: 612 | U13: 778 | V13: 1037 | W13: 968 | BV13: APURIMAC | BW13: 77.6% | BZ13: ANCASH | CA13: 41.8% | CB13: 43.4% | CC13: 46.7% | CD13: 50.0% | CE13: 53.2% | CF13: 57.4% | CG13: 60.1% | CH13: 63.4% | CI13: 64.0% | CJ13: 63.7% | CK13: 64.3% | CR13: febrero | CS13: 35.0% | CT13: 43.4% | CU13: 43.7% | CV13: 30.7% | CW13: 48.0% | CX13: 39.8% | CY13: 38.5% | CZ13: 40.7% | DA13: 55.4% | DB13: 53.1% | DC13: 31.5% | DD13: 54.0% | DE13: 35.0% | DF13: 40.6% | DG13: 27.0% | DH13: 26.3% | DI13: 27.2% | DJ13: 26.8% | DK13: 41.0% | DL13: 30.3% | DM13: 62.7% | DN13: 33.6% | DO13: 40.7% | DP13: 34.4% | DQ13: 32.8% | DR13: 37.1% | DS13: 37.2% | DT13: 36.0% | DU13: 32.5% | DV13: 36.8%
A14: CUSCO | B14: LA CONVENCION | C14: KIMBIRI PICHARI | D14: UNION ASHANINKA | E14: 80918 | F14: 131 | G14: 65 | H14: 49.6% | I14: 89 | J14: 95 | K14: 121 | L14: 110 | O14: 2025 | P14: 5 | Q14: 1,069 | R14: 569 | S14: 53.2% | T14: 662 | U14: 771 | V14: 1025 | W14: 974 | BV14: AREQUIPA | BW14: 49.4% | BZ14: APURIMAC | CA14: 42.0% | CB14: 43.7% | CC14: 46.2% | CD14: 51.4% | CE14: 56.9% | CF14: 61.3% | CG14: 65.9% | CH14: 70.6% | CI14: 73.4% | CJ14: 75.2% | CK14: 77.6% | CR14: Marzo | CS14: 38.5% | CT14: 46.7% | CU14: 46.2% | CV14: 33.2% | CW14: 51.5% | CX14: 45.3% | CY14: 42.8% | CZ14: 45.6% | DA14: 59.2% | DB14: 53.1% | DC14: 35.0% | DD14: 57.3% | DE14: 38.1% | DF14: 41.7% | DG14: 30.9% | DH14: 29.3% | DI14: 29.9% | DJ14: 29.6% | DK14: 44.3% | DL14: 34.9% | DM14: 62.7% | DN14: 36.8% | DO14: 42.8% | DP14: 37.0% | DQ14: 35.2% | DR14: 38.7% | DS14: 43.4% | DT14: 40.0% | DU14: 36.1% | DV14: 39.9%
A15: CUSCO | B15: LA CONVENCION | C15: KIMBIRI PICHARI | D15: VILLA KINTIARINA | E15: 80913 | F15: 40 | G15: 36 | H15: 90.0% | I15: 39 | J15: 36 | K15: 40 | L15: 39 | O15: 2025 | P15: 6 | Q15: 1,078 | R15: 623 | S15: 57.8% | T15: 720 | U15: 814 | V15: 1041 | W15: 985 | BV15: AYACUCHO | BW15: 84.6% | BZ15: AREQUIPA | CA15: 30.3% | CB15: 30.7% | CC15: 33.2% | CD15: 36.4% | CE15: 40.2% | CF15: 43.1% | CG15: 44.9% | CH15: 47.0% | CI15: 47.7% | CJ15: 48.5% | CK15: 49.4% | CR15: Abril | CS15: 41.8% | CT15: 50.0% | CU15: 51.4% | CV15: 36.4% | CW15: 56.6% | CX15: 50.8% | CY15: 47.7% | CZ15: 50.4% | DA15: 64.2% | DB15: 56.1% | DC15: 39.9% | DD15: 60.9% | DE15: 41.8% | DF15: 45.2% | DG15: 32.8% | DH15: 32.0% | DI15: 31.5% | DJ15: 33.0% | DK15: 47.8% | DL15: 38.8% | DM15: 64.6% | DN15: 42.1% | DO15: 46.2% | DP15: 41.5% | DQ15: 37.7% | DR15: 41.6% | DS15: 49.0% | DT15: 47.7% | DU15: 39.0% | DV15: 43.6%
A16: CUSCO | B16: LA CONVENCION | C16: KIMBIRI PICHARI | D16: VILLA VIRGEN | E16: 80912 | F16: 34 | G16: 23 | H16: 67.6% | I16: 26 | J16: 26 | K16: 33 | L16: 33 | O16: 2025 | P16: 7 | Q16: 1,041 | R16: 634 | S16: 60.9% | T16: 751 | U16: 795 | V16: 1003 | W16: 951 | BV16: CAJAMARCA | BW16: 67.1% | BZ16: AYACUCHO | CA16: 46.5% | CB16: 48.0% | CC16: 51.5% | CD16: 56.6% | CE16: 62.2% | CF16: 67.9% | CG16: 73.3% | CH16: 77.7% | CI16: 81.3% | CJ16: 83.5% | CK16: 84.6% | CR16: Mayo | CS16: 44.0% | CT16: 53.2% | CU16: 56.9% | CV16: 40.2% | CW16: 62.2% | CX16: 55.2% | CY16: 51.8% | CZ16: 53.4% | DA16: 67.2% | DB16: 58.8% | DC16: 44.5% | DD16: 63.8% | DE16: 44.6% | DF16: 47.6% | DG16: 33.4% | DH16: 33.3% | DI16: 31.3% | DJ16: 35.7% | DK16: 50.9% | DL16: 40.7% | DM16: 66.3% | DN16: 45.3% | DO16: 51.8% | DP16: 44.6% | DQ16: 39.6% | DR16: 43.0% | DS16: 53.9% | DT16: 54.6% | DU16: 41.2% | DV16: 46.3%
A17: Total general | F17: 1,032 | G17: 673 | H17: 65.2% | I17: 845 | J17: 770 | K17: 977 | L17: 917 | O17: 2025 | P17: 8 | Q17: 1,034 | R17: 666 | S17: 64.4% | T17: 797 | U17: 801 | V17: 988 | W17: 937 | BV17: CALLAO | BW17: 60.2% | BZ17: CAJAMARCA | CA17: 36.0% | CB17: 39.8% | CC17: 45.3% | CD17: 50.8% | CE17: 55.2% | CF17: 60.1% | CG17: 63.3% | CH17: 67.1% | CI17: 67.3% | CJ17: 67.0% | CK17: 67.1% | CR17: Junio | CS17: 47.2% | CT17: 57.4% | CU17: 61.3% | CV17: 43.1% | CW17: 67.9% | CX17: 60.1% | CY17: 54.7% | CZ17: 57.5% | DA17: 71.0% | DB17: 62.7% | DC17: 49.6% | DD17: 66.4% | DE17: 48.3% | DF17: 52.3% | DG17: 34.9% | DH17: 34.2% | DI17: 32.4% | DJ17: 38.8% | DK17: 55.2% | DL17: 42.8% | DM17: 67.1% | DN17: 49.5% | DO17: 56.6% | DP17: 48.5% | DQ17: 40.6% | DR17: 44.2% | DS17: 58.5% | DT17: 60.4% | DU17: 42.9% | DV17: 49.4%
O18: 2025 | P18: 9 | Q18: 1,029 | R18: 673 | S18: 65.4% | T18: 830 | U18: 791 | V18: 981 | W18: 928 | BV18: CUSCO | BW18: 61.9% | BZ18: CALLAO | CA18: 36.3% | CB18: 38.5% | CC18: 42.8% | CD18: 47.7% | CE18: 51.8% | CF18: 54.7% | CG18: 57.3% | CH18: 58.6% | CI18: 59.8% | CJ18: 60.6% | CK18: 60.2% | CR18: Julio | CS18: 48.8% | CT18: 60.1% | CU18: 65.9% | CV18: 44.9% | CW18: 73.3% | CX18: 63.3% | CY18: 57.3% | CZ18: 59.5% | DA18: 73.3% | DB18: 64.6% | DC18: 53.5% | DD18: 68.6% | DE18: 49.7% | DF18: 55.4% | DG18: 34.6% | DH18: 34.6% | DI18: 31.8% | DJ18: 39.9% | DK18: 58.2% | DL18: 42.9% | DM18: 67.2% | DN18: 49.8% | DO18: 59.9% | DP18: 49.8% | DQ18: 41.6% | DR18: 44.3% | DS18: 62.8% | DT18: 63.2% | DU18: 42.4% | DV18: 51.1%
O19: 2025 | P19: 10 | Q19: 1,030 | R19: 665 | S19: 64.6% | T19: 841 | U19: 770 | V19: 975 | W19: 924 | BV19: HUANCAVELICA | BW19: 77.2% | BZ19: CUSCO | CA19: 37.0% | CB19: 40.7% | CC19: 45.6% | CD19: 50.4% | CE19: 53.4% | CF19: 57.5% | CG19: 59.5% | CH19: 62.5% | CI19: 62.2% | CJ19: 61.6% | CK19: 61.9% | CR19: Agosto | CS19: 51.4% | CT19: 63.4% | CU19: 70.6% | CV19: 47.0% | CW19: 77.7% | CX19: 67.1% | CY19: 58.6% | CZ19: 62.5% | DA19: 76.0% | DB19: 67.6% | DC19: 57.3% | DD19: 70.4% | DE19: 51.9% | DF19: 57.4% | DG19: 34.8% | DH19: 35.2% | DI19: 31.7% | DJ19: 42.2% | DK19: 60.8% | DL19: 44.3% | DM19: 67.9% | DN19: 51.6% | DO19: 64.4% | DP19: 52.4% | DQ19: 42.8% | DR19: 45.2% | DS19: 67.3% | DT19: 66.1% | DU19: 42.6% | DV19: 53.2%
O20: 2025 | P20: 11 | Q20: 1,032 | R20: 673 | S20: 65.2% | T20: 845 | U20: 770 | V20: 977 | W20: 917 | BV20: HUANUCO | BW20: 68.8% | BZ20: HUANCAVELICA | CA20: 52.2% | CB20: 55.4% | CC20: 59.2% | CD20: 64.2% | CE20: 67.2% | CF20: 71.0% | CG20: 73.3% | CH20: 76.0% | CI20: 76.4% | CJ20: 75.8% | CK20: 77.2% | CR20: Setiembre | CS20: 51.4% | CT20: 64.0% | CU20: 73.4% | CV20: 47.7% | CW20: 81.3% | CX20: 67.3% | CY20: 59.8% | CZ20: 62.2% | DA20: 76.4% | DB20: 68.4% | DC20: 60.4% | DD20: 70.9% | DE20: 51.8% | DF20: 57.5% | DG20: 33.6% | DH20: 34.0% | DI20: 31.5% | DJ20: 43.1% | DK20: 61.9% | DL20: 45.0% | DM20: 67.6% | DN20: 51.3% | DO20: 66.4% | DP20: 52.6% | DQ20: 44.2% | DR20: 45.3% | DS20: 69.9% | DT20: 63.5% | DU20: 42.2% | DV20: 53.5%
BV21: ICA | BW21: 62.6% | BZ21: HUANUCO | CA21: 54.7% | CB21: 53.1% | CC21: 53.1% | CD21: 56.1% | CE21: 58.8% | CF21: 62.7% | CG21: 64.6% | CH21: 67.6% | CI21: 68.4% | CJ21: 67.9% | CK21: 68.8% | CR21: Octubre | CS21: 51.9% | CT21: 63.7% | CU21: 75.2% | CV21: 48.5% | CW21: 83.5% | CX21: 67.0% | CY21: 60.6% | CZ21: 61.6% | DA21: 75.8% | DB21: 67.9% | DC21: 61.0% | DD21: 70.2% | DE21: 51.4% | DF21: 55.0% | DG21: 33.5% | DH21: 32.4% | DI21: 31.4% | DJ21: 43.1% | DK21: 61.6% | DL21: 45.0% | DM21: 66.5% | DN21: 49.6% | DO21: 64.8% | DP21: 50.7% | DQ21: 44.5% | DR21: 45.6% | DS21: 71.0% | DT21: 62.4% | DU21: 41.6% | DV21: 53.2%
BV22: JUNIN | BW22: 70.7% | BZ22: ICA | CA22: 30.7% | CB22: 31.5% | CC22: 35.0% | CD22: 39.9% | CE22: 44.5% | CF22: 49.6% | CG22: 53.5% | CH22: 57.3% | CI22: 60.4% | CJ22: 61.0% | CK22: 62.6% | CR22: Noviembre | CS22: 52.7% | CT22: 64.3% | CU22: 77.6% | CV22: 49.4% | CW22: 84.6% | CX22: 67.1% | CY22: 60.2% | CZ22: 61.9% | DA22: 77.2% | DB22: 68.8% | DC22: 62.6% | DD22: 70.7% | DE22: 52.1% | DF22: 53.5% | DG22: 33.3% | DH22: 31.5% | DI22: 31.0% | DJ22: 43.3% | DK22: 62.4% | DL22: 44.5% | DM22: 65.9% | DN22: 49.0% | DO22: 65.5% | DP22: 50.4% | DQ22: 45.0% | DR22: 46.4% | DS22: 69.6% | DT22: 60.8% | DU22: 43.1% | DV22: 53.4%
BV23: LA LIBERTAD | BW23: 52.1% | BZ23: JUNIN | CA23: 51.9% | CB23: 54.0% | CC23: 57.3% | CD23: 60.9% | CE23: 63.8% | CF23: 66.4% | CG23: 68.6% | CH23: 70.4% | CI23: 70.9% | CJ23: 70.2% | CK23: 70.7%
BV24: LAMBAYEQUE | BW24: 53.5% | BZ24: LA LIBERTAD | CA24: 32.0% | CB24: 35.0% | CC24: 38.1% | CD24: 41.8% | CE24: 44.6% | CF24: 48.3% | CG24: 49.7% | CH24: 51.9% | CI24: 51.8% | CJ24: 51.4% | CK24: 52.1%
BV25: LIMA DIRIS CENTRO | BW25: 33.3% | BZ25: LAMBAYEQUE | CA25: 41.8% | CB25: 40.6% | CC25: 41.7% | CD25: 45.2% | CE25: 47.6% | CF25: 52.3% | CG25: 55.4% | CH25: 57.4% | CI25: 57.5% | CJ25: 55.0% | CK25: 53.5%
BV26: LIMA DIRIS ESTE | BW26: 31.5% | BZ26: LIMA DIRIS CENTRO | CA26: 24.9% | CB26: 27.0% | CC26: 30.9% | CD26: 32.8% | CE26: 33.4% | CF26: 34.9% | CG26: 34.6% | CH26: 34.8% | CI26: 33.6% | CJ26: 33.5% | CK26: 33.3%
BV27: LIMA DIRIS NORTE | BW27: 31.0% | BZ27: LIMA DIRIS ESTE | CA27: 24.0% | CB27: 26.3% | CC27: 29.3% | CD27: 32.0% | CE27: 33.3% | CF27: 34.2% | CG27: 34.6% | CH27: 35.2% | CI27: 34.0% | CJ27: 32.4% | CK27: 31.5%
BV28: LIMA DIRIS SUR | BW28: 43.3% | BZ28: LIMA DIRIS NORTE | CA28: 25.0% | CB28: 27.2% | CC28: 29.9% | CD28: 31.5% | CE28: 31.3% | CF28: 32.4% | CG28: 31.8% | CH28: 31.7% | CI28: 31.5% | CJ28: 31.4% | CK28: 31.0% | CS28: AMAZONAS | CT28: ANCASH | CU28: APURIMAC | CV28: AREQUIPA | CW28: AYACUCHO | CX28: CAJAMARCA | CY28: CALLAO | CZ28: CUSCO | DA28: HUANCAVELICA | DB28: HUANUCO | DC28: ICA | DD28: JUNIN | DE28: LA LIBERTAD | DF28: LAMBAYEQUE | DG28: LIMA DIRIS CENTRO | DH28: LIMA DIRIS ESTE | DI28: LIMA DIRIS NORTE | DJ28: LIMA DIRIS SUR | DK28: LIMA PROVINCIAS | DL28: LORETO | DM28: MADRE DE DIOS | DN28: MOQUEGUA | DO28: PASCO | DP28: PIURA | DQ28: PUNO | DR28: SAN MARTIN | DS28: TACNA | DT28: TUMBES | DU28: UCAYALI | DV28: NACIONAL
BV29: LIMA PROVINCIAS | BW29: 62.4% | BZ29: LIMA DIRIS SUR | CA29: 25.5% | CB29: 26.8% | CC29: 29.6% | CD29: 33.0% | CE29: 35.7% | CF29: 38.8% | CG29: 39.9% | CH29: 42.2% | CI29: 43.1% | CJ29: 43.1% | CK29: 43.3% | CR29: Enero | CS29: =+IFERROR(GETPIVOTDATA("IND",$CR$10,"Disa",CS$28,"mes",$CR29),"-") -> 33.7% | CT29: =+IFERROR(GETPIVOTDATA("IND",$CR$10,"Disa",CT$28,"mes",$CR29),"-") -> 41.8% | CU29: 42.0% | CV29: 30.3% | CW29: 46.5% | CX29: 36.0% | CY29: 36.3% | CZ29: 37.0% | DA29: 52.2% | DB29: 54.7% | DC29: 30.7% | DD29: 51.9% | DE29: 32.0% | DF29: 41.8% | DG29: 24.9% | DH29: 24.0% | DI29: 25.0% | DJ29: 25.5% | DK29: 38.9% | DL29: 28.0% | DM29: 63.0% | DN29: 31.6% | DO29: 38.0% | DP29: 33.9% | DQ29: 32.1% | DR29: 36.3% | DS29: 34.0% | DT29: 32.7% | DU29: 31.5% | DV29: =+IFERROR(GETPIVOTDATA("IND",$CR$10,"mes",$CR29),"-") -> 35.2%
BV30: LORETO | BW30: 44.5% | BZ30: LIMA PROVINCIAS | CA30: 38.9% | CB30: 41.0% | CC30: 44.3% | CD30: 47.8% | CE30: 50.9% | CF30: 55.2% | CG30: 58.2% | CH30: 60.8% | CI30: 61.9% | CJ30: 61.6% | CK30: 62.4% | CR30: Febrero | CS30: =+IFERROR(GETPIVOTDATA("IND",$CR$10,"Disa",CS$28,"mes",$CR30),"-") -> 35.0% | CT30: 43.4% | CU30: 43.7% | CV30: 30.7% | CW30: 48.0% | CX30: 39.8% | CY30: 38.5% | CZ30: 40.7% | DA30: 55.4% | DB30: 53.1% | DC30: 31.5% | DD30: 54.0% | DE30: 35.0% | DF30: 40.6% | DG30: 27.0% | DH30: 26.3% | DI30: 27.2% | DJ30: 26.8% | DK30: 41.0% | DL30: 30.3% | DM30: 62.7% | DN30: 33.6% | DO30: 40.7% | DP30: 34.4% | DQ30: 32.8% | DR30: 37.1% | DS30: 37.2% | DT30: 36.0% | DU30: 32.5% | DV30: =+IFERROR(GETPIVOTDATA("IND",$CR$10,"mes",$CR30),"-") -> 36.8%
BV31: MADRE DE DIOS | BW31: 65.9% | BZ31: LORETO | CA31: 28.0% | CB31: 30.3% | CC31: 34.9% | CD31: 38.8% | CE31: 40.7% | CF31: 42.8% | CG31: 42.9% | CH31: 44.3% | CI31: 45.0% | CJ31: 45.0% | CK31: 44.5% | CR31: Marzo | CS31: 38.5% | CT31: 46.7% | CU31: 46.2% | CV31: 33.2% | CW31: 51.5% | CX31: 45.3% | CY31: 42.8% | CZ31: 45.6% | DA31: 59.2% | DB31: 53.1% | DC31: 35.0% | DD31: 57.3% | DE31: 38.1% | DF31: 41.7% | DG31: 30.9% | DH31: 29.3% | DI31: 29.9% | DJ31: 29.6% | DK31: 44.3% | DL31: 34.9% | DM31: 62.7% | DN31: 36.8% | DO31: 42.8% | DP31: 37.0% | DQ31: 35.2% | DR31: 38.7% | DS31: 43.4% | DT31: 40.0% | DU31: 36.1% | DV31: 39.9%
BV32: MOQUEGUA | BW32: 49.0% | BZ32: MADRE DE DIOS | CA32: 63.0% | CB32: 62.7% | CC32: 62.7% | CD32: 64.6% | CE32: 66.3% | CF32: 67.1% | CG32: 67.2% | CH32: 67.9% | CI32: 67.6% | CJ32: 66.5% | CK32: 65.9% | CR32: Abril | CS32: 41.8% | CT32: 50.0% | CU32: 51.4% | CV32: 36.4% | CW32: 56.6% | CX32: 50.8% | CY32: 47.7% | CZ32: 50.4% | DA32: 64.2% | DB32: 56.1% | DC32: 39.9% | DD32: 60.9% | DE32: 41.8% | DF32: 45.2% | DG32: 32.8% | DH32: 32.0% | DI32: 31.5% | DJ32: 33.0% | DK32: 47.8% | DL32: 38.8% | DM32: 64.6% | DN32: 42.1% | DO32: 46.2% | DP32: 41.5% | DQ32: 37.7% | DR32: 41.6% | DS32: 49.0% | DT32: 47.7% | DU32: 39.0% | DV32: 43.6%
BV33: PASCO | BW33: 65.5% | BZ33: MOQUEGUA | CA33: 31.6% | CB33: 33.6% | CC33: 36.8% | CD33: 42.1% | CE33: 45.3% | CF33: 49.5% | CG33: 49.8% | CH33: 51.6% | CI33: 51.3% | CJ33: 49.6% | CK33: 49.0% | CR33: Mayo | CS33: 44.0% | CT33: 53.2% | CU33: 56.9% | CV33: 40.2% | CW33: 62.2% | CX33: 55.2% | CY33: 51.8% | CZ33: 53.4% | DA33: 67.2% | DB33: 58.8% | DC33: 44.5% | DD33: 63.8% | DE33: 44.6% | DF33: 47.6% | DG33: 33.4% | DH33: 33.3% | DI33: 31.3% | DJ33: 35.7% | DK33: 50.9% | DL33: 40.7% | DM33: 66.3% | DN33: 45.3% | DO33: 51.8% | DP33: 44.6% | DQ33: 39.6% | DR33: 43.0% | DS33: 53.9% | DT33: 54.6% | DU33: 41.2% | DV33: 46.3%
BV34: PIURA | BW34: 50.4% | BZ34: PASCO | CA34: 38.0% | CB34: 40.7% | CC34: 42.8% | CD34: 46.2% | CE34: 51.8% | CF34: 56.6% | CG34: 59.9% | CH34: 64.4% | CI34: 66.4% | CJ34: 64.8% | CK34: 65.5% | CR34: Junio | CS34: 47.2% | CT34: 57.4% | CU34: 61.3% | CV34: 43.1% | CW34: 67.9% | CX34: 60.1% | CY34: 54.7% | CZ34: 57.5% | DA34: 71.0% | DB34: 62.7% | DC34: 49.6% | DD34: 66.4% | DE34: 48.3% | DF34: 52.3% | DG34: 34.9% | DH34: 34.2% | DI34: 32.4% | DJ34: 38.8% | DK34: 55.2% | DL34: 42.8% | DM34: 67.1% | DN34: 49.5% | DO34: 56.6% | DP34: 48.5% | DQ34: 40.6% | DR34: 44.2% | DS34: 58.5% | DT34: 60.4% | DU34: 42.9% | DV34: 49.4%
BV35: PUNO | BW35: 45.0% | BZ35: PIURA | CA35: 33.9% | CB35: 34.4% | CC35: 37.0% | CD35: 41.5% | CE35: 44.6% | CF35: 48.5% | CG35: 49.8% | CH35: 52.4% | CI35: 52.6% | CJ35: 50.7% | CK35: 50.4% | CR35: Julio | CS35: 48.8% | CT35: 60.1% | CU35: 65.9% | CV35: 44.9% | CW35: 73.3% | CX35: 63.3% | CY35: 57.3% | CZ35: 59.5% | DA35: 73.3% | DB35: 64.6% | DC35: 53.5% | DD35: 68.6% | DE35: 49.7% | DF35: 55.4% | DG35: 34.6% | DH35: 34.6% | DI35: 31.8% | DJ35: 39.9% | DK35: 58.2% | DL35: 42.9% | DM35: 67.2% | DN35: 49.8% | DO35: 59.9% | DP35: 49.8% | DQ35: 41.6% | DR35: 44.3% | DS35: 62.8% | DT35: 63.2% | DU35: 42.4% | DV35: 51.1%
BV36: SAN MARTIN | BW36: 46.4% | BZ36: PUNO | CA36: 32.1% | CB36: 32.8% | CC36: 35.2% | CD36: 37.7% | CE36: 39.6% | CF36: 40.6% | CG36: 41.6% | CH36: 42.8% | CI36: 44.2% | CJ36: 44.5% | CK36: 45.0% | CR36: Agosto | CS36: 51.4% | CT36: 63.4% | CU36: 70.6% | CV36: 47.0% | CW36: 77.7% | CX36: 67.1% | CY36: 58.6% | CZ36: 62.5% | DA36: 76.0% | DB36: 67.6% | DC36: 57.3% | DD36: 70.4% | DE36: 51.9% | DF36: 57.4% | DG36: 34.8% | DH36: 35.2% | DI36: 31.7% | DJ36: 42.2% | DK36: 60.8% | DL36: 44.3% | DM36: 67.9% | DN36: 51.6% | DO36: 64.4% | DP36: 52.4% | DQ36: 42.8% | DR36: 45.2% | DS36: 67.3% | DT36: 66.1% | DU36: 42.6% | DV36: 53.2%
BV37: TACNA | BW37: 69.6% | BZ37: SAN MARTIN | CA37: 36.3% | CB37: 37.1% | CC37: 38.7% | CD37: 41.6% | CE37: 43.0% | CF37: 44.2% | CG37: 44.3% | CH37: 45.2% | CI37: 45.3% | CJ37: 45.6% | CK37: 46.4% | CR37: Setiembre | CS37: 51.4% | CT37: 64.0% | CU37: 73.4% | CV37: 47.7% | CW37: 81.3% | CX37: 67.3% | CY37: 59.8% | CZ37: 62.2% | DA37: 76.4% | DB37: 68.4% | DC37: 60.4% | DD37: 70.9% | DE37: 51.8% | DF37: 57.5% | DG37: 33.6% | DH37: 34.0% | DI37: 31.5% | DJ37: 43.1% | DK37: 61.9% | DL37: 45.0% | DM37: 67.6% | DN37: 51.3% | DO37: 66.4% | DP37: 52.6% | DQ37: 44.2% | DR37: 45.3% | DS37: 69.9% | DT37: 63.5% | DU37: 42.2% | DV37: 53.5%
BV38: TUMBES | BW38: 60.8% | BZ38: TACNA | CA38: 34.0% | CB38: 37.2% | CC38: 43.4% | CD38: 49.0% | CE38: 53.9% | CF38: 58.5% | CG38: 62.8% | CH38: 67.3% | CI38: 69.9% | CJ38: 71.0% | CK38: 69.6% | CR38: Octubre | CS38: 51.9% | CT38: 63.7% | CU38: 75.2% | CV38: 48.5% | CW38: =+IFERROR(GETPIVOTDATA("IND",$CR$10,"Disa",CW$28,"mes",$CR38),"-") -> 83.5% | CX38: 67.0% | CY38: 60.6% | CZ38: 61.6% | DA38: 75.8% | DB38: 67.9% | DC38: 61.0% | DD38: 70.2% | DE38: 51.4% | DF38: 55.0% | DG38: 33.5% | DH38: 32.4% | DI38: 31.4% | DJ38: 43.1% | DK38: 61.6% | DL38: 45.0% | DM38: =+IFERROR(GETPIVOTDATA("IND",$CR$10,"Disa",DM$28,"mes",$CR38),"-") -> 66.5% | DN38: 49.6% | DO38: 64.8% | DP38: 50.7% | DQ38: 44.5% | DR38: 45.6% | DS38: 71.0% | DT38: 62.4% | DU38: 41.6% | DV38: 53.2%
BV39: UCAYALI | BW39: 43.1% | BZ39: TUMBES | CA39: 32.7% | CB39: 36.0% | CC39: 40.0% | CD39: 47.7% | CE39: 54.6% | CF39: 60.4% | CG39: 63.2% | CH39: 66.1% | CI39: 63.5% | CJ39: 62.4% | CK39: 60.8% | CR39: Noviembre | CS39: 52.7% | CT39: 64.3% | CU39: 77.6% | CV39: 49.4% | CW39: 84.6% | CX39: 67.1% | CY39: 60.2% | CZ39: 61.9% | DA39: 77.2% | DB39: 68.8% | DC39: 62.6% | DD39: 70.7% | DE39: 52.1% | DF39: 53.5% | DG39: 33.3% | DH39: 31.5% | DI39: 31.0% | DJ39: 43.3% | DK39: 62.4% | DL39: 44.5% | DM39: 65.9% | DN39: 49.0% | DO39: 65.5% | DP39: 50.4% | DQ39: 45.0% | DR39: 46.4% | DS39: 69.6% | DT39: 60.8% | DU39: 43.1% | DV39: 53.4%
BV40: Total general | BW40: 53.4% | BZ40: UCAYALI | CA40: 31.5% | CB40: 32.5% | CC40: 36.1% | CD40: 39.0% | CE40: 41.2% | CF40: 42.9% | CG40: 42.4% | CH40: 42.6% | CI40: 42.2% | CJ40: 41.6% | CK40: 43.1% | CR40: Diciembre | CS40: - | CT40: - | CU40: - | CV40: - | CW40: - | CX40: - | CY40: - | CZ40: - | DA40: - | DB40: - | DC40: - | DD40: - | DE40: - | DF40: - | DG40: - | DH40: - | DI40: - | DJ40: - | DK40: - | DL40: - | DM40: - | DN40: - | DO40: - | DP40: - | DQ40: - | DR40: - | DS40: - | DT40: - | DU40: - | DV40: -
BZ41: Total general | CA41: 35.2% | CB41: 36.8% | CC41: 39.9% | CD41: 43.6% | CE41: 46.3% | CF41: 49.4% | CG41: 51.1% | CH41: 53.2% | CI41: 53.5% | CJ41: 53.2% | CK41: 53.4%
CA61: 1 | CB61: 2 | CC61: 3 | CD61: 4 | CE61: 5 | CF61: 6 | CG61: 7 | CH61: 8 | CI61: 9 | CJ61: 10 | CK61: 11 | CL61: 12 | CO61: MIN | CP61: MAX
BV62: AMAZONAS | BW62: =+IFERROR(GETPIVOTDATA("IND",$BV$10,"Disa",$BV62),"-") -> 52.7% | BZ62: AMAZONAS | CA62: =IFERROR(GETPIVOTDATA("Ind",$BZ$10,"Disa",$BZ62,"mes",CA$61),"-") -> 33.7% | CB62: =IFERROR(GETPIVOTDATA("Ind",$BZ$10,"Disa",$BZ62,"mes",CB$61),"-") -> 35.0% | CC62: 38.5% | CD62: 41.8% | CE62: 44.0% | CF62: 47.2% | CG62: 48.8% | CH62: 51.4% | CI62: 51.4% | CJ62: 51.9% | CK62: 52.7% | CL62: - | CN62: AMAZONAS | CO62: =+IF(CA62="-","-",MIN(CA62:CL62)) -> 33.7% | CP62: =+IF(CA62="-","-",MAX(CA62:CL62)) -> 52.7%
BV63: ANCASH | BW63: =+IFERROR(GETPIVOTDATA("IND",$BV$10,"Disa",$BV63),"-") -> 64.3% | BZ63: ANCASH | CA63: =IFERROR(GETPIVOTDATA("Ind",$BZ$10,"Disa",$BZ63,"mes",CA$61),"-") -> 41.8% | CB63: 43.4% | CC63: 46.7% | CD63: 50.0% | CE63: 53.2% | CF63: 57.4% | CG63: 60.1% | CH63: 63.4% | CI63: 64.0% | CJ63: 63.7% | CK63: 64.3% | CL63: - | CN63: ANCASH | CO63: 41.8% | CP63: =+IF(CA63="-","-",MAX(CA63:CL63)) -> 64.3%
BV64: APURIMAC | BW64: 77.6% | BZ64: APURIMAC | CA64: 42.0% | CB64: 43.7% | CC64: 46.2% | CD64: 51.4% | CE64: 56.9% | CF64: 61.3% | CG64: 65.9% | CH64: 70.6% | CI64: 73.4% | CJ64: 75.2% | CK64: 77.6% | CL64: - | CN64: APURIMAC | CO64: 42.0% | CP64: 77.6%
BV65: AREQUIPA | BW65: 49.4% | BZ65: AREQUIPA | CA65: 30.3% | CB65: 30.7% | CC65: 33.2% | CD65: 36.4% | CE65: 40.2% | CF65: 43.1% | CG65: 44.9% | CH65: 47.0% | CI65: 47.7% | CJ65: 48.5% | CK65: 49.4% | CL65: - | CN65: AREQUIPA | CO65: 30.3% | CP65: 49.4%
BV66: AYACUCHO | BW66: 84.6% | BZ66: AYACUCHO | CA66: 46.5% | CB66: 48.0% | CC66: 51.5% | CD66: 56.6% | CE66: 62.2% | CF66: 67.9% | CG66: 73.3% | CH66: 77.7% | CI66: 81.3% | CJ66: 83.5% | CK66: 84.6% | CL66: - | CN66: AYACUCHO | CO66: 46.5% | CP66: 84.6%
BV67: CAJAMARCA | BW67: 67.1% | BZ67: CAJAMARCA | CA67: 36.0% | CB67: 39.8% | CC67: 45.3% | CD67: 50.8% | CE67: 55.2% | CF67: 60.1% | CG67: 63.3% | CH67: 67.1% | CI67: 67.3% | CJ67: 67.0% | CK67: 67.1% | CL67: - | CN67: CAJAMARCA | CO67: 36.0% | CP67: 67.3%
BV68: CALLAO | BW68: 60.2% | BZ68: CALLAO | CA68: 36.3% | CB68: 38.5% | CC68: 42.8% | CD68: 47.7% | CE68: 51.8% | CF68: 54.7% | CG68: 57.3% | CH68: 58.6% | CI68: 59.8% | CJ68: 60.6% | CK68: 60.2% | CL68: - | CN68: CALLAO | CO68: 36.3% | CP68: 60.6%
BV69: CUSCO | BW69: 61.9% | BZ69: CUSCO | CA69: 37.0% | CB69: 40.7% | CC69: 45.6% | CD69: 50.4% | CE69: 53.4% | CF69: 57.5% | CG69: 59.5% | CH69: 62.5% | CI69: 62.2% | CJ69: 61.6% | CK69: 61.9% | CL69: - | CN69: CUSCO | CO69: 37.0% | CP69: 62.5%
BV70: HUANCAVELICA | BW70: 77.2% | BZ70: HUANCAVELICA | CA70: 52.2% | CB70: 55.4% | CC70: 59.2% | CD70: 64.2% | CE70: 67.2% | CF70: 71.0% | CG70: 73.3% | CH70: 76.0% | CI70: 76.4% | CJ70: 75.8% | CK70: 77.2% | CL70: - | CN70: HUANCAVELICA | CO70: 52.2% | CP70: 77.2%
BV71: HUANUCO | BW71: 68.8% | BZ71: HUANUCO | CA71: 54.7% | CB71: 53.1% | CC71: 53.1% | CD71: 56.1% | CE71: 58.8% | CF71: 62.7% | CG71: 64.6% | CH71: 67.6% | CI71: 68.4% | CJ71: 67.9% | CK71: 68.8% | CL71: - | CN71: HUANUCO | CO71: 53.1% | CP71: 68.8%
BV72: ICA | BW72: 62.6% | BZ72: ICA | CA72: 30.7% | CB72: 31.5% | CC72: 35.0% | CD72: 39.9% | CE72: 44.5% | CF72: 49.6% | CG72: 53.5% | CH72: 57.3% | CI72: 60.4% | CJ72: 61.0% | CK72: 62.6% | CL72: - | CN72: ICA | CO72: 30.7% | CP72: 62.6%
BV73: JUNIN | BW73: 70.7% | BZ73: JUNIN | CA73: 51.9% | CB73: 54.0% | CC73: 57.3% | CD73: 60.9% | CE73: 63.8% | CF73: 66.4% | CG73: 68.6% | CH73: 70.4% | CI73: 70.9% | CJ73: 70.2% | CK73: 70.7% | CL73: - | CN73: JUNIN | CO73: 51.9% | CP73: 70.9%
BV74: LA LIBERTAD | BW74: 52.1% | BZ74: LA LIBERTAD | CA74: 32.0% | CB74: 35.0% | CC74: 38.1% | CD74: 41.8% | CE74: 44.6% | CF74: 48.3% | CG74: 49.7% | CH74: 51.9% | CI74: 51.8% | CJ74: 51.4% | CK74: 52.1% | CL74: - | CN74: LA LIBERTAD | CO74: 32.0% | CP74: 52.1%
BV75: LAMBAYEQUE | BW75: 53.5% | BZ75: LAMBAYEQUE | CA75: 41.8% | CB75: 40.6% | CC75: 41.7% | CD75: 45.2% | CE75: 47.6% | CF75: 52.3% | CG75: 55.4% | CH75: 57.4% | CI75: 57.5% | CJ75: 55.0% | CK75: 53.5% | CL75: - | CN75: LAMBAYEQUE | CO75: =+IF(CA75="-","-",MIN(CA75:CL75)) -> 40.6% | CP75: 57.5%
BV76: LIMA DIRIS CENTRO | BW76: 33.3% | BZ76: LIMA DIRIS CENTRO | CA76: 24.9% | CB76: 27.0% | CC76: 30.9% | CD76: 32.8% | CE76: 33.4% | CF76: 34.9% | CG76: 34.6% | CH76: 34.8% | CI76: 33.6% | CJ76: 33.5% | CK76: 33.3% | CL76: - | CN76: LIMA DIRIS CENTRO | CO76: 24.9% | CP76: 34.9%
BV77: LIMA DIRIS ESTE | BW77: 31.5% | BZ77: LIMA DIRIS ESTE | CA77: 24.0% | CB77: 26.3% | CC77: 29.3% | CD77: 32.0% | CE77: 33.3% | CF77: 34.2% | CG77: 34.6% | CH77: 35.2% | CI77: 34.0% | CJ77: 32.4% | CK77: 31.5% | CL77: - | CN77: LIMA DIRIS ESTE | CO77: 24.0% | CP77: 35.2%
BV78: LIMA DIRIS NORTE | BW78: 31.0% | BZ78: LIMA DIRIS NORTE | CA78: 25.0% | CB78: 27.2% | CC78: 29.9% | CD78: 31.5% | CE78: 31.3% | CF78: 32.4% | CG78: 31.8% | CH78: 31.7% | CI78: 31.5% | CJ78: 31.4% | CK78: 31.0% | CL78: - | CN78: LIMA DIRIS NORTE | CO78: 25.0% | CP78: 32.4%
BV79: LIMA DIRIS SUR | BW79: 43.3% | BZ79: LIMA DIRIS SUR | CA79: =IFERROR(GETPIVOTDATA("Ind",$BZ$10,"Disa",$BZ79,"mes",CA$61),"-") -> 25.5% | CB79: 26.8% | CC79: 29.6% | CD79: 33.0% | CE79: 35.7% | CF79: 38.8% | CG79: 39.9% | CH79: 42.2% | CI79: 43.1% | CJ79: 43.1% | CK79: 43.3% | CL79: - | CN79: LIMA DIRIS SUR | CO79: 25.5% | CP79: 43.3%
BV80: LIMA PROVINCIAS | BW80: 62.4% | BZ80: LIMA PROVINCIAS | CA80: 38.9% | CB80: 41.0% | CC80: 44.3% | CD80: 47.8% | CE80: 50.9% | CF80: 55.2% | CG80: 58.2% | CH80: 60.8% | CI80: 61.9% | CJ80: 61.6% | CK80: 62.4% | CL80: - | CN80: LIMA PROVINCIAS | CO80: 38.9% | CP80: 62.4%
BV81: LORETO | BW81: 44.5% | BZ81: LORETO | CA81: 28.0% | CB81: 30.3% | CC81: 34.9% | CD81: 38.8% | CE81: 40.7% | CF81: 42.8% | CG81: 42.9% | CH81: 44.3% | CI81: 45.0% | CJ81: 45.0% | CK81: 44.5% | CL81: - | CN81: LORETO | CO81: 28.0% | CP81: 45.0%
BV82: MADRE DE DIOS | BW82: 65.9% | BZ82: MADRE DE DIOS | CA82: 63.0% | CB82: 62.7% | CC82: 62.7% | CD82: 64.6% | CE82: 66.3% | CF82: 67.1% | CG82: 67.2% | CH82: 67.9% | CI82: 67.6% | CJ82: 66.5% | CK82: 65.9% | CL82: - | CN82: MADRE DE DIOS | CO82: 62.7% | CP82: 67.9%
BV83: MOQUEGUA | BW83: 49.0% | BZ83: MOQUEGUA | CA83: 31.6% | CB83: 33.6% | CC83: 36.8% | CD83: 42.1% | CE83: 45.3% | CF83: 49.5% | CG83: 49.8% | CH83: 51.6% | CI83: 51.3% | CJ83: 49.6% | CK83: 49.0% | CL83: - | CN83: MOQUEGUA | CO83: 31.6% | CP83: 51.6%
BV84: PASCO | BW84: 65.5% | BZ84: PASCO | CA84: 38.0% | CB84: 40.7% | CC84: 42.8% | CD84: 46.2% | CE84: 51.8% | CF84: 56.6% | CG84: 59.9% | CH84: 64.4% | CI84: 66.4% | CJ84: 64.8% | CK84: 65.5% | CL84: - | CN84: PASCO | CO84: 38.0% | CP84: 66.4%
BV85: PIURA | BW85: 50.4% | BZ85: PIURA | CA85: 33.9% | CB85: 34.4% | CC85: 37.0% | CD85: 41.5% | CE85: 44.6% | CF85: 48.5% | CG85: 49.8% | CH85: 52.4% | CI85: 52.6% | CJ85: 50.7% | CK85: 50.4% | CL85: - | CN85: PIURA | CO85: 33.9% | CP85: 52.6%
BV86: PUNO | BW86: 45.0% | BZ86: PUNO | CA86: 32.1% | CB86: 32.8% | CC86: 35.2% | CD86: 37.7% | CE86: 39.6% | CF86: 40.6% | CG86: 41.6% | CH86: 42.8% | CI86: 44.2% | CJ86: 44.5% | CK86: 45.0% | CL86: - | CN86: PUNO | CO86: 32.1% | CP86: 45.0%
BV87: SAN MARTIN | BW87: 46.4% | BZ87: SAN MARTIN | CA87: 36.3% | CB87: 37.1% | CC87: 38.7% | CD87: 41.6% | CE87: 43.0% | CF87: 44.2% | CG87: 44.3% | CH87: 45.2% | CI87: 45.3% | CJ87: 45.6% | CK87: 46.4% | CL87: - | CN87: SAN MARTIN | CO87: 36.3% | CP87: 46.4%
BV88: TACNA | BW88: 69.6% | BZ88: TACNA | CA88: 34.0% | CB88: 37.2% | CC88: 43.4% | CD88: 49.0% | CE88: 53.9% | CF88: 58.5% | CG88: 62.8% | CH88: 67.3% | CI88: 69.9% | CJ88: 71.0% | CK88: 69.6% | CL88: - | CN88: TACNA | CO88: 34.0% | CP88: 71.0%
BV89: TUMBES | BW89: 60.8% | BZ89: TUMBES | CA89: 32.7% | CB89: 36.0% | CC89: 40.0% | CD89: 47.7% | CE89: 54.6% | CF89: 60.4% | CG89: 63.2% | CH89: 66.1% | CI89: 63.5% | CJ89: 62.4% | CK89: 60.8% | CL89: - | CN89: TUMBES | CO89: 32.7% | CP89: 66.1%
BV90: UCAYALI | BW90: 43.1% | BZ90: UCAYALI | CA90: 31.5% | CB90: 32.5% | CC90: 36.1% | CD90: 39.0% | CE90: 41.2% | CF90: 42.9% | CG90: 42.4% | CH90: 42.6% | CI90: 42.2% | CJ90: 41.6% | CK90: 43.1% | CL90: - | CN90: UCAYALI | CO90: 31.5% | CP90: 43.1%
BV91: NACIONAL | BW91: =+IFERROR(GETPIVOTDATA("IND",$BV$25),"-") -> 53.4% | BZ91: NACIONAL | CA91: =IFERROR(GETPIVOTDATA("Ind",$BZ$10,"mes",CA$61),"-") -> 35.2% | CB91: =IFERROR(GETPIVOTDATA("Ind",$BZ$10,"mes",CB$61),"-") -> 36.8% | CC91: 39.9% | CD91: 43.6% | CE91: 46.3% | CF91: 49.4% | CG91: 51.1% | CH91: 53.2% | CI91: 53.5% | CJ91: 53.2% | CK91: 53.4% | CL91: - | CN91: NACIONAL | CO91: 35.2% | CP91: 53.5%

Sheet DL_1153_2025_CG03
A1: =+DL1153_2025!C9 -> Ficha 03: Porcentaje de niños y niñas de 6 a 35 meses con diagnóstico de anemia del Total de los casos esperados de anemia | BK1: 1 | DN1: 1
A2: Periodo de Evaluación: | B2: =+DL1153_2025!B42 -> Noviembre - 2025
M4: DESC_DPTO | N4: CUSCO
M5: DESC_PROV | N5: LA CONVENCION
A6: Año | B6: 2025 | M6: RED | N6: KIMBIRI PICHARI
A7: Mes | B7: 11 | M7: DESC_DIST | N7: (Todas)
A8: DEPARTAMENTO | B8: Provincia | C8: Distrito | D8: RED | E8: Denominador: Casos de anemia esperados en Niñas/niños de 6 a 35 meses de edad (6 a 11 meses, 12 a 23 meses, 24 a 35 meses), según la prevalencia de anemia en niños de la misma edad, según la ENDES del año anterior | F8: Numerador: Niñas/niños con el primer diagnóstico definitivo de anemia (CIE-X: D509 o D64.9) entre los 6 a 35 meses de edad (6 a 11 meses, 12 a 23 meses, 24 a 35 meses), dosaje definitivo de hemoglobina CPMS: 85018 o 85018.01 hasta 7 días a partir del diagnóstico e inicio de tratamiento oportuno CPMS: 99199.17 | G8: Indicador: Porcentaje de niños y niñas de 6 a 35 meses con diagnóstico de anemia del Total de los casos esperados de anemia. | H8: Dosaje de Hemoglobina | I8: Diagnostico de Anemia | J8: Tratamiento de anemia | M8: MES | N8: Denominador: Casos de anemia esperados en Niñas/niños de 6 a 35 meses de edad (6 a 11 meses, 12 a 23 meses, 24 a 35 meses), según la prevalencia de anemia en niños de la misma edad, según la ENDES del año anterior | O8: Numerador: Niñas/niños con el primer diagnóstico definitivo de anemia (CIE-X: D509 o D64.9) entre los 6 a 35 meses de edad (6 a 11 meses, 12 a 23 meses, 24 a 35 meses), dosaje definitivo de hemoglobina CPMS: 85018 o 85018.01 hasta 7 días a partir del diagnóstico e inicio de tratamiento oportuno CPMS: 99199.17 | P8: Indicador: Porcentaje de niños y niñas de 6 a 35 meses con diagnóstico de anemia del Total de los casos esperados de anemia. | Q8: Dosaje de Hemoglobina | R8: Diagnostico de Anemia | S8: Tratamiento de anemia
A9: DESC_DPTO | B9: DESC_PROV | C9: RED | D9: DESC_DIST | E9: Den | F9: Num | G9: Ind | H9: Suma de Valor_Numerador_Dosaje_Hb | I9: Suma de Valor_Numerador_Dx_Anemia | J9: Suma de Valor_Numerador_Tratamiento | M9: Mes | N9: Den | O9: Num | P9: Ind | Q9: Suma de Valor_Numerador_Dosaje_Hb | R9: Suma de Valor_Numerador_Dx_Anemia | S9: Suma de Valor_Numerador_Tratamiento
A10: CUSCO | B10: LA CONVENCION | C10: KIMBIRI PICHARI | D10: CIELO PUNCO | E10: 4 | F10: 0 | G10: 0.0% | H10: 0 | I10: 0 | J10: 0 | M10: 1 | N10: 168 | O10: 50 | P10: 29.8% | Q10: 50 | R10: 54 | S10: 50 | BL10: Año | BM10: (Todas) | BP10: Año | BQ10: (Todas)
A11: CUSCO | B11: LA CONVENCION | C11: KIMBIRI PICHARI | D11: KIMBIRI | E11: 35 | F11: 8 | G11: 22.9% | H11: 8 | I11: 10 | J11: 8 | M11: 2 | N11: 177 | O11: 73 | P11: 41.2% | Q11: 73 | R11: 80 | S11: 75
A12: CUSCO | B12: LA CONVENCION | C12: KIMBIRI PICHARI | D12: MANITEA | E12: 7 | F12: 2 | G12: 28.6% | H12: 2 | I12: 3 | J12: 2 | M12: 3 | N12: 193 | O12: 61 | P12: 31.6% | Q12: 61 | R12: 62 | S12: 61 | BL12: DESC_DPTO | BM12: Suma de Ind | BP12: Suma de Ind | BQ12: Mes
A13: CUSCO | B13: LA CONVENCION | C13: KIMBIRI PICHARI | D13: PICHARI | E13: 70 | F13: 18 | G13: 25.7% | H13: 18 | I13: 19 | J13: 19 | M13: 4 | N13: 150 | O13: 49 | P13: 32.7% | Q13: 49 | R13: 53 | S13: 51 | BL13: AMAZONAS | BM13: 22.0% | BP13: DESC_DPTO | BQ13: 1 | BR13: 2 | BS13: 3 | BT13: 4 | BU13: 5 | BV13: 6 | BW13: 7 | BX13: 8 | BY13: 9 | BZ13: 10 | CA13: 11
A14: CUSCO | B14: LA CONVENCION | C14: KIMBIRI PICHARI | D14: UNION ASHANINKA | E14: 17 | F14: 4 | G14: 23.5% | H14: 4 | I14: 4 | J14: 4 | M14: 5 | N14: 170 | O14: 42 | P14: 24.7% | Q14: 42 | R14: 47 | S14: 43 | BL14: ANCASH | BM14: 45.0% | BP14: AMAZONAS | BQ14: 25.5% | BR14: 23.1% | BS14: 25.4% | BT14: 22.2% | BU14: 24.3% | BV14: 18.1% | BW14: 21.5% | BX14: 20.1% | BY14: 19.8% | BZ14: 20.6% | CA14: 20.7% | CH14: Año | CI14: (Todas)
A15: CUSCO | B15: LA CONVENCION | C15: KIMBIRI PICHARI | D15: VILLA VIRGEN | E15: 4 | F15: 2 | G15: 50.0% | H15: 2 | I15: 2 | J15: 2 | M15: 6 | N15: 141 | O15: 36 | P15: 25.5% | Q15: 36 | R15: 41 | S15: 39 | BL15: APURIMAC | BM15: 24.4% | BP15: ANCASH | BQ15: 50.7% | BR15: 47.7% | BS15: 45.6% | BT15: 48.4% | BU15: 46.5% | BV15: 44.2% | BW15: 45.2% | BX15: 41.3% | BY15: 40.8% | BZ15: 44.4% | CA15: 39.1%
A16: CUSCO | B16: LA CONVENCION | C16: KIMBIRI PICHARI | D16: VILLA KINTIARINA | E16: 7 | F16: 5 | G16: 71.4% | H16: 5 | I16: 5 | J16: 5 | M16: 7 | N16: 162 | O16: 51 | P16: 31.5% | Q16: 51 | R16: 54 | S16: 52 | BL16: AREQUIPA | BM16: 26.3% | BP16: APURIMAC | BQ16: 31.0% | BR16: 26.7% | BS16: 24.2% | BT16: 26.6% | BU16: 25.1% | BV16: 22.3% | BW16: 23.5% | BX16: 20.6% | BY16: 20.5% | BZ16: 22.7% | CA16: 23.8% | CH16: Suma de Ind | CI16: DESC_DPTO
A17: Total general | E17: 144 | F17: 39 | G17: 27.1% | H17: 39 | I17: 43 | J17: 40 | M17: 8 | N17: 156 | O17: 45 | P17: 28.8% | Q17: 45 | R17: 50 | S17: 47 | BL17: AYACUCHO | BM17: 24.1% | BP17: AREQUIPA | BQ17: 25.1% | BR17: 27.0% | BS17: 26.7% | BT17: 27.8% | BU17: 25.7% | BV17: 24.4% | BW17: 26.3% | BX17: 27.4% | BY17: 29.2% | BZ17: 23.3% | CA17: 25.9% | CH17: Mes | CI17: AMAZONAS | CJ17: ANCASH | CK17: APURIMAC | CL17: AREQUIPA | CM17: AYACUCHO | CN17: CAJAMARCA | CO17: CALLAO | CP17: CUSCO | CQ17: HUANCAVELICA | CR17: HUANUCO | CS17: ICA | CT17: JUNIN | CU17: LA LIBERTAD | CV17: LAMBAYEQUE | CW17: LIMA METROPOLITANA | CX17: LIMA PROVINCIAS | CY17: LORETO | CZ17: MADRE DE DIOS | DA17: MOQUEGUA | DB17: PASCO | DC17: PIURA | DD17: PUNO | DE17: SAN MARTIN | DF17: TACNA | DG17: TUMBES | DH17: UCAYALI | DI17: Total general
M18: 9 | N18: 148 | O18: 36 | P18: 24.3% | Q18: 36 | R18: 44 | S18: 36 | BL18: CAJAMARCA | BM18: 28.6% | BP18: AYACUCHO | BQ18: 27.0% | BR18: 30.1% | BS18: 25.6% | BT18: 21.7% | BU18: 23.5% | BV18: 21.4% | BW18: 23.9% | BX18: 25.7% | BY18: 20.7% | BZ18: 22.0% | CA18: 22.4% | CH18: Enero | CI18: 25.5% | CJ18: 50.7% | CK18: 31.0% | CL18: 25.1% | CM18: 27.0% | CN18: 29.8% | CO18: 19.4% | CP18: 38.6% | CQ18: 36.4% | CR18: 17.8% | CS18: 24.9% | CT18: 25.7% | CU18: 23.9% | CV18: 38.6% | CW18: 24.9% | CX18: 20.7% | CY18: 21.7% | CZ18: 25.4% | DA18: 39.7% | DB18: 34.0% | DC18: 25.6% | DD18: 13.4% | DE18: 22.0% | DF18: 24.5% | DG18: 26.6% | DH18: 25.9% | DI18: 26.4%
M19: 10 | N19: 139 | O19: 47 | P19: 33.8% | Q19: 47 | R19: 53 | S19: 51 | BL19: CALLAO | BM19: 18.8% | BP19: CAJAMARCA | BQ19: 29.8% | BR19: 29.3% | BS19: 29.8% | BT19: 31.6% | BU19: 29.8% | BV19: 29.0% | BW19: 28.1% | BX19: 27.2% | BY19: 25.5% | BZ19: 26.8% | CA19: 27.2% | CH19: Febrero | CI19: 23.1% | CJ19: 47.7% | CK19: 26.7% | CL19: 27.0% | CM19: 30.1% | CN19: 29.3% | CO19: 19.7% | CP19: 35.8% | CQ19: 35.6% | CR19: 20.0% | CS19: 28.0% | CT19: 24.5% | CU19: 21.7% | CV19: 36.9% | CW19: 25.1% | CX19: 18.7% | CY19: 22.0% | CZ19: 23.8% | DA19: 38.6% | DB19: 31.5% | DC19: 24.3% | DD19: 13.2% | DE19: 21.5% | DF19: 19.7% | DG19: 34.6% | DH19: 25.5% | DI19: 25.9%
M20: 11 | N20: 144 | O20: 39 | P20: 27.1% | Q20: 39 | R20: 43 | S20: 40 | BL20: CUSCO | BM20: 29.4% | BP20: CALLAO | BQ20: 19.4% | BR20: 19.7% | BS20: 21.3% | BT20: 22.0% | BU20: 17.5% | BV20: 19.4% | BW20: 19.6% | BX20: 18.7% | BY20: 14.8% | BZ20: 15.1% | CA20: 18.7% | CH20: Marzo | CI20: 25.4% | CJ20: 45.6% | CK20: 24.2% | CL20: 26.7% | CM20: 25.6% | CN20: 29.8% | CO20: 21.3% | CP20: 32.1% | CQ20: 37.7% | CR20: 20.1% | CS20: 27.1% | CT20: 25.3% | CU20: 20.6% | CV20: 30.4% | CW20: 26.0% | CX20: 17.2% | CY20: 23.4% | CZ20: 32.8% | DA20: 36.1% | DB20: 26.4% | DC20: 23.2% | DD20: 12.8% | DE20: 22.1% | DF20: 24.0% | DG20: 31.6% | DH20: 25.4% | DI20: 25.5%
M21: Total general | N21: 1,748 | O21: 529 | P21: 30.3% | Q21: 529 | R21: 581 | S21: 545 | BL21: HUANCAVELICA | BM21: 33.9% | BP21: CUSCO | BQ21: 38.6% | BR21: 35.8% | BS21: 32.1% | BT21: 34.1% | BU21: 31.3% | BV21: 27.2% | BW21: 26.5% | BX21: 24.6% | BY21: 21.7% | BZ21: 24.1% | CA21: 24.1% | CH21: Abril | CI21: 22.2% | CJ21: 48.4% | CK21: 26.6% | CL21: 27.8% | CM21: 21.7% | CN21: 31.6% | CO21: 22.0% | CP21: 34.1% | CQ21: 35.5% | CR21: 17.2% | CS21: 27.2% | CT21: 25.9% | CU21: 22.7% | CV21: 30.9% | CW21: 25.2% | CX21: 20.2% | CY21: 21.5% | CZ21: 27.7% | DA21: 39.3% | DB21: 27.2% | DC21: 22.7% | DD21: 11.8% | DE21: 20.5% | DF21: 23.7% | DG21: 34.6% | DH21: 25.8% | DI21: 25.4%
BL22: HUANUCO | BM22: 17.7% | BP22: HUANCAVELICA | BQ22: 36.4% | BR22: 35.6% | BS22: 37.7% | BT22: 35.5% | BU22: 39.1% | BV22: 34.0% | BW22: 33.5% | BX22: 30.7% | BY22: 32.8% | BZ22: 28.3% | CA22: 27.3% | CH22: Mayo | CI22: 24.3% | CJ22: 46.5% | CK22: 25.1% | CL22: 25.7% | CM22: 23.5% | CN22: 29.8% | CO22: 17.5% | CP22: 31.3% | CQ22: 39.1% | CR22: 19.5% | CS22: 25.4% | CT22: 25.2% | CU22: 21.7% | CV22: 28.4% | CW22: 24.7% | CX22: 17.6% | CY22: 21.3% | CZ22: 24.9% | DA22: 40.8% | DB22: 31.1% | DC22: 20.9% | DD22: 9.0% | DE22: 19.1% | DF22: 16.8% | DG22: 30.5% | DH22: 27.5% | DI22: 24.4%
BL23: ICA | BM23: 25.3% | BP23: HUANUCO | BQ23: 17.8% | BR23: 20.0% | BS23: 20.1% | BT23: 17.2% | BU23: 19.5% | BV23: 17.7% | BW23: 15.0% | BX23: 17.6% | BY23: 17.0% | BZ23: 16.0% | CA23: 16.8% | CH23: Junio | CI23: 18.1% | CJ23: 44.2% | CK23: 22.3% | CL23: 24.4% | CM23: 21.4% | CN23: 29.0% | CO23: 19.4% | CP23: 27.2% | CQ23: 34.0% | CR23: 17.7% | CS23: 21.7% | CT23: 20.4% | CU23: 19.1% | CV23: 28.3% | CW23: 22.3% | CX23: 17.2% | CY23: 19.8% | CZ23: 21.4% | DA23: 31.8% | DB23: 22.8% | DC23: 20.4% | DD23: 10.5% | DE23: 19.3% | DF23: 22.6% | DG23: 32.0% | DH23: 31.1% | DI23: 22.7%
BL24: JUNIN | BM24: 23.5% | BP24: ICA | BQ24: 24.9% | BR24: 28.0% | BS24: 27.1% | BT24: 27.2% | BU24: 25.4% | BV24: 21.7% | BW24: 26.3% | BX24: 24.8% | BY24: 23.6% | BZ24: 24.1% | CA24: 24.4% | CH24: Julio | CI24: 21.5% | CJ24: 45.2% | CK24: 23.5% | CL24: 26.3% | CM24: 23.9% | CN24: 28.1% | CO24: 19.6% | CP24: 26.5% | CQ24: 33.5% | CR24: 15.0% | CS24: 26.3% | CT24: 20.8% | CU24: 21.3% | CV24: 28.7% | CW24: 22.8% | CX24: 15.6% | CY24: 19.6% | CZ24: 24.3% | DA24: 38.2% | DB24: 27.3% | DC24: 18.0% | DD24: 9.9% | DE24: 17.5% | DF24: 16.7% | DG24: 26.0% | DH24: 25.7% | DI24: 22.7%
BL25: LA LIBERTAD | BM25: 20.8% | BP25: JUNIN | BQ25: 25.7% | BR25: 24.5% | BS25: 25.3% | BT25: 25.9% | BU25: 25.2% | BV25: 20.4% | BW25: 20.8% | BX25: 21.7% | BY25: 22.7% | BZ25: 23.3% | CA25: 22.0% | CH25: Agosto | CI25: 20.1% | CJ25: 41.3% | CK25: 20.6% | CL25: 27.4% | CM25: 25.7% | CN25: 27.2% | CO25: 18.7% | CP25: 24.6% | CQ25: 30.7% | CR25: 17.6% | CS25: 24.8% | CT25: 21.7% | CU25: 19.1% | CV25: 29.0% | CW25: 20.9% | CX25: 15.2% | CY25: 19.9% | CZ25: 20.0% | DA25: 36.9% | DB25: 24.7% | DC25: 20.3% | DD25: 11.1% | DE25: 18.1% | DF25: 17.3% | DG25: 26.5% | DH25: 28.5% | DI25: 22.3%
BL26: LAMBAYEQUE | BM26: 29.6% | BP26: LA LIBERTAD | BQ26: 23.9% | BR26: 21.7% | BS26: 20.6% | BT26: 22.7% | BU26: 21.7% | BV26: 19.1% | BW26: 21.3% | BX26: 19.1% | BY26: 19.3% | BZ26: 19.9% | CA26: 18.7% | CH26: Setiembre | CI26: 19.8% | CJ26: 40.8% | CK26: 20.5% | CL26: 29.2% | CM26: 20.7% | CN26: 25.5% | CO26: 14.8% | CP26: 21.7% | CQ26: 32.8% | CR26: 17.0% | CS26: 23.6% | CT26: 22.7% | CU26: 19.3% | CV26: 26.3% | CW26: 21.0% | CX26: 14.3% | CY26: 19.2% | CZ26: 22.3% | DA26: 26.2% | DB26: 22.8% | DC26: 17.4% | DD26: 10.1% | DE26: 17.5% | DF26: 20.0% | DG26: 28.1% | DH26: 28.0% | DI26: 21.4%
BL27: LIMA METROPOLITANA | BM27: 23.1% | BP27: LAMBAYEQUE | BQ27: 38.6% | BR27: 36.9% | BS27: 30.4% | BT27: 30.9% | BU27: 28.4% | BV27: 28.3% | BW27: 28.7% | BX27: 29.0% | BY27: 26.3% | BZ27: 23.7% | CA27: 24.1% | CH27: Octubre | CI27: 20.6% | CJ27: 44.4% | CK27: 22.7% | CL27: 23.3% | CM27: 22.0% | CN27: 26.8% | CO27: 15.1% | CP27: 24.1% | CQ27: 28.3% | CR27: 16.0% | CS27: 24.1% | CT27: 23.3% | CU27: 19.9% | CV27: 23.7% | CW27: 19.6% | CX27: 14.4% | CY27: 18.3% | CZ27: 19.5% | DA27: 26.8% | DB27: 25.6% | DC27: 16.6% | DD27: 9.3% | DE27: 16.8% | DF27: 17.5% | DG27: 31.8% | DH27: 27.3% | DI27: 21.1%
BL28: LIMA PROVINCIAS | BM28: 17.3% | BP28: LIMA METROPOLITANA | BQ28: 24.9% | BR28: 25.1% | BS28: 26.0% | BT28: 25.2% | BU28: 24.7% | BV28: 22.3% | BW28: 22.8% | BX28: 20.9% | BY28: 21.0% | BZ28: 19.6% | CA28: 20.1% | CH28: 11 | CI28: 20.7% | CJ28: 39.1% | CK28: 23.8% | CL28: 25.9% | CM28: 22.4% | CN28: 27.2% | CO28: 18.7% | CP28: 24.1% | CQ28: 27.3% | CR28: 16.8% | CS28: 24.4% | CT28: 22.0% | CU28: 18.7% | CV28: 24.1% | CW28: 20.1% | CX28: 18.4% | CY28: 19.2% | CZ28: 19.7% | DA28: 31.1% | DB28: 29.4% | DC28: 16.4% | DD28: 10.5% | DE28: 17.0% | DF28: 18.8% | DG28: 31.5% | DH28: 30.9% | DI28: 21.6%
BL29: LORETO | BM29: 20.6% | BP29: LIMA PROVINCIAS | BQ29: 20.7% | BR29: 18.7% | BS29: 17.2% | BT29: 20.2% | BU29: 17.6% | BV29: 17.2% | BW29: 15.6% | BX29: 15.2% | BY29: 14.3% | BZ29: 14.4% | CA29: 18.4% | CH29: Total general | CI29: 22.0% | CJ29: 45.0% | CK29: 24.4% | CL29: 26.3% | CM29: 24.1% | CN29: 28.6% | CO29: 18.8% | CP29: 29.4% | CQ29: 33.9% | CR29: 17.7% | CS29: 25.3% | CT29: 23.5% | CU29: 20.8% | CV29: 29.6% | CW29: 23.1% | CX29: 17.3% | CY29: 20.6% | CZ29: 24.0% | DA29: 35.1% | DB29: 27.7% | DC29: 20.6% | DD29: 11.1% | DE29: 19.3% | DF29: 20.3% | DG29: 30.3% | DH29: 27.4% | DI29: 23.7%
BL30: MADRE DE DIOS | BM30: 24.0% | BP30: LORETO | BQ30: 21.7% | BR30: 22.0% | BS30: 23.4% | BT30: 21.5% | BU30: 21.3% | BV30: 19.8% | BW30: 19.6% | BX30: 19.9% | BY30: 19.2% | BZ30: 18.3% | CA30: 19.2%
BL31: MOQUEGUA | BM31: 35.1% | BP31: MADRE DE DIOS | BQ31: 25.4% | BR31: 23.8% | BS31: 32.8% | BT31: 27.7% | BU31: 24.9% | BV31: 21.4% | BW31: 24.3% | BX31: 20.0% | BY31: 22.3% | BZ31: 19.5% | CA31: 19.7%
BL32: PASCO | BM32: 27.7% | BP32: MOQUEGUA | BQ32: 39.7% | BR32: 38.6% | BS32: 36.1% | BT32: 39.3% | BU32: 40.8% | BV32: 31.8% | BW32: 38.2% | BX32: 36.9% | BY32: 26.2% | BZ32: 26.8% | CA32: 31.1%
BL33: PIURA | BM33: 20.6% | BP33: PASCO | BQ33: 34.0% | BR33: 31.5% | BS33: 26.4% | BT33: 27.2% | BU33: 31.1% | BV33: 22.8% | BW33: 27.3% | BX33: 24.7% | BY33: 22.8% | BZ33: 25.6% | CA33: 29.4%
BL34: PUNO | BM34: 11.1% | BP34: PIURA | BQ34: 25.6% | BR34: 24.3% | BS34: 23.2% | BT34: 22.7% | BU34: 20.9% | BV34: 20.4% | BW34: 18.0% | BX34: 20.3% | BY34: 17.4% | BZ34: 16.6% | CA34: 16.4%
BL35: SAN MARTIN | BM35: 19.3% | BP35: PUNO | BQ35: 13.4% | BR35: 13.2% | BS35: 12.8% | BT35: 11.8% | BU35: 9.0% | BV35: 10.5% | BW35: 9.9% | BX35: 11.1% | BY35: 10.1% | BZ35: 9.3% | CA35: 10.5% | CI35: AMAZONAS | CJ35: ANCASH | CK35: APURIMAC | CL35: AREQUIPA | CM35: AYACUCHO | CN35: CAJAMARCA | CO35: CALLAO | CP35: CUSCO | CQ35: HUANCAVELICA | CR35: HUANUCO | CS35: ICA | CT35: JUNIN | CU35: LA LIBERTAD | CV35: LAMBAYEQUE | CW35: LIMA DIRIS CENTRO | CX35: LIMA DIRIS ESTE | CY35: LIMA DIRIS NORTE | CZ35: LIMA DIRIS SUR | DA35: LIMA PROVINCIAS | DB35: LORETO | DC35: MADRE DE DIOS | DD35: MOQUEGUA | DE35: PASCO | DF35: PIURA | DG35: PUNO | DH35: SAN MARTIN | DI35: TACNA | DJ35: TUMBES | DK35: UCAYALI | DL35: NACIONAL
BL36: TACNA | BM36: 20.3% | BP36: SAN MARTIN | BQ36: 22.0% | BR36: 21.5% | BS36: 22.1% | BT36: 20.5% | BU36: 19.1% | BV36: 19.3% | BW36: 17.5% | BX36: 18.1% | BY36: 17.5% | BZ36: 16.8% | CA36: 17.0% | CH36: Enero | CI36: =+IFERROR(GETPIVOTDATA("Ind",$CH$16,"Mes",$CH36,"DESC_DPTO",CI$35),"-") -> 25.5% | CJ36: =+IFERROR(GETPIVOTDATA("Ind",$CH$16,"Mes",$CH36,"DESC_DPTO",CJ$35),"-") -> 50.7% | CK36: 31.0% | CL36: 25.1% | CM36: 27.0% | CN36: 29.8% | CO36: 19.4% | CP36: 38.6% | CQ36: 36.4% | CR36: 17.8% | CS36: 24.9% | CT36: 25.7% | CU36: 23.9% | CV36: 38.6% | CW36: - | CX36: - | CY36: - | CZ36: - | DA36: 20.7% | DB36: 21.7% | DC36: 25.4% | DD36: 39.7% | DE36: 34.0% | DF36: 25.6% | DG36: 13.4% | DH36: 22.0% | DI36: 24.5% | DJ36: 26.6% | DK36: 25.9% | DL36: =DI18 -> 26.4%
BL37: TUMBES | BM37: 30.3% | BP37: TACNA | BQ37: 24.5% | BR37: 19.7% | BS37: 24.0% | BT37: 23.7% | BU37: 16.8% | BV37: 22.6% | BW37: 16.7% | BX37: 17.3% | BY37: 20.0% | BZ37: 17.5% | CA37: 18.8% | CH37: Febrero | CI37: =+IFERROR(GETPIVOTDATA("Ind",$CH$16,"Mes",$CH37,"DESC_DPTO",CI$35),"-") -> 23.1% | CJ37: 47.7% | CK37: 26.7% | CL37: 27.0% | CM37: 30.1% | CN37: 29.3% | CO37: 19.7% | CP37: 35.8% | CQ37: 35.6% | CR37: 20.0% | CS37: 28.0% | CT37: 24.5% | CU37: 21.7% | CV37: 36.9% | CW37: - | CX37: - | CY37: - | CZ37: - | DA37: 18.7% | DB37: 22.0% | DC37: 23.8% | DD37: 38.6% | DE37: 31.5% | DF37: 24.3% | DG37: 13.2% | DH37: 21.5% | DI37: 19.7% | DJ37: 34.6% | DK37: 25.5% | DL37: =DI19 -> 25.9%
BL38: UCAYALI | BM38: 27.4% | BP38: TUMBES | BQ38: 26.6% | BR38: 34.6% | BS38: 31.6% | BT38: 34.6% | BU38: 30.5% | BV38: 32.0% | BW38: 26.0% | BX38: 26.5% | BY38: 28.1% | BZ38: 31.8% | CA38: 31.5% | CH38: Marzo | CI38: =+IFERROR(GETPIVOTDATA("Ind",$CH$16,"Mes",$CH38,"DESC_DPTO",CI$35),"-") -> 25.4% | CJ38: 45.6% | CK38: 24.2% | CL38: 26.7% | CM38: 25.6% | CN38: 29.8% | CO38: 21.3% | CP38: 32.1% | CQ38: 37.7% | CR38: 20.1% | CS38: 27.1% | CT38: 25.3% | CU38: 20.6% | CV38: 30.4% | CW38: - | CX38: - | CY38: - | CZ38: - | DA38: 17.2% | DB38: 23.4% | DC38: 32.8% | DD38: 36.1% | DE38: 26.4% | DF38: 23.2% | DG38: 12.8% | DH38: 22.1% | DI38: 24.0% | DJ38: 31.6% | DK38: 25.4% | DL38: =DI20 -> 25.5%
BL39: Total general | BM39: 23.7% | BP39: UCAYALI | BQ39: 25.9% | BR39: 25.5% | BS39: 25.4% | BT39: 25.8% | BU39: 27.5% | BV39: 31.1% | BW39: 25.7% | BX39: 28.5% | BY39: 28.0% | BZ39: 27.3% | CA39: 30.9% | CH39: Abril | CI39: =+IFERROR(GETPIVOTDATA("Ind",$CH$16,"Mes",$CH39,"DESC_DPTO",CI$35),"-") -> 22.2% | CJ39: 48.4% | CK39: 26.6% | CL39: 27.8% | CM39: 21.7% | CN39: 31.6% | CO39: 22.0% | CP39: 34.1% | CQ39: 35.5% | CR39: 17.2% | CS39: 27.2% | CT39: 25.9% | CU39: 22.7% | CV39: 30.9% | CW39: - | CX39: - | CY39: - | CZ39: - | DA39: 20.2% | DB39: 21.5% | DC39: 27.7% | DD39: 39.3% | DE39: 27.2% | DF39: 22.7% | DG39: 11.8% | DH39: 20.5% | DI39: 23.7% | DJ39: 34.6% | DK39: 25.8% | DL39: =DI21 -> 25.4%
BP40: Total general | BQ40: 26.4% | BR40: 25.9% | BS40: 25.5% | BT40: 25.4% | BU40: 24.4% | BV40: 22.7% | BW40: 22.7% | BX40: 22.3% | BY40: 21.4% | BZ40: 21.1% | CA40: 21.6% | CH40: Mayo | CI40: 24.3% | CJ40: 46.5% | CK40: 25.1% | CL40: 25.7% | CM40: 23.5% | CN40: 29.8% | CO40: 17.5% | CP40: 31.3% | CQ40: 39.1% | CR40: 19.5% | CS40: 25.4% | CT40: 25.2% | CU40: 21.7% | CV40: 28.4% | CW40: - | CX40: - | CY40: - | CZ40: - | DA40: 17.6% | DB40: 21.3% | DC40: 24.9% | DD40: 40.8% | DE40: 31.1% | DF40: 20.9% | DG40: 9.0% | DH40: 19.1% | DI40: 16.8% | DJ40: 30.5% | DK40: 27.5% | DL40: 24.4%
CH41: Junio | CI41: 18.1% | CJ41: 44.2% | CK41: 22.3% | CL41: 24.4% | CM41: 21.4% | CN41: 29.0% | CO41: 19.4% | CP41: 27.2% | CQ41: 34.0% | CR41: 17.7% | CS41: 21.7% | CT41: 20.4% | CU41: 19.1% | CV41: 28.3% | CW41: - | CX41: - | CY41: - | CZ41: - | DA41: 17.2% | DB41: 19.8% | DC41: 21.4% | DD41: 31.8% | DE41: 22.8% | DF41: 20.4% | DG41: 10.5% | DH41: 19.3% | DI41: 22.6% | DJ41: 32.0% | DK41: 31.1% | DL41: 22.7%
CH42: Julio | CI42: 21.5% | CJ42: 45.2% | CK42: 23.5% | CL42: 26.3% | CM42: 23.9% | CN42: 28.1% | CO42: 19.6% | CP42: 26.5% | CQ42: 33.5% | CR42: 15.0% | CS42: 26.3% | CT42: 20.8% | CU42: 21.3% | CV42: 28.7% | CW42: - | CX42: - | CY42: - | CZ42: - | DA42: 15.6% | DB42: 19.6% | DC42: 24.3% | DD42: 38.2% | DE42: 27.3% | DF42: 18.0% | DG42: 9.9% | DH42: 17.5% | DI42: 16.7% | DJ42: 26.0% | DK42: 25.7% | DL42: 22.7%
CH43: Agosto | CI43: 20.1% | CJ43: 41.3% | CK43: 20.6% | CL43: 27.4% | CM43: 25.7% | CN43: 27.2% | CO43: 18.7% | CP43: 24.6% | CQ43: 30.7% | CR43: 17.6% | CS43: 24.8% | CT43: 21.7% | CU43: 19.1% | CV43: 29.0% | CW43: - | CX43: - | CY43: - | CZ43: - | DA43: 15.2% | DB43: 19.9% | DC43: 20.0% | DD43: 36.9% | DE43: 24.7% | DF43: 20.3% | DG43: 11.1% | DH43: 18.1% | DI43: 17.3% | DJ43: 26.5% | DK43: 28.5% | DL43: 22.3%
CH44: Setiembre | CI44: 19.8% | CJ44: 40.8% | CK44: 20.5% | CL44: 29.2% | CM44: 20.7% | CN44: 25.5% | CO44: 14.8% | CP44: 21.7% | CQ44: 32.8% | CR44: 17.0% | CS44: 23.6% | CT44: 22.7% | CU44: 19.3% | CV44: 26.3% | CW44: - | CX44: - | CY44: - | CZ44: - | DA44: 14.3% | DB44: 19.2% | DC44: 22.3% | DD44: 26.2% | DE44: 22.8% | DF44: 17.4% | DG44: 10.1% | DH44: 17.5% | DI44: 20.0% | DJ44: 28.1% | DK44: 28.0% | DL44: 21.4%
CH45: Octubre | CI45: 20.6% | CJ45: 44.4% | CK45: 22.7% | CL45: 23.3% | CM45: =+IFERROR(GETPIVOTDATA("Ind",$CH$16,"Mes",$CH45,"DESC_DPTO",CM$35),"-") -> 22.0% | CN45: 26.8% | CO45: 15.1% | CP45: 24.1% | CQ45: 28.3% | CR45: 16.0% | CS45: 24.1% | CT45: 23.3% | CU45: 19.9% | CV45: 23.7% | CW45: - | CX45: - | CY45: - | CZ45: - | DA45: 14.4% | DB45: 18.3% | DC45: =+IFERROR(GETPIVOTDATA("Ind",$CH$16,"Mes",$CH45,"DESC_DPTO",DC$35),"-") -> 19.5% | DD45: 26.8% | DE45: 25.6% | DF45: 16.6% | DG45: 9.3% | DH45: 16.8% | DI45: 17.5% | DJ45: 31.8% | DK45: 27.3% | DL45: 21.1%
CH46: Noviembre | CI46: - | CJ46: - | CK46: - | CL46: - | CM46: - | CN46: - | CO46: - | CP46: - | CQ46: - | CR46: - | CS46: - | CT46: - | CU46: - | CV46: - | CW46: - | CX46: - | CY46: - | CZ46: - | DA46: - | DB46: - | DC46: - | DD46: - | DE46: - | DF46: - | DG46: - | DH46: - | DI46: - | DJ46: - | DK46: - | DL46: 21.6%
CH47: Diciembre | CI47: - | CJ47: - | CK47: - | CL47: - | CM47: - | CN47: - | CO47: - | CP47: - | CQ47: - | CR47: - | CS47: - | CT47: - | CU47: - | CV47: - | CW47: - | CX47: - | CY47: - | CZ47: - | DA47: - | DB47: - | DC47: - | DD47: - | DE47: - | DF47: - | DG47: - | DH47: - | DI47: - | DJ47: - | DK47: - | DL47: 23.7%
CI48: - | CJ48: - | CK48: - | CL48: - | CM48: - | CN48: - | CO48: - | CP48: - | CQ48: - | CR48: - | CS48: - | CT48: - | CU48: - | CV48: - | CW48: - | CX48: - | CY48: - | CZ48: - | DA48: - | DB48: - | DC48: - | DD48: - | DE48: - | DF48: - | DG48: - | DH48: - | DI48: - | DJ48: - | DK48: - | DL48: 0.0%
BP49: VALOR
BQ50: 1 | BR50: 2 | BS50: 3 | BT50: 4 | BU50: 5 | BV50: 6 | BW50: 7 | BX50: 8 | BY50: 9 | BZ50: 10 | CA50: 11 | CB50: 12 | CE50: MIN | CF50: MAX
BL51: AMAZONAS | BM51: =+IFERROR(GETPIVOTDATA("Ind",$BL$12,"DESC_DPTO",$BL51),"-") -> 22.0% | BP51: AMAZONAS | BQ51: =IFERROR(GETPIVOTDATA("Ind",$BP$12,"Mes",BQ$50,"DESC_DPTO",$BP51),"") -> 25.5% | BR51: =IFERROR(GETPIVOTDATA("Ind",$BP$12,"Mes",BR$50,"DESC_DPTO",$BP51),"") -> 23.1% | BS51: 25.4% | BT51: 22.2% | BU51: 24.3% | BV51: 18.1% | BW51: 21.5% | BX51: 20.1% | BY51: 19.8% | BZ51: 20.6% | CA51: 20.7% | CD51: AMAZONAS | CE51: =+IF(BQ51="-","-",MIN(BQ51:CB51)) -> 18.1% | CF51: =+IF(BQ51="-","-",MAX(BQ51:CB51)) -> 25.5%
BL52: ANCASH | BM52: =+IFERROR(GETPIVOTDATA("Ind",$BL$12,"DESC_DPTO",$BL52),"-") -> 45.0% | BP52: ANCASH | BQ52: =IFERROR(GETPIVOTDATA("Ind",$BP$12,"Mes",BQ$50,"DESC_DPTO",$BP52),"") -> 50.7% | BR52: 47.7% | BS52: 45.6% | BT52: 48.4% | BU52: 46.5% | BV52: 44.2% | BW52: 45.2% | BX52: 41.3% | BY52: 40.8% | BZ52: 44.4% | CA52: 39.1% | CD52: ANCASH | CE52: =+IF(BQ52="-","-",MIN(BQ52:CB52)) -> 39.1% | CF52: =+IF(BQ52="-","-",MAX(BQ52:CB52)) -> 50.7%
BL53: APURIMAC | BM53: 24.4% | BP53: APURIMAC | BQ53: 31.0% | BR53: 26.7% | BS53: 24.2% | BT53: 26.6% | BU53: 25.1% | BV53: 22.3% | BW53: 23.5% | BX53: 20.6% | BY53: 20.5% | BZ53: 22.7% | CA53: 23.8% | CD53: APURIMAC | CE53: 20.5% | CF53: 31.0%
BL54: AREQUIPA | BM54: 26.3% | BP54: AREQUIPA | BQ54: 25.1% | BR54: 27.0% | BS54: 26.7% | BT54: 27.8% | BU54: 25.7% | BV54: 24.4% | BW54: 26.3% | BX54: 27.4% | BY54: 29.2% | BZ54: 23.3% | CA54: 25.9% | CD54: AREQUIPA | CE54: 23.3% | CF54: 29.2%
BL55: AYACUCHO | BM55: 24.1% | BP55: AYACUCHO | BQ55: 27.0% | BR55: 30.1% | BS55: 25.6% | BT55: 21.7% | BU55: 23.5% | BV55: 21.4% | BW55: 23.9% | BX55: 25.7% | BY55: 20.7% | BZ55: 22.0% | CA55: 22.4% | CD55: AYACUCHO | CE55: 20.7% | CF55: 30.1%
BL56: CAJAMARCA | BM56: 28.6% | BP56: CAJAMARCA | BQ56: 29.8% | BR56: 29.3% | BS56: 29.8% | BT56: 31.6% | BU56: 29.8% | BV56: 29.0% | BW56: 28.1% | BX56: 27.2% | BY56: 25.5% | BZ56: 26.8% | CA56: 27.2% | CD56: CAJAMARCA | CE56: 25.5% | CF56: 31.6%
BL57: CALLAO | BM57: 18.8% | BP57: CALLAO | BQ57: 19.4% | BR57: 19.7% | BS57: 21.3% | BT57: 22.0% | BU57: 17.5% | BV57: 19.4% | BW57: 19.6% | BX57: 18.7% | BY57: 14.8% | BZ57: 15.1% | CA57: 18.7% | CD57: CALLAO | CE57: 14.8% | CF57: 22.0%
BL58: CUSCO | BM58: 29.4% | BP58: CUSCO | BQ58: 38.6% | BR58: 35.8% | BS58: 32.1% | BT58: 34.1% | BU58: 31.3% | BV58: 27.2% | BW58: 26.5% | BX58: 24.6% | BY58: 21.7% | BZ58: 24.1% | CA58: 24.1% | CD58: CUSCO | CE58: 21.7% | CF58: 38.6%
BL59: HUANCAVELICA | BM59: 33.9% | BP59: HUANCAVELICA | BQ59: 36.4% | BR59: 35.6% | BS59: 37.7% | BT59: 35.5% | BU59: 39.1% | BV59: 34.0% | BW59: 33.5% | BX59: 30.7% | BY59: 32.8% | BZ59: 28.3% | CA59: 27.3% | CD59: HUANCAVELICA | CE59: 27.3% | CF59: 39.1%
BL60: HUANUCO | BM60: 17.7% | BP60: HUANUCO | BQ60: 17.8% | BR60: 20.0% | BS60: 20.1% | BT60: 17.2% | BU60: 19.5% | BV60: 17.7% | BW60: 15.0% | BX60: 17.6% | BY60: 17.0% | BZ60: 16.0% | CA60: 16.8% | CD60: HUANUCO | CE60: 15.0% | CF60: 20.1%
BL61: ICA | BM61: 25.3% | BP61: ICA | BQ61: 24.9% | BR61: 28.0% | BS61: 27.1% | BT61: 27.2% | BU61: 25.4% | BV61: 21.7% | BW61: 26.3% | BX61: 24.8% | BY61: 23.6% | BZ61: 24.1% | CA61: 24.4% | CD61: ICA | CE61: 21.7% | CF61: 28.0%
BL62: JUNIN | BM62: 23.5% | BP62: JUNIN | BQ62: 25.7% | BR62: 24.5% | BS62: 25.3% | BT62: 25.9% | BU62: 25.2% | BV62: 20.4% | BW62: 20.8% | BX62: 21.7% | BY62: 22.7% | BZ62: 23.3% | CA62: 22.0% | CD62: JUNIN | CE62: 20.4% | CF62: 25.9%
BL63: LA LIBERTAD | BM63: 20.8% | BP63: LA LIBERTAD | BQ63: 23.9% | BR63: 21.7% | BS63: 20.6% | BT63: 22.7% | BU63: 21.7% | BV63: 19.1% | BW63: 21.3% | BX63: 19.1% | BY63: 19.3% | BZ63: 19.9% | CA63: 18.7% | CD63: LA LIBERTAD | CE63: 18.7% | CF63: 23.9%
BL64: LAMBAYEQUE | BM64: 29.6% | BP64: LAMBAYEQUE | BQ64: 38.6% | BR64: 36.9% | BS64: 30.4% | BT64: 30.9% | BU64: 28.4% | BV64: 28.3% | BW64: 28.7% | BX64: 29.0% | BY64: 26.3% | BZ64: 23.7% | CA64: 24.1% | CD64: LAMBAYEQUE | CE64: 23.7% | CF64: 38.6%
BL65: LIMA DIRIS CENTRO | BM65: - | BP65: LIMA DIRIS CENTRO | CD65: LIMA DIRIS CENTRO | CE65: 0.0% | CF65: 0.0%
BL66: LIMA DIRIS ESTE | BM66: - | BP66: LIMA DIRIS ESTE | CD66: LIMA DIRIS ESTE | CE66: 0.0% | CF66: 0.0%
BL67: LIMA DIRIS NORTE | BM67: - | BP67: LIMA DIRIS NORTE | CD67: LIMA DIRIS NORTE | CE67: 0.0% | CF67: 0.0%
BL68: LIMA DIRIS SUR | BM68: - | BP68: LIMA DIRIS SUR | CD68: LIMA DIRIS SUR | CE68: 0.0% | CF68: 0.0%
BL69: LIMA PROVINCIAS | BM69: 17.3% | BP69: LIMA PROVINCIAS | BQ69: 20.7% | BR69: 18.7% | BS69: 17.2% | BT69: 20.2% | BU69: 17.6% | BV69: 17.2% | BW69: 15.6% | BX69: 15.2% | BY69: 14.3% | BZ69: 14.4% | CA69: 18.4% | CD69: LIMA PROVINCIAS | CE69: 14.3% | CF69: 20.7%
BL70: LORETO | BM70: 20.6% | BP70: LORETO | BQ70: 21.7% | BR70: 22.0% | BS70: 23.4% | BT70: 21.5% | BU70: 21.3% | BV70: 19.8% | BW70: 19.6% | BX70: 19.9% | BY70: 19.2% | BZ70: 18.3% | CA70: 19.2% | CD70: LORETO | CE70: 18.3% | CF70: 23.4%
BL71: MADRE DE DIOS | BM71: 24.0% | BP71: MADRE DE DIOS | BQ71: 25.4% | BR71: 23.8% | BS71: 32.8% | BT71: 27.7% | BU71: 24.9% | BV71: 21.4% | BW71: 24.3% | BX71: 20.0% | BY71: 22.3% | BZ71: 19.5% | CA71: 19.7% | CD71: MADRE DE DIOS | CE71: 19.5% | CF71: 32.8%
BL72: MOQUEGUA | BM72: 35.1% | BP72: MOQUEGUA | BQ72: 39.7% | BR72: 38.6% | BS72: 36.1% | BT72: 39.3% | BU72: 40.8% | BV72: 31.8% | BW72: 38.2% | BX72: 36.9% | BY72: 26.2% | BZ72: 26.8% | CA72: 31.1% | CD72: MOQUEGUA | CE72: 26.2% | CF72: 40.8%
BL73: PASCO | BM73: 27.7% | BP73: PASCO | BQ73: 34.0% | BR73: 31.5% | BS73: 26.4% | BT73: 27.2% | BU73: 31.1% | BV73: 22.8% | BW73: 27.3% | BX73: 24.7% | BY73: 22.8% | BZ73: 25.6% | CA73: 29.4% | CD73: PASCO | CE73: 22.8% | CF73: 34.0%
BL74: PIURA | BM74: 20.6% | BP74: PIURA | BQ74: 25.6% | BR74: 24.3% | BS74: 23.2% | BT74: 22.7% | BU74: 20.9% | BV74: 20.4% | BW74: 18.0% | BX74: 20.3% | BY74: 17.4% | BZ74: 16.6% | CA74: 16.4% | CD74: PIURA | CE74: 16.4% | CF74: 25.6%
BL75: PUNO | BM75: 11.1% | BP75: PUNO | BQ75: 13.4% | BR75: 13.2% | BS75: 12.8% | BT75: 11.8% | BU75: 9.0% | BV75: 10.5% | BW75: 9.9% | BX75: 11.1% | BY75: 10.1% | BZ75: 9.3% | CA75: 10.5% | CD75: PUNO | CE75: 9.0% | CF75: 13.4%
BL76: SAN MARTIN | BM76: 19.3% | BP76: SAN MARTIN | BQ76: 22.0% | BR76: 21.5% | BS76: 22.1% | BT76: 20.5% | BU76: 19.1% | BV76: 19.3% | BW76: 17.5% | BX76: 18.1% | BY76: 17.5% | BZ76: 16.8% | CA76: 17.0% | CD76: SAN MARTIN | CE76: 16.8% | CF76: 22.1%
BL77: TACNA | BM77: 20.3% | BP77: TACNA | BQ77: 24.5% | BR77: 19.7% | BS77: 24.0% | BT77: 23.7% | BU77: 16.8% | BV77: 22.6% | BW77: 16.7% | BX77: 17.3% | BY77: 20.0% | BZ77: 17.5% | CA77: 18.8% | CD77: TACNA | CE77: 16.7% | CF77: 24.5%
BL78: TUMBES | BM78: 30.3% | BP78: TUMBES | BQ78: 26.6% | BR78: 34.6% | BS78: 31.6% | BT78: 34.6% | BU78: 30.5% | BV78: 32.0% | BW78: 26.0% | BX78: 26.5% | BY78: 28.1% | BZ78: 31.8% | CA78: 31.5% | CD78: TUMBES | CE78: 26.0% | CF78: 34.6%
BL79: UCAYALI | BM79: 27.4% | BP79: UCAYALI | BQ79: 25.9% | BR79: 25.5% | BS79: 25.4% | BT79: 25.8% | BU79: 27.5% | BV79: 31.1% | BW79: 25.7% | BX79: 28.5% | BY79: 28.0% | BZ79: 27.3% | CA79: 30.9% | CD79: UCAYALI | CE79: 25.4% | CF79: 31.1%
BL80: NACIONAL | BM80: =BM39 -> 23.7% | BP80: NACIONAL | BQ80: =IFERROR(GETPIVOTDATA("Ind",$BP$12,"Mes",BQ$50),"-") -> 26.4% | BR80: =IFERROR(GETPIVOTDATA("Ind",$BP$12,"Mes",BR$50),"-") -> 25.9% | BS80: 25.5% | BT80: 25.4% | BU80: 24.4% | BV80: 22.7% | BW80: 22.7% | BX80: 22.3% | BY80: 21.4% | BZ80: 21.1% | CA80: 21.6% | CB80: - | CD80: NACIONAL | CE80: 21.1% | CF80: 26.4%

Sheet DL_1153_2025_CG04
A1: =+DL1153_2025!C10 -> Ficha 04:Porcentaje de recién nacidos que reciben vacunas BCG, HvB, controles CRED y tamizaje neonatal metabólico. | BN1: 1 | DS1: 1
A2: Periodo de Evaluación: | B2: =+DL1153_2025!B42 -> Noviembre - 2025
I4: seguro | J4: MINSA
A5: seguro | B5: MINSA | I5: diresa | J5: 08 CUSCO
A6: mes | B6: 11 | I6: provincia | J6: 0809 LA CONVENCION
A7: año | B7: 2025 | I7: distrito | J7: (Varios elementos)
A8: DIRESA/DIRIS | B8: Provincia | C8: Distrito | D8: Denominador: N° de recién nacidos de 28 días de vida, del departamento en el mes de medición, registrados en el padrón nominal (DNI o CNV en línea) y CNV en línea, con tipo de seguro SIS. Excluyendo los recién nacidos con bajo peso al nacer (menor de 2500 gramos) y/o prematuros (menor de 37 SG), registrados en CNV. | E8: Numerador: Niñas/niños recién nacidos del denominador, que reciben vacunas BCG y HvB, 04 Controles de CRED y tamizaje neonatal metabólico (toma de muestra), registrados en HIS. | F8: Indicador: Porcentaje de recién nacidos que reciben vacunas BCG, HvB, controles CRED y tamizaje neonatal metabólico. | I8: AÑO | J8: MES | K8: Denominador: N° de recién nacidos de 28 días de vida, del departamento en el mes de medición, registrados en el padrón nominal (DNI o CNV en línea) y CNV en línea, con tipo de seguro SIS. Excluyendo los recién nacidos con bajo peso al nacer (menor de 2500 gramos) y/o prematuros (menor de 37 SG), registrados en CNV. | L8: Numerador: Niñas/niños recién nacidos del denominador, que reciben vacunas BCG y HvB, 04 Controles de CRED y tamizaje neonatal metabólico (toma de muestra), registrados en HIS. | M8: Indicador: Porcentaje de recién nacidos que reciben vacunas BCG, HvB, controles CRED y tamizaje neonatal metabólico.
A9: diresa | B9: provincia | C9: distrito | D9: denominador | E9: numerador | F9: Suma de Ind | I9: año | J9: mes | K9: Suma de denominador2 | L9: Suma de numerador2 | M9: Suma de Ind
A10: 08 CUSCO | B10: 0809 LA CONVENCION | C10: 080907 KIMBIRI | D10: 17 | E10: 13 | F10: 76.5% | I10: 2025 | J10: 1 | K10: 98 | L10: 67 | M10: 68.4%
A11: 08 CUSCO | B11: 0809 LA CONVENCION | C11: 080910 PICHARI | D11: 38 | E11: 26 | F11: 68.4% | I11: 2025 | J11: 2 | K11: 105 | L11: 88 | M11: 83.8%
A12: 08 CUSCO | B12: 0809 LA CONVENCION | C12: 080912 VILLA VIRGEN | D12: 2 | E12: 1 | F12: 50.0% | I12: 2025 | J12: 3 | K12: 93 | L12: 80 | M12: 86.0%
A13: 08 CUSCO | B13: 0809 LA CONVENCION | C13: 080913 VILLA KINTIARINA | D13: 4 | E13: 4 | F13: 100.0% | I13: 2025 | J13: 4 | K13: 103 | L13: 89 | M13: 86.4% | BO13: seguro | BP13: MINSA | BS13: seguro | BT13: MINSA
A14: 08 CUSCO | B14: 0809 LA CONVENCION | C14: 080916 CIELO PUNCO | D14: 2 | E14: 2 | F14: 100.0% | I14: 2025 | J14: 5 | K14: 112 | L14: 102 | M14: 91.1% | BO14: año | BP14: (Todas) | BS14: año | BT14: (Todas)
A15: 08 CUSCO | B15: 0809 LA CONVENCION | C15: 080917 MANITEA | D15: 7 | E15: 5 | F15: 71.4% | I15: 2025 | J15: 6 | K15: 83 | L15: 72 | M15: 86.7% | CL15: seguro | CM15: MINSA
A16: 08 CUSCO | B16: 0809 LA CONVENCION | C16: 080918 UNION ASHANINKA | D16: 11 | E16: 8 | F16: 72.7% | I16: 2025 | J16: 7 | K16: 104 | L16: 85 | M16: 81.7% | BO16: diresa | BP16: Suma de IND | BS16: Suma de IND | BT16: mes | CL16: año | CM16: (Todas)
A17: Total general | D17: 81 | E17: 59 | F17: 72.8% | I17: 2025 | J17: 8 | K17: 65 | L17: 52 | M17: 80.0% | BO17: AMAZONAS | BP17: 48.0% | BS17: diresa | BT17: 1 | BU17: 2 | BV17: 3 | BW17: 4 | BX17: 5 | BY17: 6 | BZ17: 7 | CA17: 8 | CB17: 9 | CC17: 10 | CD17: 11
I18: 2025 | J18: 9 | K18: 83 | L18: 55 | M18: 66.3% | BO18: ANCASH | BP18: 61.9% | BS18: AMAZONAS | BT18: 32.0% | BU18: 47.3% | BV18: 48.4% | BW18: 49.4% | BX18: 51.6% | BY18: 49.5% | BZ18: 47.4% | CA18: 49.5% | CB18: 53.6% | CC18: 50.8% | CD18: 49.9% | CL18: Suma de IND | CM18: diresa
I19: 2025 | J19: 10 | K19: 88 | L19: 69 | M19: 78.4% | BO19: APURIMAC | BP19: 84.3% | BS19: ANCASH | BT19: 49.9% | BU19: 64.7% | BV19: 63.9% | BW19: 66.4% | BX19: 61.9% | BY19: 65.6% | BZ19: 64.0% | CA19: 63.8% | CB19: 60.5% | CC19: 58.3% | CD19: 61.0% | CL19: mes | CM19: AMAZONAS | CN19: ANCASH | CO19: APURIMAC | CP19: AREQUIPA | CQ19: AYACUCHO | CR19: CAJAMARCA | CS19: CALLAO | CT19: CUSCO | CU19: HUANCAVELICA | CV19: HUANUCO | CW19: ICA | CX19: JUNIN | CY19: LA LIBERTAD | CZ19: LAMBAYEQUE | DA19: LIMA DIRIS CENTRO | DB19: LIMA DIRIS ESTE | DC19: LIMA DIRIS NORTE | DD19: LIMA DIRIS SUR | DE19: LIMA PROVINCIAS | DF19: LORETO | DG19: MADRE DE DIOS | DH19: MOQUEGUA | DI19: PASCO | DJ19: PIURA | DK19: PUNO | DL19: SAN MARTIN | DM19: TACNA | DN19: TUMBES | DO19: UCAYALI | DP19: Total general
I20: 2025 | J20: 11 | K20: 81 | L20: 59 | M20: 72.8% | BO20: AREQUIPA | BP20: 40.0% | BS20: APURIMAC | BT20: 82.3% | BU20: 87.8% | BV20: 87.3% | BW20: 88.4% | BX20: 87.2% | BY20: 83.9% | BZ20: 86.8% | CA20: 83.1% | CB20: 81.5% | CC20: 76.2% | CD20: 82.2% | CL20: Enero | CM20: 32.0% | CN20: 49.9% | CO20: 82.3% | CP20: 22.0% | CQ20: 82.5% | CR20: 48.9% | CS20: 49.1% | CT20: 63.1% | CU20: 78.3% | CV20: 64.3% | CW20: 58.4% | CX20: 73.2% | CY20: 29.5% | CZ20: 30.2% | DA20: 7.9% | DB20: 14.1% | DC20: 12.3% | DD20: 21.2% | DE20: 68.1% | DF20: 22.2% | DG20: 65.5% | DH20: 74.1% | DI20: 70.9% | DJ20: 46.0% | DK20: 46.7% | DL20: 41.6% | DM20: 72.3% | DN20: 84.9% | DO20: 44.6% | DP20: 42.3%
I21: Total general | K21: 1,015 | L21: 818 | M21: 80.6% | BO21: AYACUCHO | BP21: 85.2% | BS21: AREQUIPA | BT21: 22.0% | BU21: 34.0% | BV21: 39.7% | BW21: 42.0% | BX21: 38.7% | BY21: 47.6% | BZ21: 44.0% | CA21: 39.6% | CB21: 45.5% | CC21: 42.2% | CD21: 44.1% | CL21: Febrero | CM21: 47.3% | CN21: 64.7% | CO21: 87.8% | CP21: 34.0% | CQ21: 89.2% | CR21: 61.1% | CS21: 58.8% | CT21: 69.8% | CU21: 82.7% | CV21: 72.5% | CW21: 71.2% | CX21: 76.6% | CY21: 41.1% | CZ21: 56.6% | DA21: 19.9% | DB21: 26.9% | DC21: 17.2% | DD21: 38.6% | DE21: 74.1% | DF21: 49.4% | DG21: 78.2% | DH21: 69.7% | DI21: 73.2% | DJ21: 56.3% | DK21: 53.9% | DL21: 51.3% | DM21: 81.8% | DN21: 93.3% | DO21: 62.9% | DP21: 54.3%
BO22: CAJAMARCA | BP22: 61.1% | BS22: AYACUCHO | BT22: 82.5% | BU22: 89.2% | BV22: 85.3% | BW22: 85.6% | BX22: 86.0% | BY22: 86.6% | BZ22: 87.8% | CA22: 88.0% | CB22: 86.1% | CC22: 82.2% | CD22: 79.1% | CL22: Marzo | CM22: 48.4% | CN22: 63.9% | CO22: 87.3% | CP22: 39.7% | CQ22: 85.3% | CR22: 67.8% | CS22: 60.3% | CT22: 74.7% | CU22: 86.7% | CV22: 81.7% | CW22: 70.6% | CX22: 75.6% | CY22: 48.0% | CZ22: 57.7% | DA22: 21.2% | DB22: 29.2% | DC22: 21.4% | DD22: 41.5% | DE22: 79.4% | DF22: 48.0% | DG22: 74.3% | DH22: 82.4% | DI22: 81.6% | DJ22: 60.2% | DK22: 57.3% | DL22: 58.0% | DM22: 80.0% | DN22: 91.9% | DO22: 63.7% | DP22: 56.7%
BO23: CALLAO | BP23: 57.8% | BS23: CAJAMARCA | BT23: 48.9% | BU23: 61.1% | BV23: 67.8% | BW23: 65.4% | BX23: 63.5% | BY23: 62.3% | BZ23: 61.2% | CA23: 59.7% | CB23: 60.9% | CC23: 61.6% | CD23: 59.5% | CL23: Abril | CM23: 49.4% | CN23: 66.4% | CO23: 88.4% | CP23: 42.0% | CQ23: 85.6% | CR23: 65.4% | CS23: 60.1% | CT23: 73.4% | CU23: 83.1% | CV23: 83.1% | CW23: 73.2% | CX23: 72.6% | CY23: 44.6% | CZ23: 56.6% | DA23: 14.0% | DB23: 27.0% | DC23: 14.4% | DD23: 37.0% | DE23: 69.3% | DF23: 46.7% | DG23: 70.7% | DH23: 74.8% | DI23: 76.7% | DJ23: 58.4% | DK23: 52.0% | DL23: 54.1% | DM23: 83.7% | DN23: 95.1% | DO23: 59.1% | DP23: 54.6%
BO24: CUSCO | BP24: 71.6% | BS24: CALLAO | BT24: 49.1% | BU24: 58.8% | BV24: 60.3% | BW24: 60.1% | BX24: 53.6% | BY24: 59.2% | BZ24: 61.8% | CA24: 56.3% | CB24: 59.8% | CC24: 63.2% | CD24: 54.1% | CL24: Mayo | CM24: 51.6% | CN24: 61.9% | CO24: 87.2% | CP24: 38.7% | CQ24: 86.0% | CR24: 63.5% | CS24: 53.6% | CT24: 72.7% | CU24: 78.4% | CV24: 78.9% | CW24: 67.4% | CX24: 72.5% | CY24: 46.4% | CZ24: 54.1% | DA24: 13.2% | DB24: 23.0% | DC24: 12.7% | DD24: 35.5% | DE24: 73.1% | DF24: 46.8% | DG24: 80.8% | DH24: 79.6% | DI24: 77.8% | DJ24: 50.7% | DK24: 50.3% | DL24: 48.0% | DM24: 80.2% | DN24: 91.1% | DO24: 58.3% | DP24: 52.9%
BO25: HUANCAVELICA | BP25: 80.7% | BS25: CUSCO | BT25: 63.1% | BU25: 69.8% | BV25: 74.7% | BW25: 73.4% | BX25: 72.7% | BY25: 74.1% | BZ25: 75.0% | CA25: 73.7% | CB25: 72.5% | CC25: 71.1% | CD25: 68.0% | CL25: Junio | CM25: 49.5% | CN25: 65.6% | CO25: 83.9% | CP25: 47.6% | CQ25: 86.6% | CR25: 62.3% | CS25: 59.2% | CT25: 74.1% | CU25: 80.0% | CV25: 80.1% | CW25: 69.7% | CX25: 77.7% | CY25: 50.1% | CZ25: 55.2% | DA25: 16.5% | DB25: 24.1% | DC25: 15.8% | DD25: 38.7% | DE25: 76.6% | DF25: 51.1% | DG25: 78.7% | DH25: 80.2% | DI25: 76.9% | DJ25: 56.0% | DK25: 58.4% | DL25: 56.7% | DM25: 79.4% | DN25: 92.1% | DO25: 61.4% | DP25: 55.6%
BO26: HUANUCO | BP26: 77.3% | BS26: HUANCAVELICA | BT26: 78.3% | BU26: 82.7% | BV26: 86.7% | BW26: 83.1% | BX26: 78.4% | BY26: 80.0% | BZ26: 79.6% | CA26: 83.5% | CB26: 86.3% | CC26: 73.7% | CD26: 75.0% | CL26: Julio | CM26: 47.4% | CN26: 64.0% | CO26: 86.8% | CP26: 44.0% | CQ26: 87.8% | CR26: 61.2% | CS26: 61.8% | CT26: 75.0% | CU26: 79.6% | CV26: 79.9% | CW26: 72.2% | CX26: 76.6% | CY26: 53.6% | CZ26: 55.3% | DA26: 30.9% | DB26: 26.2% | DC26: 15.8% | DD26: 38.4% | DE26: 78.7% | DF26: 46.2% | DG26: 75.2% | DH26: 77.4% | DI26: 69.3% | DJ26: 47.9% | DK26: 57.5% | DL26: 49.0% | DM26: 83.5% | DN26: 90.0% | DO26: 59.3% | DP26: 55.2%
BO27: ICA | BP27: 68.7% | BS27: HUANUCO | BT27: 64.3% | BU27: 72.5% | BV27: 81.7% | BW27: 83.1% | BX27: 78.9% | BY27: 80.1% | BZ27: 79.9% | CA27: 78.6% | CB27: 81.5% | CC27: 73.0% | CD27: 78.2% | CL27: Agosto | CM27: 49.5% | CN27: 63.8% | CO27: 83.1% | CP27: 39.6% | CQ27: 88.0% | CR27: 59.7% | CS27: 56.3% | CT27: 73.7% | CU27: 83.5% | CV27: 78.6% | CW27: 66.0% | CX27: 73.6% | CY27: 46.5% | CZ27: 54.5% | DA27: 26.1% | DB27: 23.7% | DC27: 17.8% | DD27: 33.4% | DE27: 75.6% | DF27: 45.9% | DG27: 71.2% | DH27: 74.5% | DI27: 69.8% | DJ27: 51.7% | DK27: 58.5% | DL27: 49.7% | DM27: 85.0% | DN27: 93.4% | DO27: 60.9% | DP27: 54.0%
BO28: JUNIN | BP28: 74.9% | BS28: ICA | BT28: 58.4% | BU28: 71.2% | BV28: 70.6% | BW28: 73.2% | BX28: 67.4% | BY28: 69.7% | BZ28: 72.2% | CA28: 66.0% | CB28: 71.2% | CC28: 65.1% | CD28: 69.5% | CL28: Setiembre | CM28: 53.6% | CN28: 60.5% | CO28: 81.5% | CP28: 45.5% | CQ28: 86.1% | CR28: 60.9% | CS28: 59.8% | CT28: 72.5% | CU28: 86.3% | CV28: 81.5% | CW28: 71.2% | CX28: 75.2% | CY28: 45.3% | CZ28: 50.5% | DA28: 26.4% | DB28: 21.5% | DC28: 15.7% | DD28: 35.9% | DE28: 79.2% | DF28: 46.1% | DG28: 75.5% | DH28: 73.6% | DI28: 68.1% | DJ28: 48.2% | DK28: 57.4% | DL28: 50.9% | DM28: 81.9% | DN28: 93.6% | DO28: 61.6% | DP28: 54.3%
BO29: LA LIBERTAD | BP29: 45.1% | BS29: JUNIN | BT29: 73.2% | BU29: 76.6% | BV29: 75.6% | BW29: 72.6% | BX29: 72.5% | BY29: 77.7% | BZ29: 76.6% | CA29: 73.6% | CB29: 75.2% | CC29: 77.2% | CD29: 73.7% | CL29: Octubre | CM29: 50.8% | CN29: 58.3% | CO29: 76.2% | CP29: 42.2% | CQ29: 82.2% | CR29: 61.6% | CS29: 63.2% | CT29: 71.1% | CU29: 73.7% | CV29: 73.0% | CW29: 65.1% | CX29: 77.2% | CY29: 47.2% | CZ29: 44.5% | DA29: 26.5% | DB29: 21.1% | DC29: 15.8% | DD29: 32.5% | DE29: 73.7% | DF29: 44.8% | DG29: 69.5% | DH29: 66.3% | DI29: 58.1% | DJ29: 41.0% | DK29: 54.3% | DL29: 48.0% | DM29: 83.1% | DN29: 91.9% | DO29: 59.2% | DP29: 51.5%
BO30: LAMBAYEQUE | BP30: 51.5% | BS30: LA LIBERTAD | BT30: 29.5% | BU30: 41.1% | BV30: 48.0% | BW30: 44.6% | BX30: 46.4% | BY30: 50.1% | BZ30: 53.6% | CA30: 46.5% | CB30: 45.3% | CC30: 47.2% | CD30: 41.8% | CL30: Noviembre | CM30: 49.9% | CN30: 61.0% | CO30: 82.2% | CP30: 44.1% | CQ30: 79.1% | CR30: 59.5% | CS30: 54.1% | CT30: 68.0% | CU30: 75.0% | CV30: 78.2% | CW30: 69.5% | CX30: 73.7% | CY30: 41.8% | CZ30: 48.9% | DA30: 23.3% | DB30: 18.3% | DC30: 17.3% | DD30: 25.9% | DE30: 72.4% | DF30: 40.4% | DG30: 52.6% | DH30: 61.0% | DI30: 64.8% | DJ30: 47.7% | DK30: 57.3% | DL30: 49.4% | DM30: 77.7% | DN30: 87.8% | DO30: 55.5% | DP30: 51.0%
BO31: LIMA DIRIS CENTRO | BP31: 20.5% | BS31: LAMBAYEQUE | BT31: 30.2% | BU31: 56.6% | BV31: 57.7% | BW31: 56.6% | BX31: 54.1% | BY31: 55.2% | BZ31: 55.3% | CA31: 54.5% | CB31: 50.5% | CC31: 44.5% | CD31: 48.9%
BO32: LIMA DIRIS ESTE | BP32: 23.3% | BS32: LIMA DIRIS CENTRO | BT32: 7.9% | BU32: 19.9% | BV32: 21.2% | BW32: 14.0% | BX32: 13.2% | BY32: 16.5% | BZ32: 30.9% | CA32: 26.1% | CB32: 26.4% | CC32: 26.5% | CD32: 23.3%
BO33: LIMA DIRIS NORTE | BP33: 16.1% | BS33: LIMA DIRIS ESTE | BT33: 14.1% | BU33: 26.9% | BV33: 29.2% | BW33: 27.0% | BX33: 23.0% | BY33: 24.1% | BZ33: 26.2% | CA33: 23.7% | CB33: 21.5% | CC33: 21.1% | CD33: 18.3%
BO34: LIMA DIRIS SUR | BP34: 34.6% | BS34: LIMA DIRIS NORTE | BT34: 12.3% | BU34: 17.2% | BV34: 21.4% | BW34: 14.4% | BX34: 12.7% | BY34: 15.8% | BZ34: 15.8% | CA34: 17.8% | CB34: 15.7% | CC34: 15.8% | CD34: 17.3%
BO35: LIMA REGION | BP35: 74.6% | BS35: LIMA DIRIS SUR | BT35: 21.2% | BU35: 38.6% | BV35: 41.5% | BW35: 37.0% | BX35: 35.5% | BY35: 38.7% | BZ35: 38.4% | CA35: 33.4% | CB35: 35.9% | CC35: 32.5% | CD35: 25.9% | CL35: MES
BO36: LORETO | BP36: 44.4% | BS36: LIMA REGION | BT36: 68.1% | BU36: 74.1% | BV36: 79.4% | BW36: 69.3% | BX36: 73.1% | BY36: 76.6% | BZ36: 78.7% | CA36: 75.6% | CB36: 79.2% | CC36: 73.7% | CD36: 72.4% | CM36: =+CM19 -> AMAZONAS | CN36: =+CN19 -> ANCASH | CO36: APURIMAC | CP36: AREQUIPA | CQ36: AYACUCHO | CR36: CAJAMARCA | CS36: CALLAO | CT36: CUSCO | CU36: HUANCAVELICA | CV36: HUANUCO | CW36: ICA | CX36: JUNIN | CY36: LA LIBERTAD | CZ36: LAMBAYEQUE | DA36: LIMA DIRIS CENTRO | DB36: LIMA DIRIS ESTE | DC36: LIMA DIRIS NORTE | DD36: LIMA DIRIS SUR | DE36: LIMA PROVINCIAS | DF36: LORETO | DG36: MADRE DE DIOS | DH36: MOQUEGUA | DI36: PASCO | DJ36: PIURA | DK36: PUNO | DL36: SAN MARTIN | DM36: TACNA | DN36: TUMBES | DO36: UCAYALI | DP36: NACIONAL
BO37: MADRE DE DIOS | BP37: 72.2% | BS37: LORETO | BT37: 22.2% | BU37: 49.4% | BV37: 48.0% | BW37: 46.7% | BX37: 46.8% | BY37: 51.1% | BZ37: 46.2% | CA37: 45.9% | CB37: 46.1% | CC37: 44.8% | CD37: 40.4% | CL37: Enero | CM37: =+IFERROR(GETPIVOTDATA("Ind",$CL$18,"mes",$CL37,"diresa",CM$36),"-") -> 32.0% | CN37: =+IFERROR(GETPIVOTDATA("Ind",$CL$18,"mes",$CL37,"diresa",CN$36),"-") -> 49.9% | CO37: 82.3% | CP37: 22.0% | CQ37: 82.5% | CR37: 48.9% | CS37: 49.1% | CT37: 63.1% | CU37: 78.3% | CV37: 64.3% | CW37: 58.4% | CX37: 73.2% | CY37: 29.5% | CZ37: 30.2% | DA37: 7.9% | DB37: 14.1% | DC37: 12.3% | DD37: =+IFERROR(GETPIVOTDATA("Ind",$CL$18,"mes",$CL37,"diresa",DD$36),"-") -> 21.2% | DE37: 68.1% | DF37: 22.2% | DG37: 65.5% | DH37: 74.1% | DI37: 70.9% | DJ37: 46.0% | DK37: 46.7% | DL37: 41.6% | DM37: 72.3% | DN37: 84.9% | DO37: 44.6% | DP37: =GETPIVOTDATA("Ind",$CL$18,"mes",$CL37) -> 42.3%
BO38: MOQUEGUA | BP38: 74.3% | BS38: MADRE DE DIOS | BT38: 65.5% | BU38: 78.2% | BV38: 74.3% | BW38: 70.7% | BX38: 80.8% | BY38: 78.7% | BZ38: 75.2% | CA38: 71.2% | CB38: 75.5% | CC38: 69.5% | CD38: 52.6% | CL38: Febrero | CM38: =+IFERROR(GETPIVOTDATA("Ind",$CL$18,"mes",$CL38,"diresa",CM$36),"-") -> 47.3% | CN38: 64.7% | CO38: 87.8% | CP38: 34.0% | CQ38: 89.2% | CR38: 61.1% | CS38: 58.8% | CT38: 69.8% | CU38: 82.7% | CV38: 72.5% | CW38: 71.2% | CX38: 76.6% | CY38: 41.1% | CZ38: 56.6% | DA38: 19.9% | DB38: 26.9% | DC38: 17.2% | DD38: 38.6% | DE38: 74.1% | DF38: 49.4% | DG38: 78.2% | DH38: 69.7% | DI38: 73.2% | DJ38: 56.3% | DK38: 53.9% | DL38: 51.3% | DM38: 81.8% | DN38: 93.3% | DO38: 62.9% | DP38: =+IFERROR(GETPIVOTDATA("ind",$CL$18,"mes",$CL38),"-") -> 54.3%
BO39: PASCO | BP39: 71.2% | BS39: MOQUEGUA | BT39: 74.1% | BU39: 69.7% | BV39: 82.4% | BW39: 74.8% | BX39: 79.6% | BY39: 80.2% | BZ39: 77.4% | CA39: 74.5% | CB39: 73.6% | CC39: 66.3% | CD39: 61.0% | CL39: Marzo | CM39: 48.4% | CN39: 63.9% | CO39: 87.3% | CP39: 39.7% | CQ39: 85.3% | CR39: 67.8% | CS39: 60.3% | CT39: 74.7% | CU39: 86.7% | CV39: 81.7% | CW39: 70.6% | CX39: 75.6% | CY39: 48.0% | CZ39: 57.7% | DA39: 21.2% | DB39: 29.2% | DC39: 21.4% | DD39: 41.5% | DE39: 79.4% | DF39: 48.0% | DG39: 74.3% | DH39: 82.4% | DI39: 81.6% | DJ39: 60.2% | DK39: 57.3% | DL39: 58.0% | DM39: 80.0% | DN39: 91.9% | DO39: 63.7% | DP39: 56.7%
BO40: PIURA | BP40: 51.4% | BS40: PASCO | BT40: 70.9% | BU40: 73.2% | BV40: 81.6% | BW40: 76.7% | BX40: 77.8% | BY40: 76.9% | BZ40: 69.3% | CA40: 69.8% | CB40: 68.1% | CC40: 58.1% | CD40: 64.8% | CL40: Abril | CM40: 49.4% | CN40: 66.4% | CO40: 88.4% | CP40: 42.0% | CQ40: 85.6% | CR40: 65.4% | CS40: 60.1% | CT40: 73.4% | CU40: 83.1% | CV40: 83.1% | CW40: 73.2% | CX40: 72.6% | CY40: 44.6% | CZ40: 56.6% | DA40: 14.0% | DB40: 27.0% | DC40: 14.4% | DD40: 37.0% | DE40: 69.3% | DF40: 46.7% | DG40: 70.7% | DH40: 74.8% | DI40: 76.7% | DJ40: 58.4% | DK40: 52.0% | DL40: 54.1% | DM40: 83.7% | DN40: 95.1% | DO40: 59.1% | DP40: 54.6%
BO41: PUNO | BP41: 54.8% | BS41: PIURA | BT41: 46.0% | BU41: 56.3% | BV41: 60.2% | BW41: 58.4% | BX41: 50.7% | BY41: 56.0% | BZ41: 47.9% | CA41: 51.7% | CB41: 48.2% | CC41: 41.0% | CD41: 47.7% | CL41: Mayo | CM41: 51.6% | CN41: 61.9% | CO41: 87.2% | CP41: 38.7% | CQ41: 86.0% | CR41: 63.5% | CS41: 53.6% | CT41: 72.7% | CU41: 78.4% | CV41: 78.9% | CW41: 67.4% | CX41: 72.5% | CY41: 46.4% | CZ41: 54.1% | DA41: 13.2% | DB41: 23.0% | DC41: 12.7% | DD41: 35.5% | DE41: 73.1% | DF41: 46.8% | DG41: 80.8% | DH41: 79.6% | DI41: 77.8% | DJ41: 50.7% | DK41: 50.3% | DL41: 48.0% | DM41: 80.2% | DN41: 91.1% | DO41: 58.3% | DP41: 52.9%
BO42: SAN MARTIN | BP42: 50.7% | BS42: PUNO | BT42: 46.7% | BU42: 53.9% | BV42: 57.3% | BW42: 52.0% | BX42: 50.3% | BY42: 58.4% | BZ42: 57.5% | CA42: 58.5% | CB42: 57.4% | CC42: 54.3% | CD42: 57.3% | CL42: Junio | CM42: 49.5% | CN42: 65.6% | CO42: 83.9% | CP42: 47.6% | CQ42: 86.6% | CR42: 62.3% | CS42: 59.2% | CT42: 74.1% | CU42: 80.0% | CV42: 80.1% | CW42: 69.7% | CX42: 77.7% | CY42: 50.1% | CZ42: 55.2% | DA42: 16.5% | DB42: 24.1% | DC42: 15.8% | DD42: 38.7% | DE42: 76.6% | DF42: 51.1% | DG42: 78.7% | DH42: 80.2% | DI42: 76.9% | DJ42: 56.0% | DK42: 58.4% | DL42: 56.7% | DM42: 79.4% | DN42: 92.1% | DO42: 61.4% | DP42: 55.6%
BO43: TACNA | BP43: 80.8% | BS43: SAN MARTIN | BT43: 41.6% | BU43: 51.3% | BV43: 58.0% | BW43: 54.1% | BX43: 48.0% | BY43: 56.7% | BZ43: 49.0% | CA43: 49.7% | CB43: 50.9% | CC43: 48.0% | CD43: 49.4% | CL43: Julio | CM43: 47.4% | CN43: 64.0% | CO43: 86.8% | CP43: 44.0% | CQ43: 87.8% | CR43: 61.2% | CS43: 61.8% | CT43: 75.0% | CU43: 79.6% | CV43: 79.9% | CW43: 72.2% | CX43: 76.6% | CY43: 53.6% | CZ43: 55.3% | DA43: 30.9% | DB43: 26.2% | DC43: 15.8% | DD43: 38.4% | DE43: 78.7% | DF43: 46.2% | DG43: 75.2% | DH43: 77.4% | DI43: 69.3% | DJ43: 47.9% | DK43: 57.5% | DL43: 49.0% | DM43: 83.5% | DN43: 90.0% | DO43: 59.3% | DP43: 55.2%
BO44: TUMBES | BP44: 91.5% | BS44: TACNA | BT44: 72.3% | BU44: 81.8% | BV44: 80.0% | BW44: 83.7% | BX44: 80.2% | BY44: 79.4% | BZ44: 83.5% | CA44: 85.0% | CB44: 81.9% | CC44: 83.1% | CD44: 77.7% | CL44: Agosto | CM44: 49.5% | CN44: 63.8% | CO44: 83.1% | CP44: 39.6% | CQ44: 88.0% | CR44: 59.7% | CS44: 56.3% | CT44: 73.7% | CU44: 83.5% | CV44: 78.6% | CW44: 66.0% | CX44: 73.6% | CY44: 46.5% | CZ44: 54.5% | DA44: 26.1% | DB44: 23.7% | DC44: 17.8% | DD44: 33.4% | DE44: 75.6% | DF44: 45.9% | DG44: 71.2% | DH44: 74.5% | DI44: 69.8% | DJ44: 51.7% | DK44: 58.5% | DL44: 49.7% | DM44: 85.0% | DN44: 93.4% | DO44: 60.9% | DP44: 54.0%
BO45: UCAYALI | BP45: 58.8% | BS45: TUMBES | BT45: 84.9% | BU45: 93.3% | BV45: 91.9% | BW45: 95.1% | BX45: 91.1% | BY45: 92.1% | BZ45: 90.0% | CA45: 93.4% | CB45: 93.6% | CC45: 91.9% | CD45: 87.8% | CL45: Setiembre | CM45: 53.6% | CN45: 60.5% | CO45: 81.5% | CP45: 45.5% | CQ45: 86.1% | CR45: 60.9% | CS45: 59.8% | CT45: 72.5% | CU45: 86.3% | CV45: 81.5% | CW45: 71.2% | CX45: 75.2% | CY45: 45.3% | CZ45: 50.5% | DA45: 26.4% | DB45: 21.5% | DC45: 15.7% | DD45: 35.9% | DE45: 79.2% | DF45: 46.1% | DG45: 75.5% | DH45: 73.6% | DI45: 68.1% | DJ45: 48.2% | DK45: 57.4% | DL45: 50.9% | DM45: 81.9% | DN45: 93.6% | DO45: 61.6% | DP45: 54.3%
BO46: Total general | BP46: 53.0% | BS46: UCAYALI | BT46: 44.6% | BU46: 62.9% | BV46: 63.7% | BW46: 59.1% | BX46: 58.3% | BY46: 61.4% | BZ46: 59.3% | CA46: 60.9% | CB46: 61.6% | CC46: 59.2% | CD46: 55.5% | CL46: Octubre | CM46: 50.8% | CN46: 58.3% | CO46: 76.2% | CP46: 42.2% | CQ46: 82.2% | CR46: 61.6% | CS46: 63.2% | CT46: 71.1% | CU46: 73.7% | CV46: 73.0% | CW46: 65.1% | CX46: 77.2% | CY46: 47.2% | CZ46: 44.5% | DA46: 26.5% | DB46: 21.1% | DC46: 15.8% | DD46: 32.5% | DE46: 73.7% | DF46: 44.8% | DG46: 69.5% | DH46: 66.3% | DI46: 58.1% | DJ46: 41.0% | DK46: 54.3% | DL46: 48.0% | DM46: 83.1% | DN46: 91.9% | DO46: 59.2% | DP46: 51.5%
BS47: Total general | BT47: 42.3% | BU47: 54.3% | BV47: 56.7% | BW47: 54.6% | BX47: 52.9% | BY47: 55.6% | BZ47: 55.2% | CA47: 54.0% | CB47: 54.3% | CC47: 51.5% | CD47: 51.0% | CL47: Noviembre | CM47: 49.9% | CN47: 61.0% | CO47: 82.2% | CP47: 44.1% | CQ47: 79.1% | CR47: 59.5% | CS47: 54.1% | CT47: 68.0% | CU47: 75.0% | CV47: 78.2% | CW47: 69.5% | CX47: 73.7% | CY47: 41.8% | CZ47: 48.9% | DA47: 23.3% | DB47: 18.3% | DC47: 17.3% | DD47: 25.9% | DE47: 72.4% | DF47: 40.4% | DG47: 52.6% | DH47: 61.0% | DI47: 64.8% | DJ47: 47.7% | DK47: 57.3% | DL47: 49.4% | DM47: 77.7% | DN47: 87.8% | DO47: 55.5% | DP47: 51.0%
CL48: Diciembre | CM48: - | CN48: - | CO48: - | CP48: - | CQ48: - | CR48: - | CS48: - | CT48: - | CU48: - | CV48: - | CW48: - | CX48: - | CY48: - | CZ48: - | DA48: - | DB48: - | DC48: - | DD48: - | DE48: - | DF48: - | DG48: - | DH48: - | DI48: - | DJ48: - | DK48: - | DL48: - | DM48: - | DN48: - | DO48: - | DP48: -
BS50: valor
BT51: 1 | BU51: 2 | BV51: 3 | BW51: 4 | BX51: 5 | BY51: 6 | BZ51: 7 | CA51: 8 | CB51: 9 | CC51: 10 | CD51: 11 | CE51: 12 | CH51: MIN | CI51: MAX
BO52: AMAZONAS | BP52: =+IFERROR(GETPIVOTDATA("Ind",$BO$16,"diresa",$BO52),"-") -> 48.0% | BS52: AMAZONAS | BT52: =+IFERROR(GETPIVOTDATA("Ind",$BS$16,"mes",BT$51,"diresa",$BS52),"-") -> 32.0% | BU52: =+IFERROR(GETPIVOTDATA("Ind",$BS$16,"mes",BU$51,"diresa",$BS52),"-") -> 47.3% | BV52: 48.4% | BW52: 49.4% | BX52: 51.6% | BY52: 49.5% | BZ52: 47.4% | CA52: 49.5% | CB52: 53.6% | CC52: 50.8% | CD52: 49.9% | CE52: - | CG52: AMAZONAS | CH52: =+IF(BT52="-","-",MIN(BT52:CE52)) -> 32.0% | CI52: =+IF(BT52="-","-",MAX(BT52:CE52)) -> 53.6%
BO53: ANCASH | BP53: =+IFERROR(GETPIVOTDATA("Ind",$BO$16,"diresa",$BO53),"-") -> 61.9% | BS53: ANCASH | BT53: =+IFERROR(GETPIVOTDATA("Ind",$BS$16,"mes",BT$51,"diresa",$BS53),"-") -> 49.9% | BU53: 64.7% | BV53: 63.9% | BW53: 66.4% | BX53: 61.9% | BY53: 65.6% | BZ53: 64.0% | CA53: 63.8% | CB53: 60.5% | CC53: 58.3% | CD53: 61.0% | CE53: - | CG53: ANCASH | CH53: =+IF(BT53="-","-",MIN(BT53:CE53)) -> 49.9% | CI53: =+IF(BT53="-","-",MAX(BT53:CE53)) -> 66.4%
BO54: APURIMAC | BP54: =+IFERROR(GETPIVOTDATA("Ind",$BO$16,"diresa",$BO54),"-") -> 84.3% | BS54: APURIMAC | BT54: 82.3% | BU54: 87.8% | BV54: 87.3% | BW54: 88.4% | BX54: 87.2% | BY54: 83.9% | BZ54: 86.8% | CA54: 83.1% | CB54: 81.5% | CC54: 76.2% | CD54: 82.2% | CE54: - | CG54: APURIMAC | CH54: 76.2% | CI54: 88.4%
BO55: AREQUIPA | BP55: =+IFERROR(GETPIVOTDATA("Ind",$BO$16,"diresa",$BO55),"-") -> 40.0% | BS55: AREQUIPA | BT55: 22.0% | BU55: 34.0% | BV55: 39.7% | BW55: 42.0% | BX55: 38.7% | BY55: 47.6% | BZ55: 44.0% | CA55: 39.6% | CB55: 45.5% | CC55: 42.2% | CD55: 44.1% | CE55: - | CG55: AREQUIPA | CH55: 22.0% | CI55: 47.6%
BO56: AYACUCHO | BP56: =+IFERROR(GETPIVOTDATA("Ind",$BO$16,"diresa",$BO56),"-") -> 85.2% | BS56: AYACUCHO | BT56: 82.5% | BU56: 89.2% | BV56: 85.3% | BW56: 85.6% | BX56: 86.0% | BY56: 86.6% | BZ56: 87.8% | CA56: 88.0% | CB56: 86.1% | CC56: 82.2% | CD56: 79.1% | CE56: - | CG56: AYACUCHO | CH56: 79.1% | CI56: 89.2%
BO57: CAJAMARCA | BP57: =+IFERROR(GETPIVOTDATA("Ind",$BO$16,"diresa",$BO57),"-") -> 61.1% | BS57: CAJAMARCA | BT57: 48.9% | BU57: 61.1% | BV57: 67.8% | BW57: 65.4% | BX57: 63.5% | BY57: 62.3% | BZ57: 61.2% | CA57: 59.7% | CB57: 60.9% | CC57: 61.6% | CD57: 59.5% | CE57: - | CG57: CAJAMARCA | CH57: 48.9% | CI57: 67.8%
BO58: CALLAO | BP58: 57.8% | BS58: CALLAO | BT58: 49.1% | BU58: 58.8% | BV58: 60.3% | BW58: 60.1% | BX58: 53.6% | BY58: 59.2% | BZ58: 61.8% | CA58: 56.3% | CB58: 59.8% | CC58: 63.2% | CD58: 54.1% | CE58: - | CG58: CALLAO | CH58: 49.1% | CI58: 63.2%
BO59: CUSCO | BP59: 71.6% | BS59: CUSCO | BT59: 63.1% | BU59: 69.8% | BV59: 74.7% | BW59: 73.4% | BX59: 72.7% | BY59: 74.1% | BZ59: 75.0% | CA59: 73.7% | CB59: 72.5% | CC59: 71.1% | CD59: 68.0% | CE59: - | CG59: CUSCO | CH59: 63.1% | CI59: 75.0%
BO60: HUANCAVELICA | BP60: 80.7% | BS60: HUANCAVELICA | BT60: 78.3% | BU60: 82.7% | BV60: 86.7% | BW60: 83.1% | BX60: 78.4% | BY60: 80.0% | BZ60: 79.6% | CA60: 83.5% | CB60: 86.3% | CC60: 73.7% | CD60: 75.0% | CE60: - | CG60: HUANCAVELICA | CH60: 73.7% | CI60: 86.7%
BO61: HUANUCO | BP61: 77.3% | BS61: HUANUCO | BT61: 64.3% | BU61: 72.5% | BV61: 81.7% | BW61: 83.1% | BX61: 78.9% | BY61: 80.1% | BZ61: 79.9% | CA61: 78.6% | CB61: 81.5% | CC61: 73.0% | CD61: 78.2% | CE61: - | CG61: HUANUCO | CH61: 64.3% | CI61: 83.1%
BO62: ICA | BP62: 68.7% | BS62: ICA | BT62: 58.4% | BU62: 71.2% | BV62: 70.6% | BW62: 73.2% | BX62: 67.4% | BY62: 69.7% | BZ62: 72.2% | CA62: 66.0% | CB62: 71.2% | CC62: 65.1% | CD62: 69.5% | CE62: - | CG62: ICA | CH62: 58.4% | CI62: 73.2%
BO63: JUNIN | BP63: 74.9% | BS63: JUNIN | BT63: 73.2% | BU63: 76.6% | BV63: 75.6% | BW63: 72.6% | BX63: 72.5% | BY63: 77.7% | BZ63: 76.6% | CA63: 73.6% | CB63: 75.2% | CC63: 77.2% | CD63: 73.7% | CE63: - | CG63: JUNIN | CH63: 72.5% | CI63: 77.7%
BO64: LA LIBERTAD | BP64: 45.1% | BS64: LA LIBERTAD | BT64: 29.5% | BU64: 41.1% | BV64: 48.0% | BW64: 44.6% | BX64: 46.4% | BY64: 50.1% | BZ64: 53.6% | CA64: 46.5% | CB64: 45.3% | CC64: 47.2% | CD64: 41.8% | CE64: - | CG64: LA LIBERTAD | CH64: 29.5% | CI64: 53.6%
BO65: LAMBAYEQUE | BP65: 51.5% | BS65: LAMBAYEQUE | BT65: 30.2% | BU65: 56.6% | BV65: 57.7% | BW65: 56.6% | BX65: 54.1% | BY65: 55.2% | BZ65: 55.3% | CA65: 54.5% | CB65: 50.5% | CC65: 44.5% | CD65: 48.9% | CE65: - | CG65: LAMBAYEQUE | CH65: 30.2% | CI65: 57.7%
BO66: LIMA DIRIS CENTRO | BP66: 20.5% | BS66: LIMA DIRIS CENTRO | BT66: 7.9% | BU66: 19.9% | BV66: 21.2% | BW66: 14.0% | BX66: 13.2% | BY66: 16.5% | BZ66: 30.9% | CA66: 26.1% | CB66: 26.4% | CC66: 26.5% | CD66: 23.3% | CE66: - | CG66: LIMA DIRIS CENTRO | CH66: 7.9% | CI66: 30.9%
BO67: LIMA DIRIS ESTE | BP67: 23.3% | BS67: LIMA DIRIS ESTE | BT67: 14.1% | BU67: 26.9% | BV67: 29.2% | BW67: 27.0% | BX67: 23.0% | BY67: 24.1% | BZ67: 26.2% | CA67: 23.7% | CB67: 21.5% | CC67: 21.1% | CD67: 18.3% | CE67: - | CG67: LIMA DIRIS ESTE | CH67: 14.1% | CI67: 29.2%
BO68: LIMA DIRIS NORTE | BP68: 16.1% | BS68: LIMA DIRIS NORTE | BT68: 12.3% | BU68: 17.2% | BV68: 21.4% | BW68: 14.4% | BX68: 12.7% | BY68: 15.8% | BZ68: 15.8% | CA68: 17.8% | CB68: 15.7% | CC68: 15.8% | CD68: 17.3% | CE68: - | CG68: LIMA DIRIS NORTE | CH68: 12.3% | CI68: 21.4%
BO69: LIMA DIRIS SUR | BP69: 34.6% | BS69: LIMA DIRIS SUR | BT69: 21.2% | BU69: 38.6% | BV69: 41.5% | BW69: 37.0% | BX69: 35.5% | BY69: 38.7% | BZ69: 38.4% | CA69: 33.4% | CB69: 35.9% | CC69: 32.5% | CD69: 25.9% | CE69: - | CG69: LIMA DIRIS SUR | CH69: 21.2% | CI69: 41.5%
BO70: LIMA REGION | BP70: 74.6% | BS70: LIMA REGION | BT70: 68.1% | BU70: 74.1% | BV70: 79.4% | BW70: 69.3% | BX70: 73.1% | BY70: 76.6% | BZ70: 78.7% | CA70: 75.6% | CB70: 79.2% | CC70: 73.7% | CD70: 72.4% | CE70: - | CG70: LIMA PROVINCIAS | CH70: 68.1% | CI70: 79.4%
BO71: LORETO | BP71: 44.4% | BS71: LORETO | BT71: 22.2% | BU71: 49.4% | BV71: 48.0% | BW71: 46.7% | BX71: 46.8% | BY71: 51.1% | BZ71: 46.2% | CA71: 45.9% | CB71: 46.1% | CC71: 44.8% | CD71: 40.4% | CE71: - | CG71: LORETO | CH71: 22.2% | CI71: 51.1%
BO72: MADRE DE DIOS | BP72: 72.2% | BS72: MADRE DE DIOS | BT72: 65.5% | BU72: 78.2% | BV72: 74.3% | BW72: 70.7% | BX72: 80.8% | BY72: 78.7% | BZ72: 75.2% | CA72: 71.2% | CB72: 75.5% | CC72: 69.5% | CD72: 52.6% | CE72: - | CG72: MADRE DE DIOS | CH72: 52.6% | CI72: 80.8%
BO73: MOQUEGUA | BP73: 74.3% | BS73: MOQUEGUA | BT73: 74.1% | BU73: 69.7% | BV73: 82.4% | BW73: 74.8% | BX73: 79.6% | BY73: 80.2% | BZ73: 77.4% | CA73: 74.5% | CB73: 73.6% | CC73: 66.3% | CD73: 61.0% | CE73: - | CG73: MOQUEGUA | CH73: 61.0% | CI73: 82.4%
BO74: PASCO | BP74: 71.2% | BS74: PASCO | BT74: 70.9% | BU74: 73.2% | BV74: 81.6% | BW74: 76.7% | BX74: 77.8% | BY74: 76.9% | BZ74: 69.3% | CA74: 69.8% | CB74: 68.1% | CC74: 58.1% | CD74: 64.8% | CE74: - | CG74: PASCO | CH74: 58.1% | CI74: 81.6%
BO75: PIURA | BP75: 51.4% | BS75: PIURA | BT75: 46.0% | BU75: 56.3% | BV75: 60.2% | BW75: 58.4% | BX75: 50.7% | BY75: 56.0% | BZ75: 47.9% | CA75: 51.7% | CB75: 48.2% | CC75: 41.0% | CD75: 47.7% | CE75: - | CG75: PIURA | CH75: 41.0% | CI75: 60.2%
BO76: PUNO | BP76: 54.8% | BS76: PUNO | BT76: 46.7% | BU76: 53.9% | BV76: 57.3% | BW76: 52.0% | BX76: 50.3% | BY76: 58.4% | BZ76: 57.5% | CA76: 58.5% | CB76: 57.4% | CC76: 54.3% | CD76: 57.3% | CE76: - | CG76: PUNO | CH76: 46.7% | CI76: 58.5%
BO77: SAN MARTIN | BP77: 50.7% | BS77: SAN MARTIN | BT77: 41.6% | BU77: 51.3% | BV77: 58.0% | BW77: 54.1% | BX77: 48.0% | BY77: 56.7% | BZ77: 49.0% | CA77: 49.7% | CB77: 50.9% | CC77: 48.0% | CD77: 49.4% | CE77: - | CG77: SAN MARTIN | CH77: 41.6% | CI77: 58.0%
BO78: TACNA | BP78: 80.8% | BS78: TACNA | BT78: 72.3% | BU78: 81.8% | BV78: 80.0% | BW78: 83.7% | BX78: 80.2% | BY78: 79.4% | BZ78: 83.5% | CA78: 85.0% | CB78: 81.9% | CC78: 83.1% | CD78: 77.7% | CE78: - | CG78: TACNA | CH78: 72.3% | CI78: 85.0%
BO79: TUMBES | BP79: 91.5% | BS79: TUMBES | BT79: 84.9% | BU79: 93.3% | BV79: 91.9% | BW79: 95.1% | BX79: 91.1% | BY79: 92.1% | BZ79: 90.0% | CA79: 93.4% | CB79: 93.6% | CC79: 91.9% | CD79: 87.8% | CE79: - | CG79: TUMBES | CH79: 84.9% | CI79: 95.1%
BO80: UCAYALI | BP80: 58.8% | BS80: UCAYALI | BT80: 44.6% | BU80: 62.9% | BV80: 63.7% | BW80: 59.1% | BX80: 58.3% | BY80: 61.4% | BZ80: 59.3% | CA80: 60.9% | CB80: 61.6% | CC80: 59.2% | CD80: 55.5% | CE80: - | CG80: UCAYALI | CH80: 44.6% | CI80: 63.7%
BO81: NACIONAL | BP81: =+IFERROR(GETPIVOTDATA("Ind",$BO$16),"-") -> 53.0% | BS81: NACIONAL | BT81: =+IFERROR(GETPIVOTDATA("Ind",$BS$16,"mes",BT$51),"-") -> 42.3% | BU81: =+IFERROR(GETPIVOTDATA("Ind",$BS$16,"mes",BU$51),"-") -> 54.3% | BV81: 56.7% | BW81: 54.6% | BX81: 52.9% | BY81: 55.6% | BZ81: 55.2% | CA81: 54.0% | CB81: 54.3% | CC81: 51.5% | CD81: 51.0% | CE81: - | CG81: NACIONAL | CH81: 42.3% | CI81: 56.7%

Sheet DL_1153_2025_CG05
A1: =+DL1153_2025!C11 -> Ficha 05:Porcentaje de niñas y niños menores de 2 años en condición crecimiento inadecuado que luego de un periodo de seguimiento mejora sus condiciones nutricionales. | M1: eess_nombre | N1: (Todas) | BS1: 1 | DW1: 1
A2: Periodo de Evaluación: | B2: =+DL1153_2025!B42 -> Noviembre - 2025 | M2: Diris | N2: CUSCO
M3: Provincia | N3: LA CONVENCION
A4: año | B4: 2025 | M4: Distrito | N4: (Todas)
A5: mes | B5: 11 | M5: Red | N5: KIMBIRI PICHARI
A6: DIRESA/ DIRIS | B6: RED | C6: Provincia | D6: Distrito | E6: EESS | F6: Denominador: Niñas y niños menores de 730 días que en el período de evaluación, acuden al establecimiento de salud por cualquier motivo de consulta registrados con DNI en HIS y que han sido detectados en condición de crecimiento inadecuado. | G6: Numerador: Niñas y niños del denominador, que luego de un periodo de seguimiento entre 60 a 100 días recobran la condición de normalidad. | H6: Indicador: Porcentaje de niñas y niños menores de 2 años en condición crecimiento inadecuado que luego de un periodo de seguimiento mejora sus condiciones nutricionales. | I6: Numerador1: Otras faltas del desarrollo fisiológico normal esperado “R62.8” con tipo de diagnóstico “R” | J6: Numerador2: Registran en HIS un estado nutricional en condición de normalidad | M6: Mes | N6: Denominador: Niñas y niños menores de 730 días que en el período de evaluación, acuden al establecimiento de salud por cualquier motivo de consulta registrados con DNI en HIS y que han sido detectados en condición de crecimiento inadecuado. | O6: Numerador: Niñas y niños del denominador, que luego de un periodo de seguimiento entre 60 a 100 días recobran la condición de normalidad. | P6: Indicador: Porcentaje de niñas y niños menores de 2 años en condición crecimiento inadecuado que luego de un periodo de seguimiento mejora sus condiciones nutricionales. | Q6: Numerador1: Otras faltas del desarrollo fisiológico normal esperado “R62.8” con tipo de diagnóstico “R” | R6: Numerador2: Registran en HIS un estado nutricional en condición de normalidad
A7: Diris | B7: Red | C7: Provincia | D7: Distrito | E7: eess_nombre | F7: Suma de den | G7: Suma de num | H7: Suma de Ind | I7: Suma de num1 | J7: Suma de num_2 | M7: mes | N7: Suma de den | O7: Suma de num | P7: Suma de Ind | Q7: Suma de num1 | R7: Suma de num_2
A8: CUSCO | B8: KIMBIRI PICHARI | C8: LA CONVENCION | D8: PICHARI | E8: I-2 - 00015104 - TAMBO DEL ENE | F8: 1 | G8: 0 | H8: 0.0% | I8: 0 | J8: 0 | M8: 1 | N8: 12 | O8: 1 | P8: 8.3% | Q8: 0 | R8: 1
A9: CUSCO | B9: KIMBIRI PICHARI | C9: LA CONVENCION | D9: PICHARI | E9: I-2 - 00002496 - OMAYA | F9: 1 | G9: 0 | H9: 0.0% | I9: 0 | J9: 0 | M9: 2 | N9: 6 | O9: 0 | P9: 0.0% | Q9: 0 | R9: 0
A10: Total general | F10: 2 | G10: 0 | H10: 0.0% | I10: 0 | J10: 0 | M10: 3 | N10: 11 | O10: 3 | P10: 27.3% | Q10: 1 | R10: 2
M11: 4 | N11: 9 | O11: 1 | P11: 11.1% | Q11: 1 | R11: 0
M12: 5 | N12: 3 | O12: 1 | P12: 33.3% | Q12: 1 | R12: 0 | BT12: año | BU12: (Todas) | BX12: año | BY12: (Todas) | CQ12: año | CR12: (Todas)
M13: 6 | N13: 3 | O13: 2 | P13: 66.7% | Q13: 2 | R13: 0
M14: 7 | N14: 6 | O14: 3 | P14: 50.0% | Q14: 3 | R14: 0 | BT14: Diris | BU14: Suma de Ind | BX14: Suma de Ind | BY14: mes | CQ14: Suma de Ind | CR14: Diris
M15: 8 | N15: 5 | O15: 2 | P15: 40.0% | Q15: 2 | R15: 0 | BT15: AMAZONAS | BU15: 7.3% | BX15: Diris | BY15: 1 | BZ15: 2 | CA15: 3 | CB15: 4 | CC15: 5 | CD15: 6 | CE15: 7 | CF15: 8 | CG15: 9 | CH15: 10 | CI15: 11 | CQ15: mes | CR15: AMAZONAS | CS15: ANCASH | CT15: APURIMAC | CU15: AREQUIPA | CV15: AYACUCHO | CW15: CAJAMARCA | CX15: CALLAO | CY15: CUSCO | CZ15: HUANCAVELICA | DA15: HUANUCO | DB15: ICA | DC15: JUNIN | DD15: LA LIBERTAD | DE15: LAMBAYEQUE | DF15: LIMA DIRIS CENTRO | DG15: LIMA DIRIS ESTE | DH15: LIMA DIRIS NORTE | DI15: LIMA DIRIS SUR | DJ15: LIMA PROVINCIAS | DK15: LORETO | DL15: MADRE DE DIOS | DM15: MOQUEGUA | DN15: PASCO | DO15: PIURA | DP15: PUNO | DQ15: SAN MARTIN | DR15: TACNA | DS15: TUMBES | DT15: UCAYALI | DU15: Total general
M16: 9 | N16: 3 | O16: 1 | P16: 33.3% | Q16: 1 | R16: 0 | BT16: ANCASH | BU16: 16.6% | BX16: AMAZONAS | BY16: 1.0% | BZ16: 1.9% | CA16: 11.0% | CB16: 9.7% | CC16: 1.8% | CD16: 11.4% | CE16: 12.2% | CF16: 14.5% | CG16: 9.4% | CH16: 7.2% | CI16: 3.4% | CQ16: Enero | CR16: 1.0% | CS16: 7.7% | CT16: 26.8% | CU16: 4.0% | CV16: 58.8% | CW16: 1.8% | CX16: 6.5% | CY16: 7.1% | CZ16: 5.5% | DA16: 5.1% | DB16: 29.9% | DC16: 6.1% | DD16: 34.7% | DE16: 8.3% | DF16: 24.3% | DG16: 16.7% | DH16: 2.2% | DI16: 65.1% | DJ16: 13.8% | DK16: 0.4% | DL16: 3.6% | DM16: 0.0% | DN16: 4.5% | DO16: 1.5% | DP16: 2.3% | DQ16: 0.0% | DR16: 25.0% | DS16: 7.4% | DT16: 10.7% | DU16: 8.4%
M17: 10 | N17: 5 | O17: 2 | P17: 40.0% | Q17: 2 | R17: 0 | BT17: APURIMAC | BU17: 34.5% | BX17: ANCASH | BY17: 7.7% | BZ17: 12.5% | CA17: 17.7% | CB17: 15.6% | CC17: 14.2% | CD17: 15.4% | CE17: 19.0% | CF17: 22.2% | CG17: 20.5% | CH17: 24.8% | CI17: 19.5% | CQ17: Febrero | CR17: 1.9% | CS17: 12.5% | CT17: 34.8% | CU17: 21.1% | CV17: 91.7% | CW17: 12.0% | CX17: 47.7% | CY17: 21.5% | CZ17: 11.8% | DA17: 19.6% | DB17: 36.4% | DC17: 25.1% | DD17: 81.8% | DE17: 7.7% | DF17: 48.6% | DG17: 25.5% | DH17: 4.5% | DI17: 74.5% | DJ17: 19.4% | DK17: 5.2% | DL17: 4.7% | DM17: 33.3% | DN17: 80.0% | DO17: 11.2% | DP17: 16.9% | DQ17: 0.0% | DR17: 57.1% | DS17: 20.0% | DT17: 29.0% | DU17: 19.7%
M18: 11 | N18: 2 | O18: 0 | P18: 0.0% | Q18: 0 | R18: 0 | BT18: AREQUIPA | BU18: 21.6% | BX18: APURIMAC | BY18: 26.8% | BZ18: 34.8% | CA18: 39.7% | CB18: 27.4% | CC18: 33.6% | CD18: 29.6% | CE18: 43.9% | CF18: 38.1% | CG18: 35.8% | CH18: 38.5% | CI18: 33.2% | CQ18: Marzo | CR18: 11.0% | CS18: 17.7% | CT18: 39.7% | CU18: 16.3% | CV18: 93.8% | CW18: 13.6% | CX18: 62.3% | CY18: 26.8% | CZ18: 22.7% | DA18: 28.2% | DB18: 32.8% | DC18: 42.0% | DD18: 96.1% | DE18: 37.5% | DF18: 57.1% | DG18: 32.2% | DH18: 10.1% | DI18: 83.6% | DJ18: 40.4% | DK18: 3.6% | DL18: 6.2% | DM18: 60.0% | DN18: 40.0% | DO18: 12.2% | DP18: 23.4% | DQ18: 0.0% | DR18: 100.0% | DS18: 11.1% | DT18: 39.2% | DU18: 26.9%
M19: Total general | N19: 65 | O19: 16 | P19: 24.6% | Q19: 13 | R19: 3 | BT19: AYACUCHO | BU19: 85.5% | BX19: AREQUIPA | BY19: 4.0% | BZ19: 21.1% | CA19: 16.3% | CB19: 24.0% | CC19: 12.5% | CD19: 22.3% | CE19: 32.3% | CF19: 20.2% | CG19: 26.3% | CH19: 30.6% | CI19: 41.4% | CQ19: Abril | CR19: 9.7% | CS19: 15.6% | CT19: 27.4% | CU19: 24.0% | CV19: 85.7% | CW19: 17.8% | CX19: 66.7% | CY19: 31.3% | CZ19: 27.8% | DA19: 48.5% | DB19: 53.5% | DC19: 48.5% | DD19: 82.8% | DE19: 29.7% | DF19: 51.7% | DG19: 56.5% | DH19: 8.5% | DI19: 80.6% | DJ19: 39.4% | DK19: 3.7% | DL19: 4.0% | DM19: 35.7% | DN19: 15.8% | DO19: 12.7% | DP19: 18.3% | DQ19: 0.0% | DR19: 50.0% | DS19: 28.1% | DT19: 32.3% | DU19: 26.3%
BT20: CAJAMARCA | BU20: 13.7% | BX20: AYACUCHO | BY20: 58.8% | BZ20: 91.7% | CA20: 93.8% | CB20: 85.7% | CC20: 88.2% | CD20: 90.9% | CE20: 100.0% | CF20: 87.0% | CG20: 86.4% | CH20: 86.4% | CI20: 90.5% | CQ20: Mayo | CR20: 1.8% | CS20: 14.2% | CT20: 33.6% | CU20: 12.5% | CV20: 88.2% | CW20: 11.6% | CX20: 74.0% | CY20: 33.2% | CZ20: 25.0% | DA20: 51.2% | DB20: 58.5% | DC20: 44.8% | DD20: 79.7% | DE20: 25.0% | DF20: 53.6% | DG20: 48.6% | DH20: 11.7% | DI20: 75.0% | DJ20: 23.4% | DK20: 1.7% | DL20: 5.5% | DM20: 33.3% | DN20: 0.0% | DO20: 15.3% | DP20: 17.7% | DQ20: 2.9% | DR20: 6.3% | DS20: 4.8% | DT20: 28.8% | DU20: 24.4%
BT21: CALLAO | BU21: 58.1% | BX21: CAJAMARCA | BY21: 1.8% | BZ21: 12.0% | CA21: 13.6% | CB21: 17.8% | CC21: 11.6% | CD21: 10.3% | CE21: 14.4% | CF21: 19.5% | CG21: 25.1% | CH21: 17.6% | CI21: 17.9% | CQ21: Junio | CR21: 11.4% | CS21: 15.4% | CT21: 29.6% | CU21: 22.3% | CV21: 90.9% | CW21: 10.3% | CX21: 67.9% | CY21: 30.4% | CZ21: 34.1% | DA21: 37.0% | DB21: 77.8% | DC21: 46.8% | DD21: 75.0% | DE21: 34.7% | DF21: 50.0% | DG21: 50.0% | DH21: 8.9% | DI21: 94.0% | DJ21: 20.0% | DK21: 1.9% | DL21: 13.7% | DM21: 50.0% | DN21: 20.0% | DO21: 14.6% | DP21: 21.9% | DQ21: 4.3% | DR21: 40.0% | DS21: 15.6% | DT21: 40.4% | DU21: 26.9%
BT22: CUSCO | BU22: 27.4% | BX22: CALLAO | BY22: 6.5% | BZ22: 47.7% | CA22: 62.3% | CB22: 66.7% | CC22: 74.0% | CD22: 67.9% | CE22: 70.8% | CF22: 65.4% | CG22: 73.2% | CH22: 75.0% | CI22: 62.5% | CQ22: Julio | CR22: 12.2% | CS22: 19.0% | CT22: 43.9% | CU22: 32.3% | CV22: 100.0% | CW22: 14.4% | CX22: 70.8% | CY22: 37.0% | CZ22: 31.4% | DA22: 35.4% | DB22: 74.1% | DC22: 46.5% | DD22: 82.9% | DE22: 39.5% | DF22: 57.3% | DG22: 60.9% | DH22: 13.4% | DI22: 87.0% | DJ22: 25.6% | DK22: 5.8% | DL22: 11.7% | DM22: 20.0% | DN22: 28.6% | DO22: 21.1% | DP22: 34.8% | DQ22: 4.5% | DR22: 23.1% | DS22: 17.2% | DT22: 45.8% | DU22: 32.2%
BT23: HUANCAVELICA | BU23: 26.7% | BX23: CUSCO | BY23: 7.1% | BZ23: 21.5% | CA23: 26.8% | CB23: 31.3% | CC23: 33.2% | CD23: 30.4% | CE23: 37.0% | CF23: 26.5% | CG23: 28.4% | CH23: 36.7% | CI23: 32.6% | CQ23: Agosto | CR23: 14.5% | CS23: 22.2% | CT23: 38.1% | CU23: 20.2% | CV23: 87.0% | CW23: 19.5% | CX23: 65.4% | CY23: 26.5% | CZ23: 40.4% | DA23: 38.2% | DB23: 52.5% | DC23: 46.4% | DD23: 65.8% | DE23: 46.7% | DF23: 34.8% | DG23: 40.0% | DH23: 15.7% | DI23: 84.0% | DJ23: 46.7% | DK23: 3.7% | DL23: 14.9% | DM23: 38.5% | DN23: 13.3% | DO23: 29.9% | DP23: 31.8% | DQ23: 8.7% | DR23: 45.5% | DS23: 34.6% | DT23: 50.1% | DU23: 32.1%
BT24: HUANUCO | BU24: 35.3% | BX24: HUANCAVELICA | BY24: 5.5% | BZ24: 11.8% | CA24: 22.7% | CB24: 27.8% | CC24: 25.0% | CD24: 34.1% | CE24: 31.4% | CF24: 40.4% | CG24: 40.5% | CH24: 38.5% | CI24: 16.0% | CQ24: Setiembre | CR24: 9.4% | CS24: 20.5% | CT24: 35.8% | CU24: 26.3% | CV24: 86.4% | CW24: 25.1% | CX24: 73.2% | CY24: 28.4% | CZ24: 40.5% | DA24: 44.0% | DB24: 39.5% | DC24: 51.6% | DD24: 71.9% | DE24: 35.6% | DF24: 35.5% | DG24: 63.2% | DH24: 7.5% | DI24: 81.0% | DJ24: 19.5% | DK24: 4.8% | DL24: 13.7% | DM24: 14.3% | DN24: 25.9% | DO24: 29.5% | DP24: 26.7% | DQ24: 0.0% | DR24: 80.0% | DS24: 26.3% | DT24: 43.4% | DU24: 31.1%
BT25: ICA | BU25: 48.8% | BX25: HUANUCO | BY25: 5.1% | BZ25: 19.6% | CA25: 28.2% | CB25: 48.5% | CC25: 51.2% | CD25: 37.0% | CE25: 35.4% | CF25: 38.2% | CG25: 44.0% | CH25: 46.1% | CI25: 36.1% | CQ25: Octubre | CR25: 7.2% | CS25: 24.8% | CT25: 38.5% | CU25: 30.6% | CV25: 86.4% | CW25: 17.6% | CX25: 75.0% | CY25: 36.7% | CZ25: 38.5% | DA25: 46.1% | DB25: 28.6% | DC25: 49.1% | DD25: 70.4% | DE25: 42.4% | DF25: 53.3% | DG25: 44.4% | DH25: 7.6% | DI25: 88.9% | DJ25: 24.3% | DK25: 3.5% | DL25: 11.7% | DM25: 0.0% | DN25: 16.7% | DO25: 34.4% | DP25: 36.4% | DQ25: 4.8% | DR25: 53.1% | DS25: 33.3% | DT25: 39.3% | DU25: 32.2%
BT26: JUNIN | BU26: 39.7% | BX26: ICA | BY26: 29.9% | BZ26: 36.4% | CA26: 32.8% | CB26: 53.5% | CC26: 58.5% | CD26: 77.8% | CE26: 74.1% | CF26: 52.5% | CG26: 39.5% | CH26: 28.6% | CI26: 38.5% | CQ26: Noviembre | CR26: 3.4% | CS26: 19.5% | CT26: 33.2% | CU26: 41.4% | CV26: 90.5% | CW26: 17.9% | CX26: 62.5% | CY26: 32.6% | CZ26: 16.0% | DA26: 36.1% | DB26: 38.5% | DC26: 44.1% | DD26: 44.7% | DE26: 47.4% | DF26: 42.5% | DG26: 20.0% | DH26: 7.7% | DI26: 59.5% | DJ26: 12.9% | DK26: 5.3% | DL26: 11.3% | DM26: 12.5% | DN26: 9.1% | DO26: 26.3% | DP26: 25.4% | DQ26: 5.0% | DR26: 51.9% | DS26: 38.5% | DT26: 36.6% | DU26: 28.2%
BT27: LA LIBERTAD | BU27: 72.5% | BX27: JUNIN | BY27: 6.1% | BZ27: 25.1% | CA27: 42.0% | CB27: 48.5% | CC27: 44.8% | CD27: 46.8% | CE27: 46.5% | CF27: 46.4% | CG27: 51.6% | CH27: 49.1% | CI27: 44.1%
BT28: LAMBAYEQUE | BU28: 32.3% | BX28: LA LIBERTAD | BY28: 34.7% | BZ28: 81.8% | CA28: 96.1% | CB28: 82.8% | CC28: 79.7% | CD28: 75.0% | CE28: 82.9% | CF28: 65.8% | CG28: 71.9% | CH28: 70.4% | CI28: 44.7%
BT29: LIMA DIRIS CENTRO | BU29: 45.5% | BX29: LAMBAYEQUE | BY29: 8.3% | BZ29: 7.7% | CA29: 37.5% | CB29: 29.7% | CC29: 25.0% | CD29: 34.7% | CE29: 39.5% | CF29: 46.7% | CG29: 35.6% | CH29: 42.4% | CI29: 47.4%
BT30: LIMA DIRIS ESTE | BU30: 38.1% | BX30: LIMA DIRIS CENTRO | BY30: 24.3% | BZ30: 48.6% | CA30: 57.1% | CB30: 51.7% | CC30: 53.6% | CD30: 50.0% | CE30: 57.3% | CF30: 34.8% | CG30: 35.5% | CH30: 53.3% | CI30: 42.5%
BT31: LIMA DIRIS NORTE | BU31: 8.6% | BX31: LIMA DIRIS ESTE | BY31: 16.7% | BZ31: 25.5% | CA31: 32.2% | CB31: 56.5% | CC31: 48.6% | CD31: 50.0% | CE31: 60.9% | CF31: 40.0% | CG31: 63.2% | CH31: 44.4% | CI31: 20.0%
BT32: LIMA DIRIS SUR | BU32: 78.9% | BX32: LIMA DIRIS NORTE | BY32: 2.2% | BZ32: 4.5% | CA32: 10.1% | CB32: 8.5% | CC32: 11.7% | CD32: 8.9% | CE32: 13.4% | CF32: 15.7% | CG32: 7.5% | CH32: 7.6% | CI32: 7.7%
BT33: LIMA PROVINCIAS | BU33: 25.9% | BX33: LIMA DIRIS SUR | BY33: 65.1% | BZ33: 74.5% | CA33: 83.6% | CB33: 80.6% | CC33: 75.0% | CD33: 94.0% | CE33: 87.0% | CF33: 84.0% | CG33: 81.0% | CH33: 88.9% | CI33: 59.5%
BT34: LORETO | BU34: 3.3% | BX34: LIMA PROVINCIAS | BY34: 13.8% | BZ34: 19.4% | CA34: 40.4% | CB34: 39.4% | CC34: 23.4% | CD34: 20.0% | CE34: 25.6% | CF34: 46.7% | CG34: 19.5% | CH34: 24.3% | CI34: 12.9%
BT35: MADRE DE DIOS | BU35: 8.7% | BX35: LORETO | BY35: 0.4% | BZ35: 5.2% | CA35: 3.6% | CB35: 3.7% | CC35: 1.7% | CD35: 1.9% | CE35: 5.8% | CF35: 3.7% | CG35: 4.8% | CH35: 3.5% | CI35: 5.3% | CQ35: MENSUAL
BT36: MOQUEGUA | BU36: 29.0% | BX36: MADRE DE DIOS | BY36: 3.6% | BZ36: 4.7% | CA36: 6.2% | CB36: 4.0% | CC36: 5.5% | CD36: 13.7% | CE36: 11.7% | CF36: 14.9% | CG36: 13.7% | CH36: 11.7% | CI36: 11.3% | CR36: AMAZONAS | CS36: ANCASH | CT36: APURIMAC | CU36: AREQUIPA | CV36: AYACUCHO | CW36: CAJAMARCA | CX36: CALLAO | CY36: CUSCO | CZ36: HUANCAVELICA | DA36: HUANUCO | DB36: ICA | DC36: JUNIN | DD36: LA LIBERTAD | DE36: LAMBAYEQUE | DF36: LIMA DIRIS CENTRO | DG36: LIMA DIRIS ESTE | DH36: LIMA DIRIS NORTE | DI36: LIMA DIRIS SUR | DJ36: LIMA PROVINCIAS | DK36: LORETO | DL36: MADRE DE DIOS | DM36: MOQUEGUA | DN36: PASCO | DO36: PIURA | DP36: PUNO | DQ36: SAN MARTIN | DR36: TACNA | DS36: TUMBES | DT36: UCAYALI | DU36: NACIONAL
BT37: PASCO | BU37: 18.6% | BX37: MOQUEGUA | BY37: 0.0% | BZ37: 33.3% | CA37: 60.0% | CB37: 35.7% | CC37: 33.3% | CD37: 50.0% | CE37: 20.0% | CF37: 38.5% | CG37: 14.3% | CH37: 0.0% | CI37: 12.5% | CQ37: Enero | CR37: =+IFERROR(GETPIVOTDATA("Ind",$CQ$14,"Diris",CR$36,"mes",$CQ37),"-") -> 1.0% | CS37: 7.7% | CT37: 26.8% | CU37: 4.0% | CV37: 58.8% | CW37: 1.8% | CX37: 6.5% | CY37: 7.1% | CZ37: 5.5% | DA37: 5.1% | DB37: =+IFERROR(GETPIVOTDATA("Ind",$CQ$14,"Diris",DB$36,"mes",$CQ37),"-") -> 29.9% | DC37: 6.1% | DD37: 34.7% | DE37: 8.3% | DF37: 24.3% | DG37: 16.7% | DH37: 2.2% | DI37: 65.1% | DJ37: 13.8% | DK37: 0.4% | DL37: =+IFERROR(GETPIVOTDATA("Ind",$CQ$14,"Diris",DL$36,"mes",$CQ37),"-") -> 3.6% | DM37: 0.0% | DN37: 4.5% | DO37: 1.5% | DP37: 2.3% | DQ37: 0.0% | DR37: 25.0% | DS37: 7.4% | DT37: 10.7% | DU37: =+IFERROR(GETPIVOTDATA("Ind",$CQ$14,"mes",$CQ37),"-") -> 8.4%
BT38: PIURA | BU38: 19.0% | BX38: PASCO | BY38: 4.5% | BZ38: 80.0% | CA38: 40.0% | CB38: 15.8% | CC38: 0.0% | CD38: 20.0% | CE38: 28.6% | CF38: 13.3% | CG38: 25.9% | CH38: 16.7% | CI38: 9.1% | CQ38: Febrero | CR38: 1.9% | CS38: 12.5% | CT38: 34.8% | CU38: 21.1% | CV38: 91.7% | CW38: 12.0% | CX38: 47.7% | CY38: 21.5% | CZ38: 11.8% | DA38: 19.6% | DB38: 36.4% | DC38: 25.1% | DD38: 81.8% | DE38: 7.7% | DF38: 48.6% | DG38: 25.5% | DH38: 4.5% | DI38: 74.5% | DJ38: 19.4% | DK38: 5.2% | DL38: 4.7% | DM38: 33.3% | DN38: 80.0% | DO38: 11.2% | DP38: 16.9% | DQ38: 0.0% | DR38: 57.1% | DS38: 20.0% | DT38: 29.0% | DU38: 19.7%
BT39: PUNO | BU39: 21.9% | BX39: PIURA | BY39: 1.5% | BZ39: 11.2% | CA39: 12.2% | CB39: 12.7% | CC39: 15.3% | CD39: 14.6% | CE39: 21.1% | CF39: 29.9% | CG39: 29.5% | CH39: 34.4% | CI39: 26.3% | CQ39: Marzo | CR39: 11.0% | CS39: 17.7% | CT39: 39.7% | CU39: 16.3% | CV39: 93.8% | CW39: 13.6% | CX39: 62.3% | CY39: 26.8% | CZ39: 22.7% | DA39: 28.2% | DB39: 32.8% | DC39: 42.0% | DD39: 96.1% | DE39: 37.5% | DF39: 57.1% | DG39: 32.2% | DH39: 10.1% | DI39: 83.6% | DJ39: 40.4% | DK39: 3.6% | DL39: 6.2% | DM39: 60.0% | DN39: 40.0% | DO39: 12.2% | DP39: 23.4% | DQ39: 0.0% | DR39: 100.0% | DS39: 11.1% | DT39: 39.2% | DU39: 26.9%
BT40: SAN MARTIN | BU40: 2.2% | BX40: PUNO | BY40: 2.3% | BZ40: 16.9% | CA40: 23.4% | CB40: 18.3% | CC40: 17.7% | CD40: 21.9% | CE40: 34.8% | CF40: 31.8% | CG40: 26.7% | CH40: 36.4% | CI40: 25.4% | CQ40: Abril | CR40: 9.7% | CS40: 15.6% | CT40: 27.4% | CU40: 24.0% | CV40: 85.7% | CW40: 17.8% | CX40: 66.7% | CY40: 31.3% | CZ40: 27.8% | DA40: 48.5% | DB40: 53.5% | DC40: 48.5% | DD40: 82.8% | DE40: 29.7% | DF40: 51.7% | DG40: 56.5% | DH40: 8.5% | DI40: 80.6% | DJ40: 39.4% | DK40: 3.7% | DL40: 4.0% | DM40: 35.7% | DN40: 15.8% | DO40: 12.7% | DP40: 18.3% | DQ40: 0.0% | DR40: 50.0% | DS40: 28.1% | DT40: 32.3% | DU40: 26.3%
BT41: TACNA | BU41: 43.0% | BX41: SAN MARTIN | BY41: 0.0% | BZ41: 0.0% | CA41: 0.0% | CB41: 0.0% | CC41: 2.9% | CD41: 4.3% | CE41: 4.5% | CF41: 8.7% | CG41: 0.0% | CH41: 4.8% | CI41: 5.0% | CQ41: Mayo | CR41: 1.8% | CS41: 14.2% | CT41: 33.6% | CU41: 12.5% | CV41: 88.2% | CW41: 11.6% | CX41: 74.0% | CY41: 33.2% | CZ41: 25.0% | DA41: 51.2% | DB41: 58.5% | DC41: 44.8% | DD41: 79.7% | DE41: 25.0% | DF41: 53.6% | DG41: 48.6% | DH41: 11.7% | DI41: 75.0% | DJ41: 23.4% | DK41: 1.7% | DL41: 5.5% | DM41: 33.3% | DN41: 0.0% | DO41: 15.3% | DP41: 17.7% | DQ41: 2.9% | DR41: 6.3% | DS41: 4.8% | DT41: 28.8% | DU41: 24.4%
BT42: TUMBES | BU42: 20.7% | BX42: TACNA | BY42: 25.0% | BZ42: 57.1% | CA42: 100.0% | CB42: 50.0% | CC42: 6.3% | CD42: 40.0% | CE42: 23.1% | CF42: 45.5% | CG42: 80.0% | CH42: 53.1% | CI42: 51.9% | CQ42: Junio | CR42: 11.4% | CS42: 15.4% | CT42: 29.6% | CU42: 22.3% | CV42: 90.9% | CW42: 10.3% | CX42: 67.9% | CY42: 30.4% | CZ42: 34.1% | DA42: 37.0% | DB42: 77.8% | DC42: 46.8% | DD42: 75.0% | DE42: 34.7% | DF42: 50.0% | DG42: 50.0% | DH42: 8.9% | DI42: 94.0% | DJ42: 20.0% | DK42: 1.9% | DL42: 13.7% | DM42: 50.0% | DN42: 20.0% | DO42: 14.6% | DP42: 21.9% | DQ42: 4.3% | DR42: 40.0% | DS42: 15.6% | DT42: 40.4% | DU42: 26.9%
BT43: UCAYALI | BU43: 34.7% | BX43: TUMBES | BY43: 7.4% | BZ43: 20.0% | CA43: 11.1% | CB43: 28.1% | CC43: 4.8% | CD43: 15.6% | CE43: 17.2% | CF43: 34.6% | CG43: 26.3% | CH43: 33.3% | CI43: 38.5% | CQ43: Julio | CR43: 12.2% | CS43: 19.0% | CT43: 43.9% | CU43: 32.3% | CV43: 100.0% | CW43: 14.4% | CX43: 70.8% | CY43: 37.0% | CZ43: 31.4% | DA43: 35.4% | DB43: 74.1% | DC43: 46.5% | DD43: 82.9% | DE43: 39.5% | DF43: 57.3% | DG43: 60.9% | DH43: 13.4% | DI43: 87.0% | DJ43: 25.6% | DK43: 5.8% | DL43: 11.7% | DM43: 20.0% | DN43: 28.6% | DO43: 21.1% | DP43: 34.8% | DQ43: 4.5% | DR43: 23.1% | DS43: 17.2% | DT43: 45.8% | DU43: 32.2%
BT44: Total general | BU44: 25.3% | BX44: UCAYALI | BY44: 10.7% | BZ44: 29.0% | CA44: 39.2% | CB44: 32.3% | CC44: 28.8% | CD44: 40.4% | CE44: 45.8% | CF44: 50.1% | CG44: 43.4% | CH44: 39.3% | CI44: 36.6% | CQ44: Agosto | CR44: 14.5% | CS44: 22.2% | CT44: 38.1% | CU44: 20.2% | CV44: 87.0% | CW44: 19.5% | CX44: 65.4% | CY44: 26.5% | CZ44: 40.4% | DA44: 38.2% | DB44: 52.5% | DC44: 46.4% | DD44: 65.8% | DE44: 46.7% | DF44: 34.8% | DG44: 40.0% | DH44: 15.7% | DI44: 84.0% | DJ44: 46.7% | DK44: 3.7% | DL44: 14.9% | DM44: 38.5% | DN44: 13.3% | DO44: 29.9% | DP44: 31.8% | DQ44: 8.7% | DR44: 45.5% | DS44: 34.6% | DT44: 50.1% | DU44: 32.1%
BX45: Total general | BY45: 8.4% | BZ45: 19.7% | CA45: 26.9% | CB45: 26.3% | CC45: 24.4% | CD45: 26.9% | CE45: 32.2% | CF45: 32.1% | CG45: 31.1% | CH45: 32.2% | CI45: 28.2% | CQ45: Setiembre | CR45: 9.4% | CS45: 20.5% | CT45: 35.8% | CU45: 26.3% | CV45: 86.4% | CW45: 25.1% | CX45: 73.2% | CY45: 28.4% | CZ45: 40.5% | DA45: 44.0% | DB45: 39.5% | DC45: 51.6% | DD45: 71.9% | DE45: 35.6% | DF45: 35.5% | DG45: 63.2% | DH45: 7.5% | DI45: 81.0% | DJ45: 19.5% | DK45: 4.8% | DL45: 13.7% | DM45: 14.3% | DN45: 25.9% | DO45: 29.5% | DP45: 26.7% | DQ45: 0.0% | DR45: 80.0% | DS45: 26.3% | DT45: 43.4% | DU45: 31.1%
CQ46: Octubre | CR46: 7.2% | CS46: 24.8% | CT46: 38.5% | CU46: 30.6% | CV46: 86.4% | CW46: 17.6% | CX46: 75.0% | CY46: 36.7% | CZ46: 38.5% | DA46: 46.1% | DB46: 28.6% | DC46: 49.1% | DD46: 70.4% | DE46: 42.4% | DF46: 53.3% | DG46: 44.4% | DH46: 7.6% | DI46: 88.9% | DJ46: 24.3% | DK46: 3.5% | DL46: 11.7% | DM46: 0.0% | DN46: 16.7% | DO46: 34.4% | DP46: 36.4% | DQ46: 4.8% | DR46: 53.1% | DS46: 33.3% | DT46: 39.3% | DU46: 32.2%
BY47: 1 | BZ47: 2 | CA47: 3 | CB47: 4 | CC47: 5 | CD47: 6 | CE47: 7 | CF47: 8 | CG47: 9 | CH47: 10 | CI47: 11 | CJ47: 12 | CM47: MIN | CN47: MAX | CQ47: Noviembre | CR47: 3.4% | CS47: 19.5% | CT47: 33.2% | CU47: 41.4% | CV47: 90.5% | CW47: 17.9% | CX47: 62.5% | CY47: 32.6% | CZ47: 16.0% | DA47: 36.1% | DB47: 38.5% | DC47: 44.1% | DD47: 44.7% | DE47: 47.4% | DF47: 42.5% | DG47: 20.0% | DH47: 7.7% | DI47: 59.5% | DJ47: 12.9% | DK47: 5.3% | DL47: 11.3% | DM47: 12.5% | DN47: 9.1% | DO47: 26.3% | DP47: 25.4% | DQ47: 5.0% | DR47: 51.9% | DS47: 38.5% | DT47: 36.6% | DU47: 28.2%
BT48: AMAZONAS | BU48: =+IFERROR(GETPIVOTDATA("Ind",$BT$14,"Diris",$BT48),"-") -> 7.3% | BX48: AMAZONAS | BY48: =+IFERROR(GETPIVOTDATA("Ind",$BX$14,"Diris",$BX48,"mes",BY$47),"-") -> 1.0% | BZ48: =+IFERROR(GETPIVOTDATA("Ind",$BX$14,"Diris",$BX48,"mes",BZ$47),"-") -> 1.9% | CA48: 11.0% | CB48: 9.7% | CC48: 1.8% | CD48: 11.4% | CE48: 12.2% | CF48: 14.5% | CG48: 9.4% | CH48: 7.2% | CI48: 3.4% | CJ48: - | CL48: AMAZONAS | CM48: =+IF(BY48="-","-",MIN(BY48:CJ48)) -> 1.0% | CN48: =+IF(BY48="-","-",MAX(BY48:CJ48)) -> 14.5% | CQ48: Diciembre | CR48: - | CS48: - | CT48: - | CU48: - | CV48: - | CW48: - | CX48: - | CY48: - | CZ48: - | DA48: - | DB48: - | DC48: - | DD48: - | DE48: - | DF48: - | DG48: - | DH48: - | DI48: - | DJ48: - | DK48: - | DL48: - | DM48: - | DN48: - | DO48: - | DP48: - | DQ48: - | DR48: - | DS48: - | DT48: - | DU48: -
BT49: ANCASH | BU49: =+IFERROR(GETPIVOTDATA("Ind",$BT$14,"Diris",$BT49),"-") -> 16.6% | BX49: ANCASH | BY49: =+IFERROR(GETPIVOTDATA("Ind",$BX$14,"Diris",$BX49,"mes",BY$47),"-") -> 7.7% | BZ49: 12.5% | CA49: 17.7% | CB49: 15.6% | CC49: 14.2% | CD49: 15.4% | CE49: 19.0% | CF49: 22.2% | CG49: 20.5% | CH49: 24.8% | CI49: 19.5% | CJ49: - | CL49: ANCASH | CM49: =+IF(BY49="-","-",MIN(BY49:CJ49)) -> 7.7% | CN49: =+IF(BY49="-","-",MAX(BY49:CJ49)) -> 24.8%
BT50: APURIMAC | BU50: 34.5% | BX50: APURIMAC | BY50: 26.8% | BZ50: 34.8% | CA50: 39.7% | CB50: 27.4% | CC50: 33.6% | CD50: 29.6% | CE50: 43.9% | CF50: 38.1% | CG50: 35.8% | CH50: 38.5% | CI50: 33.2% | CJ50: - | CL50: APURIMAC | CM50: 26.8% | CN50: 43.9%
BT51: AREQUIPA | BU51: 21.6% | BX51: AREQUIPA | BY51: 4.0% | BZ51: 21.1% | CA51: 16.3% | CB51: 24.0% | CC51: 12.5% | CD51: 22.3% | CE51: 32.3% | CF51: 20.2% | CG51: 26.3% | CH51: 30.6% | CI51: 41.4% | CJ51: - | CL51: AREQUIPA | CM51: 4.0% | CN51: 41.4%
BT52: AYACUCHO | BU52: 85.5% | BX52: AYACUCHO | BY52: 58.8% | BZ52: 91.7% | CA52: 93.8% | CB52: 85.7% | CC52: 88.2% | CD52: 90.9% | CE52: 100.0% | CF52: 87.0% | CG52: 86.4% | CH52: 86.4% | CI52: 90.5% | CJ52: - | CL52: AYACUCHO | CM52: 58.8% | CN52: 100.0%
BT53: CAJAMARCA | BU53: 13.7% | BX53: CAJAMARCA | BY53: 1.8% | BZ53: 12.0% | CA53: 13.6% | CB53: 17.8% | CC53: 11.6% | CD53: 10.3% | CE53: 14.4% | CF53: 19.5% | CG53: 25.1% | CH53: 17.6% | CI53: 17.9% | CJ53: - | CL53: CAJAMARCA | CM53: 1.8% | CN53: 25.1%
BT54: CALLAO | BU54: 58.1% | BX54: CALLAO | BY54: 6.5% | BZ54: 47.7% | CA54: 62.3% | CB54: 66.7% | CC54: 74.0% | CD54: 67.9% | CE54: 70.8% | CF54: 65.4% | CG54: 73.2% | CH54: 75.0% | CI54: 62.5% | CJ54: - | CL54: CALLAO | CM54: 6.5% | CN54: 75.0%
BT55: CUSCO | BU55: 27.4% | BX55: CUSCO | BY55: 7.1% | BZ55: 21.5% | CA55: 26.8% | CB55: 31.3% | CC55: 33.2% | CD55: 30.4% | CE55: 37.0% | CF55: 26.5% | CG55: 28.4% | CH55: 36.7% | CI55: 32.6% | CJ55: - | CL55: CUSCO | CM55: 7.1% | CN55: 37.0%
BT56: HUANCAVELICA | BU56: 26.7% | BX56: HUANCAVELICA | BY56: 5.5% | BZ56: 11.8% | CA56: 22.7% | CB56: 27.8% | CC56: 25.0% | CD56: 34.1% | CE56: 31.4% | CF56: 40.4% | CG56: 40.5% | CH56: 38.5% | CI56: 16.0% | CJ56: - | CL56: HUANCAVELICA | CM56: 5.5% | CN56: 40.5%
BT57: HUANUCO | BU57: 35.3% | BX57: HUANUCO | BY57: 5.1% | BZ57: 19.6% | CA57: 28.2% | CB57: 48.5% | CC57: 51.2% | CD57: 37.0% | CE57: 35.4% | CF57: 38.2% | CG57: 44.0% | CH57: 46.1% | CI57: 36.1% | CJ57: - | CL57: HUANUCO | CM57: 5.1% | CN57: 51.2%
BT58: ICA | BU58: 48.8% | BX58: ICA | BY58: 29.9% | BZ58: 36.4% | CA58: 32.8% | CB58: 53.5% | CC58: 58.5% | CD58: 77.8% | CE58: 74.1% | CF58: 52.5% | CG58: 39.5% | CH58: 28.6% | CI58: 38.5% | CJ58: - | CL58: ICA | CM58: 28.6% | CN58: 77.8%
BT59: JUNIN | BU59: 39.7% | BX59: JUNIN | BY59: 6.1% | BZ59: 25.1% | CA59: 42.0% | CB59: 48.5% | CC59: 44.8% | CD59: 46.8% | CE59: 46.5% | CF59: 46.4% | CG59: 51.6% | CH59: 49.1% | CI59: 44.1% | CJ59: - | CL59: JUNIN | CM59: 6.1% | CN59: 51.6%
BT60: LA LIBERTAD | BU60: 72.5% | BX60: LA LIBERTAD | BY60: 34.7% | BZ60: 81.8% | CA60: 96.1% | CB60: 82.8% | CC60: 79.7% | CD60: 75.0% | CE60: 82.9% | CF60: 65.8% | CG60: 71.9% | CH60: 70.4% | CI60: 44.7% | CJ60: - | CL60: LA LIBERTAD | CM60: 34.7% | CN60: 96.1%
BT61: LAMBAYEQUE | BU61: 32.3% | BX61: LAMBAYEQUE | BY61: 8.3% | BZ61: 7.7% | CA61: 37.5% | CB61: 29.7% | CC61: 25.0% | CD61: 34.7% | CE61: 39.5% | CF61: 46.7% | CG61: 35.6% | CH61: 42.4% | CI61: 47.4% | CJ61: - | CL61: LAMBAYEQUE | CM61: 7.7% | CN61: 47.4%
BT62: LIMA DIRIS CENTRO | BU62: 45.5% | BX62: LIMA DIRIS CENTRO | BY62: 24.3% | BZ62: 48.6% | CA62: 57.1% | CB62: 51.7% | CC62: 53.6% | CD62: 50.0% | CE62: 57.3% | CF62: 34.8% | CG62: 35.5% | CH62: 53.3% | CI62: 42.5% | CJ62: - | CL62: LIMA DIRIS CENTRO | CM62: 24.3% | CN62: 57.3%
BT63: LIMA DIRIS ESTE | BU63: 38.1% | BX63: LIMA DIRIS ESTE | BY63: 16.7% | BZ63: 25.5% | CA63: 32.2% | CB63: 56.5% | CC63: 48.6% | CD63: 50.0% | CE63: 60.9% | CF63: 40.0% | CG63: 63.2% | CH63: 44.4% | CI63: 20.0% | CJ63: - | CL63: LIMA DIRIS ESTE | CM63: 16.7% | CN63: 63.2%
BT64: LIMA DIRIS NORTE | BU64: 8.6% | BX64: LIMA DIRIS NORTE | BY64: 2.2% | BZ64: 4.5% | CA64: 10.1% | CB64: 8.5% | CC64: 11.7% | CD64: 8.9% | CE64: 13.4% | CF64: 15.7% | CG64: 7.5% | CH64: 7.6% | CI64: 7.7% | CJ64: - | CL64: LIMA DIRIS NORTE | CM64: 2.2% | CN64: 15.7%
BT65: LIMA DIRIS SUR | BU65: 78.9% | BX65: LIMA DIRIS SUR | BY65: 65.1% | BZ65: 74.5% | CA65: 83.6% | CB65: 80.6% | CC65: 75.0% | CD65: 94.0% | CE65: 87.0% | CF65: 84.0% | CG65: 81.0% | CH65: 88.9% | CI65: 59.5% | CJ65: - | CL65: LIMA DIRIS SUR | CM65: 59.5% | CN65: 94.0%
BT66: LIMA PROVINCIAS | BU66: 25.9% | BX66: LIMA PROVINCIAS | BY66: 13.8% | BZ66: 19.4% | CA66: 40.4% | CB66: 39.4% | CC66: 23.4% | CD66: 20.0% | CE66: 25.6% | CF66: 46.7% | CG66: 19.5% | CH66: 24.3% | CI66: 12.9% | CJ66: - | CL66: LIMA PROVINCIAS | CM66: 12.9% | CN66: 46.7%
BT67: LORETO | BU67: 3.3% | BX67: LORETO | BY67: 0.4% | BZ67: 5.2% | CA67: 3.6% | CB67: 3.7% | CC67: 1.7% | CD67: 1.9% | CE67: 5.8% | CF67: 3.7% | CG67: 4.8% | CH67: 3.5% | CI67: 5.3% | CJ67: - | CL67: LORETO | CM67: 0.4% | CN67: 5.8%
BT68: MADRE DE DIOS | BU68: 8.7% | BX68: MADRE DE DIOS | BY68: 3.6% | BZ68: 4.7% | CA68: 6.2% | CB68: 4.0% | CC68: 5.5% | CD68: 13.7% | CE68: 11.7% | CF68: 14.9% | CG68: 13.7% | CH68: 11.7% | CI68: 11.3% | CJ68: - | CL68: MADRE DE DIOS | CM68: 3.6% | CN68: 14.9%
BT69: MOQUEGUA | BU69: 29.0% | BX69: MOQUEGUA | BY69: 0.0% | BZ69: 33.3% | CA69: 60.0% | CB69: 35.7% | CC69: 33.3% | CD69: 50.0% | CE69: 20.0% | CF69: 38.5% | CG69: 14.3% | CH69: 0.0% | CI69: 12.5% | CJ69: - | CL69: MOQUEGUA | CM69: 0.0% | CN69: 60.0%
BT70: PASCO | BU70: 18.6% | BX70: PASCO | BY70: 4.5% | BZ70: 80.0% | CA70: 40.0% | CB70: 15.8% | CC70: 0.0% | CD70: 20.0% | CE70: 28.6% | CF70: 13.3% | CG70: 25.9% | CH70: 16.7% | CI70: 9.1% | CJ70: - | CL70: PASCO | CM70: 0.0% | CN70: 80.0%
BT71: PIURA | BU71: 19.0% | BX71: PIURA | BY71: 1.5% | BZ71: 11.2% | CA71: 12.2% | CB71: 12.7% | CC71: 15.3% | CD71: 14.6% | CE71: 21.1% | CF71: 29.9% | CG71: 29.5% | CH71: 34.4% | CI71: 26.3% | CJ71: - | CL71: PIURA | CM71: 1.5% | CN71: 34.4%
BT72: PUNO | BU72: 21.9% | BX72: PUNO | BY72: 2.3% | BZ72: 16.9% | CA72: 23.4% | CB72: 18.3% | CC72: 17.7% | CD72: 21.9% | CE72: 34.8% | CF72: 31.8% | CG72: 26.7% | CH72: 36.4% | CI72: 25.4% | CJ72: - | CL72: PUNO | CM72: 2.3% | CN72: 36.4%
BT73: SAN MARTIN | BU73: 2.2% | BX73: SAN MARTIN | BY73: 0.0% | BZ73: 0.0% | CA73: 0.0% | CB73: 0.0% | CC73: 2.9% | CD73: 4.3% | CE73: 4.5% | CF73: 8.7% | CG73: 0.0% | CH73: 4.8% | CI73: 5.0% | CJ73: - | CL73: SAN MARTIN | CM73: 0.0% | CN73: 8.7%
BT74: TACNA | BU74: 43.0% | BX74: TACNA | BY74: 25.0% | BZ74: 57.1% | CA74: 100.0% | CB74: 50.0% | CC74: 6.3% | CD74: 40.0% | CE74: 23.1% | CF74: 45.5% | CG74: 80.0% | CH74: 53.1% | CI74: 51.9% | CJ74: - | CL74: TACNA | CM74: 6.3% | CN74: 100.0%
BT75: TUMBES | BU75: 20.7% | BX75: TUMBES | BY75: 7.4% | BZ75: 20.0% | CA75: 11.1% | CB75: 28.1% | CC75: 4.8% | CD75: 15.6% | CE75: 17.2% | CF75: 34.6% | CG75: 26.3% | CH75: 33.3% | CI75: 38.5% | CJ75: - | CL75: TUMBES | CM75: 4.8% | CN75: 38.5%
BT76: UCAYALI | BU76: 34.7% | BX76: UCAYALI | BY76: 10.7% | BZ76: 29.0% | CA76: 39.2% | CB76: 32.3% | CC76: 28.8% | CD76: 40.4% | CE76: 45.8% | CF76: 50.1% | CG76: 43.4% | CH76: 39.3% | CI76: 36.6% | CJ76: - | CL76: UCAYALI | CM76: 10.7% | CN76: 50.1%
BT77: NACIONAL | BU77: =+IFERROR(GETPIVOTDATA("Ind",$BT$14),"-") -> 25.3% | BX77: NACIONAL | BY77: =+IFERROR(GETPIVOTDATA("Ind",$BX$14,"mes",BY$47),"-") -> 8.4% | BZ77: =+IFERROR(GETPIVOTDATA("Ind",$BX$14,"mes",BZ$47),"-") -> 19.7% | CA77: 26.9% | CB77: 26.3% | CC77: 24.4% | CD77: 26.9% | CE77: 32.2% | CF77: 32.1% | CG77: 31.1% | CH77: 32.2% | CI77: 28.2% | CJ77: - | CL77: NACIONAL | CM77: 8.4% | CN77: 32.2%

Sheet DL_1153_2025_CG06
A1: =+DL1153_2025!C12 -> Ficha 06:Porcentaje de niñas y niños de 1 año vacunados con dos dosis de vacuna sarampión, parotiditis y rubeola (SPR). | BP1: 1 | DT1: 1
A2: Periodo de Evaluación: | B2: =+DL1153_2025!B42 -> Noviembre - 2025
J3: Diris | K3: CUSCO
J4: Provincia | K4: LA CONVENCION
A5: año | B5: (Todas) | J5: Red | K5: KIMBIRI PICHARI
A6: mes | B6: 11 | J6: Distrito | K6: (Todas)
A7: DIRESA/ DIRIS | B7: RED | C7: Provincia | D7: Distrito | E7: UBIGEO | F7: Denominador: Niñas/niños de 1 año del padrón nominal | G7: Numerador: Niñas/niños menores de 2 años y mayor de 1 año, que recibieron 2 dosis de la vacuna SPR registrados en HIS con código CPMS 90707 y lab 2. | H7: Indicador: Porcentaje de niñas y niños de 1 año vacunados con dos dosis de vacuna sarampión, parotiditis y rubeola (SPR). | J7: AÑO | K7: MES | L7: Denominador: Niñas/niños de 1 año del padrón nominal | M7: Numerador: Niñas/niños menores de 2 años y mayor de 1 año, que recibieron 2 dosis de la vacuna SPR registrados en HIS con código CPMS 90707 y lab 2. | N7: Indicador: Porcentaje de niñas y niños de 1 año vacunados con dos dosis de vacuna sarampión, parotiditis y rubeola (SPR).
A8: Diris | B8: Red | C8: Provincia | D8: Distrito | E8: ubigeo | F8: Denominador | G8: Numerador | H8: Indicador | J8: año | K8: mes | L8: Denominador | M8: Numerador | N8: Indicador
A9: CUSCO | B9: KIMBIRI PICHARI | C9: LA CONVENCION | D9: CIELO PUNCO | E9: 80916 | F9: 33 | G9: 37 | H9: 112.1% | J9: 2025 | K9: 1 | L9: 1,174 | M9: 97 | N9: 8.3%
A10: CUSCO | B10: KIMBIRI PICHARI | C10: LA CONVENCION | D10: KIMBIRI | E10: 80907 | F10: 251 | G10: 203 | H10: 80.9% | J10: 2025 | K10: 2 | L10: 1,174 | M10: 193 | N10: 16.4%
A11: CUSCO | B11: KIMBIRI PICHARI | C11: LA CONVENCION | D11: MANITEA | E11: 80917 | F11: 42 | G11: 42 | H11: 100.0% | J11: 2025 | K11: 3 | L11: 1,174 | M11: 292 | N11: 24.9% | BQ11: mes | BR11: 11
A12: CUSCO | B12: KIMBIRI PICHARI | C12: LA CONVENCION | D12: PICHARI | E12: 80910 | F12: 587 | G12: 434 | H12: 73.9% | J12: 2025 | K12: 4 | L12: 1,174 | M12: 359 | N12: 30.6% | BQ12: año | BR12: (Todas) | BU12: año | BV12: (Todas) | CN12: año | CO12: (Todas)
A13: CUSCO | B13: KIMBIRI PICHARI | C13: LA CONVENCION | D13: UNION ASHANINKA | E13: 80918 | F13: 176 | G13: 115 | H13: 65.3% | J13: 2025 | K13: 5 | L13: 1,174 | M13: 433 | N13: 36.9%
A14: CUSCO | B14: KIMBIRI PICHARI | C14: LA CONVENCION | D14: VILLA KINTIARINA | E14: 80913 | F14: 42 | G14: 53 | H14: 126.2% | J14: 2025 | K14: 6 | L14: 1,174 | M14: 505 | N14: 43.0% | BQ14: Diris | BR14: Suma de ind | BU14: Suma de ind | BV14: mes | CN14: Suma de ind | CO14: Diris
A15: CUSCO | B15: KIMBIRI PICHARI | C15: LA CONVENCION | D15: VILLA VIRGEN | E15: 80912 | F15: 43 | G15: 42 | H15: 97.7% | J15: 2025 | K15: 7 | L15: 1,174 | M15: 589 | N15: 50.2% | BQ15: AMAZONAS | BR15: 71.9% | BU15: Diris | BV15: 1 | BW15: 2 | BX15: 3 | BY15: 4 | BZ15: 5 | CA15: 6 | CB15: 7 | CC15: 8 | CD15: 9 | CE15: 10 | CF15: 11 | CN15: mes | CO15: AMAZONAS | CP15: ANCASH | CQ15: APURIMAC | CR15: AREQUIPA | CS15: AYACUCHO | CT15: CAJAMARCA | CU15: CALLAO | CV15: CUSCO | CW15: HUANCAVELICA | CX15: HUANUCO | CY15: ICA | CZ15: JUNIN | DA15: LA LIBERTAD | DB15: LAMBAYEQUE | DC15: LIMA DIRIS CENTRO | DD15: LIMA DIRIS ESTE | DE15: LIMA DIRIS NORTE | DF15: LIMA DIRIS SUR | DG15: LIMA PROVINCIAS | DH15: LORETO | DI15: MADRE DE DIOS | DJ15: MOQUEGUA | DK15: PASCO | DL15: PIURA | DM15: PUNO | DN15: SAN MARTIN | DO15: TACNA | DP15: TUMBES | DQ15: UCAYALI | DR15: Total general
A16: Total general | F16: 1,174 | G16: 926 | H16: 78.9% | J16: 2025 | K16: 8 | L16: 1,174 | M16: 680 | N16: 57.9% | BQ16: ANCASH | BR16: 75.7% | BU16: AMAZONAS | BV16: 6.4% | BW16: 12.2% | BX16: 19.4% | BY16: 26.0% | BZ16: 33.7% | CA16: 39.5% | CB16: 46.3% | CC16: 52.6% | CD16: 59.1% | CE16: 66.2% | CF16: 71.9% | CN16: Enero | CO16: 6.4% | CP16: 7.2% | CQ16: 7.3% | CR16: 4.1% | CS16: 7.6% | CT16: 7.2% | CU16: 6.2% | CV16: 7.1% | CW16: 8.1% | CX16: 7.3% | CY16: 6.1% | CZ16: 6.8% | DA16: 6.0% | DB16: 5.5% | DC16: 3.7% | DD16: 4.1% | DE16: 4.5% | DF16: 6.1% | DG16: 8.2% | DH16: 4.4% | DI16: 3.6% | DJ16: 5.9% | DK16: 6.3% | DL16: 6.8% | DM16: 5.0% | DN16: 6.6% | DO16: 5.1% | DP16: 7.9% | DQ16: 4.0% | DR16: 5.9%
J17: 2025 | K17: 9 | L17: 1,174 | M17: 772 | N17: 65.8% | BQ17: APURIMAC | BR17: 75.4% | BU17: ANCASH | BV17: 7.2% | BW17: 13.5% | BX17: 21.3% | BY17: 28.3% | BZ17: 35.4% | CA17: 41.6% | CB17: 47.9% | CC17: 54.7% | CD17: 61.4% | CE17: 68.9% | CF17: 75.7% | CN17: Febrero | CO17: 12.2% | CP17: 13.5% | CQ17: 13.7% | CR17: 8.2% | CS17: 14.3% | CT17: 13.2% | CU17: 11.7% | CV17: 13.2% | CW17: 15.2% | CX17: 13.6% | CY17: 11.9% | CZ17: 13.4% | DA17: 11.7% | DB17: 10.3% | DC17: 7.4% | DD17: 8.2% | DE17: 8.8% | DF17: 12.5% | DG17: 15.3% | DH17: 9.1% | DI17: 8.1% | DJ17: 11.1% | DK17: 12.0% | DL17: 13.4% | DM17: 10.3% | DN17: 12.1% | DO17: 9.6% | DP17: 15.4% | DQ17: 8.1% | DR17: 11.3%
J18: 2025 | K18: 10 | L18: 1,174 | M18: 840 | N18: 71.6% | BQ18: AREQUIPA | BR18: 49.4% | BU18: APURIMAC | BV18: 7.3% | BW18: 13.7% | BX18: 21.2% | BY18: 28.0% | BZ18: 35.2% | CA18: 41.4% | CB18: 48.4% | CC18: 55.7% | CD18: 61.9% | CE18: 69.1% | CF18: 75.4% | CN18: Marzo | CO18: 19.4% | CP18: 21.3% | CQ18: 21.2% | CR18: 12.5% | CS18: 21.6% | CT18: 20.1% | CU18: 19.3% | CV18: 20.6% | CW18: 23.9% | CX18: 21.3% | CY18: 18.4% | CZ18: 20.2% | DA18: 18.2% | DB18: 15.7% | DC18: 11.2% | DD18: 13.0% | DE18: 13.9% | DF18: 21.2% | DG18: 23.5% | DH18: 15.1% | DI18: 12.4% | DJ18: 16.5% | DK18: 18.0% | DL18: 20.3% | DM18: 16.4% | DN18: 19.1% | DO18: 15.4% | DP18: 23.9% | DQ18: 13.3% | DR18: 17.7%
J19: 2025 | K19: 11 | L19: 1,174 | M19: 926 | N19: 78.9% | BQ19: AYACUCHO | BR19: 77.4% | BU19: AREQUIPA | BV19: 4.1% | BW19: 8.2% | BX19: 12.5% | BY19: 17.2% | BZ19: 22.2% | CA19: 26.8% | CB19: 31.9% | CC19: 36.4% | CD19: 40.7% | CE19: 45.4% | CF19: 49.4% | CN19: Abril | CO19: 26.0% | CP19: 28.3% | CQ19: 28.0% | CR19: 17.2% | CS19: 29.1% | CT19: 26.7% | CU19: 25.1% | CV19: 27.2% | CW19: 31.1% | CX19: 28.3% | CY19: 24.3% | CZ19: 27.1% | DA19: 24.2% | DB19: 21.7% | DC19: 15.3% | DD19: 17.9% | DE19: 18.9% | DF19: 30.2% | DG19: 32.2% | DH19: 21.6% | DI19: 17.0% | DJ19: 22.3% | DK19: 22.9% | DL19: 26.0% | DM19: 21.8% | DN19: 26.1% | DO19: 20.9% | DP19: 31.0% | DQ19: 18.5% | DR19: 23.9%
BQ20: CAJAMARCA | BR20: 73.7% | BU20: AYACUCHO | BV20: 7.6% | BW20: 14.3% | BX20: 21.6% | BY20: 29.1% | BZ20: 35.9% | CA20: 42.2% | CB20: 48.8% | CC20: 56.1% | CD20: 63.3% | CE20: 70.9% | CF20: 77.4% | CN20: Mayo | CO20: 33.7% | CP20: 35.4% | CQ20: 35.2% | CR20: 22.2% | CS20: 35.9% | CT20: 33.5% | CU20: 30.5% | CV20: 33.7% | CW20: 38.0% | CX20: 35.4% | CY20: 29.7% | CZ20: 33.4% | DA20: 30.5% | DB20: 27.4% | DC20: 19.4% | DD20: 22.6% | DE20: 23.1% | DF20: 40.8% | DG20: 40.0% | DH20: 27.2% | DI20: 21.6% | DJ20: 26.8% | DK20: 29.2% | DL20: 31.9% | DM20: 27.4% | DN20: 32.9% | DO20: 26.9% | DP20: 38.1% | DQ20: 23.5% | DR20: 30.0%
BQ21: CALLAO | BR21: 63.4% | BU21: CAJAMARCA | BV21: 7.2% | BW21: 13.2% | BX21: 20.1% | BY21: 26.7% | BZ21: 33.5% | CA21: 39.8% | CB21: 46.4% | CC21: 53.2% | CD21: 59.6% | CE21: 66.9% | CF21: 73.7% | CN21: Junio | CO21: 39.5% | CP21: 41.6% | CQ21: 41.4% | CR21: 26.8% | CS21: 42.2% | CT21: 39.8% | CU21: 35.5% | CV21: 39.3% | CW21: 45.1% | CX21: 42.1% | CY21: 34.9% | CZ21: 39.4% | DA21: 36.1% | DB21: 32.2% | DC21: 22.7% | DD21: 27.2% | DE21: 27.1% | DF21: 48.3% | DG21: 46.8% | DH21: 32.2% | DI21: 26.7% | DJ21: 30.6% | DK21: 34.9% | DL21: 37.4% | DM21: 32.2% | DN21: 39.0% | DO21: 32.7% | DP21: 44.0% | DQ21: 28.3% | DR21: 35.4%
BQ22: CUSCO | BR22: 72.3% | BU22: CALLAO | BV22: 6.2% | BW22: 11.7% | BX22: 19.3% | BY22: 25.1% | BZ22: 30.5% | CA22: 35.5% | CB22: 41.0% | CC22: 46.3% | CD22: 51.1% | CE22: 57.3% | CF22: 63.4% | CN22: Julio | CO22: 46.3% | CP22: 47.9% | CQ22: 48.4% | CR22: 31.9% | CS22: 48.8% | CT22: 46.4% | CU22: 41.0% | CV22: 45.7% | CW22: 52.6% | CX22: 48.8% | CY22: 40.3% | CZ22: 45.8% | DA22: 41.8% | DB22: 37.0% | DC22: 25.9% | DD22: 30.9% | DE22: 30.8% | DF22: 55.6% | DG22: 53.4% | DH22: 37.6% | DI22: 32.1% | DJ22: 35.4% | DK22: 41.2% | DL22: 42.9% | DM22: 38.1% | DN22: 45.7% | DO22: 38.1% | DP22: 50.1% | DQ22: 33.3% | DR22: 41.0%
BQ23: HUANCAVELICA | BR23: 80.4% | BU23: CUSCO | BV23: 7.1% | BW23: 13.2% | BX23: 20.6% | BY23: 27.2% | BZ23: 33.7% | CA23: 39.3% | CB23: 45.7% | CC23: 52.8% | CD23: 59.5% | CE23: 66.1% | CF23: 72.3% | CN23: Agosto | CO23: 52.6% | CP23: 54.7% | CQ23: 55.7% | CR23: 36.4% | CS23: 56.1% | CT23: 53.2% | CU23: 46.3% | CV23: 52.8% | CW23: 60.3% | CX23: 55.6% | CY23: 46.0% | CZ23: 52.6% | DA23: 47.8% | DB23: 41.6% | DC23: 29.8% | DD23: 37.0% | DE23: 35.6% | DF23: 61.4% | DG23: 61.2% | DH23: 43.3% | DI23: 37.9% | DJ23: 39.6% | DK23: 48.8% | DL23: 48.5% | DM23: 43.3% | DN23: 52.6% | DO23: 43.3% | DP23: 56.0% | DQ23: 38.3% | DR23: 46.9%
BQ24: HUANUCO | BR24: 75.8% | BU24: HUANCAVELICA | BV24: 8.1% | BW24: 15.2% | BX24: 23.9% | BY24: 31.1% | BZ24: 38.0% | CA24: 45.1% | CB24: 52.6% | CC24: 60.3% | CD24: 66.7% | CE24: 74.4% | CF24: 80.4% | CN24: Setiembre | CO24: 59.1% | CP24: 61.4% | CQ24: 61.9% | CR24: 40.7% | CS24: 63.3% | CT24: 59.6% | CU24: 51.1% | CV24: 59.5% | CW24: 66.7% | CX24: 62.3% | CY24: 51.7% | CZ24: 58.9% | DA24: 53.6% | DB24: 45.8% | DC24: 33.9% | DD24: 41.3% | DE24: 39.6% | DF24: 67.5% | DG24: 68.8% | DH24: 47.6% | DI24: 43.1% | DJ24: 43.9% | DK24: 54.6% | DL24: 53.3% | DM24: 48.5% | DN24: 59.4% | DO24: 50.3% | DP24: 62.4% | DQ24: 43.0% | DR24: 52.3%
BQ25: ICA | BR25: 63.6% | BU25: HUANUCO | BV25: 7.3% | BW25: 13.6% | BX25: 21.3% | BY25: 28.3% | BZ25: 35.4% | CA25: 42.1% | CB25: 48.8% | CC25: 55.6% | CD25: 62.3% | CE25: 69.2% | CF25: 75.8% | CN25: Octubre | CO25: 66.2% | CP25: 68.9% | CQ25: 69.1% | CR25: 45.4% | CS25: 70.9% | CT25: 66.9% | CU25: 57.3% | CV25: 66.1% | CW25: 74.4% | CX25: 69.2% | CY25: 58.2% | CZ25: 66.2% | DA25: 59.6% | DB25: 51.2% | DC25: 38.3% | DD25: 47.0% | DE25: 44.2% | DF25: 72.6% | DG25: 77.0% | DH25: 52.1% | DI25: 50.1% | DJ25: 49.0% | DK25: 60.8% | DL25: 60.0% | DM25: 53.9% | DN25: 66.0% | DO25: 56.1% | DP25: 69.4% | DQ25: 48.6% | DR25: 58.4%
BQ26: JUNIN | BR26: 72.6% | BU26: ICA | BV26: 6.1% | BW26: 11.9% | BX26: 18.4% | BY26: 24.3% | BZ26: 29.7% | CA26: 34.9% | CB26: 40.3% | CC26: 46.0% | CD26: 51.7% | CE26: 58.2% | CF26: 63.6% | CN26: Noviembre | CO26: 71.9% | CP26: 75.7% | CQ26: 75.4% | CR26: 49.4% | CS26: 77.4% | CT26: 73.7% | CU26: 63.4% | CV26: 72.3% | CW26: 80.4% | CX26: 75.8% | CY26: 63.6% | CZ26: 72.6% | DA26: 65.9% | DB26: 56.2% | DC26: 41.8% | DD26: 52.4% | DE26: 48.6% | DF26: 79.2% | DG26: 84.4% | DH26: 55.8% | DI26: 56.4% | DJ26: 54.0% | DK26: 66.7% | DL26: 66.9% | DM26: 59.2% | DN26: 72.2% | DO26: 61.6% | DP26: 76.3% | DQ26: 52.6% | DR26: 64.0%
BQ27: LA LIBERTAD | BR27: 65.9% | BU27: JUNIN | BV27: 6.8% | BW27: 13.4% | BX27: 20.2% | BY27: 27.1% | BZ27: 33.4% | CA27: 39.4% | CB27: 45.8% | CC27: 52.6% | CD27: 58.9% | CE27: 66.2% | CF27: 72.6%
BQ28: LAMBAYEQUE | BR28: 56.2% | BU28: LA LIBERTAD | BV28: 6.0% | BW28: 11.7% | BX28: 18.2% | BY28: 24.2% | BZ28: 30.5% | CA28: 36.1% | CB28: 41.8% | CC28: 47.8% | CD28: 53.6% | CE28: 59.6% | CF28: 65.9%
BQ29: LIMA DIRIS CENTRO | BR29: 41.8% | BU29: LAMBAYEQUE | BV29: 5.5% | BW29: 10.3% | BX29: 15.7% | BY29: 21.7% | BZ29: 27.4% | CA29: 32.2% | CB29: 37.0% | CC29: 41.6% | CD29: 45.8% | CE29: 51.2% | CF29: 56.2%
BQ30: LIMA DIRIS ESTE | BR30: 52.4% | BU30: LIMA DIRIS CENTRO | BV30: 3.7% | BW30: 7.4% | BX30: 11.2% | BY30: 15.3% | BZ30: 19.4% | CA30: 22.7% | CB30: 25.9% | CC30: 29.8% | CD30: 33.9% | CE30: 38.3% | CF30: 41.8%
BQ31: LIMA DIRIS NORTE | BR31: 48.6% | BU31: LIMA DIRIS ESTE | BV31: 4.1% | BW31: 8.2% | BX31: 13.0% | BY31: 17.9% | BZ31: 22.6% | CA31: 27.2% | CB31: 30.9% | CC31: 37.0% | CD31: 41.3% | CE31: 47.0% | CF31: 52.4%
BQ32: LIMA DIRIS SUR | BR32: 79.2% | BU32: LIMA DIRIS NORTE | BV32: 4.5% | BW32: 8.8% | BX32: 13.9% | BY32: 18.9% | BZ32: 23.1% | CA32: 27.1% | CB32: 30.8% | CC32: 35.6% | CD32: 39.6% | CE32: 44.2% | CF32: 48.6%
BQ33: LIMA PROVINCIAS | BR33: 84.4% | BU33: LIMA DIRIS SUR | BV33: 6.1% | BW33: 12.5% | BX33: 21.2% | BY33: 30.2% | BZ33: 40.8% | CA33: 48.3% | CB33: 55.6% | CC33: 61.4% | CD33: 67.5% | CE33: 72.6% | CF33: 79.2%
BQ34: LORETO | BR34: 55.8% | BU34: LIMA PROVINCIAS | BV34: 8.2% | BW34: 15.3% | BX34: 23.5% | BY34: 32.2% | BZ34: 40.0% | CA34: 46.8% | CB34: 53.4% | CC34: 61.2% | CD34: 68.8% | CE34: 77.0% | CF34: 84.4%
BQ35: MADRE DE DIOS | BR35: 56.4% | BU35: LORETO | BV35: 4.4% | BW35: 9.1% | BX35: 15.1% | BY35: 21.6% | BZ35: 27.2% | CA35: 32.2% | CB35: 37.6% | CC35: 43.3% | CD35: 47.6% | CE35: 52.1% | CF35: 55.8%
BQ36: MOQUEGUA | BR36: 54.0% | BU36: MADRE DE DIOS | BV36: 3.6% | BW36: 8.1% | BX36: 12.4% | BY36: 17.0% | BZ36: 21.6% | CA36: 26.7% | CB36: 32.1% | CC36: 37.9% | CD36: 43.1% | CE36: 50.1% | CF36: 56.4% | CO36: AMAZONAS | CP36: ANCASH | CQ36: APURIMAC | CR36: AREQUIPA | CS36: AYACUCHO | CT36: CAJAMARCA | CU36: CALLAO | CV36: CUSCO | CW36: HUANCAVELICA | CX36: HUANUCO | CY36: ICA | CZ36: JUNIN | DA36: LA LIBERTAD | DB36: LAMBAYEQUE | DC36: LIMA DIRIS CENTRO | DD36: LIMA DIRIS ESTE | DE36: LIMA DIRIS NORTE | DF36: LIMA DIRIS SUR | DG36: LIMA PROVINCIAS | DH36: LORETO | DI36: MADRE DE DIOS | DJ36: MOQUEGUA | DK36: PASCO | DL36: PIURA | DM36: PUNO | DN36: SAN MARTIN | DO36: TACNA | DP36: TUMBES | DQ36: UCAYALI | DR36: NACIONAL
BQ37: PASCO | BR37: 66.7% | BU37: MOQUEGUA | BV37: 5.9% | BW37: 11.1% | BX37: 16.5% | BY37: 22.3% | BZ37: 26.8% | CA37: 30.6% | CB37: 35.4% | CC37: 39.6% | CD37: 43.9% | CE37: 49.0% | CF37: 54.0% | CN37: Enero | CO37: =+IFERROR(GETPIVOTDATA("ind",$CN$14,"Diris",CO$36,"mes",$CN37),"-") -> 6.4% | CP37: 7.2% | CQ37: 7.3% | CR37: 4.1% | CS37: 7.6% | CT37: 7.2% | CU37: 6.2% | CV37: 7.1% | CW37: 8.1% | CX37: 7.3% | CY37: =+IFERROR(GETPIVOTDATA("ind",$CN$14,"Diris",CY$36,"mes",$CN37),"-") -> 6.1% | CZ37: 6.8% | DA37: 6.0% | DB37: 5.5% | DC37: 3.7% | DD37: 4.1% | DE37: 4.5% | DF37: 6.1% | DG37: 8.2% | DH37: 4.4% | DI37: =+IFERROR(GETPIVOTDATA("ind",$CN$14,"Diris",DI$36,"mes",$CN37),"-") -> 3.6% | DJ37: 5.9% | DK37: 6.3% | DL37: 6.8% | DM37: 5.0% | DN37: 6.6% | DO37: 5.1% | DP37: 7.9% | DQ37: 4.0% | DR37: =+IFERROR(GETPIVOTDATA("ind",$CN$14,"mes",$CN37),"-") -> 5.9%
BQ38: PIURA | BR38: 66.9% | BU38: PASCO | BV38: 6.3% | BW38: 12.0% | BX38: 18.0% | BY38: 22.9% | BZ38: 29.2% | CA38: 34.9% | CB38: 41.2% | CC38: 48.8% | CD38: 54.6% | CE38: 60.8% | CF38: 66.7% | CN38: Febrero | CO38: 12.18% | CP38: 13.55% | CQ38: 13.75% | CR38: 8.19% | CS38: 14.29% | CT38: 13.18% | CU38: 11.70% | CV38: 13.24% | CW38: 15.23% | CX38: 13.60% | CY38: 11.92% | CZ38: 13.42% | DA38: 11.66% | DB38: 10.35% | DC38: 7.40% | DD38: 8.21% | DE38: 8.76% | DF38: 12.49% | DG38: 15.33% | DH38: 9.14% | DI38: 8.15% | DJ38: 11.11% | DK38: 12.00% | DL38: 13.37% | DM38: 10.26% | DN38: 12.12% | DO38: 9.55% | DP38: 15.42% | DQ38: 8.06% | DR38: 11.3%
BQ39: PUNO | BR39: 59.2% | BU39: PIURA | BV39: 6.8% | BW39: 13.4% | BX39: 20.3% | BY39: 26.0% | BZ39: 31.9% | CA39: 37.4% | CB39: 42.9% | CC39: 48.5% | CD39: 53.3% | CE39: 60.0% | CF39: 66.9% | CN39: Marzo | CO39: 19.42% | CP39: 21.28% | CQ39: 21.20% | CR39: 12.53% | CS39: 21.59% | CT39: 20.06% | CU39: 19.33% | CV39: 20.60% | CW39: 23.89% | CX39: 21.35% | CY39: 18.44% | CZ39: 20.24% | DA39: 18.16% | DB39: 15.65% | DC39: 11.22% | DD39: 13.01% | DE39: 13.87% | DF39: 21.23% | DG39: 23.53% | DH39: 15.14% | DI39: 12.45% | DJ39: 16.54% | DK39: 18.02% | DL39: 20.27% | DM39: 16.38% | DN39: 19.08% | DO39: 15.43% | DP39: 23.90% | DQ39: 13.27% | DR39: 17.7%
BQ40: SAN MARTIN | BR40: 72.2% | BU40: PUNO | BV40: 5.0% | BW40: 10.3% | BX40: 16.4% | BY40: 21.8% | BZ40: 27.4% | CA40: 32.2% | CB40: 38.1% | CC40: 43.3% | CD40: 48.5% | CE40: 53.9% | CF40: 59.2% | CN40: Abril | CO40: 26.01% | CP40: 28.33% | CQ40: 28.01% | CR40: 17.16% | CS40: 29.13% | CT40: 26.67% | CU40: 25.09% | CV40: 27.17% | CW40: 31.15% | CX40: 28.34% | CY40: 24.30% | CZ40: 27.11% | DA40: 24.22% | DB40: 21.69% | DC40: 15.27% | DD40: 17.89% | DE40: 18.86% | DF40: 30.24% | DG40: 32.17% | DH40: 21.55% | DI40: 17.02% | DJ40: 22.32% | DK40: 22.89% | DL40: 25.99% | DM40: 21.78% | DN40: 26.12% | DO40: 20.90% | DP40: 31.03% | DQ40: 18.46% | DR40: 23.9%
BQ41: TACNA | BR41: 61.6% | BU41: SAN MARTIN | BV41: 6.6% | BW41: 12.1% | BX41: 19.1% | BY41: 26.1% | BZ41: 32.9% | CA41: 39.0% | CB41: 45.7% | CC41: 52.6% | CD41: 59.4% | CE41: 66.0% | CF41: 72.2% | CN41: Mayo | CO41: 33.66% | CP41: 35.35% | CQ41: 35.22% | CR41: 22.17% | CS41: 35.86% | CT41: 33.53% | CU41: 30.50% | CV41: 33.69% | CW41: 38.02% | CX41: 35.38% | CY41: 29.74% | CZ41: 33.36% | DA41: 30.51% | DB41: 27.35% | DC41: 19.38% | DD41: 22.56% | DE41: 23.15% | DF41: 40.85% | DG41: 39.99% | DH41: 27.23% | DI41: 21.65% | DJ41: 26.78% | DK41: 29.15% | DL41: 31.87% | DM41: 27.39% | DN41: 32.86% | DO41: 26.86% | DP41: 38.13% | DQ41: 23.51% | DR41: 30.0%
BQ42: TUMBES | BR42: 76.3% | BU42: TACNA | BV42: 5.1% | BW42: 9.6% | BX42: 15.4% | BY42: 20.9% | BZ42: 26.9% | CA42: 32.7% | CB42: 38.1% | CC42: 43.3% | CD42: 50.3% | CE42: 56.1% | CF42: 61.6% | CN42: Junio | CO42: 39.51% | CP42: 41.64% | CQ42: 41.40% | CR42: 26.82% | CS42: 42.22% | CT42: 39.75% | CU42: 35.53% | CV42: 39.31% | CW42: 45.08% | CX42: 42.05% | CY42: 34.92% | CZ42: 39.37% | DA42: 36.12% | DB42: 32.17% | DC42: 22.66% | DD42: 27.15% | DE42: 27.12% | DF42: 48.31% | DG42: 46.81% | DH42: 32.23% | DI42: 26.70% | DJ42: 30.57% | DK42: 34.91% | DL42: 37.37% | DM42: 32.16% | DN42: 39.00% | DO42: 32.73% | DP42: 44.04% | DQ42: 28.30% | DR42: 35.4%
BQ43: UCAYALI | BR43: 52.6% | BU43: TUMBES | BV43: 7.9% | BW43: 15.4% | BX43: 23.9% | BY43: 31.0% | BZ43: 38.1% | CA43: 44.0% | CB43: 50.1% | CC43: 56.0% | CD43: 62.4% | CE43: 69.4% | CF43: 76.3% | CN43: Julio | CO43: 46.29% | CP43: 47.92% | CQ43: 48.37% | CR43: 31.86% | CS43: 48.77% | CT43: 46.42% | CU43: 40.97% | CV43: 45.71% | CW43: 52.62% | CX43: 48.80% | CY43: 40.29% | CZ43: 45.78% | DA43: 41.77% | DB43: 36.98% | DC43: 25.93% | DD43: 30.94% | DE43: 30.83% | DF43: 55.62% | DG43: 53.39% | DH43: 37.61% | DI43: 32.14% | DJ43: 35.38% | DK43: 41.23% | DL43: 42.85% | DM43: 38.05% | DN43: 45.68% | DO43: 38.10% | DP43: 50.11% | DQ43: 33.31% | DR43: 41.0%
BQ44: Total general | BR44: 64.0% | BU44: UCAYALI | BV44: 4.0% | BW44: 8.1% | BX44: 13.3% | BY44: 18.5% | BZ44: 23.5% | CA44: 28.3% | CB44: 33.3% | CC44: 38.3% | CD44: 43.0% | CE44: 48.6% | CF44: 52.6% | CN44: Agosto | CO44: 52.59% | CP44: 54.67% | CQ44: 55.66% | CR44: 36.37% | CS44: 56.13% | CT44: 53.24% | CU44: 46.26% | CV44: 52.76% | CW44: 60.33% | CX44: 55.62% | CY44: 46.02% | CZ44: 52.57% | DA44: 47.82% | DB44: 41.63% | DC44: 29.81% | DD44: 36.98% | DE44: 35.60% | DF44: 61.36% | DG44: 61.24% | DH44: 43.35% | DI44: 37.94% | DJ44: 39.58% | DK44: 48.83% | DL44: 48.49% | DM44: 43.32% | DN44: 52.64% | DO44: 43.33% | DP44: 56.02% | DQ44: 38.27% | DR44: 46.9%
BU45: Total general | BV45: 5.9% | BW45: 11.3% | BX45: 17.7% | BY45: 23.9% | BZ45: 30.0% | CA45: 35.4% | CB45: 41.0% | CC45: 46.9% | CD45: 52.3% | CE45: 58.4% | CF45: 64.0% | CN45: Setiembre | CO45: 59.09% | CP45: 61.45% | CQ45: 61.92% | CR45: 40.73% | CS45: 63.30% | CT45: 59.64% | CU45: 51.09% | CV45: 59.50% | CW45: 66.73% | CX45: 62.31% | CY45: 51.66% | CZ45: 58.89% | DA45: 53.59% | DB45: 45.81% | DC45: 33.92% | DD45: 41.29% | DE45: 39.59% | DF45: 67.48% | DG45: 68.82% | DH45: 47.62% | DI45: 43.11% | DJ45: 43.88% | DK45: 54.59% | DL45: 53.30% | DM45: 48.50% | DN45: 59.40% | DO45: 50.27% | DP45: 62.36% | DQ45: 42.98% | DR45: 52.3%
CN46: Octubre | CO46: 66.22% | CP46: 68.92% | CQ46: 69.10% | CR46: 45.35% | CS46: 70.93% | CT46: 66.86% | CU46: 57.29% | CV46: 66.13% | CW46: 74.37% | CX46: 69.24% | CY46: 58.22% | CZ46: 66.24% | DA46: 59.64% | DB46: 51.21% | DC46: 38.26% | DD46: 47.01% | DE46: 44.19% | DF46: 72.63% | DG46: 76.95% | DH46: 52.14% | DI46: 50.06% | DJ46: 49.00% | DK46: 60.83% | DL46: 60.02% | DM46: 53.86% | DN46: 66.03% | DO46: 56.08% | DP46: 69.40% | DQ46: 48.65% | DR46: 58.4%
CN47: Noviembre | CO47: 71.86% | CP47: 75.73% | CQ47: 75.45% | CR47: 49.39% | CS47: 77.43% | CT47: 73.71% | CU47: 63.39% | CV47: 72.27% | CW47: 80.44% | CX47: 75.76% | CY47: 63.60% | CZ47: 72.57% | DA47: 65.87% | DB47: 56.24% | DC47: 41.79% | DD47: 52.36% | DE47: 48.59% | DF47: 79.25% | DG47: 84.35% | DH47: 55.85% | DI47: 56.40% | DJ47: 53.97% | DK47: 66.72% | DL47: 66.88% | DM47: 59.16% | DN47: 72.25% | DO47: 61.56% | DP47: 76.29% | DQ47: 52.56% | DR47: 64.0%
CN48: Diciembre | CO48: - | CP48: - | CQ48: - | CR48: - | CS48: - | CT48: - | CU48: - | CV48: - | CW48: - | CX48: - | CY48: - | CZ48: - | DA48: - | DB48: - | DC48: - | DD48: - | DE48: - | DF48: - | DG48: - | DH48: - | DI48: - | DJ48: - | DK48: - | DL48: - | DM48: - | DN48: - | DO48: - | DP48: - | DQ48: - | DR48: -
BV50: 1 | BW50: 2 | BX50: 3 | BY50: 4 | BZ50: 5 | CA50: 6 | CB50: 7 | CC50: 8 | CD50: 9 | CE50: 10 | CF50: 11 | CG50: 12 | CJ50: MIN | CK50: MAX
BQ51: AMAZONAS | BR51: =+IFERROR(GETPIVOTDATA("ind",$BQ$14,"Diris",$BQ51),"-") -> 71.9% | BU51: AMAZONAS | BV51: =+IFERROR(GETPIVOTDATA("ind",$BU$14,"Diris",$BU51,"mes",BV$50),"-") -> 6.4% | BW51: =+IFERROR(GETPIVOTDATA("ind",$BU$14,"Diris",$BU51,"mes",BW$50),"-") -> 12.2% | BX51: 19.4% | BY51: 26.0% | BZ51: 33.7% | CA51: 39.5% | CB51: 46.3% | CC51: 52.6% | CD51: 59.1% | CE51: 66.2% | CF51: 71.9% | CG51: - | CI51: AMAZONAS | CJ51: =+IF(BV51="-","-",MIN(BV51:CG51)) -> 6.4% | CK51: =+IF(BV51="-","-",MAX(BV51:CG51)) -> 71.9%
BQ52: ANCASH | BR52: =+IFERROR(GETPIVOTDATA("ind",$BQ$14,"Diris",$BQ52),"-") -> 75.7% | BU52: ANCASH | BV52: =+IFERROR(GETPIVOTDATA("ind",$BU$14,"Diris",$BU52,"mes",BV$50),"-") -> 7.2% | BW52: 13.5% | BX52: 21.3% | BY52: 28.3% | BZ52: 35.4% | CA52: 41.6% | CB52: 47.9% | CC52: 54.7% | CD52: 61.4% | CE52: 68.9% | CF52: 75.7% | CG52: - | CI52: ANCASH | CJ52: =+IF(BV52="-","-",MIN(BV52:CG52)) -> 7.2% | CK52: =+IF(BV52="-","-",MAX(BV52:CG52)) -> 75.7%
BQ53: APURIMAC | BR53: 75.4% | BU53: APURIMAC | BV53: 7.3% | BW53: 13.7% | BX53: 21.2% | BY53: 28.0% | BZ53: 35.2% | CA53: 41.4% | CB53: 48.4% | CC53: 55.7% | CD53: 61.9% | CE53: 69.1% | CF53: 75.4% | CG53: - | CI53: APURIMAC | CJ53: 7.3% | CK53: 75.4%
BQ54: AREQUIPA | BR54: 49.4% | BU54: AREQUIPA | BV54: 4.1% | BW54: 8.2% | BX54: 12.5% | BY54: 17.2% | BZ54: 22.2% | CA54: 26.8% | CB54: 31.9% | CC54: 36.4% | CD54: 40.7% | CE54: 45.4% | CF54: 49.4% | CG54: - | CI54: AREQUIPA | CJ54: 4.1% | CK54: 49.4%
BQ55: AYACUCHO | BR55: 77.4% | BU55: AYACUCHO | BV55: 7.6% | BW55: 14.3% | BX55: 21.6% | BY55: 29.1% | BZ55: 35.9% | CA55: 42.2% | CB55: 48.8% | CC55: 56.1% | CD55: 63.3% | CE55: 70.9% | CF55: 77.4% | CG55: - | CI55: AYACUCHO | CJ55: 7.6% | CK55: 77.4%
BQ56: CAJAMARCA | BR56: 73.7% | BU56: CAJAMARCA | BV56: 7.2% | BW56: 13.2% | BX56: 20.1% | BY56: 26.7% | BZ56: 33.5% | CA56: 39.8% | CB56: 46.4% | CC56: 53.2% | CD56: 59.6% | CE56: 66.9% | CF56: 73.7% | CG56: - | CI56: CAJAMARCA | CJ56: 7.2% | CK56: 73.7%
BQ57: CALLAO | BR57: 63.4% | BU57: CALLAO | BV57: 6.2% | BW57: 11.7% | BX57: 19.3% | BY57: 25.1% | BZ57: 30.5% | CA57: 35.5% | CB57: 41.0% | CC57: 46.3% | CD57: 51.1% | CE57: 57.3% | CF57: 63.4% | CG57: - | CI57: CALLAO | CJ57: 6.2% | CK57: 63.4%
BQ58: CUSCO | BR58: 72.3% | BU58: CUSCO | BV58: 7.1% | BW58: 13.2% | BX58: 20.6% | BY58: 27.2% | BZ58: 33.7% | CA58: 39.3% | CB58: 45.7% | CC58: 52.8% | CD58: 59.5% | CE58: 66.1% | CF58: 72.3% | CG58: - | CI58: CUSCO | CJ58: 7.1% | CK58: 72.3%
BQ59: HUANCAVELICA | BR59: 80.4% | BU59: HUANCAVELICA | BV59: 8.1% | BW59: 15.2% | BX59: 23.9% | BY59: 31.1% | BZ59: 38.0% | CA59: 45.1% | CB59: 52.6% | CC59: 60.3% | CD59: 66.7% | CE59: 74.4% | CF59: 80.4% | CG59: - | CI59: HUANCAVELICA | CJ59: 8.1% | CK59: 80.4%
BQ60: HUANUCO | BR60: 75.8% | BU60: HUANUCO | BV60: 7.3% | BW60: 13.6% | BX60: 21.3% | BY60: 28.3% | BZ60: 35.4% | CA60: 42.1% | CB60: 48.8% | CC60: 55.6% | CD60: 62.3% | CE60: 69.2% | CF60: 75.8% | CG60: - | CI60: HUANUCO | CJ60: 7.3% | CK60: 75.8%
BQ61: ICA | BR61: 63.6% | BU61: ICA | BV61: 6.1% | BW61: 11.9% | BX61: 18.4% | BY61: 24.3% | BZ61: 29.7% | CA61: 34.9% | CB61: 40.3% | CC61: 46.0% | CD61: 51.7% | CE61: 58.2% | CF61: 63.6% | CG61: - | CI61: ICA | CJ61: 6.1% | CK61: 63.6%
BQ62: JUNIN | BR62: 72.6% | BU62: JUNIN | BV62: 6.8% | BW62: 13.4% | BX62: 20.2% | BY62: 27.1% | BZ62: 33.4% | CA62: 39.4% | CB62: 45.8% | CC62: 52.6% | CD62: 58.9% | CE62: 66.2% | CF62: 72.6% | CG62: - | CI62: JUNIN | CJ62: 6.8% | CK62: 72.6%
BQ63: LA LIBERTAD | BR63: 65.9% | BU63: LA LIBERTAD | BV63: 6.0% | BW63: 11.7% | BX63: 18.2% | BY63: 24.2% | BZ63: 30.5% | CA63: 36.1% | CB63: 41.8% | CC63: 47.8% | CD63: 53.6% | CE63: 59.6% | CF63: 65.9% | CG63: - | CI63: LA LIBERTAD | CJ63: 6.0% | CK63: 65.9%
BQ64: LAMBAYEQUE | BR64: 56.2% | BU64: LAMBAYEQUE | BV64: 5.5% | BW64: 10.3% | BX64: 15.7% | BY64: 21.7% | BZ64: 27.4% | CA64: 32.2% | CB64: 37.0% | CC64: 41.6% | CD64: 45.8% | CE64: 51.2% | CF64: 56.2% | CG64: - | CI64: LAMBAYEQUE | CJ64: 5.5% | CK64: 56.2%
BQ65: LIMA DIRIS CENTRO | BR65: 41.8% | BU65: LIMA DIRIS CENTRO | BV65: 3.7% | BW65: 7.4% | BX65: 11.2% | BY65: 15.3% | BZ65: 19.4% | CA65: 22.7% | CB65: 25.9% | CC65: 29.8% | CD65: 33.9% | CE65: 38.3% | CF65: 41.8% | CG65: - | CI65: LIMA DIRIS CENTRO | CJ65: 3.7% | CK65: 41.8%
BQ66: LIMA DIRIS ESTE | BR66: 52.4% | BU66: LIMA DIRIS ESTE | BV66: 4.1% | BW66: 8.2% | BX66: 13.0% | BY66: 17.9% | BZ66: 22.6% | CA66: 27.2% | CB66: 30.9% | CC66: 37.0% | CD66: 41.3% | CE66: 47.0% | CF66: 52.4% | CG66: - | CI66: LIMA DIRIS ESTE | CJ66: 4.1% | CK66: 52.4%
BQ67: LIMA DIRIS NORTE | BR67: 48.6% | BU67: LIMA DIRIS NORTE | BV67: 4.5% | BW67: 8.8% | BX67: 13.9% | BY67: 18.9% | BZ67: 23.1% | CA67: 27.1% | CB67: 30.8% | CC67: 35.6% | CD67: 39.6% | CE67: 44.2% | CF67: 48.6% | CG67: - | CI67: LIMA DIRIS NORTE | CJ67: 4.5% | CK67: 48.6%
BQ68: LIMA DIRIS SUR | BR68: 79.2% | BU68: LIMA DIRIS SUR | BV68: 6.1% | BW68: 12.5% | BX68: 21.2% | BY68: 30.2% | BZ68: 40.8% | CA68: 48.3% | CB68: 55.6% | CC68: 61.4% | CD68: 67.5% | CE68: 72.6% | CF68: 79.2% | CG68: - | CI68: LIMA DIRIS SUR | CJ68: 6.1% | CK68: 79.2%
BQ69: LIMA PROVINCIAS | BR69: 84.4% | BU69: LIMA PROVINCIAS | BV69: 8.2% | BW69: 15.3% | BX69: 23.5% | BY69: 32.2% | BZ69: 40.0% | CA69: 46.8% | CB69: 53.4% | CC69: 61.2% | CD69: 68.8% | CE69: 77.0% | CF69: 84.4% | CG69: - | CI69: LIMA PROVINCIAS | CJ69: 8.2% | CK69: 84.4%
BQ70: LORETO | BR70: 55.8% | BU70: LORETO | BV70: 4.4% | BW70: 9.1% | BX70: 15.1% | BY70: 21.6% | BZ70: 27.2% | CA70: 32.2% | CB70: 37.6% | CC70: 43.3% | CD70: 47.6% | CE70: 52.1% | CF70: 55.8% | CG70: - | CI70: LORETO | CJ70: 4.4% | CK70: 55.8%
BQ71: MADRE DE DIOS | BR71: 56.4% | BU71: MADRE DE DIOS | BV71: 3.6% | BW71: 8.1% | BX71: 12.4% | BY71: 17.0% | BZ71: 21.6% | CA71: 26.7% | CB71: 32.1% | CC71: 37.9% | CD71: 43.1% | CE71: 50.1% | CF71: 56.4% | CG71: - | CI71: MADRE DE DIOS | CJ71: 3.6% | CK71: 56.4%
BQ72: MOQUEGUA | BR72: 54.0% | BU72: MOQUEGUA | BV72: 5.9% | BW72: 11.1% | BX72: 16.5% | BY72: 22.3% | BZ72: 26.8% | CA72: 30.6% | CB72: 35.4% | CC72: 39.6% | CD72: 43.9% | CE72: 49.0% | CF72: 54.0% | CG72: - | CI72: MOQUEGUA | CJ72: 5.9% | CK72: 54.0%
BQ73: PASCO | BR73: 66.7% | BU73: PASCO | BV73: 6.3% | BW73: 12.0% | BX73: 18.0% | BY73: 22.9% | BZ73: 29.2% | CA73: 34.9% | CB73: 41.2% | CC73: 48.8% | CD73: 54.6% | CE73: 60.8% | CF73: 66.7% | CG73: - | CI73: PASCO | CJ73: 6.3% | CK73: 66.7%
BQ74: PIURA | BR74: 66.9% | BU74: PIURA | BV74: 6.8% | BW74: 13.4% | BX74: 20.3% | BY74: 26.0% | BZ74: 31.9% | CA74: 37.4% | CB74: 42.9% | CC74: 48.5% | CD74: 53.3% | CE74: 60.0% | CF74: 66.9% | CG74: - | CI74: PIURA | CJ74: 6.8% | CK74: 66.9%
BQ75: PUNO | BR75: 59.2% | BU75: PUNO | BV75: 5.0% | BW75: 10.3% | BX75: 16.4% | BY75: 21.8% | BZ75: 27.4% | CA75: 32.2% | CB75: 38.1% | CC75: 43.3% | CD75: 48.5% | CE75: 53.9% | CF75: 59.2% | CG75: - | CI75: PUNO | CJ75: 5.0% | CK75: 59.2%
BQ76: SAN MARTIN | BR76: 72.2% | BU76: SAN MARTIN | BV76: 6.6% | BW76: 12.1% | BX76: 19.1% | BY76: 26.1% | BZ76: 32.9% | CA76: 39.0% | CB76: 45.7% | CC76: 52.6% | CD76: 59.4% | CE76: 66.0% | CF76: 72.2% | CG76: - | CI76: SAN MARTIN | CJ76: 6.6% | CK76: 72.2%
BQ77: TACNA | BR77: 61.6% | BU77: TACNA | BV77: 5.1% | BW77: 9.6% | BX77: 15.4% | BY77: 20.9% | BZ77: 26.9% | CA77: 32.7% | CB77: 38.1% | CC77: 43.3% | CD77: 50.3% | CE77: 56.1% | CF77: 61.6% | CG77: - | CI77: TACNA | CJ77: 5.1% | CK77: 61.6%
BQ78: TUMBES | BR78: 76.3% | BU78: TUMBES | BV78: 7.9% | BW78: 15.4% | BX78: 23.9% | BY78: 31.0% | BZ78: 38.1% | CA78: 44.0% | CB78: 50.1% | CC78: 56.0% | CD78: 62.4% | CE78: 69.4% | CF78: 76.3% | CG78: - | CI78: TUMBES | CJ78: 7.9% | CK78: 76.3%
BQ79: UCAYALI | BR79: 52.6% | BU79: UCAYALI | BV79: 4.0% | BW79: 8.1% | BX79: 13.3% | BY79: 18.5% | BZ79: 23.5% | CA79: 28.3% | CB79: 33.3% | CC79: 38.3% | CD79: 43.0% | CE79: 48.6% | CF79: 52.6% | CG79: - | CI79: UCAYALI | CJ79: 4.0% | CK79: 52.6%
BQ80: NACIONAL | BR80: =+IFERROR(GETPIVOTDATA("ind",$BQ$14),"-") -> 64.0% | BU80: NACIONAL | BV80: =+IFERROR(GETPIVOTDATA("ind",$BU$14,"mes",BV$50),"-") -> 5.9% | BW80: =+IFERROR(GETPIVOTDATA("ind",$BU$14,"mes",BW$50),"-") -> 11.3% | BX80: 17.7% | BY80: 23.9% | BZ80: 30.0% | CA80: 35.4% | CB80: 41.0% | CC80: 46.9% | CD80: 52.3% | CE80: 58.4% | CF80: 64.0% | CG80: - | CI80: NACIONAL | CJ80: 5.9% | CK80: 64.0%

Sheet DL_1153_2025_CG07
A1: =+DL1153_2025!C13 -> Ficha 07:Porcentaje de recién nacidos de parto institucional, vacunados con BCG y Anti hepatitis B dentro de las 24 horas después del nacimiento. | BL1: 1 | DP1: 4
A2: Periodo de Evaluación: | B2: =+DL1153_2025!B42 -> Noviembre - 2025
J3: Diris | K3: (Todas)
J4: Red | K4: KIMBIRI PICHARI
A5: mes | B5: 11 | J5: Provincia | K5: (Todas)
A6: año | B6: 2025 | J6: eess_nombre | K6: (Todas)
A7: DIRIS del Establecimiento de Salud | B7: RED del Establecimiento de Salud | C7: Provincia de Establecimiento | D7: Nombre del Establecimiento | E7: Categoria del Establecimiento | F7: Denominador: Suma de niños /niñas nacidas en Hospital o Instituto, registrados en el CNV en Línea en el periodo de evaluación, excluyendo los niños / niñas nacidas con menos de 1,500 gr., y/o patológicos que por razones médicas no puedan recibir la vacuna BCG y/o vacuna anti hepatitis B | G7: Numerador: Suma de niños / niñas nacidas en Hospital o Instituto, registrados en el HIS con DNI o CNV, que forman parte del denominador y que recibieron 1 dosis de la vacuna BCG (CPMS: 90585) y 1 de HVB (CPMS: 90744) antes del alta (dentro de las 24 horas después del nacimiento). | H7: Indicador: Porcentaje de recién nacidos de parto institucional, vacunados con BCG y Anti hepatitis B, dentro de las 24 horas después del nacimiento. | J7: AÑO | K7: MES | L7: Denominador: Suma de niños /niñas nacidas en Hospital o Instituto, registrados en el CNV en Línea en el periodo de evaluación, excluyendo los niños / niñas nacidas con menos de 1,500 gr., y/o patológicos que por razones médicas no puedan recibir la vacuna BCG y/o vacuna anti hepatitis B | M7: Numerador: Suma de niños / niñas nacidas en Hospital o Instituto, registrados en el HIS con DNI o CNV, que forman parte del denominador y que recibieron 1 dosis de la vacuna BCG (CPMS: 90585) y 1 de HVB (CPMS: 90744) antes del alta (dentro de las 24 horas después del nacimiento). | N7: Indicador: Porcentaje de recién nacidos de parto institucional, vacunados con BCG y Anti hepatitis B, dentro de las 24 horas después del nacimiento.
A8: Diris | B8: Red | C8: Provincia | D8: eess_nombre | E8: Cat_estab | F8: Denominador | G8: Numerador | H8: Indicador | J8: año | K8: mes | L8: Denominador | M8: Numerador | N8: Indicador
A9: CUSCO | B9: KIMBIRI PICHARI | C9: LA CONVENCION | D9: II-1 - 00002469 - SAN JUAN DE KIMBIRI VRAEM | E9: II-1 | F9: 72 | G9: 72 | H9: 100.0% | J9: 2025 | K9: 1 | L9: 116 | M9: 114 | N9: 98.3%
A10: CUSCO | B10: KIMBIRI PICHARI | C10: LA CONVENCION | D10: I-3 - 00002495 - MANTARO | E10: I-3 | F10: 1 | G10: 1 | H10: 100.0% | J10: 2025 | K10: 2 | L10: 86 | M10: 84 | N10: 97.7%
A11: CUSCO | B11: KIMBIRI PICHARI | C11: LA CONVENCION | D11: I-4 - 00034418 - PICHARI VRAEM | E11: I-4 | F11: 38 | G11: 38 | H11: 100.0% | J11: 2025 | K11: 3 | L11: 104 | M11: 104 | N11: 100.0%
A12: Total general | F12: 111 | G12: 111 | H12: 100.0% | J12: 2025 | K12: 4 | L12: 113 | M12: 113 | N12: 100.0%
J13: 2025 | K13: 5 | L13: 81 | M13: 80 | N13: 98.8% | BM13: año | BN13: (Todas) | BQ13: año | BR13: (Todas)
J14: 2025 | K14: 6 | L14: 98 | M14: 94 | N14: 95.9%
J15: 2025 | K15: 7 | L15: 64 | M15: 64 | N15: 100.0% | BM15: Diris | BN15: Suma de IND | BQ15: Suma de IND | BR15: mes | CJ15: año | CK15: (Todas)
J16: 2025 | K16: 8 | L16: 77 | M16: 77 | N16: 100.0% | BM16: AMAZONAS | BN16: 90.8% | BQ16: Diris | BR16: 1 | BS16: 2 | BT16: 3 | BU16: 4 | BV16: 5 | BW16: 6 | BX16: 7 | BY16: 8 | BZ16: 9 | CA16: 10 | CB16: 11
J17: 2025 | K17: 9 | L17: 86 | M17: 82 | N17: 95.3% | BM17: ANCASH | BN17: 96.4% | BQ17: AMAZONAS | BR17: 90.6% | BS17: 92.4% | BT17: 93.3% | BU17: 91.6% | BV17: 92.5% | BW17: 94.1% | BX17: 91.9% | BY17: 89.4% | BZ17: 88.1% | CA17: 86.6% | CB17: 88.2% | CJ17: Suma de IND | CK17: Diris
J18: 2025 | K18: 10 | L18: 83 | M18: 83 | N18: 100.0% | BM18: APURIMAC | BN18: 98.4% | BQ18: ANCASH | BR18: 96.5% | BS18: 96.6% | BT18: 97.6% | BU18: 97.3% | BV18: 96.8% | BW18: 97.6% | BX18: 96.6% | BY18: 96.7% | BZ18: 90.3% | CA18: 97.5% | CB18: 96.7% | CJ18: mes | CK18: AMAZONAS | CL18: ANCASH | CM18: APURIMAC | CN18: AREQUIPA | CO18: AYACUCHO | CP18: CAJAMARCA | CQ18: CALLAO | CR18: CUSCO | CS18: HUANCAVELICA | CT18: HUANUCO | CU18: ICA | CV18: JUNIN | CW18: LA LIBERTAD | CX18: LAMBAYEQUE | CY18: LIMA DIRIS CENTRO | CZ18: LIMA DIRIS ESTE | DA18: LIMA DIRIS NORTE | DB18: LIMA DIRIS SUR | DC18: LIMA REGION | DD18: LORETO | DE18: MADRE DE DIOS | DF18: MOQUEGUA | DG18: PASCO | DH18: PIURA | DI18: PUNO | DJ18: SAN MARTIN | DK18: TACNA | DL18: TUMBES | DM18: UCAYALI | DN18: Total general
J19: 2025 | K19: 11 | L19: 111 | M19: 111 | N19: 100.0% | BM19: AREQUIPA | BN19: 91.7% | BQ19: APURIMAC | BR19: 99.7% | BS19: 99.2% | BT19: 99.3% | BU19: 99.2% | BV19: 99.7% | BW19: 98.5% | BX19: 99.2% | BY19: 99.2% | BZ19: 90.0% | CA19: 99.0% | CB19: 99.2% | CJ19: Enero | CK19: 90.6% | CL19: 96.5% | CM19: 99.7% | CN19: 96.4% | CO19: 99.2% | CP19: 92.8% | CQ19: 98.6% | CR19: 98.5% | CS19: 98.5% | CT19: 88.4% | CU19: 96.6% | CV19: 95.0% | CW19: 94.1% | CX19: 95.9% | CY19: 96.8% | CZ19: 95.2% | DA19: 95.8% | DB19: 97.4% | DC19: 96.0% | DD19: 71.6% | DE19: 93.7% | DF19: 100.0% | DG19: 91.0% | DH19: 90.3% | DI19: 93.7% | DJ19: 94.9% | DK19: 100.0% | DL19: 98.9% | DM19: 92.0% | DN19: 94.0%
J20: Total general | L20: 1,019 | M20: 1,006 | N20: 98.7% | BM20: AYACUCHO | BN20: 96.7% | BQ20: AREQUIPA | BR20: 96.4% | BS20: 95.9% | BT20: 96.9% | BU20: 84.4% | BV20: 89.5% | BW20: 90.5% | BX20: 93.6% | BY20: 94.5% | BZ20: 80.6% | CA20: 93.4% | CB20: 92.3% | CJ20: Febrero | CK20: 92.4% | CL20: 96.6% | CM20: 99.2% | CN20: 95.9% | CO20: 99.4% | CP20: 93.5% | CQ20: 98.5% | CR20: 99.1% | CS20: 97.7% | CT20: 92.8% | CU20: 96.6% | CV20: 94.7% | CW20: 94.2% | CX20: 96.9% | CY20: 96.6% | CZ20: 95.0% | DA20: 97.1% | DB20: 97.2% | DC20: 98.3% | DD20: 72.2% | DE20: 96.5% | DF20: 98.9% | DG20: 94.5% | DH20: 93.2% | DI20: 91.5% | DJ20: 94.7% | DK20: 99.5% | DL20: 97.1% | DM20: 91.6% | DN20: 94.4%
BM21: CAJAMARCA | BN21: 93.8% | BQ21: AYACUCHO | BR21: 99.2% | BS21: 99.4% | BT21: 98.7% | BU21: 99.1% | BV21: 98.9% | BW21: 99.3% | BX21: 98.5% | BY21: 97.9% | BZ21: 95.3% | CA21: 88.4% | CB21: 88.0% | CJ21: Marzo | CK21: 93.3% | CL21: 97.6% | CM21: 99.3% | CN21: 96.9% | CO21: 98.7% | CP21: 93.8% | CQ21: 98.2% | CR21: 98.8% | CS21: 97.7% | CT21: 92.9% | CU21: 97.6% | CV21: 93.8% | CW21: 95.9% | CX21: 96.1% | CY21: 96.3% | CZ21: 96.4% | DA21: 95.6% | DB21: 96.9% | DC21: 96.4% | DD21: 66.9% | DE21: 96.2% | DF21: 100.0% | DG21: 91.1% | DH21: 92.2% | DI21: 92.5% | DJ21: 92.9% | DK21: 100.0% | DL21: 97.1% | DM21: 91.8% | DN21: 93.8%
BM22: CALLAO | BN22: 97.7% | BQ22: CAJAMARCA | BR22: 92.8% | BS22: 93.5% | BT22: 93.8% | BU22: 92.9% | BV22: 93.2% | BW22: 94.1% | BX22: 95.6% | BY22: 93.9% | BZ22: 94.4% | CA22: 95.1% | CB22: 92.6% | CJ22: Abril | CK22: 91.6% | CL22: 97.3% | CM22: 99.2% | CN22: 84.4% | CO22: 99.1% | CP22: 92.9% | CQ22: 90.4% | CR22: 99.4% | CS22: 97.9% | CT22: 94.1% | CU22: 96.9% | CV22: 91.0% | CW22: 97.0% | CX22: 95.7% | CY22: 95.8% | CZ22: 95.6% | DA22: 95.6% | DB22: 96.7% | DC22: 97.1% | DD22: 60.3% | DE22: 97.8% | DF22: 98.3% | DG22: 92.4% | DH22: 84.9% | DI22: 85.7% | DJ22: 93.9% | DK22: 98.2% | DL22: 96.5% | DM22: 92.1% | DN22: 92.1%
BM23: CUSCO | BN23: 98.6% | BQ23: CALLAO | BR23: 98.6% | BS23: 98.5% | BT23: 98.2% | BU23: 90.4% | BV23: 98.0% | BW23: 99.4% | BX23: 98.5% | BY23: 98.7% | BZ23: 99.4% | CA23: 98.0% | CB23: 98.1% | CJ23: Mayo | CK23: 92.5% | CL23: 96.8% | CM23: 99.7% | CN23: 89.5% | CO23: 98.9% | CP23: 93.2% | CQ23: 98.0% | CR23: 99.0% | CS23: 97.7% | CT23: 93.8% | CU23: 96.5% | CV23: 95.8% | CW23: 96.6% | CX23: 96.1% | CY23: 96.1% | CZ23: 96.3% | DA23: 97.0% | DB23: 97.9% | DC23: 98.1% | DD23: 69.0% | DE23: 96.0% | DF23: 99.1% | DG23: 94.4% | DH23: 85.1% | DI23: 93.6% | DJ23: 94.4% | DK23: 97.3% | DL23: 95.9% | DM23: 93.4% | DN23: 93.6%
BM24: HUANCAVELICA | BN24: 97.0% | BQ24: CUSCO | BR24: 98.5% | BS24: 99.1% | BT24: 98.8% | BU24: 99.4% | BV24: 99.0% | BW24: 98.9% | BX24: 99.6% | BY24: 98.7% | BZ24: 96.3% | CA24: 98.2% | CB24: 98.3% | CJ24: Junio | CK24: 94.1% | CL24: 97.6% | CM24: 98.5% | CN24: 90.5% | CO24: 99.3% | CP24: 94.1% | CQ24: 99.4% | CR24: 98.9% | CS24: 98.2% | CT24: 94.7% | CU24: 98.4% | CV24: 91.5% | CW24: 97.0% | CX24: 96.5% | CY24: 96.4% | CZ24: 96.0% | DA24: 96.5% | DB24: 97.5% | DC24: 98.5% | DD24: 66.5% | DE24: 97.9% | DF24: 98.8% | DG24: 90.9% | DH24: 83.6% | DI24: 91.0% | DJ24: 97.1% | DK24: 99.0% | DL24: 97.5% | DM24: 92.9% | DN24: 93.7%
BM25: HUANUCO | BN25: 92.7% | BQ25: HUANCAVELICA | BR25: 98.5% | BS25: 97.7% | BT25: 97.7% | BU25: 97.9% | BV25: 97.7% | BW25: 98.2% | BX25: 98.9% | BY25: 96.1% | BZ25: 89.8% | CA25: 97.3% | CB25: 96.7% | CJ25: Julio | CK25: 91.9% | CL25: 96.6% | CM25: 99.2% | CN25: 93.6% | CO25: 98.5% | CP25: 95.6% | CQ25: 98.5% | CR25: 99.6% | CS25: 98.9% | CT25: 93.8% | CU25: 97.1% | CV25: 89.7% | CW25: 96.9% | CX25: 95.5% | CY25: 95.8% | CZ25: 96.8% | DA25: 98.0% | DB25: 98.0% | DC25: 97.9% | DD25: 68.8% | DE25: 94.8% | DF25: 99.0% | DG25: 91.8% | DH25: 86.7% | DI25: 92.9% | DJ25: 95.7% | DK25: 98.3% | DL25: 97.8% | DM25: 91.8% | DN25: 93.8%
BM26: ICA | BN26: 95.6% | BQ26: HUANUCO | BR26: 88.4% | BS26: 92.8% | BT26: 92.9% | BU26: 94.1% | BV26: 93.8% | BW26: 94.7% | BX26: 93.8% | BY26: 94.2% | BZ26: 85.3% | CA26: 94.5% | CB26: 95.7% | CJ26: Agosto | CK26: 89.4% | CL26: 96.7% | CM26: 99.2% | CN26: 94.5% | CO26: 97.9% | CP26: 93.9% | CQ26: 98.7% | CR26: 98.7% | CS26: 96.1% | CT26: 94.2% | CU26: 96.5% | CV26: 93.2% | CW26: 96.4% | CX26: 95.7% | CY26: 95.9% | CZ26: 95.4% | DA26: 98.5% | DB26: 97.0% | DC26: 97.9% | DD26: 64.9% | DE26: 97.1% | DF26: 98.1% | DG26: 90.5% | DH26: 85.0% | DI26: 91.3% | DJ26: 95.5% | DK26: 100.0% | DL26: 97.1% | DM26: 93.4% | DN26: 93.4%
BM27: JUNIN | BN27: 93.3% | BQ27: ICA | BR27: 96.6% | BS27: 96.6% | BT27: 97.6% | BU27: 96.9% | BV27: 96.5% | BW27: 98.4% | BX27: 97.1% | BY27: 96.5% | BZ27: 82.5% | CA27: 96.7% | CB27: 95.3% | CJ27: Setiembre | CK27: 88.1% | CL27: 90.3% | CM27: 90.0% | CN27: 80.6% | CO27: 95.3% | CP27: 94.4% | CQ27: 99.4% | CR27: 96.3% | CS27: 89.8% | CT27: 85.3% | CU27: 82.5% | CV27: 92.6% | CW27: 97.3% | CX27: 84.1% | CY27: 96.1% | CZ27: 87.5% | DA27: 97.6% | DB27: 95.3% | DC27: 98.5% | DD27: 60.2% | DE27: 95.6% | DF27: 85.4% | DG27: 78.8% | DH27: 74.6% | DI27: 89.7% | DJ27: 94.9% | DK27: 98.9% | DL27: 97.2% | DM27: 91.2% | DN27: 89.3%
BM28: LA LIBERTAD | BN28: 96.2% | BQ28: JUNIN | BR28: 95.0% | BS28: 94.7% | BT28: 93.8% | BU28: 91.0% | BV28: 95.8% | BW28: 91.5% | BX28: 89.7% | BY28: 93.2% | BZ28: 92.6% | CA28: 95.0% | CB28: 94.2% | CJ28: Octubre | CK28: 86.6% | CL28: 97.5% | CM28: 99.0% | CN28: 93.4% | CO28: 88.4% | CP28: 95.1% | CQ28: 98.0% | CR28: 98.2% | CS28: 97.3% | CT28: 94.5% | CU28: 96.7% | CV28: 95.0% | CW28: 96.7% | CX28: 96.1% | CY28: 95.9% | CZ28: 94.8% | DA28: 96.5% | DB28: 96.1% | DC28: 98.3% | DD28: 67.8% | DE28: 97.0% | DF28: 98.7% | DG28: 91.7% | DH28: 86.9% | DI28: 91.9% | DJ28: 95.6% | DK28: 98.3% | DL28: 96.7% | DM28: 93.3% | DN28: 93.3%
BM29: LAMBAYEQUE | BN29: 94.7% | BQ29: LA LIBERTAD | BR29: 94.1% | BS29: 94.2% | BT29: 95.9% | BU29: 97.0% | BV29: 96.6% | BW29: 97.0% | BX29: 96.9% | BY29: 96.4% | BZ29: 97.3% | CA29: 96.7% | CB29: 95.6% | CJ29: Noviembre | CK29: 88.2% | CL29: 96.7% | CM29: 99.2% | CN29: 92.3% | CO29: 88.0% | CP29: 92.6% | CQ29: 98.1% | CR29: 98.3% | CS29: 96.7% | CT29: 95.7% | CU29: 95.3% | CV29: 94.2% | CW29: 95.6% | CX29: 92.5% | CY29: 95.1% | CZ29: 94.5% | DA29: 96.0% | DB29: 94.3% | DC29: 96.5% | DD29: 65.4% | DE29: 93.9% | DF29: 98.7% | DG29: 91.7% | DH29: 87.4% | DI29: 92.6% | DJ29: 96.2% | DK29: 98.3% | DL29: 95.6% | DM29: 91.3% | DN29: 92.2%
BM30: LIMA DIRIS CENTRO | BN30: 96.1% | BQ30: LAMBAYEQUE | BR30: 95.9% | BS30: 96.9% | BT30: 96.1% | BU30: 95.7% | BV30: 96.1% | BW30: 96.5% | BX30: 95.5% | BY30: 95.7% | BZ30: 84.1% | CA30: 96.1% | CB30: 92.5%
BM31: LIMA DIRIS ESTE | BN31: 94.9% | BQ31: LIMA DIRIS CENTRO | BR31: 96.8% | BS31: 96.6% | BT31: 96.3% | BU31: 95.8% | BV31: 96.1% | BW31: 96.4% | BX31: 95.8% | BY31: 95.9% | BZ31: 96.1% | CA31: 95.9% | CB31: 95.1%
BM32: LIMA DIRIS NORTE | BN32: 96.7% | BQ32: LIMA DIRIS ESTE | BR32: 95.2% | BS32: 95.0% | BT32: 96.4% | BU32: 95.6% | BV32: 96.3% | BW32: 96.0% | BX32: 96.8% | BY32: 95.4% | BZ32: 87.5% | CA32: 94.8% | CB32: 94.5%
BM33: LIMA DIRIS SUR | BN33: 96.8% | BQ33: LIMA DIRIS NORTE | BR33: 95.8% | BS33: 97.1% | BT33: 95.6% | BU33: 95.6% | BV33: 97.0% | BW33: 96.5% | BX33: 98.0% | BY33: 98.5% | BZ33: 97.6% | CA33: 96.5% | CB33: 96.0%
BM34: LIMA REGION | BN34: 97.6% | BQ34: LIMA DIRIS SUR | BR34: 97.4% | BS34: 97.2% | BT34: 96.9% | BU34: 96.7% | BV34: 97.9% | BW34: 97.5% | BX34: 98.0% | BY34: 97.0% | BZ34: 95.3% | CA34: 96.1% | CB34: 94.3%
BM35: LORETO | BN35: 66.5% | BQ35: LIMA REGION | BR35: 96.0% | BS35: 98.3% | BT35: 96.4% | BU35: 97.1% | BV35: 98.1% | BW35: 98.5% | BX35: 97.9% | BY35: 97.9% | BZ35: 98.5% | CA35: 98.3% | CB35: 96.5%
BM36: MADRE DE DIOS | BN36: 96.1% | BQ36: LORETO | BR36: 71.6% | BS36: 72.2% | BT36: 66.9% | BU36: 60.3% | BV36: 69.0% | BW36: 66.5% | BX36: 68.8% | BY36: 64.9% | BZ36: 60.2% | CA36: 67.8% | CB36: 65.4% | CK36: AMAZONAS | CL36: ANCASH | CM36: APURIMAC | CN36: AREQUIPA | CO36: AYACUCHO | CP36: CAJAMARCA | CQ36: CALLAO | CR36: CUSCO | CS36: HUANCAVELICA | CT36: HUANUCO | CU36: ICA | CV36: JUNIN | CW36: LA LIBERTAD | CX36: LAMBAYEQUE | CY36: LIMA DIRIS CENTRO | CZ36: LIMA DIRIS ESTE | DA36: LIMA DIRIS NORTE | DB36: LIMA DIRIS SUR | DC36: LIMA PROVINCIAS | DD36: LORETO | DE36: MADRE DE DIOS | DF36: MOQUEGUA | DG36: PASCO | DH36: PIURA | DI36: PUNO | DJ36: SAN MARTIN | DK36: TACNA | DL36: TUMBES | DM36: UCAYALI | DN36: NACIONAL
BM37: MOQUEGUA | BN37: 97.8% | BQ37: MADRE DE DIOS | BR37: 93.7% | BS37: 96.5% | BT37: 96.2% | BU37: 97.8% | BV37: 96.0% | BW37: 97.9% | BX37: 94.8% | BY37: 97.1% | BZ37: 95.6% | CA37: 97.0% | CB37: 93.9% | CJ37: Enero | CK37: =+IFERROR(GETPIVOTDATA("IND",$CJ$17,"Diris",CK$36,"mes",$CJ37),"-") -> 90.6% | CL37: =+IFERROR(GETPIVOTDATA("IND",$CJ$17,"Diris",CL$36,"mes",$CJ37),"-") -> 96.5% | CM37: 99.7% | CN37: 96.4% | CO37: 99.2% | CP37: 92.8% | CQ37: 98.6% | CR37: 98.5% | CS37: 98.5% | CT37: 88.4% | CU37: 96.6% | CV37: 95.0% | CW37: 94.1% | CX37: 95.9% | CY37: 96.8% | CZ37: 95.2% | DA37: 95.8% | DB37: 97.4% | DC37: - | DD37: 71.6% | DE37: 93.7% | DF37: 100.0% | DG37: 91.0% | DH37: 90.3% | DI37: 93.7% | DJ37: 94.9% | DK37: 100.0% | DL37: 98.9% | DM37: 92.0% | DN37: =+IFERROR(GETPIVOTDATA("IND",$CJ$17,"mes",$CJ37),"-") -> 94.0%
BM38: PASCO | BN38: 90.6% | BQ38: MOQUEGUA | BR38: 100.0% | BS38: 98.9% | BT38: 100.0% | BU38: 98.3% | BV38: 99.1% | BW38: 98.8% | BX38: 99.0% | BY38: 98.1% | BZ38: 85.4% | CA38: 98.7% | CB38: 98.7% | CJ38: Febrero | CK38: =+IFERROR(GETPIVOTDATA("IND",$CJ$17,"Diris",CK$36,"mes",$CJ38),"-") -> 92.4% | CL38: 96.6% | CM38: 99.2% | CN38: 95.9% | CO38: 99.4% | CP38: 93.5% | CQ38: 98.5% | CR38: 99.1% | CS38: 97.7% | CT38: 92.8% | CU38: 96.6% | CV38: 94.7% | CW38: 94.2% | CX38: 96.9% | CY38: 96.6% | CZ38: 95.0% | DA38: 97.1% | DB38: 97.2% | DC38: - | DD38: 72.2% | DE38: 96.5% | DF38: 98.9% | DG38: 94.5% | DH38: 93.2% | DI38: 91.5% | DJ38: 94.7% | DK38: 99.5% | DL38: 97.1% | DM38: 91.6% | DN38: =+IFERROR(GETPIVOTDATA("IND",$CJ$17,"mes",$CJ38),"-") -> 94.4%
BM39: PIURA | BN39: 86.4% | BQ39: PASCO | BR39: 91.0% | BS39: 94.5% | BT39: 91.1% | BU39: 92.4% | BV39: 94.4% | BW39: 90.9% | BX39: 91.8% | BY39: 90.5% | BZ39: 78.8% | CA39: 91.7% | CB39: 91.7% | CJ39: Marzo | CK39: 93.3% | CL39: 97.6% | CM39: 99.3% | CN39: 96.9% | CO39: 98.7% | CP39: 93.8% | CQ39: 98.2% | CR39: 98.8% | CS39: 97.7% | CT39: 92.9% | CU39: 97.6% | CV39: 93.8% | CW39: 95.9% | CX39: 96.1% | CY39: 96.3% | CZ39: 96.4% | DA39: 95.6% | DB39: 96.9% | DC39: - | DD39: 66.9% | DE39: 96.2% | DF39: 100.0% | DG39: 91.1% | DH39: 92.2% | DI39: 92.5% | DJ39: 92.9% | DK39: 100.0% | DL39: 97.1% | DM39: 91.8% | DN39: 93.8%
BM40: PUNO | BN40: 91.5% | BQ40: PIURA | BR40: 90.3% | BS40: 93.2% | BT40: 92.2% | BU40: 84.9% | BV40: 85.1% | BW40: 83.6% | BX40: 86.7% | BY40: 85.0% | BZ40: 74.6% | CA40: 86.9% | CB40: 87.4% | CJ40: Abril | CK40: 91.6% | CL40: 97.3% | CM40: 99.2% | CN40: 84.4% | CO40: 99.1% | CP40: 92.9% | CQ40: 90.4% | CR40: 99.4% | CS40: 97.9% | CT40: 94.1% | CU40: 96.9% | CV40: 91.0% | CW40: 97.0% | CX40: 95.7% | CY40: 95.8% | CZ40: 95.6% | DA40: 95.6% | DB40: 96.7% | DC40: - | DD40: 60.3% | DE40: 97.8% | DF40: 98.3% | DG40: 92.4% | DH40: 84.9% | DI40: 85.7% | DJ40: 93.9% | DK40: 98.2% | DL40: 96.5% | DM40: 92.1% | DN40: 92.1%
BM41: SAN MARTIN | BN41: 95.0% | BQ41: PUNO | BR41: 93.7% | BS41: 91.5% | BT41: 92.5% | BU41: 85.7% | BV41: 93.6% | BW41: 91.0% | BX41: 92.9% | BY41: 91.3% | BZ41: 89.7% | CA41: 91.9% | CB41: 92.6% | CJ41: Mayo | CK41: 92.5% | CL41: 96.8% | CM41: 99.7% | CN41: 89.5% | CO41: 98.9% | CP41: 93.2% | CQ41: 98.0% | CR41: 99.0% | CS41: 97.7% | CT41: 93.8% | CU41: 96.5% | CV41: 95.8% | CW41: 96.6% | CX41: 96.1% | CY41: 96.1% | CZ41: 96.3% | DA41: 97.0% | DB41: 97.9% | DC41: - | DD41: 69.0% | DE41: 96.0% | DF41: 99.1% | DG41: 94.4% | DH41: 85.1% | DI41: 93.6% | DJ41: 94.4% | DK41: 97.3% | DL41: 95.9% | DM41: 93.4% | DN41: 93.6%
BM42: TACNA | BN42: 98.9% | BQ42: SAN MARTIN | BR42: 94.9% | BS42: 94.7% | BT42: 92.9% | BU42: 93.9% | BV42: 94.4% | BW42: 97.1% | BX42: 95.7% | BY42: 95.5% | BZ42: 94.9% | CA42: 95.6% | CB42: 96.2% | CJ42: Junio | CK42: 94.1% | CL42: 97.6% | CM42: 98.5% | CN42: 90.5% | CO42: 99.3% | CP42: 94.1% | CQ42: 99.4% | CR42: 98.9% | CS42: 98.2% | CT42: 94.7% | CU42: 98.4% | CV42: 91.5% | CW42: 97.0% | CX42: 96.5% | CY42: 96.4% | CZ42: 96.0% | DA42: 96.5% | DB42: 97.5% | DC42: - | DD42: 66.5% | DE42: 97.9% | DF42: 98.8% | DG42: 90.9% | DH42: 83.6% | DI42: 91.0% | DJ42: 97.1% | DK42: 99.0% | DL42: 97.5% | DM42: 92.9% | DN42: 93.7%
BM43: TUMBES | BN43: 97.0% | BQ43: TACNA | BR43: 100.0% | BS43: 99.5% | BT43: 100.0% | BU43: 98.2% | BV43: 97.3% | BW43: 99.0% | BX43: 98.3% | BY43: 100.0% | BZ43: 98.9% | CA43: 98.3% | CB43: 98.3% | CJ43: Julio | CK43: 91.9% | CL43: 96.6% | CM43: 99.2% | CN43: 93.6% | CO43: 98.5% | CP43: 95.6% | CQ43: 98.5% | CR43: 99.6% | CS43: 98.9% | CT43: 93.8% | CU43: 97.1% | CV43: 89.7% | CW43: 96.9% | CX43: 95.5% | CY43: 95.8% | CZ43: 96.8% | DA43: 98.0% | DB43: 98.0% | DC43: - | DD43: 68.8% | DE43: 94.8% | DF43: 99.0% | DG43: 91.8% | DH43: 86.7% | DI43: 92.9% | DJ43: 95.7% | DK43: 98.3% | DL43: 97.8% | DM43: 91.8% | DN43: 93.8%
BM44: UCAYALI | BN44: 92.3% | BQ44: TUMBES | BR44: 98.9% | BS44: 97.1% | BT44: 97.1% | BU44: 96.5% | BV44: 95.9% | BW44: 97.5% | BX44: 97.8% | BY44: 97.1% | BZ44: 97.2% | CA44: 96.7% | CB44: 95.6% | CJ44: Agosto | CK44: 89.4% | CL44: 96.7% | CM44: 99.2% | CN44: 94.5% | CO44: 97.9% | CP44: 93.9% | CQ44: 98.7% | CR44: 98.7% | CS44: 96.1% | CT44: 94.2% | CU44: 96.5% | CV44: 93.2% | CW44: 96.4% | CX44: 95.7% | CY44: 95.9% | CZ44: 95.4% | DA44: 98.5% | DB44: 97.0% | DC44: - | DD44: 64.9% | DE44: 97.1% | DF44: 98.1% | DG44: 90.5% | DH44: 85.0% | DI44: 91.3% | DJ44: 95.5% | DK44: 100.0% | DL44: 97.1% | DM44: 93.4% | DN44: 93.4%
BM45: Total general | BN45: 93.0% | BQ45: UCAYALI | BR45: 92.0% | BS45: 91.6% | BT45: 91.8% | BU45: 92.1% | BV45: 93.4% | BW45: 92.9% | BX45: 91.8% | BY45: 93.4% | BZ45: 91.2% | CA45: 93.3% | CB45: 91.3% | CJ45: Setiembre | CK45: 88.1% | CL45: 90.3% | CM45: 90.0% | CN45: 80.6% | CO45: 95.3% | CP45: 94.4% | CQ45: 99.4% | CR45: 96.3% | CS45: 89.8% | CT45: 85.3% | CU45: 82.5% | CV45: 92.6% | CW45: 97.3% | CX45: 84.1% | CY45: 96.1% | CZ45: 87.5% | DA45: 97.6% | DB45: 95.3% | DC45: - | DD45: 60.2% | DE45: 95.6% | DF45: 85.4% | DG45: 78.8% | DH45: 74.6% | DI45: 89.7% | DJ45: 94.9% | DK45: 98.9% | DL45: 97.2% | DM45: 91.2% | DN45: 89.3%
BQ46: Total general | BR46: 94.0% | BS46: 94.4% | BT46: 93.8% | BU46: 92.1% | BV46: 93.6% | BW46: 93.7% | BX46: 93.8% | BY46: 93.4% | BZ46: 89.3% | CA46: 93.3% | CB46: 92.2% | CJ46: Octubre | CK46: 86.6% | CL46: 97.5% | CM46: 99.0% | CN46: 93.4% | CO46: 88.4% | CP46: 95.1% | CQ46: 98.0% | CR46: 98.2% | CS46: 97.3% | CT46: 94.5% | CU46: 96.7% | CV46: 95.0% | CW46: 96.7% | CX46: 96.1% | CY46: 95.9% | CZ46: 94.8% | DA46: 96.5% | DB46: 96.1% | DC46: - | DD46: =+IFERROR(GETPIVOTDATA("IND",$CJ$17,"Diris",DD$36,"mes",$CJ46),"-") -> 67.8% | DE46: 97.0% | DF46: 98.7% | DG46: 91.7% | DH46: 86.9% | DI46: 91.9% | DJ46: 95.6% | DK46: 98.3% | DL46: 96.7% | DM46: 93.3% | DN46: 93.3%
CJ47: Noviembre | CK47: 88.2% | CL47: 96.7% | CM47: 99.2% | CN47: 92.3% | CO47: 88.0% | CP47: 92.6% | CQ47: 98.1% | CR47: 98.3% | CS47: 96.7% | CT47: 95.7% | CU47: 95.3% | CV47: 94.2% | CW47: 95.6% | CX47: 92.5% | CY47: 95.1% | CZ47: 94.5% | DA47: 96.0% | DB47: 94.3% | DC47: - | DD47: 65.4% | DE47: 93.9% | DF47: 98.7% | DG47: 91.7% | DH47: 87.4% | DI47: 92.6% | DJ47: 96.2% | DK47: 98.3% | DL47: 95.6% | DM47: 91.3% | DN47: 92.2%
CJ48: Diciembre | CK48: - | CL48: - | CM48: - | CN48: - | CO48: - | CP48: - | CQ48: - | CR48: - | CS48: - | CT48: - | CU48: - | CV48: - | CW48: - | CX48: - | CY48: - | CZ48: - | DA48: - | DB48: - | DC48: - | DD48: - | DE48: - | DF48: - | DG48: - | DH48: - | DI48: - | DJ48: - | DK48: - | DL48: - | DM48: - | DN48: -
BR52: 1 | BS52: 2 | BT52: 3 | BU52: 4 | BV52: 5 | BW52: 6 | BX52: 7 | BY52: 8 | BZ52: 9 | CA52: 10 | CB52: 11 | CC52: 12 | CF52: MIN | CG52: MAX
BM53: AMAZONAS | BN53: =+IFERROR(GETPIVOTDATA("ind",$BM$15,"Diris",$BM53),"-") -> 90.8% | BQ53: AMAZONAS | BR53: =+IFERROR(GETPIVOTDATA("IND",$BQ$15,"Diris",$BQ53,"mes",BR$52),"-") -> 90.6% | BS53: 92.4% | BT53: 93.3% | BU53: 91.6% | BV53: 92.5% | BW53: 94.1% | BX53: 91.9% | BY53: 89.4% | BZ53: 88.1% | CA53: 86.6% | CB53: 88.2% | CC53: - | CE53: AMAZONAS | CF53: =+IF(BR53="-","-",MIN(BR53:CC53)) -> 86.6% | CG53: =+IF(BR53="-","-",MAX(BR53:CC53)) -> 94.1%
BM54: ANCASH | BN54: =+IFERROR(GETPIVOTDATA("ind",$BM$15,"Diris",$BM54),"-") -> 96.4% | BQ54: ANCASH | BR54: 96.5% | BS54: 96.6% | BT54: 97.6% | BU54: 97.3% | BV54: 96.8% | BW54: 97.6% | BX54: 96.6% | BY54: 96.7% | BZ54: 90.3% | CA54: 97.5% | CB54: 96.7% | CC54: - | CE54: ANCASH | CF54: =+IF(BR54="-","-",MIN(BR54:CC54)) -> 90.3% | CG54: =+IF(BR54="-","-",MAX(BR54:CC54)) -> 97.6%
BM55: APURIMAC | BN55: 98.4% | BQ55: APURIMAC | BR55: 99.7% | BS55: 99.2% | BT55: 99.3% | BU55: 99.2% | BV55: 99.7% | BW55: 98.5% | BX55: 99.2% | BY55: 99.2% | BZ55: 90.0% | CA55: 99.0% | CB55: 99.2% | CC55: - | CE55: APURIMAC | CF55: 90.0% | CG55: 99.7%
BM56: AREQUIPA | BN56: 91.7% | BQ56: AREQUIPA | BR56: 96.4% | BS56: 95.9% | BT56: 96.9% | BU56: 84.4% | BV56: 89.5% | BW56: 90.5% | BX56: 93.6% | BY56: 94.5% | BZ56: 80.6% | CA56: 93.4% | CB56: 92.3% | CC56: - | CE56: AREQUIPA | CF56: 80.6% | CG56: 96.9%
BM57: AYACUCHO | BN57: 96.7% | BQ57: AYACUCHO | BR57: 99.2% | BS57: 99.4% | BT57: 98.7% | BU57: 99.1% | BV57: 98.9% | BW57: 99.3% | BX57: 98.5% | BY57: 97.9% | BZ57: 95.3% | CA57: 88.4% | CB57: 88.0% | CC57: - | CE57: AYACUCHO | CF57: 88.0% | CG57: 99.4%
BM58: CAJAMARCA | BN58: 93.8% | BQ58: CAJAMARCA | BR58: 92.8% | BS58: 93.5% | BT58: 93.8% | BU58: 92.9% | BV58: 93.2% | BW58: 94.1% | BX58: 95.6% | BY58: 93.9% | BZ58: 94.4% | CA58: 95.1% | CB58: 92.6% | CC58: - | CE58: CAJAMARCA | CF58: 92.6% | CG58: 95.6%
BM59: CALLAO | BN59: 97.7% | BQ59: CALLAO | BR59: 98.6% | BS59: 98.5% | BT59: 98.2% | BU59: 90.4% | BV59: 98.0% | BW59: 99.4% | BX59: 98.5% | BY59: 98.7% | BZ59: 99.4% | CA59: 98.0% | CB59: 98.1% | CC59: - | CE59: CALLAO | CF59: 90.4% | CG59: 99.4%
BM60: CUSCO | BN60: 98.6% | BQ60: CUSCO | BR60: 98.5% | BS60: 99.1% | BT60: 98.8% | BU60: 99.4% | BV60: 99.0% | BW60: 98.9% | BX60: 99.6% | BY60: 98.7% | BZ60: 96.3% | CA60: 98.2% | CB60: 98.3% | CC60: - | CE60: CUSCO | CF60: 96.3% | CG60: 99.6%
BM61: HUANCAVELICA | BN61: 97.0% | BQ61: HUANCAVELICA | BR61: 98.5% | BS61: 97.7% | BT61: 97.7% | BU61: 97.9% | BV61: 97.7% | BW61: 98.2% | BX61: 98.9% | BY61: 96.1% | BZ61: 89.8% | CA61: 97.3% | CB61: 96.7% | CC61: - | CE61: HUANCAVELICA | CF61: 89.8% | CG61: 98.9%
BM62: HUANUCO | BN62: 92.7% | BQ62: HUANUCO | BR62: 88.4% | BS62: 92.8% | BT62: 92.9% | BU62: 94.1% | BV62: 93.8% | BW62: 94.7% | BX62: 93.8% | BY62: 94.2% | BZ62: 85.3% | CA62: 94.5% | CB62: 95.7% | CC62: - | CE62: HUANUCO | CF62: 85.3% | CG62: 95.7%
BM63: ICA | BN63: 95.6% | BQ63: ICA | BR63: =+IFERROR(GETPIVOTDATA("IND",$BQ$15,"Diris",$BQ63,"mes",BR$52),"-") -> 96.6% | BS63: 96.6% | BT63: 97.6% | BU63: 96.9% | BV63: 96.5% | BW63: 98.4% | BX63: 97.1% | BY63: 96.5% | BZ63: 82.5% | CA63: 96.7% | CB63: 95.3% | CC63: - | CE63: ICA | CF63: 82.5% | CG63: 98.4%
BM64: JUNIN | BN64: 93.3% | BQ64: JUNIN | BR64: 95.0% | BS64: 94.7% | BT64: 93.8% | BU64: 91.0% | BV64: 95.8% | BW64: 91.5% | BX64: 89.7% | BY64: 93.2% | BZ64: 92.6% | CA64: 95.0% | CB64: 94.2% | CC64: - | CE64: JUNIN | CF64: 89.7% | CG64: 95.8%
BM65: LA LIBERTAD | BN65: 96.2% | BQ65: LA LIBERTAD | BR65: 94.1% | BS65: 94.2% | BT65: 95.9% | BU65: 97.0% | BV65: 96.6% | BW65: 97.0% | BX65: 96.9% | BY65: 96.4% | BZ65: 97.3% | CA65: 96.7% | CB65: 95.6% | CC65: - | CE65: LA LIBERTAD | CF65: 94.1% | CG65: 97.3%
BM66: LAMBAYEQUE | BN66: 94.7% | BQ66: LAMBAYEQUE | BR66: 95.9% | BS66: 96.9% | BT66: 96.1% | BU66: 95.7% | BV66: 96.1% | BW66: 96.5% | BX66: 95.5% | BY66: 95.7% | BZ66: 84.1% | CA66: 96.1% | CB66: 92.5% | CC66: - | CE66: LAMBAYEQUE | CF66: 84.1% | CG66: 96.9%
BM67: LIMA DIRIS CENTRO | BN67: 96.1% | BQ67: LIMA DIRIS CENTRO | BR67: 96.8% | BS67: 96.6% | BT67: 96.3% | BU67: 95.8% | BV67: 96.1% | BW67: 96.4% | BX67: 95.8% | BY67: 95.9% | BZ67: 96.1% | CA67: 95.9% | CB67: 95.1% | CC67: - | CE67: LIMA DIRIS CENTRO | CF67: 95.1% | CG67: 96.8%
BM68: LIMA DIRIS ESTE | BN68: 94.9% | BQ68: LIMA DIRIS ESTE | BR68: 95.2% | BS68: 95.0% | BT68: 96.4% | BU68: 95.6% | BV68: 96.3% | BW68: 96.0% | BX68: 96.8% | BY68: 95.4% | BZ68: 87.5% | CA68: 94.8% | CB68: 94.5% | CC68: - | CE68: LIMA DIRIS ESTE | CF68: 87.5% | CG68: 96.8%
BM69: LIMA DIRIS NORTE | BN69: 96.7% | BQ69: LIMA DIRIS NORTE | BR69: 95.8% | BS69: 97.1% | BT69: 95.6% | BU69: 95.6% | BV69: 97.0% | BW69: 96.5% | BX69: 98.0% | BY69: 98.5% | BZ69: 97.6% | CA69: 96.5% | CB69: 96.0% | CC69: - | CE69: LIMA DIRIS NORTE | CF69: 95.6% | CG69: 98.5%
BM70: LIMA DIRIS SUR | BN70: 96.8% | BQ70: LIMA DIRIS SUR | BR70: 97.4% | BS70: 97.2% | BT70: 96.9% | BU70: 96.7% | BV70: 97.9% | BW70: 97.5% | BX70: 98.0% | BY70: 97.0% | BZ70: 95.3% | CA70: 96.1% | CB70: 94.3% | CC70: - | CE70: LIMA DIRIS SUR | CF70: 94.3% | CG70: 98.0%
BM71: LIMA REGION | BN71: 97.6% | BQ71: LIMA REGION | BR71: 96.0% | BS71: 98.3% | BT71: 96.4% | BU71: 97.1% | BV71: 98.1% | BW71: 98.5% | BX71: 97.9% | BY71: 97.9% | BZ71: 98.5% | CA71: 98.3% | CB71: 96.5% | CC71: - | CE71: LIMA PROVINCIAS | CF71: 96.0% | CG71: 98.5%
BM72: LORETO | BN72: 66.5% | BQ72: LORETO | BR72: 71.6% | BS72: 72.2% | BT72: 66.9% | BU72: 60.3% | BV72: 69.0% | BW72: 66.5% | BX72: 68.8% | BY72: 64.9% | BZ72: 60.2% | CA72: 67.8% | CB72: 65.4% | CC72: - | CE72: LORETO | CF72: 60.2% | CG72: 72.2%
BM73: MADRE DE DIOS | BN73: 96.1% | BQ73: MADRE DE DIOS | BR73: =+IFERROR(GETPIVOTDATA("IND",$BQ$15,"Diris",$BQ73,"mes",BR$52),"-") -> 93.7% | BS73: 96.5% | BT73: 96.2% | BU73: 97.8% | BV73: 96.0% | BW73: 97.9% | BX73: 94.8% | BY73: 97.1% | BZ73: 95.6% | CA73: 97.0% | CB73: 93.9% | CC73: - | CE73: MADRE DE DIOS | CF73: 93.7% | CG73: 97.9%
BM74: MOQUEGUA | BN74: 97.8% | BQ74: MOQUEGUA | BR74: 100.0% | BS74: 98.9% | BT74: 100.0% | BU74: 98.3% | BV74: 99.1% | BW74: 98.8% | BX74: 99.0% | BY74: 98.1% | BZ74: 85.4% | CA74: 98.7% | CB74: 98.7% | CC74: - | CE74: MOQUEGUA | CF74: 85.4% | CG74: 100.0%
BM75: PASCO | BN75: 90.6% | BQ75: PASCO | BR75: 91.0% | BS75: 94.5% | BT75: 91.1% | BU75: 92.4% | BV75: 94.4% | BW75: 90.9% | BX75: 91.8% | BY75: 90.5% | BZ75: 78.8% | CA75: 91.7% | CB75: 91.7% | CC75: - | CE75: PASCO | CF75: 78.8% | CG75: 94.5%
BM76: PIURA | BN76: 86.4% | BQ76: PIURA | BR76: 90.3% | BS76: 93.2% | BT76: 92.2% | BU76: 84.9% | BV76: 85.1% | BW76: 83.6% | BX76: 86.7% | BY76: 85.0% | BZ76: 74.6% | CA76: 86.9% | CB76: 87.4% | CC76: - | CE76: PIURA | CF76: 74.6% | CG76: 93.2%
BM77: PUNO | BN77: 91.5% | BQ77: PUNO | BR77: 93.7% | BS77: 91.5% | BT77: 92.5% | BU77: 85.7% | BV77: 93.6% | BW77: 91.0% | BX77: 92.9% | BY77: 91.3% | BZ77: 89.7% | CA77: 91.9% | CB77: 92.6% | CC77: - | CE77: PUNO | CF77: 85.7% | CG77: 93.7%
BM78: SAN MARTIN | BN78: 95.0% | BQ78: SAN MARTIN | BR78: 94.9% | BS78: 94.7% | BT78: 92.9% | BU78: 93.9% | BV78: 94.4% | BW78: 97.1% | BX78: 95.7% | BY78: 95.5% | BZ78: 94.9% | CA78: 95.6% | CB78: 96.2% | CC78: - | CE78: SAN MARTIN | CF78: 92.9% | CG78: 97.1%
BM79: TACNA | BN79: 98.9% | BQ79: TACNA | BR79: 100.0% | BS79: 99.5% | BT79: 100.0% | BU79: 98.2% | BV79: 97.3% | BW79: 99.0% | BX79: 98.3% | BY79: 100.0% | BZ79: 98.9% | CA79: 98.3% | CB79: 98.3% | CC79: - | CE79: TACNA | CF79: 97.3% | CG79: 100.0%
BM80: TUMBES | BN80: 97.0% | BQ80: TUMBES | BR80: 98.9% | BS80: 97.1% | BT80: 97.1% | BU80: 96.5% | BV80: 95.9% | BW80: 97.5% | BX80: 97.8% | BY80: 97.1% | BZ80: 97.2% | CA80: 96.7% | CB80: 95.6% | CC80: - | CE80: TUMBES | CF80: 95.6% | CG80: 98.9%
BM81: UCAYALI | BN81: 92.3% | BQ81: UCAYALI | BR81: 92.0% | BS81: 91.6% | BT81: 91.8% | BU81: 92.1% | BV81: 93.4% | BW81: 92.9% | BX81: 91.8% | BY81: 93.4% | BZ81: 91.2% | CA81: 93.3% | CB81: 91.3% | CC81: - | CE81: UCAYALI | CF81: 91.2% | CG81: 93.4%
BM82: NACIONAL | BN82: =+IFERROR(GETPIVOTDATA("ind",$BM$15),"-") -> 93.0% | BQ82: NACIONAL | BR82: =+IFERROR(GETPIVOTDATA("IND",$BQ$15,"mes",BR$52),"-") -> 94.0% | BS82: 94.4% | BT82: 93.8% | BU82: 92.1% | BV82: 93.6% | BW82: 93.7% | BX82: 93.8% | BY82: 93.4% | BZ82: 89.3% | CA82: 93.3% | CB82: 92.2% | CC82: - | CE82: NACIONAL | CF82: 89.3% | CG82: 94.4%

Sheet DL_1153_2025_CG08
A1: =+DL1153_2025!C14 -> Ficha 08:Tasa de éxito de tratamiento para TB Sensible | BQ1: 1 | DU1: 1
A2: Periodo de Evaluación: | B2: =+DL1153_2025!B42 -> Noviembre - 2025
L5: Diris | M5: (Todas)
A6: año | B6: (Todas) | L6: Red | M6: KIMBIRI PICHARI | BR6: año | BS6: (Todas) | BV6: año | BW6: (Todas) | CO6: año | CP6: (Todas)
A7: mes | B7: 11 | L7: eess_nombre | M7: (Todas) | BR7: mes | BS7: 11
A8: DIRESA/DIRIS | B8: RED | C8: Provincia | D8: Distrito | E8: Categoria EEES | F8: Nombre EESS | G8: Denominador: Número total de personas afectadas de casos de TB sensible registrados en el SIG TB con documento de identidad válido que hayan sido diagnosticados entre 01 de julio 2024 al 30 junio del año 2025. | H8: Numerador: Total de personas afectadas por TB sensible incluidos en el denominador con resultado de tratamiento: curado + tratamiento completo registrados en el SIG TB | I8: Indicador: Tasa de éxito de tratamiento para TB Sensible | L8: AÑO | M8: MES | N8: Categoría | O8: Denominador: Número total de personas afectadas de casos de TB sensible registrados en el SIG TB con documento de identidad válido que hayan sido diagnosticados entre 01 de julio 2024 al 30 junio del año 2025. | P8: Numerador: Total de personas afectadas por TB sensible incluidos en el denominador con resultado de tratamiento: curado + tratamiento completo registrados en el SIG TB | Q8: Indicador: Tasa de éxito de tratamiento para TB Sensible | BV8: Suma de Ind | BW8: mes | CO8: Suma de Ind | CP8: Diris
A9: Diris | B9: Red | C9: Provincia | D9: Distrito | E9: cat_estab | F9: eess_nombre | G9: Suma de den | H9: Suma de num | I9: Suma de Ind | L9: año | M9: mes | N9: cat_estab | O9: Suma de den | P9: Suma de num | Q9: Suma de Ind | BR9: Diris | BS9: Suma de Ind | BV9: Diris | BW9: 1 | BX9: 2 | BY9: 3 | BZ9: 4 | CA9: 5 | CB9: 6 | CC9: 7 | CD9: 8 | CE9: 9 | CF9: 10 | CG9: 11 | CO9: mes | CP9: AMAZONAS | CQ9: ANCASH | CR9: APURIMAC | CS9: AREQUIPA | CT9: AYACUCHO | CU9: CAJAMARCA | CV9: CALLAO | CW9: CUSCO | CX9: HUANCAVELICA | CY9: HUANUCO | CZ9: ICA | DA9: JUNIN | DB9: LA LIBERTAD | DC9: LAMBAYEQUE | DD9: LIMA DIRIS CENTRO | DE9: LIMA DIRIS ESTE | DF9: LIMA DIRIS NORTE | DG9: LIMA DIRIS SUR | DH9: LIMA REGION | DI9: LORETO | DJ9: MADRE DE DIOS | DK9: MOQUEGUA | DL9: PASCO | DM9: PIURA | DN9: PUNO | DO9: SAN MARTIN | DP9: TACNA | DQ9: TUMBES | DR9: UCAYALI | DS9: Total general
A10: CUSCO | B10: KIMBIRI PICHARI | C10: LA CONVENCION | D10: PICHARI | E10: I-2 | F10: I-2 - 00007114 - QUISTO CENTRAL | G10: 4 | H10: 3 | I10: 75.0% | L10: 2025 | M10: 1 | O10: 26 | P10: 2 | Q10: 7.7% | BR10: AMAZONAS | BS10: 65.9% | BV10: AMAZONAS | BW10: 5.6% | BX10: 13.8% | BY10: 22.8% | BZ10: 26.9% | CA10: 32.2% | CB10: 35.0% | CC10: 38.2% | CD10: 43.9% | CE10: 52.0% | CF10: 59.3% | CG10: 65.9% | CO10: Enero | CP10: 5.6% | CQ10: 6.8% | CR10: 6.9% | CS10: 9.6% | CT10: 11.0% | CU10: 7.9% | CV10: 5.7% | CW10: 11.5% | CX10: 6.7% | CY10: 8.9% | CZ10: 5.8% | DA10: 10.8% | DB10: 6.1% | DC10: 9.6% | DD10: 5.1% | DE10: 7.2% | DF10: 4.7% | DG10: 4.5% | DH10: 7.7% | DI10: 10.8% | DJ10: 8.4% | DK10: 6.3% | DL10: 16.2% | DM10: 9.3% | DN10: 6.2% | DO10: 16.4% | DP10: 7.4% | DQ10: 3.2% | DR10: 10.5% | DS10: 7.3%
A11: CUSCO | B11: KIMBIRI PICHARI | C11: LA CONVENCION | D11: PICHARI | E11: I-2 | F11: I-2 - 00015170 - PICHARI BAJA | G11: 2 | H11: 2 | I11: 100.0% | L11: 2025 | M11: 2 | O11: 28 | P11: 4 | Q11: 14.3% | BR11: ANCASH | BS11: 78.1% | BV11: ANCASH | BW11: 6.8% | BX11: 14.3% | BY11: 26.1% | BZ11: 32.2% | CA11: 40.7% | CB11: 42.5% | CC11: 49.4% | CD11: 58.2% | CE11: 65.1% | CF11: 71.3% | CG11: 78.1% | CO11: Febrero | CP11: 13.8% | CQ11: 14.3% | CR11: 29.0% | CS11: 16.5% | CT11: 20.4% | CU11: 18.8% | CV11: 12.1% | CW11: 17.3% | CX11: 9.1% | CY11: 15.6% | CZ11: 12.6% | DA11: 21.5% | DB11: 12.8% | DC11: 18.5% | DD11: 11.6% | DE11: 14.3% | DF11: 9.7% | DG11: 10.2% | DH11: 18.2% | DI11: 17.4% | DJ11: 19.6% | DK11: 17.5% | DL11: 23.3% | DM11: 17.4% | DN11: 12.6% | DO11: 22.7% | DP11: 15.0% | DQ11: 9.9% | DR11: 15.5% | DS11: 14.2%
A12: CUSCO | B12: KIMBIRI PICHARI | C12: LA CONVENCION | D12: PICHARI | E12: I-4 | F12: I-4 - 00002494 - PICHARI | G12: 12 | H12: 6 | I12: 50.0% | L12: 2025 | M12: 3 | O12: 30 | P12: 5 | Q12: 16.7% | BR12: APURIMAC | BS12: 70.0% | BV12: APURIMAC | BW12: 6.9% | BX12: 29.0% | BY12: 43.8% | BZ12: 52.8% | CA12: 46.7% | CB12: 48.0% | CC12: 50.0% | CD12: 54.0% | CE12: 58.0% | CF12: 62.0% | CG12: 70.0% | CO12: Marzo | CP12: 22.8% | CQ12: 26.1% | CR12: 43.8% | CS12: 26.5% | CT12: 27.3% | CU12: 27.1% | CV12: 19.9% | CW12: 20.9% | CX12: 16.7% | CY12: 22.6% | CZ12: 22.5% | DA12: 33.8% | DB12: 21.7% | DC12: 24.4% | DD12: 18.2% | DE12: 21.1% | DF12: 15.9% | DG12: 17.8% | DH12: 25.7% | DI12: 26.2% | DJ12: 27.0% | DK12: 24.2% | DL12: 37.0% | DM12: 26.5% | DN12: 21.4% | DO12: 29.3% | DP12: 21.9% | DQ12: 12.2% | DR12: 22.0% | DS12: 21.8%
A13: CUSCO | B13: KIMBIRI PICHARI | C13: LA CONVENCION | D13: KIMBIRI | E13: I-2 | F13: I-2 - 00002474 - SAMANIATO | G13: 3 | H13: 3 | I13: 100.0% | L13: 2025 | M13: 4 | O13: 30 | P13: 9 | Q13: 30.0% | BR13: AREQUIPA | BS13: 77.6% | BV13: AREQUIPA | BW13: 9.6% | BX13: 16.5% | BY13: 26.5% | BZ13: 36.0% | CA13: 42.3% | CB13: 45.3% | CC13: 52.7% | CD13: 61.1% | CE13: 66.5% | CF13: 72.4% | CG13: 77.6% | CO13: Abril | CP13: 26.9% | CQ13: 32.2% | CR13: 52.8% | CS13: 36.0% | CT13: 28.2% | CU13: 35.9% | CV13: 25.4% | CW13: 26.0% | CX13: 26.2% | CY13: 28.1% | CZ13: 29.1% | DA13: 39.2% | DB13: 25.6% | DC13: 30.4% | DD13: 25.2% | DE13: 26.5% | DF13: 21.5% | DG13: 24.5% | DH13: 31.2% | DI13: 30.6% | DJ13: 34.4% | DK13: 29.0% | DL13: 40.7% | DM13: 28.7% | DN13: 25.7% | DO13: 31.7% | DP13: 28.7% | DQ13: 19.8% | DR13: 27.5% | DS13: 27.5%
A14: CUSCO | B14: KIMBIRI PICHARI | C14: LA CONVENCION | D14: KIMBIRI | E14: I-2 | F14: I-2 - 00002475 - KIMBIRI ALTO | G14: 2 | H14: 2 | I14: 100.0% | L14: 2025 | M14: 5 | O14: 34 | P14: 13 | Q14: 38.2% | BR14: AYACUCHO | BS14: 73.4% | BV14: AYACUCHO | BW14: 11.0% | BX14: 20.4% | BY14: 27.3% | BZ14: 28.2% | CA14: 29.9% | CB14: 34.8% | CC14: 44.3% | CD14: 50.6% | CE14: 59.5% | CF14: 69.0% | CG14: 73.4% | CO14: Mayo | CP14: 32.2% | CQ14: 40.7% | CR14: 46.7% | CS14: 42.3% | CT14: 29.9% | CU14: 42.8% | CV14: 31.8% | CW14: 29.6% | CX14: 26.9% | CY14: 29.4% | CZ14: 35.5% | DA14: 44.9% | DB14: 32.4% | DC14: 38.1% | DD14: 30.7% | DE14: 31.2% | DF14: 26.3% | DG14: 30.9% | DH14: 38.0% | DI14: 34.6% | DJ14: 38.6% | DK14: 31.6% | DL14: 44.4% | DM14: 35.6% | DN14: 29.1% | DO14: 35.8% | DP14: 36.4% | DQ14: 25.5% | DR14: 32.3% | DS14: 32.9%
A15: CUSCO | B15: KIMBIRI PICHARI | C15: LA CONVENCION | D15: KIMBIRI | E15: II-1 | F15: II-1 - 00002469 - SAN JUAN DE KIMBIRI VRAEM | G15: 7 | H15: 6 | I15: 85.7% | L15: 2025 | M15: 6 | O15: 35 | P15: 15 | Q15: 42.9% | BR15: CAJAMARCA | BS15: 75.1% | BV15: CAJAMARCA | BW15: 7.9% | BX15: 18.8% | BY15: 27.1% | BZ15: 35.9% | CA15: 42.8% | CB15: 44.3% | CC15: 53.4% | CD15: 61.1% | CE15: 65.2% | CF15: 70.6% | CG15: 75.1% | CO15: Junio | CP15: 35.0% | CQ15: 42.5% | CR15: 48.0% | CS15: 45.3% | CT15: 34.8% | CU15: 44.3% | CV15: 36.9% | CW15: 30.4% | CX15: 32.7% | CY15: 32.2% | CZ15: 38.0% | DA15: 49.4% | DB15: 36.5% | DC15: 43.7% | DD15: 35.7% | DE15: 36.6% | DF15: 30.2% | DG15: 36.6% | DH15: 40.3% | DI15: 38.2% | DJ15: 38.9% | DK15: 32.0% | DL15: 42.4% | DM15: 37.8% | DN15: 34.7% | DO15: 37.2% | DP15: 46.2% | DQ15: 31.8% | DR15: 35.2% | DS15: 36.9%
A16: CUSCO | B16: KIMBIRI PICHARI | C16: LA CONVENCION | D16: CIELO PUNCO | E16: I-3 | F16: I-3 - 00002470 - CHIRUMPIARI | G16: 1 | H16: 1 | I16: 100.0% | L16: 2025 | M16: 7 | O16: 35 | P16: 19 | Q16: 54.3% | BR16: CALLAO | BS16: 78.1% | BV16: CALLAO | BW16: 5.7% | BX16: 12.1% | BY16: 19.9% | BZ16: 25.4% | CA16: 31.8% | CB16: 36.9% | CC16: 46.8% | CD16: 54.5% | CE16: 63.7% | CF16: 71.4% | CG16: 78.1% | CO16: Julio | CP16: 38.2% | CQ16: 49.4% | CR16: 50.0% | CS16: 52.7% | CT16: 44.3% | CU16: 53.4% | CV16: 46.8% | CW16: 37.1% | CX16: 36.4% | CY16: 41.1% | CZ16: 46.5% | DA16: 56.3% | DB16: 44.7% | DC16: 49.6% | DD16: 43.4% | DE16: 45.0% | DF16: 37.5% | DG16: 44.3% | DH16: 47.6% | DI16: 45.1% | DJ16: 45.1% | DK16: 40.2% | DL16: 50.0% | DM16: 43.4% | DN16: 39.6% | DO16: 45.2% | DP16: 55.8% | DQ16: 39.1% | DR16: 43.6% | DS16: 44.5%
A17: CUSCO | B17: KIMBIRI PICHARI | C17: LA CONVENCION | D17: UNIÓN ASHANINKA | E17: I-1 | F17: I-1 - 00015169 - PITIRINQUINI | G17: 1 | H17: 1 | I17: 100.0% | L17: 2025 | M17: 8 | O17: 35 | P17: 21 | Q17: 60.0% | BR17: CUSCO | BS17: 59.7% | BV17: CUSCO | BW17: 11.5% | BX17: 17.3% | BY17: 20.9% | BZ17: 26.0% | CA17: 29.6% | CB17: 30.4% | CC17: 37.1% | CD17: 41.2% | CE17: 49.8% | CF17: 56.2% | CG17: 59.7% | CO17: Agosto | CP17: 43.9% | CQ17: 58.2% | CR17: 54.0% | CS17: 61.1% | CT17: 50.6% | CU17: 61.1% | CV17: 54.5% | CW17: 41.2% | CX17: 38.2% | CY17: 48.2% | CZ17: 54.5% | DA17: 65.1% | DB17: 51.4% | DC17: 57.9% | DD17: 52.1% | DE17: 53.4% | DF17: 44.3% | DG17: 51.6% | DH17: 54.8% | DI17: 53.0% | DJ17: 49.5% | DK17: 46.4% | DL17: 56.1% | DM17: 50.9% | DN17: 46.9% | DO17: 51.3% | DP17: 63.4% | DQ17: 48.2% | DR17: 49.8% | DS17: 52.0%
A18: CUSCO | B18: KIMBIRI PICHARI | C18: LA CONVENCION | D18: UNIÓN ASHANINKA | E18: I-3 | F18: I-3 - 00002495 - MANTARO | G18: 1 | H18: 0 | I18: 0.0% | L18: 2025 | M18: 9 | O18: 35 | P18: 21 | Q18: 60.0% | BR18: HUANCAVELICA | BS18: 50.9% | BV18: HUANCAVELICA | BW18: 6.7% | BX18: 9.1% | BY18: 16.7% | BZ18: 26.2% | CA18: 26.9% | CB18: 32.7% | CC18: 36.4% | CD18: 38.2% | CE18: 40.0% | CF18: 45.5% | CG18: 50.9% | CO18: Setiembre | CP18: 52.0% | CQ18: 65.1% | CR18: 58.0% | CS18: 66.5% | CT18: 59.5% | CU18: 65.2% | CV18: 63.7% | CW18: 49.8% | CX18: 40.0% | CY18: 54.7% | CZ18: 59.9% | DA18: 70.6% | DB18: 59.6% | DC18: 65.5% | DD18: 59.8% | DE18: 62.4% | DF18: 50.1% | DG18: 61.2% | DH18: 61.0% | DI18: 60.1% | DJ18: 53.1% | DK18: 51.5% | DL18: 57.6% | DM18: 60.6% | DN18: 54.5% | DO18: 58.9% | DP18: 69.9% | DQ18: 62.7% | DR18: 55.6% | DS18: 59.3%
A19: CUSCO | B19: KIMBIRI PICHARI | C19: LA CONVENCION | D19: VILLA VIRGEN | E19: I-2 | F19: I-2 - 00002479 - VILLA VIRGEN | G19: 2 | H19: 2 | I19: 100.0% | L19: 2025 | M19: 10 | O19: 35 | P19: 25 | Q19: 71.4% | BR19: HUANUCO | BS19: 66.9% | BV19: HUANUCO | BW19: 8.9% | BX19: 15.6% | BY19: 22.6% | BZ19: 28.1% | CA19: 29.4% | CB19: 32.2% | CC19: 41.1% | CD19: 48.2% | CE19: 54.7% | CF19: 60.7% | CG19: 66.9% | CO19: Octubre | CP19: 59.3% | CQ19: 71.3% | CR19: 62.0% | CS19: 72.4% | CT19: 69.0% | CU19: 70.6% | CV19: 71.4% | CW19: 56.2% | CX19: 45.5% | CY19: 60.7% | CZ19: 67.1% | DA19: 77.2% | DB19: 65.8% | DC19: 74.5% | DD19: 67.0% | DE19: 69.8% | DF19: 56.9% | DG19: 69.7% | DH19: 67.2% | DI19: 66.4% | DJ19: 60.0% | DK19: 58.8% | DL19: 66.7% | DM19: 69.2% | DN19: 61.8% | DO19: 66.6% | DP19: 77.1% | DQ19: 66.4% | DR19: 60.5% | DS19: 66.3%
A20: Total general | G20: 35 | H20: 26 | I20: 74.3% | L20: 2025 | M20: 11 | O20: 35 | P20: 26 | Q20: 74.3% | BR20: ICA | BS20: 73.2% | BV20: ICA | BW20: 5.8% | BX20: 12.6% | BY20: 22.5% | BZ20: 29.1% | CA20: 35.5% | CB20: 38.0% | CC20: 46.5% | CD20: 54.5% | CE20: 59.9% | CF20: 67.1% | CG20: 73.2% | CO20: Noviembre | CP20: 65.9% | CQ20: 78.1% | CR20: 70.0% | CS20: 77.6% | CT20: 73.4% | CU20: 75.1% | CV20: 78.1% | CW20: 59.7% | CX20: 50.9% | CY20: 66.9% | CZ20: 73.2% | DA20: 83.7% | DB20: 71.9% | DC20: 80.2% | DD20: 73.6% | DE20: 75.4% | DF20: 61.9% | DG20: 76.2% | DH20: 73.4% | DI20: 71.3% | DJ20: 62.9% | DK20: 67.0% | DL20: 72.7% | DM20: 74.4% | DN20: 64.6% | DO20: 73.2% | DP20: 83.2% | DQ20: 74.5% | DR20: 65.5% | DS20: 72.0%
BR21: JUNIN | BS21: 83.7% | BV21: JUNIN | BW21: 10.8% | BX21: 21.5% | BY21: 33.8% | BZ21: 39.2% | CA21: 44.9% | CB21: 49.4% | CC21: 56.3% | CD21: 65.1% | CE21: 70.6% | CF21: 77.2% | CG21: 83.7%
BR22: LA LIBERTAD | BS22: 71.9% | BV22: LA LIBERTAD | BW22: 6.1% | BX22: 12.8% | BY22: 21.7% | BZ22: 25.6% | CA22: 32.4% | CB22: 36.5% | CC22: 44.7% | CD22: 51.4% | CE22: 59.6% | CF22: 65.8% | CG22: 71.9%
BR23: LAMBAYEQUE | BS23: 80.2% | BV23: LAMBAYEQUE | BW23: 9.6% | BX23: 18.5% | BY23: 24.4% | BZ23: 30.4% | CA23: 38.1% | CB23: 43.7% | CC23: 49.6% | CD23: 57.9% | CE23: 65.5% | CF23: 74.5% | CG23: 80.2%
BR24: LIMA DIRIS CENTRO | BS24: 73.6% | BV24: LIMA DIRIS CENTRO | BW24: 5.1% | BX24: 11.6% | BY24: 18.2% | BZ24: 25.2% | CA24: 30.7% | CB24: 35.7% | CC24: 43.4% | CD24: 52.1% | CE24: 59.8% | CF24: 67.0% | CG24: 73.6%
BR25: LIMA DIRIS ESTE | BS25: 75.4% | BV25: LIMA DIRIS ESTE | BW25: 7.2% | BX25: 14.3% | BY25: 21.1% | BZ25: 26.5% | CA25: 31.2% | CB25: 36.6% | CC25: 45.0% | CD25: 53.4% | CE25: 62.4% | CF25: 69.8% | CG25: 75.4%
BR26: LIMA DIRIS NORTE | BS26: 61.9% | BV26: LIMA DIRIS NORTE | BW26: 4.7% | BX26: 9.7% | BY26: 15.9% | BZ26: 21.5% | CA26: 26.3% | CB26: 30.2% | CC26: 37.5% | CD26: 44.3% | CE26: 50.1% | CF26: 56.9% | CG26: 61.9%
BR27: LIMA DIRIS SUR | BS27: 76.2% | BV27: LIMA DIRIS SUR | BW27: 4.5% | BX27: 10.2% | BY27: 17.8% | BZ27: 24.5% | CA27: 30.9% | CB27: 36.6% | CC27: 44.3% | CD27: 51.6% | CE27: 61.2% | CF27: 69.7% | CG27: 76.2%
BR28: LIMA REGION | BS28: 73.4% | BV28: LIMA REGION | BW28: 7.7% | BX28: 18.2% | BY28: 25.7% | BZ28: 31.2% | CA28: 38.0% | CB28: 40.3% | CC28: 47.6% | CD28: 54.8% | CE28: 61.0% | CF28: 67.2% | CG28: 73.4%
BR29: LORETO | BS29: 71.3% | BV29: LORETO | BW29: 10.8% | BX29: 17.4% | BY29: 26.2% | BZ29: 30.6% | CA29: 34.6% | CB29: 38.2% | CC29: 45.1% | CD29: 53.0% | CE29: 60.1% | CF29: 66.4% | CG29: 71.3% | CP29: AMAZONAS | CQ29: ANCASH | CR29: APURIMAC | CS29: AREQUIPA | CT29: AYACUCHO | CU29: CAJAMARCA | CV29: CALLAO | CW29: CUSCO | CX29: HUANCAVELICA | CY29: HUANUCO | CZ29: ICA | DA29: JUNIN | DB29: LA LIBERTAD | DC29: LAMBAYEQUE | DD29: LIMA DIRIS CENTRO | DE29: LIMA DIRIS ESTE | DF29: LIMA DIRIS NORTE | DG29: LIMA DIRIS SUR | DH29: LIMA PROVINCIAS | DI29: LORETO | DJ29: MADRE DE DIOS | DK29: MOQUEGUA | DL29: PASCO | DM29: PIURA | DN29: PUNO | DO29: SAN MARTIN | DP29: TACNA | DQ29: TUMBES | DR29: UCAYALI | DS29: NACIONAL
BR30: MADRE DE DIOS | BS30: 62.9% | BV30: MADRE DE DIOS | BW30: 8.4% | BX30: 19.6% | BY30: 27.0% | BZ30: 34.4% | CA30: 38.6% | CB30: 38.9% | CC30: 45.1% | CD30: 49.5% | CE30: 53.1% | CF30: 60.0% | CG30: 62.9% | CO30: Enero | CP30: =+IFERROR(GETPIVOTDATA("Ind",$CO$8,"Diris",CP$29,"mes",$CO30),"-") -> 5.6% | CQ30: =+IFERROR(GETPIVOTDATA("Ind",$CO$8,"Diris",CQ$29,"mes",$CO30),"-") -> 6.8% | CR30: 6.9% | CS30: 9.6% | CT30: 11.0% | CU30: 7.9% | CV30: 5.7% | CW30: 11.5% | CX30: 6.7% | CY30: 8.9% | CZ30: 5.8% | DA30: 10.8% | DB30: 6.1% | DC30: 9.6% | DD30: 5.1% | DE30: 7.2% | DF30: 4.7% | DG30: 4.5% | DH30: - | DI30: 10.8% | DJ30: 8.4% | DK30: 6.3% | DL30: 16.2% | DM30: 9.3% | DN30: 6.2% | DO30: 16.4% | DP30: 7.4% | DQ30: 3.2% | DR30: 10.5% | DS30: =+IFERROR(GETPIVOTDATA("Ind",$CO$8,"mes",$CO30),"-") -> 7.3%
BR31: MOQUEGUA | BS31: 67.0% | BV31: MOQUEGUA | BW31: 6.3% | BX31: 17.5% | BY31: 24.2% | BZ31: 29.0% | CA31: 31.6% | CB31: 32.0% | CC31: 40.2% | CD31: 46.4% | CE31: 51.5% | CF31: 58.8% | CG31: 67.0% | CO31: Febrero | CP31: =+IFERROR(GETPIVOTDATA("Ind",$CO$8,"Diris",CP$29,"mes",$CO31),"-") -> 13.8% | CQ31: 14.3% | CR31: 29.0% | CS31: 16.5% | CT31: 20.4% | CU31: 18.8% | CV31: 12.1% | CW31: 17.3% | CX31: 9.1% | CY31: 15.6% | CZ31: 12.6% | DA31: 21.5% | DB31: 12.8% | DC31: 18.5% | DD31: 11.6% | DE31: 14.3% | DF31: 9.7% | DG31: 10.2% | DH31: - | DI31: 17.4% | DJ31: 19.6% | DK31: 17.5% | DL31: 23.3% | DM31: 17.4% | DN31: 12.6% | DO31: 22.7% | DP31: 15.0% | DQ31: 9.9% | DR31: 15.5% | DS31: =+IFERROR(GETPIVOTDATA("Ind",$CO$8,"mes",$CO31),"-") -> 14.2%
BR32: PASCO | BS32: 72.7% | BV32: PASCO | BW32: 16.2% | BX32: 23.3% | BY32: 37.0% | BZ32: 40.7% | CA32: 44.4% | CB32: 42.4% | CC32: 50.0% | CD32: 56.1% | CE32: 57.6% | CF32: 66.7% | CG32: 72.7% | CO32: Marzo | CP32: 22.8% | CQ32: 26.1% | CR32: 43.8% | CS32: 26.5% | CT32: 27.3% | CU32: 27.1% | CV32: 19.9% | CW32: 20.9% | CX32: 16.7% | CY32: 22.6% | CZ32: 22.5% | DA32: 33.8% | DB32: 21.7% | DC32: 24.4% | DD32: 18.2% | DE32: 21.1% | DF32: 15.9% | DG32: 17.8% | DH32: - | DI32: 26.2% | DJ32: 27.0% | DK32: 24.2% | DL32: 37.0% | DM32: 26.5% | DN32: 21.4% | DO32: 29.3% | DP32: 21.9% | DQ32: 12.2% | DR32: 22.0% | DS32: 21.8%
BR33: PIURA | BS33: 74.4% | BV33: PIURA | BW33: 9.3% | BX33: 17.4% | BY33: 26.5% | BZ33: 28.7% | CA33: 35.6% | CB33: 37.8% | CC33: 43.4% | CD33: 50.9% | CE33: 60.6% | CF33: 69.2% | CG33: 74.4% | CO33: Abril | CP33: 26.9% | CQ33: 32.2% | CR33: 52.8% | CS33: 36.0% | CT33: 28.2% | CU33: 35.9% | CV33: 25.4% | CW33: 26.0% | CX33: 26.2% | CY33: 28.1% | CZ33: 29.1% | DA33: 39.2% | DB33: 25.6% | DC33: 30.4% | DD33: 25.2% | DE33: 26.5% | DF33: 21.5% | DG33: 24.5% | DH33: - | DI33: 30.6% | DJ33: 34.4% | DK33: 29.0% | DL33: 40.7% | DM33: 28.7% | DN33: 25.7% | DO33: 31.7% | DP33: 28.7% | DQ33: 19.8% | DR33: 27.5% | DS33: 27.5%
BR34: PUNO | BS34: 64.6% | BV34: PUNO | BW34: 6.2% | BX34: 12.6% | BY34: 21.4% | BZ34: 25.7% | CA34: 29.1% | CB34: 34.7% | CC34: 39.6% | CD34: 46.9% | CE34: 54.5% | CF34: 61.8% | CG34: 64.6% | CO34: Mayo | CP34: 32.2% | CQ34: 40.7% | CR34: 46.7% | CS34: 42.3% | CT34: 29.9% | CU34: 42.8% | CV34: 31.8% | CW34: 29.6% | CX34: 26.9% | CY34: 29.4% | CZ34: 35.5% | DA34: 44.9% | DB34: 32.4% | DC34: 38.1% | DD34: 30.7% | DE34: 31.2% | DF34: 26.3% | DG34: 30.9% | DH34: - | DI34: 34.6% | DJ34: 38.6% | DK34: 31.6% | DL34: 44.4% | DM34: 35.6% | DN34: 29.1% | DO34: 35.8% | DP34: 36.4% | DQ34: 25.5% | DR34: 32.3% | DS34: 32.9%
BR35: SAN MARTIN | BS35: 73.2% | BV35: SAN MARTIN | BW35: 16.4% | BX35: 22.7% | BY35: 29.3% | BZ35: 31.7% | CA35: 35.8% | CB35: 37.2% | CC35: 45.2% | CD35: 51.3% | CE35: 58.9% | CF35: 66.6% | CG35: 73.2% | CO35: Junio | CP35: 35.0% | CQ35: 42.5% | CR35: 48.0% | CS35: 45.3% | CT35: 34.8% | CU35: 44.3% | CV35: 36.9% | CW35: 30.4% | CX35: 32.7% | CY35: 32.2% | CZ35: 38.0% | DA35: 49.4% | DB35: 36.5% | DC35: 43.7% | DD35: 35.7% | DE35: 36.6% | DF35: 30.2% | DG35: 36.6% | DH35: - | DI35: 38.2% | DJ35: 38.9% | DK35: 32.0% | DL35: 42.4% | DM35: 37.8% | DN35: 34.7% | DO35: 37.2% | DP35: 46.2% | DQ35: 31.8% | DR35: 35.2% | DS35: 36.9%
BR36: TACNA | BS36: 83.2% | BV36: TACNA | BW36: 7.4% | BX36: 15.0% | BY36: 21.9% | BZ36: 28.7% | CA36: 36.4% | CB36: 46.2% | CC36: 55.8% | CD36: 63.4% | CE36: 69.9% | CF36: 77.1% | CG36: 83.2% | CO36: Julio | CP36: 38.2% | CQ36: 49.4% | CR36: 50.0% | CS36: 52.7% | CT36: 44.3% | CU36: 53.4% | CV36: 46.8% | CW36: 37.1% | CX36: 36.4% | CY36: 41.1% | CZ36: 46.5% | DA36: 56.3% | DB36: 44.7% | DC36: 49.6% | DD36: 43.4% | DE36: 45.0% | DF36: 37.5% | DG36: 44.3% | DH36: - | DI36: 45.1% | DJ36: 45.1% | DK36: 40.2% | DL36: 50.0% | DM36: 43.4% | DN36: 39.6% | DO36: 45.2% | DP36: 55.8% | DQ36: 39.1% | DR36: 43.6% | DS36: 44.5%
BR37: TUMBES | BS37: 74.5% | BV37: TUMBES | BW37: 3.2% | BX37: 9.9% | BY37: 12.2% | BZ37: 19.8% | CA37: 25.5% | CB37: 31.8% | CC37: 39.1% | CD37: 48.2% | CE37: 62.7% | CF37: 66.4% | CG37: 74.5% | CO37: Agosto | CP37: 43.9% | CQ37: 58.2% | CR37: 54.0% | CS37: 61.1% | CT37: 50.6% | CU37: 61.1% | CV37: 54.5% | CW37: 41.2% | CX37: 38.2% | CY37: 48.2% | CZ37: 54.5% | DA37: 65.1% | DB37: 51.4% | DC37: 57.9% | DD37: 52.1% | DE37: 53.4% | DF37: 44.3% | DG37: 51.6% | DH37: - | DI37: 53.0% | DJ37: 49.5% | DK37: 46.4% | DL37: 56.1% | DM37: 50.9% | DN37: 46.9% | DO37: 51.3% | DP37: 63.4% | DQ37: 48.2% | DR37: 49.8% | DS37: 52.0%
BR38: UCAYALI | BS38: 65.5% | BV38: UCAYALI | BW38: 10.5% | BX38: 15.5% | BY38: 22.0% | BZ38: 27.5% | CA38: 32.3% | CB38: 35.2% | CC38: 43.6% | CD38: 49.8% | CE38: 55.6% | CF38: 60.5% | CG38: 65.5% | CO38: Setiembre | CP38: 52.0% | CQ38: 65.1% | CR38: 58.0% | CS38: 66.5% | CT38: 59.5% | CU38: 65.2% | CV38: 63.7% | CW38: 49.8% | CX38: 40.0% | CY38: 54.7% | CZ38: 59.9% | DA38: 70.6% | DB38: 59.6% | DC38: 65.5% | DD38: 59.8% | DE38: 62.4% | DF38: 50.1% | DG38: 61.2% | DH38: - | DI38: 60.1% | DJ38: 53.1% | DK38: 51.5% | DL38: 57.6% | DM38: 60.6% | DN38: 54.5% | DO38: 58.9% | DP38: 69.9% | DQ38: 62.7% | DR38: 55.6% | DS38: 59.3%
BR39: Total general | BS39: 72.0% | BV39: Total general | BW39: 7.3% | BX39: 14.2% | BY39: 21.8% | BZ39: 27.5% | CA39: 32.9% | CB39: 36.9% | CC39: 44.5% | CD39: 52.0% | CE39: 59.3% | CF39: 66.3% | CG39: 72.0% | CO39: Octubre | CP39: 59.3% | CQ39: 71.3% | CR39: 62.0% | CS39: 72.4% | CT39: 69.0% | CU39: 70.6% | CV39: 71.4% | CW39: 56.2% | CX39: 45.5% | CY39: 60.7% | CZ39: 67.1% | DA39: 77.2% | DB39: 65.8% | DC39: 74.5% | DD39: 67.0% | DE39: 69.8% | DF39: 56.9% | DG39: 69.7% | DH39: - | DI39: =+IFERROR(GETPIVOTDATA("Ind",$CO$8,"Diris",DI$29,"mes",$CO39),"-") -> 66.4% | DJ39: 60.0% | DK39: 58.8% | DL39: 66.7% | DM39: 69.2% | DN39: 61.8% | DO39: 66.6% | DP39: 77.1% | DQ39: 66.4% | DR39: 60.5% | DS39: 66.3%
CO40: Noviembre | CP40: 65.9% | CQ40: 78.1% | CR40: 70.0% | CS40: 77.6% | CT40: 73.4% | CU40: 75.1% | CV40: 78.1% | CW40: 59.7% | CX40: 50.9% | CY40: 66.9% | CZ40: 73.2% | DA40: 83.7% | DB40: 71.9% | DC40: 80.2% | DD40: 73.6% | DE40: 75.4% | DF40: 61.9% | DG40: 76.2% | DH40: - | DI40: 71.3% | DJ40: 62.9% | DK40: 67.0% | DL40: 72.7% | DM40: 74.4% | DN40: 64.6% | DO40: 73.2% | DP40: 83.2% | DQ40: 74.5% | DR40: 65.5% | DS40: 72.0%
CO41: Diciembre | CP41: - | CQ41: - | CR41: - | CS41: - | CT41: - | CU41: - | CV41: - | CW41: - | CX41: - | CY41: - | CZ41: - | DA41: - | DB41: - | DC41: - | DD41: - | DE41: - | DF41: - | DG41: - | DH41: - | DI41: - | DJ41: - | DK41: - | DL41: - | DM41: - | DN41: - | DO41: - | DP41: - | DQ41: - | DR41: - | DS41: -
BW45: 1 | BX45: 2 | BY45: 3 | BZ45: 4 | CA45: 5 | CB45: 6 | CC45: 7 | CD45: 8 | CE45: 9 | CF45: 10 | CG45: 11 | CH45: 12
BR46: AMAZONAS | BS46: =+IFERROR(GETPIVOTDATA("Ind",$BR$9,"Diris",BR46),"-") -> 65.9% | BV46: AMAZONAS | BW46: =+IFERROR(GETPIVOTDATA("Ind",$BV$8,"Diris",$BV46,"mes",BW$45),"-") -> 5.6% | BX46: =+IFERROR(GETPIVOTDATA("Ind",$BV$8,"Diris",$BV46,"mes",BX$45),"-") -> 13.8% | BY46: 22.8% | BZ46: 26.9% | CA46: 32.2% | CB46: 35.0% | CC46: 38.2% | CD46: 43.9% | CE46: 52.0% | CF46: 59.3% | CG46: 65.9% | CH46: - | CJ46: AMAZONAS | CK46: =+IF(BW46="-","-",MIN(BW46:CH46)) -> 5.6% | CL46: =+IF(BW46="-","-",MAX(BW46:CH46)) -> 65.9%
BR47: ANCASH | BS47: =+IFERROR(GETPIVOTDATA("Ind",$BR$9,"Diris",BR47),"-") -> 78.1% | BV47: ANCASH | BW47: =+IFERROR(GETPIVOTDATA("Ind",$BV$8,"Diris",$BV47,"mes",BW$45),"-") -> 6.8% | BX47: 14.3% | BY47: 26.1% | BZ47: 32.2% | CA47: 40.7% | CB47: 42.5% | CC47: 49.4% | CD47: 58.2% | CE47: 65.1% | CF47: 71.3% | CG47: 78.1% | CH47: - | CJ47: ANCASH | CK47: =+IF(BW47="-","-",MIN(BW47:CH47)) -> 6.8% | CL47: =+IF(BW47="-","-",MAX(BW47:CH47)) -> 78.1%
BR48: APURIMAC | BS48: 70.0% | BV48: APURIMAC | BW48: 6.9% | BX48: 29.0% | BY48: 43.8% | BZ48: 52.8% | CA48: 46.7% | CB48: 48.0% | CC48: 50.0% | CD48: 54.0% | CE48: 58.0% | CF48: 62.0% | CG48: 70.0% | CH48: - | CJ48: APURIMAC | CK48: 6.9% | CL48: 70.0%
BR49: AREQUIPA | BS49: 77.6% | BV49: AREQUIPA | BW49: 9.6% | BX49: 16.5% | BY49: 26.5% | BZ49: 36.0% | CA49: 42.3% | CB49: 45.3% | CC49: 52.7% | CD49: 61.1% | CE49: 66.5% | CF49: 72.4% | CG49: 77.6% | CH49: - | CJ49: AREQUIPA | CK49: 9.6% | CL49: 77.6%
BR50: AYACUCHO | BS50: 73.4% | BV50: AYACUCHO | BW50: 11.0% | BX50: 20.4% | BY50: 27.3% | BZ50: 28.2% | CA50: 29.9% | CB50: 34.8% | CC50: 44.3% | CD50: 50.6% | CE50: 59.5% | CF50: 69.0% | CG50: 73.4% | CH50: - | CJ50: AYACUCHO | CK50: 11.0% | CL50: 73.4%
BR51: CAJAMARCA | BS51: 75.1% | BV51: CAJAMARCA | BW51: 7.9% | BX51: 18.8% | BY51: 27.1% | BZ51: 35.9% | CA51: 42.8% | CB51: 44.3% | CC51: 53.4% | CD51: 61.1% | CE51: 65.2% | CF51: 70.6% | CG51: 75.1% | CH51: - | CJ51: CAJAMARCA | CK51: 7.9% | CL51: 75.1%
BR52: CALLAO | BS52: 78.1% | BV52: CALLAO | BW52: 5.7% | BX52: 12.1% | BY52: 19.9% | BZ52: 25.4% | CA52: 31.8% | CB52: 36.9% | CC52: 46.8% | CD52: 54.5% | CE52: 63.7% | CF52: 71.4% | CG52: 78.1% | CH52: - | CJ52: CALLAO | CK52: 5.7% | CL52: 78.1%
BR53: CUSCO | BS53: 59.7% | BV53: CUSCO | BW53: 11.5% | BX53: 17.3% | BY53: 20.9% | BZ53: 26.0% | CA53: 29.6% | CB53: 30.4% | CC53: 37.1% | CD53: 41.2% | CE53: 49.8% | CF53: 56.2% | CG53: 59.7% | CH53: - | CJ53: CUSCO | CK53: 11.5% | CL53: 59.7%
BR54: HUANCAVELICA | BS54: 50.9% | BV54: HUANCAVELICA | BW54: 6.7% | BX54: 9.1% | BY54: 16.7% | BZ54: 26.2% | CA54: 26.9% | CB54: 32.7% | CC54: 36.4% | CD54: 38.2% | CE54: 40.0% | CF54: 45.5% | CG54: 50.9% | CH54: - | CJ54: HUANCAVELICA | CK54: 6.7% | CL54: 50.9%
BR55: HUANUCO | BS55: 66.9% | BV55: HUANUCO | BW55: 8.9% | BX55: 15.6% | BY55: 22.6% | BZ55: 28.1% | CA55: 29.4% | CB55: 32.2% | CC55: 41.1% | CD55: 48.2% | CE55: 54.7% | CF55: 60.7% | CG55: 66.9% | CH55: - | CJ55: HUANUCO | CK55: 8.9% | CL55: 66.9%
BR56: ICA | BS56: 73.2% | BV56: ICA | BW56: 5.8% | BX56: 12.6% | BY56: 22.5% | BZ56: 29.1% | CA56: 35.5% | CB56: 38.0% | CC56: 46.5% | CD56: 54.5% | CE56: 59.9% | CF56: 67.1% | CG56: 73.2% | CH56: - | CJ56: ICA | CK56: 5.8% | CL56: 73.2%
BR57: JUNIN | BS57: 83.7% | BV57: JUNIN | BW57: 10.8% | BX57: 21.5% | BY57: 33.8% | BZ57: 39.2% | CA57: 44.9% | CB57: 49.4% | CC57: 56.3% | CD57: 65.1% | CE57: 70.6% | CF57: 77.2% | CG57: 83.7% | CH57: - | CJ57: JUNIN | CK57: 10.8% | CL57: 83.7%
BR58: LA LIBERTAD | BS58: 71.9% | BV58: LA LIBERTAD | BW58: 6.1% | BX58: 12.8% | BY58: 21.7% | BZ58: 25.6% | CA58: 32.4% | CB58: 36.5% | CC58: 44.7% | CD58: 51.4% | CE58: 59.6% | CF58: 65.8% | CG58: 71.9% | CH58: - | CJ58: LA LIBERTAD | CK58: 6.1% | CL58: 71.9%
BR59: LAMBAYEQUE | BS59: 80.2% | BV59: LAMBAYEQUE | BW59: 9.6% | BX59: 18.5% | BY59: 24.4% | BZ59: 30.4% | CA59: 38.1% | CB59: 43.7% | CC59: 49.6% | CD59: 57.9% | CE59: 65.5% | CF59: 74.5% | CG59: 80.2% | CH59: - | CJ59: LAMBAYEQUE | CK59: 9.6% | CL59: 80.2%
BR60: LIMA DIRIS CENTRO | BS60: 73.6% | BV60: LIMA DIRIS CENTRO | BW60: 5.1% | BX60: 11.6% | BY60: 18.2% | BZ60: 25.2% | CA60: 30.7% | CB60: 35.7% | CC60: 43.4% | CD60: 52.1% | CE60: 59.8% | CF60: 67.0% | CG60: 73.6% | CH60: - | CJ60: LIMA DIRIS CENTRO | CK60: 5.1% | CL60: 73.6%
BR61: LIMA DIRIS ESTE | BS61: 75.4% | BV61: LIMA DIRIS ESTE | BW61: 7.2% | BX61: 14.3% | BY61: 21.1% | BZ61: 26.5% | CA61: 31.2% | CB61: 36.6% | CC61: 45.0% | CD61: 53.4% | CE61: 62.4% | CF61: 69.8% | CG61: 75.4% | CH61: - | CJ61: LIMA DIRIS ESTE | CK61: 7.2% | CL61: 75.4%
BR62: LIMA DIRIS NORTE | BS62: 61.9% | BV62: LIMA DIRIS NORTE | BW62: 4.7% | BX62: 9.7% | BY62: 15.9% | BZ62: 21.5% | CA62: 26.3% | CB62: 30.2% | CC62: 37.5% | CD62: 44.3% | CE62: 50.1% | CF62: 56.9% | CG62: 61.9% | CH62: - | CJ62: LIMA DIRIS NORTE | CK62: 4.7% | CL62: 61.9%
BR63: LIMA DIRIS SUR | BS63: 76.2% | BV63: LIMA DIRIS SUR | BW63: 4.5% | BX63: 10.2% | BY63: 17.8% | BZ63: 24.5% | CA63: 30.9% | CB63: 36.6% | CC63: 44.3% | CD63: 51.6% | CE63: 61.2% | CF63: 69.7% | CG63: 76.2% | CH63: - | CJ63: LIMA DIRIS SUR | CK63: 4.5% | CL63: 76.2%
BR64: LIMA REGION | BS64: 73.4% | BV64: LIMA REGION | BW64: 7.7% | BX64: 18.2% | BY64: 25.7% | BZ64: 31.2% | CA64: 38.0% | CB64: 40.3% | CC64: 47.6% | CD64: 54.8% | CE64: 61.0% | CF64: 67.2% | CG64: 73.4% | CH64: - | CJ64: LIMA PROVINCIAS | CK64: 7.7% | CL64: 73.4%
BR65: LORETO | BS65: 71.3% | BV65: LORETO | BW65: 10.8% | BX65: 17.4% | BY65: 26.2% | BZ65: 30.6% | CA65: 34.6% | CB65: 38.2% | CC65: 45.1% | CD65: 53.0% | CE65: 60.1% | CF65: 66.4% | CG65: 71.3% | CH65: - | CJ65: LORETO | CK65: 10.8% | CL65: 71.3%
BR66: MADRE DE DIOS | BS66: 62.9% | BV66: MADRE DE DIOS | BW66: 8.4% | BX66: 19.6% | BY66: 27.0% | BZ66: 34.4% | CA66: 38.6% | CB66: 38.9% | CC66: 45.1% | CD66: 49.5% | CE66: 53.1% | CF66: 60.0% | CG66: 62.9% | CH66: - | CJ66: MADRE DE DIOS | CK66: 8.4% | CL66: 62.9%
BR67: MOQUEGUA | BS67: 67.0% | BV67: MOQUEGUA | BW67: 6.3% | BX67: 17.5% | BY67: 24.2% | BZ67: 29.0% | CA67: 31.6% | CB67: 32.0% | CC67: 40.2% | CD67: 46.4% | CE67: 51.5% | CF67: 58.8% | CG67: 67.0% | CH67: - | CJ67: MOQUEGUA | CK67: 6.3% | CL67: 67.0%
BR68: PASCO | BS68: 72.7% | BV68: PASCO | BW68: 16.2% | BX68: 23.3% | BY68: 37.0% | BZ68: 40.7% | CA68: 44.4% | CB68: 42.4% | CC68: 50.0% | CD68: 56.1% | CE68: 57.6% | CF68: 66.7% | CG68: 72.7% | CH68: - | CJ68: PASCO | CK68: 16.2% | CL68: 72.7%
BR69: PIURA | BS69: 74.4% | BV69: PIURA | BW69: 9.3% | BX69: 17.4% | BY69: 26.5% | BZ69: 28.7% | CA69: 35.6% | CB69: 37.8% | CC69: 43.4% | CD69: 50.9% | CE69: 60.6% | CF69: 69.2% | CG69: 74.4% | CH69: - | CJ69: PIURA | CK69: 9.3% | CL69: 74.4%
BR70: PUNO | BS70: 64.6% | BV70: PUNO | BW70: 6.2% | BX70: 12.6% | BY70: 21.4% | BZ70: 25.7% | CA70: 29.1% | CB70: 34.7% | CC70: 39.6% | CD70: 46.9% | CE70: 54.5% | CF70: 61.8% | CG70: 64.6% | CH70: - | CJ70: PUNO | CK70: 6.2% | CL70: 64.6%
BR71: SAN MARTIN | BS71: 73.2% | BV71: SAN MARTIN | BW71: 16.4% | BX71: 22.7% | BY71: 29.3% | BZ71: 31.7% | CA71: 35.8% | CB71: 37.2% | CC71: 45.2% | CD71: 51.3% | CE71: 58.9% | CF71: 66.6% | CG71: 73.2% | CH71: - | CJ71: SAN MARTIN | CK71: 16.4% | CL71: 73.2%
BR72: TACNA | BS72: 83.2% | BV72: TACNA | BW72: 7.4% | BX72: 15.0% | BY72: 21.9% | BZ72: 28.7% | CA72: 36.4% | CB72: 46.2% | CC72: 55.8% | CD72: 63.4% | CE72: 69.9% | CF72: 77.1% | CG72: 83.2% | CH72: - | CJ72: TACNA | CK72: 7.4% | CL72: 83.2%
BR73: TUMBES | BS73: 74.5% | BV73: TUMBES | BW73: 3.2% | BX73: 9.9% | BY73: 12.2% | BZ73: 19.8% | CA73: 25.5% | CB73: 31.8% | CC73: 39.1% | CD73: 48.2% | CE73: 62.7% | CF73: 66.4% | CG73: 74.5% | CH73: - | CJ73: TUMBES | CK73: 3.2% | CL73: 74.5%
BR74: UCAYALI | BS74: 65.5% | BV74: UCAYALI | BW74: 10.5% | BX74: 15.5% | BY74: 22.0% | BZ74: 27.5% | CA74: 32.3% | CB74: 35.2% | CC74: 43.6% | CD74: 49.8% | CE74: 55.6% | CF74: 60.5% | CG74: 65.5% | CH74: - | CJ74: UCAYALI | CK74: 10.5% | CL74: 65.5%
BR75: NACIONAL | BS75: =+IFERROR(GETPIVOTDATA("Ind",$BR$9),"-") -> 72.0% | BV75: NACIONAL | BW75: =+IFERROR(GETPIVOTDATA("Ind",$BV$8,"mes",BW$45),"-") -> 7.3% | BX75: =+IFERROR(GETPIVOTDATA("Ind",$BV$8,"mes",BX$45),"-") -> 14.2% | BY75: 0.2178371201 | BZ75: 0.2750894869 | CA75: 0.3288939322 | CB75: 0.3691301001 | CC75: 0.4453975586 | CD75: 0.5202353459 | CE75: 0.5934235126 | CF75: 0.6632574508 | CG75: 0.7204442978 | CH75: =+IFERROR(GETPIVOTDATA("Ind",$BV$8,"mes",CH$45),"-") -> - | CJ75: NACIONAL | CK75: 7.3% | CL75: 72.0%

Sheet DL_1153_2025_CG09
A1: =+DL1153_2025!C15 -> Ficha 09:Porcentaje de contactos menores de 5 años de edad que culminan Terapia Preventiva para TB. | BP1: 1 | DT1: 1
A2: Periodo de Evaluación: | B2: =+DL1153_2025!B42 -> Noviembre - 2025
K3: Avance Mensual:
K5: Diris | L5: (Todas)
A6: año | B6: 2025 | K6: Red | L6: KIMBIRI PICHARI | BQ6: año | BR6: (Todas) | CN6: año | CO6: (Todas)
A7: mes | B7: 11 | K7: eess_nombre | L7: (Todas) | BQ7: mes | BR7: 11 | BU7: año | BV7: (Todas)
A8: DIRESA/DIRIS | B8: RED | C8: Provincia | D8: Distrito | E8: Categoria EEES | F8: Nombre EESS | G8: Denominador: Total de contactos < 5 años de TB pulmonar censados de los casos diagnosticados entre 01 de enero 2024 al 30 setiembre del año 2024, registrados en el SIG TB en el período a evaluar. | H8: Numerador: Total de contactos <5 años de TB Pulmonar incluidos en el denominador, que culminan TPTB del periodo a evaluar | I8: Indicador: Porcentaje de contactos menores de 5 años de edad que culminan Terapia Preventiva para TB | K8: AÑO | L8: MES | M8: Categoría | N8: Denominador: Total de contactos < 5 años de TB pulmonar censados de los casos diagnosticados entre 01 de enero 2024 al 30 setiembre del año 2024, registrados en el SIG TB en el período a evaluar. | O8: Numerador: Total de contactos <5 años de TB Pulmonar incluidos en el denominador, que culminan TPTB del periodo a evaluar | P8: Indicador: Porcentaje de contactos menores de 5 años de edad que culminan Terapia Preventiva para TB | CN8: Suma de Ind | CO8: Diris
A9: Diris | B9: Red | C9: Provincia | D9: Distrito | E9: cat_estab | F9: eess_nombre | G9: Suma de den | H9: Suma de num | I9: Suma de Ind | K9: año | L9: mes | M9: cat_estab | N9: Suma de den | O9: Suma de num | P9: Suma de Ind | BQ9: Diris | BR9: Suma de Ind | BU9: Suma de Ind | BV9: mes | CN9: mes | CO9: AMAZONAS | CP9: ANCASH | CQ9: APURIMAC | CR9: AREQUIPA | CS9: AYACUCHO | CT9: CAJAMARCA | CU9: CALLAO | CV9: CUSCO | CW9: HUANCAVELICA | CX9: HUANUCO | CY9: ICA | CZ9: JUNIN | DA9: LA LIBERTAD | DB9: LAMBAYEQUE | DC9: LIMA DIRIS CENTRO | DD9: LIMA DIRIS ESTE | DE9: LIMA DIRIS NORTE | DF9: LIMA DIRIS SUR | DG9: LIMA REGION | DH9: LORETO | DI9: MADRE DE DIOS | DJ9: MOQUEGUA | DK9: PASCO | DL9: PIURA | DM9: PUNO | DN9: SAN MARTIN | DO9: TACNA | DP9: TUMBES | DQ9: UCAYALI | DR9: Total general
A10: CUSCO | B10: KIMBIRI PICHARI | C10: LA CONVENCION | D10: KIMBIRI | E10: I-2 | F10: I-2 - 00002474 - SAMANIATO | G10: 1 | H10: 1 | I10: 100.0% | K10: 2025 | L10: 1 | N10: 1 | O10: 0 | P10: 0.0% | BQ10: AMAZONAS | BR10: 87.5% | BU10: Diris | BV10: 1 | BW10: 2 | BX10: 3 | BY10: 4 | BZ10: 5 | CA10: 6 | CB10: 7 | CC10: 8 | CD10: 9 | CE10: 10 | CF10: 11 | CN10: Enero | CO10: 100.0% | CP10: 6.3% | CQ10: 0.0% | CR10: 0.0% | CS10: 0.0% | CT10: 9.1% | CU10: 4.5% | CV10: 11.1% | CW10: 50.0% | CX10: 12.5% | CY10: 17.6% | CZ10: 11.1% | DA10: 2.2% | DB10: 0.0% | DC10: 7.0% | DD10: 10.6% | DE10: 4.5% | DF10: 8.8% | DG10: 0.0% | DH10: 0.0% | DI10: 16.7% | DJ10: 0.0% | DK10: 100.0% | DL10: 18.8% | DM10: 0.0% | DN10: 0.0% | DO10: 0.0% | DP10: 0.0% | DQ10: 4.9% | DR10: 6.9%
A11: CUSCO | B11: KIMBIRI PICHARI | C11: LA CONVENCION | D11: PICHARI | E11: I-4 | F11: I-4 - 00002494 - PICHARI | G11: 1 | H11: 1 | I11: 100.0% | K11: 2025 | L11: 2 | N11: 2 | O11: 0 | P11: 0.0% | BQ11: ANCASH | BR11: 82.2% | BU11: AMAZONAS | BV11: 100.0% | BW11: 100.0% | BX11: 25.0% | BY11: 20.0% | BZ11: 16.7% | CA11: 14.3% | CB11: 71.4% | CC11: 62.5% | CD11: 75.0% | CE11: 87.5% | CF11: 87.5% | CN11: Febrero | CO11: 100.0% | CP11: 8.0% | CQ11: 0.0% | CR11: 16.7% | CS11: 0.0% | CT11: 7.1% | CU11: 7.1% | CV11: 20.0% | CW11: 100.0% | CX11: 12.5% | CY11: 18.6% | CZ11: 25.0% | DA11: 13.1% | DB11: 7.1% | DC11: 12.8% | DD11: 15.1% | DE11: 10.9% | DF11: 19.7% | DG11: 0.0% | DH11: 1.4% | DI11: 42.9% | DJ11: 0.0% | DK11: 100.0% | DL11: 23.5% | DM11: 0.0% | DN11: 0.0% | DO11: 0.0% | DP11: 0.0% | DQ11: 17.0% | DR11: 12.7%
A12: CUSCO | B12: KIMBIRI PICHARI | C12: LA CONVENCION | D12: VILLA VIRGEN | E12: I-2 | F12: I-2 - 00002479 - VILLA VIRGEN | G12: 2 | H12: 0 | I12: 0.0% | K12: 2025 | L12: 3 | N12: 2 | O12: 0 | P12: 0.0% | BQ12: APURIMAC | BR12: 70.0% | BU12: ANCASH | BV12: 6.3% | BW12: 8.0% | BX12: 23.3% | BY12: 39.4% | BZ12: 61.0% | CA12: 53.1% | CB12: 54.7% | CC12: 58.7% | CD12: 61.6% | CE12: 65.8% | CF12: 82.2% | CN12: Marzo | CO12: 25.0% | CP12: 23.3% | CQ12: 16.7% | CR12: 31.3% | CS12: 0.0% | CT12: 13.3% | CU12: 10.5% | CV12: 34.6% | CW12: 100.0% | CX12: 20.0% | CY12: 23.9% | CZ12: 26.1% | DA12: 20.5% | DB12: 10.5% | DC12: 26.9% | DD12: 19.1% | DE12: 12.3% | DF12: 27.9% | DG12: 13.6% | DH12: 4.3% | DI12: 40.0% | DJ12: 0.0% | DK12: 100.0% | DL12: 36.8% | DM12: 9.1% | DN12: 5.0% | DO12: 11.1% | DP12: 0.0% | DQ12: 14.5% | DR12: 18.5%
A13: Total general | G13: 4 | H13: 2 | I13: 50.0% | K13: 2025 | L13: 4 | N13: 2 | O13: 0 | P13: 0.0% | BQ13: AREQUIPA | BR13: 51.6% | BU13: APURIMAC | BV13: 0.0% | BW13: 0.0% | BX13: 16.7% | BY13: 16.7% | BZ13: 25.0% | CA13: 50.0% | CB13: 50.0% | CC13: 50.0% | CD13: 70.0% | CE13: 70.0% | CF13: 70.0% | CN13: Abril | CO13: 20.0% | CP13: 39.4% | CQ13: 16.7% | CR13: 30.0% | CS13: 20.0% | CT13: 18.8% | CU13: 9.8% | CV13: 44.4% | CW13: 100.0% | CX13: 20.0% | CY13: 40.4% | CZ13: 30.0% | DA13: 23.7% | DB13: 34.0% | DC13: 32.2% | DD13: 28.3% | DE13: 17.9% | DF13: 36.2% | DG13: 20.8% | DH13: 9.1% | DI13: 30.8% | DJ13: 16.7% | DK13: 50.0% | DL13: 47.6% | DM13: 8.3% | DN13: 3.6% | DO13: 33.3% | DP13: 50.0% | DQ13: 21.0% | DR13: 25.5%
K14: 2025 | L14: 5 | N14: 2 | O14: 0 | P14: 0.0% | BQ14: AYACUCHO | BR14: 45.5% | BU14: AREQUIPA | BV14: 0.0% | BW14: 16.7% | BX14: 31.3% | BY14: 30.0% | BZ14: 35.0% | CA14: 41.7% | CB14: 46.2% | CC14: 50.0% | CD14: 48.4% | CE14: 51.6% | CF14: 51.6% | CN14: Mayo | CO14: 16.7% | CP14: 61.0% | CQ14: 25.0% | CR14: 35.0% | CS14: 28.6% | CT14: 35.3% | CU14: 20.0% | CV14: 51.9% | CW14: 100.0% | CX14: 15.0% | CY14: 53.6% | CZ14: 41.8% | DA14: 34.9% | DB14: 38.9% | DC14: 40.4% | DD14: 33.6% | DE14: 27.1% | DF14: 40.3% | DG14: 31.7% | DH14: 25.6% | DI14: 26.7% | DJ14: 33.3% | DK14: 40.0% | DL14: 41.7% | DM14: 14.3% | DN14: 2.9% | DO14: 36.4% | DP14: 63.6% | DQ14: 22.4% | DR14: 33.7%
K15: 2025 | L15: 6 | N15: 2 | O15: 1 | P15: 50.0% | BQ15: CAJAMARCA | BR15: 91.3% | BU15: AYACUCHO | BV15: 0.0% | BW15: 0.0% | BX15: 0.0% | BY15: 20.0% | BZ15: 28.6% | CA15: 28.6% | CB15: 20.0% | CC15: 36.4% | CD15: 45.5% | CE15: 45.5% | CF15: 45.5% | CN15: Junio | CO15: 14.3% | CP15: 53.1% | CQ15: 50.0% | CR15: 41.7% | CS15: 28.6% | CT15: 50.0% | CU15: 46.3% | CV15: 54.8% | CW15: 100.0% | CX15: 28.6% | CY15: 59.7% | CZ15: 62.3% | DA15: 39.7% | DB15: 48.3% | DC15: 45.8% | DD15: 39.6% | DE15: 34.5% | DF15: 44.3% | DG15: 40.6% | DH15: 37.2% | DI15: 31.3% | DJ15: 50.0% | DK15: 40.0% | DL15: 57.7% | DM15: 35.7% | DN15: 8.6% | DO15: 63.6% | DP15: 81.8% | DQ15: 25.6% | DR15: 42.0%
K16: 2025 | L16: 7 | N16: 2 | O16: 1 | P16: 50.0% | BQ16: CALLAO | BR16: 77.8% | BU16: CAJAMARCA | BV16: 9.1% | BW16: 7.1% | BX16: 13.3% | BY16: 18.8% | BZ16: 35.3% | CA16: 50.0% | CB16: 50.0% | CC16: 54.5% | CD16: 65.2% | CE16: 78.3% | CF16: 91.3% | CN16: Julio | CO16: 71.4% | CP16: 54.7% | CQ16: 50.0% | CR16: 46.2% | CS16: 20.0% | CT16: 50.0% | CU16: 54.7% | CV16: 60.6% | CW16: 100.0% | CX16: 33.3% | CY16: 63.4% | CZ16: 59.7% | DA16: 42.5% | DB16: 59.7% | DC16: 51.8% | DD16: 40.0% | DE16: 44.5% | DF16: 51.6% | DG16: 45.3% | DH16: 45.8% | DI16: 29.4% | DJ16: 50.0% | DK16: 60.0% | DL16: 70.4% | DM16: 56.3% | DN16: 11.4% | DO16: 72.7% | DP16: 81.8% | DQ16: 35.9% | DR16: 48.1%
K17: 2025 | L17: 8 | N17: 4 | O17: 1 | P17: 25.0% | BQ17: CUSCO | BR17: 84.2% | BU17: CALLAO | BV17: 4.5% | BW17: 7.1% | BX17: 10.5% | BY17: 9.8% | BZ17: 20.0% | CA17: 46.3% | CB17: 54.7% | CC17: 60.5% | CD17: 64.4% | CE17: 72.2% | CF17: 77.8% | CN17: Agosto | CO17: 62.5% | CP17: 58.7% | CQ17: 50.0% | CR17: 50.0% | CS17: 36.4% | CT17: 54.5% | CU17: 60.5% | CV17: 57.9% | CW17: 100.0% | CX17: 52.2% | CY17: 63.3% | CZ17: 56.3% | DA17: 50.3% | DB17: 72.3% | DC17: 58.9% | DD17: 39.4% | DE17: 46.0% | DF17: 57.6% | DG17: 51.9% | DH17: 48.8% | DI17: 44.4% | DJ17: 50.0% | DK17: 100.0% | DL17: 62.5% | DM17: 55.0% | DN17: 18.4% | DO17: 72.7% | DP17: 83.3% | DQ17: 43.9% | DR17: 52.2%
K18: 2025 | L18: 9 | N18: 4 | O18: 1 | P18: 25.0% | BQ18: HUANCAVELICA | BR18: 66.7% | BU18: CUSCO | BV18: 11.1% | BW18: 20.0% | BX18: 34.6% | BY18: 44.4% | BZ18: 51.9% | CA18: 54.8% | CB18: 60.6% | CC18: 57.9% | CD18: 65.8% | CE18: 78.9% | CF18: 84.2% | CN18: Setiembre | CO18: 75.0% | CP18: 61.6% | CQ18: 70.0% | CR18: 48.4% | CS18: 45.5% | CT18: 65.2% | CU18: 64.4% | CV18: 65.8% | CW18: 66.7% | CX18: 54.2% | CY18: 62.4% | CZ18: 61.3% | DA18: 52.8% | DB18: 72.2% | DC18: 62.9% | DD18: 38.4% | DE18: 47.3% | DF18: 66.5% | DG18: 50.0% | DH18: 49.5% | DI18: 45.0% | DJ18: 62.5% | DK18: 100.0% | DL18: 57.1% | DM18: 52.4% | DN18: 20.5% | DO18: 76.9% | DP18: 76.9% | DQ18: 52.9% | DR18: 54.8%
K19: 2025 | L19: 10 | N19: 4 | O19: 1 | P19: 25.0% | BQ19: HUANUCO | BR19: 62.5% | BU19: HUANCAVELICA | BV19: 50.0% | BW19: 100.0% | BX19: 100.0% | BY19: 100.0% | BZ19: 100.0% | CA19: 100.0% | CB19: 100.0% | CC19: 100.0% | CD19: 66.7% | CE19: 66.7% | CF19: 66.7% | CN19: Octubre | CO19: 87.5% | CP19: 65.8% | CQ19: 70.0% | CR19: 51.6% | CS19: 45.5% | CT19: 78.3% | CU19: 72.2% | CV19: 78.9% | CW19: 66.7% | CX19: 62.5% | CY19: 71.8% | CZ19: 72.0% | DA19: 57.8% | DB19: 80.6% | DC19: 68.8% | DD19: 42.6% | DE19: 52.3% | DF19: 72.2% | DG19: 55.1% | DH19: 54.8% | DI19: 50.0% | DJ19: 62.5% | DK19: 100.0% | DL19: 57.1% | DM19: 61.9% | DN19: 30.8% | DO19: 76.9% | DP19: 76.9% | DQ19: 63.5% | DR19: 61.0%
K20: 2025 | L20: 11 | N20: 4 | O20: 2 | P20: 50.0% | BQ20: ICA | BR20: 80.0% | BU20: HUANUCO | BV20: 12.5% | BW20: 12.5% | BX20: 20.0% | BY20: 20.0% | BZ20: 15.0% | CA20: 28.6% | CB20: 33.3% | CC20: 52.2% | CD20: 54.2% | CE20: 62.5% | CF20: 62.5% | CN20: Noviembre | CO20: 87.5% | CP20: 82.2% | CQ20: 70.0% | CR20: 51.6% | CS20: 45.5% | CT20: 91.3% | CU20: 77.8% | CV20: 84.2% | CW20: 66.7% | CX20: 62.5% | CY20: 80.0% | CZ20: 77.4% | DA20: 61.5% | DB20: 84.7% | DC20: 75.2% | DD20: 45.8% | DE20: 55.2% | DF20: 80.7% | DG20: 56.1% | DH20: 57.5% | DI20: 50.0% | DJ20: 75.0% | DK20: 100.0% | DL20: 68.6% | DM20: 61.9% | DN20: 41.0% | DO20: 76.9% | DP20: 84.6% | DQ20: 64.4% | DR20: 65.8%
BQ21: JUNIN | BR21: 77.4% | BU21: ICA | BV21: 17.6% | BW21: 18.6% | BX21: 23.9% | BY21: 40.4% | BZ21: 53.6% | CA21: 59.7% | CB21: 63.4% | CC21: 63.3% | CD21: 62.4% | CE21: 71.8% | CF21: 80.0%
BQ22: LA LIBERTAD | BR22: 61.5% | BU22: JUNIN | BV22: 11.1% | BW22: 25.0% | BX22: 26.1% | BY22: 30.0% | BZ22: 41.8% | CA22: 62.3% | CB22: 59.7% | CC22: 56.3% | CD22: 61.3% | CE22: 72.0% | CF22: 77.4%
BQ23: LAMBAYEQUE | BR23: 84.7% | BU23: LA LIBERTAD | BV23: 2.2% | BW23: 13.1% | BX23: 20.5% | BY23: 23.7% | BZ23: 34.9% | CA23: 39.7% | CB23: 42.5% | CC23: 50.3% | CD23: 52.8% | CE23: 57.8% | CF23: 61.5%
BQ24: LIMA DIRIS CENTRO | BR24: 75.2% | BU24: LAMBAYEQUE | BV24: 0.0% | BW24: 7.1% | BX24: 10.5% | BY24: 34.0% | BZ24: 38.9% | CA24: 48.3% | CB24: 59.7% | CC24: 72.3% | CD24: 72.2% | CE24: 80.6% | CF24: 84.7%
BQ25: LIMA DIRIS ESTE | BR25: 45.8% | BU25: LIMA DIRIS CENTRO | BV25: 7.0% | BW25: 12.8% | BX25: 26.9% | BY25: 32.2% | BZ25: 40.4% | CA25: 45.8% | CB25: 51.8% | CC25: 58.9% | CD25: 62.9% | CE25: 68.8% | CF25: 75.2%
BQ26: LIMA DIRIS NORTE | BR26: 55.2% | BU26: LIMA DIRIS ESTE | BV26: 10.6% | BW26: 15.1% | BX26: 19.1% | BY26: 28.3% | BZ26: 33.6% | CA26: 39.6% | CB26: 40.0% | CC26: 39.4% | CD26: 38.4% | CE26: 42.6% | CF26: 45.8%
